Workbook

Sheet Summary
B1: Increasing capacity for generation in the Molong and Parkes area
B2: Transgrid
B4: About this workbook
B6: This workbook is designed to determine the preferred credible option to inform the Increasing capacity for generation in Molong and Parkes area RIT-T PADR
B8: Tab colour meanings
D10: Control and reporting sheets
D11: Calculation sheets
D12: Primary input sheets
D13: Secondary input sheets (feed in to primary input sheets). These sheets are ad-hoc, free form calculations
D14: Variance sheets
B16: Cell colour meanings
D18: Fixed cell - should not be changed by user
D19: Input cell - value can be changed by the user
D20: Formula cell - should not be changed by user
D21: Cell targeted by solver - should not be changed by user
D22: Assertion/check passes
D23: Assertion/check fails
B25: How to use this workbook
B27: Insert inputs and refer to the assumptions made in the 'Inputs' tab.
B28: A summary of the results on the NPV net economic benefits, gross benefits, costs, sensitivity and threshold analyses for the credible options are presented in the 'Results' tab.
B29: There are four scenarios considered in this workbook: Step Change, Progressive Change, Hydrogen Superpower and Weighted.
B30: Refer to the Supply to Increasing capacity for generation in Molong and Parkes area PADR for further details relating to the analyses performed in this workbook.
B32: Source table
D34: Variable | E34: Source
C35: 1 | D35: Discount rate | E35: Central rate of 5.5% is Based on AEMO, 2021 Inputs, Assumptions and Scenarios Report, July 2021. Low benefit rate of 3.21% is based on AER’s latest final determination for a TNSP, and a high benefit rate of 7.5% aligns with the high discount rate scenario in the 2022 IASR. The 3.21% is a pre-tax real WACC based on Transgrid's 2023-28 final determination PTRM April 2023. See: https://www.aer.gov.au/networks-pipelines/determinations-access-arrangements/transgrid-determination-2023%E2%80%9328/final-decision. Refer to WACC tab, cell R23.
C36: 2 | D36: Network capital costs | E36: Transgrid
C37: 3 | D37: Operating and maintenance costs | E37: Transgrid
C38: 4 | D38: Market Benefits | E38: EY energy modelling

Sheet Central analysis >>>

Sheet Results
B1: Increasing capacity for generation in Molong and Parkes area - Central analysis
B2: Results
B4: Description: This tab summarises the results produced under the central analysis
B6: Estimated net benefits
B9: Option | D9: Step Change | E9: Progressive Change | F9: Hydrogen Superpower | G9: Weighted scenario | H9: Rank
B10: Scenario weighting | D10: =Weight_Step -> 0.52 | E10: =Weight_Progressive -> 0.3 | F10: =Weight_Hydro -> 0.18
B11: Option 1 | C11: June $2022 m | D11: ='Step Change'!F10 -> 17.54283303 | E11: ='Progressive Change'!F10 -> 13.37235854 | F11: ='Hydrogen Superpower'!F10 -> 38.56851534 | G11: =Weighted!F10 -> 20.0763135 | H11: =IF(G11=0,0,_xlfn.RANK.EQ(G11,$G$11:$G$16)) -> 3
B12: Option 2 | C12: June $2022 m | D12: ='Step Change'!F11 -> 19.49206462 | E12: ='Progressive Change'!F11 -> 15.47883438 | F12: ='Hydrogen Superpower'!F11 -> 53.81429879 | G12: =Weighted!F11 -> 24.4660977 | H12: =IF(G12=0,0,_xlfn.RANK.EQ(G12,$G$11:$G$16)) -> 1
B13: Option 2A | C13: June $2022 m | D13: ='Step Change'!F12 -> 18.84940869 | E13: ='Progressive Change'!F12 -> 14.9892316 | F13: ='Hydrogen Superpower'!F12 -> 53.30393438 | G13: =Weighted!F12 -> 23.89317018 | H13: 2
B14: Option 2B | C14: June $2022 m | D14: ='Step Change'!F13 -> -1.176739503 | E14: ='Progressive Change'!F13 -> -3.9681996 | F14: ='Hydrogen Superpower'!F13 -> 37.85549518 | G14: =Weighted!F13 -> 5.011624711 | H14: 4
B15: Option 3 | C15: June $2022 m | D15: ='Step Change'!F14 -> -8.423156052 | E15: ='Progressive Change'!F14 -> -13.55102643 | F15: ='Hydrogen Superpower'!F14 -> -13.33541947 | G15: =Weighted!F14 -> -10.84572458 | H15: 5
B16: Option 4 | C16: June $2022 m | D16: ='Step Change'!F15 -> -65.93468526 | E16: ='Progressive Change'!F15 -> -59.51179692 | F16: ='Hydrogen Superpower'!F15 -> -47.36890734 | G16: =Weighted!F15 -> -60.66597874 | H16: 6
B24: Net economic benefits - detailed chart
D27: Fuel consumption | E27: Cost for parties other than the RIT-T proponent | F27: Difference in timing of unrelated expenditure | G27: Voluntary load curtailment | H27: Involuntary load shedding | I27: Cost of option | J27: Net economic benefit
B28: Step Change | C28: Option 1 | D28: ='Step Change'!F50 -> -1.389101371 | E28: =SUM('Step Change'!F59,'Step Change'!F66,'Step Change'!F73) -> 21.5702495 | F28: ='Step Change'!F82 -> -1.20157681 | G28: ='Step Change'!F100 -> -0.3763626767 | H28: ='Step Change'!F109 -> 0.1122953027 | I28: =-'Step Change'!F39 -> -1.438700803 | J28: ='Step Change'!F10 -> 17.54283303
C29: Option 2 | D29: ='Step Change'!F51 -> -3.223187096 | E29: =SUM('Step Change'!F60,'Step Change'!F67,'Step Change'!F74) -> 30.98020327 | F29: ='Step Change'!F83 -> -2.082076768 | G29: ='Step Change'!F101 -> -0.4138686458 | H29: ='Step Change'!F110 -> 0.1751816714 | I29: =-'Step Change'!F40 -> -7.459534716 | J29: ='Step Change'!F11 -> 19.49206462
C30: Option 2A | D30: ='Step Change'!F52 -> -3.203452394 | E30: =SUM('Step Change'!F61,'Step Change'!F68,'Step Change'!F75) -> 31.07709369 | F30: ='Step Change'!F84 -> -2.255168143 | G30: ='Step Change'!F102 -> -0.490905645 | H30: ='Step Change'!F111 -> 0.1865801895 | I30: =-'Step Change'!F41 -> -8.112806938 | J30: ='Step Change'!F12 -> 18.84940869
C31: Option 2B | D31: ='Step Change'!F53 -> -2.987226147 | E31: =SUM('Step Change'!F62,'Step Change'!F69,'Step Change'!F76) -> 29.04584151 | F31: ='Step Change'!F85 -> -2.45098011 | G31: ='Step Change'!F103 -> -0.7414352959 | H31: ='Step Change'!F112 -> 0.2724107602 | I31: =-'Step Change'!F42 -> -25.82061855 | J31: ='Step Change'!F13 -> -1.176739503
C32: Option 3 | D32: ='Step Change'!F54 -> -4.539217362 | E32: =SUM('Step Change'!F63,'Step Change'!F70,'Step Change'!F77) -> 25.0995713 | F32: ='Step Change'!F86 -> 0.7093827335 | G32: ='Step Change'!F104 -> 0.6355000051 | H32: ='Step Change'!F113 -> 0.1616920126 | I32: =-'Step Change'!F43 -> -38.26127206 | J32: ='Step Change'!F14 -> -8.423156052
C33: Option 4 | D33: ='Step Change'!F55 -> 0.3124857649 | E33: =SUM('Step Change'!F64,'Step Change'!F71,'Step Change'!F78) -> 108.242065 | F33: ='Step Change'!F87 -> -2.257245922 | G33: ='Step Change'!F105 -> 0.3373943062 | H33: ='Step Change'!F114 -> 1.135293191 | I33: =-'Step Change'!F44 -> -184.4567389 | J33: ='Step Change'!F15 -> -65.93468526
B34: Progressive Change | C34: Option 1 | D34: ='Progressive Change'!F50 -> 2.983505565 | E34: =SUM('Progressive Change'!F59,'Progressive Change'!F66,'Progressive Change'!F73) -> 12.36111324 | F34: ='Progressive Change'!F82 -> 0.3272978914 | G34: ='Progressive Change'!F100 -> -0.1316777915 | H34: ='Progressive Change'!F109 -> -0.9952094457 | I34: =-'Progressive Change'!F39 -> -1.438700803 | J34: ='Progressive Change'!F10 -> 13.37235854
C35: Option 2 | D35: ='Progressive Change'!F51 -> 3.019423726 | E35: =SUM('Progressive Change'!F60,'Progressive Change'!F67,'Progressive Change'!F74) -> 19.41866959 | F35: ='Progressive Change'!F83 -> 0.5423201431 | G35: ='Progressive Change'!F101 -> -0.284047958 | H35: ='Progressive Change'!F110 -> -1.273343315 | I35: =-'Progressive Change'!F40 -> -7.459534716 | J35: ='Progressive Change'!F11 -> 15.47883438
C36: Option 2A | D36: ='Progressive Change'!F52 -> 3.135312996 | E36: =SUM('Progressive Change'!F61,'Progressive Change'!F68,'Progressive Change'!F75) -> 19.63429212 | F36: ='Progressive Change'!F84 -> 0.5672693653 | G36: ='Progressive Change'!F102 -> -0.6103710142 | H36: ='Progressive Change'!F111 -> -1.272532861 | I36: =-'Progressive Change'!F41 -> -8.112806938 | J36: ='Progressive Change'!F12 -> 14.9892316
C37: Option 2B | D37: ='Progressive Change'!F53 -> 2.786605339 | E37: =SUM('Progressive Change'!F62,'Progressive Change'!F69,'Progressive Change'!F76) -> 18.69452521 | F37: ='Progressive Change'!F85 -> 0.6969522373 | G37: ='Progressive Change'!F103 -> -0.5270150789 | H37: ='Progressive Change'!F112 -> -1.303917088 | I37: =-'Progressive Change'!F42 -> -25.82061855 | J37: ='Progressive Change'!F13 -> -3.9681996
C38: Option 3 | D38: ='Progressive Change'!F54 -> 0.5486248312 | E38: =SUM('Progressive Change'!F63,'Progressive Change'!F70,'Progressive Change'!F77) -> 19.10206103 | F38: ='Progressive Change'!F86 -> 0.4627756685 | G38: ='Progressive Change'!F104 -> -1.79302148 | H38: ='Progressive Change'!F113 -> -1.381381745 | I38: =-'Progressive Change'!F43 -> -38.26127206 | J38: ='Progressive Change'!F14 -> -13.55102643
C39: Option 4 | D39: ='Progressive Change'!F55 -> 20.57344444 | E39: =SUM('Progressive Change'!F64,'Progressive Change'!F71,'Progressive Change'!F78) -> 89.69733893 | F39: ='Progressive Change'!F87 -> 3.004105846 | G39: ='Progressive Change'!F105 -> 0.3996052387 | H39: ='Progressive Change'!F114 -> 0.5183862213 | I39: =-'Progressive Change'!F44 -> -184.4567389 | J39: ='Progressive Change'!F15 -> -59.51179692
B40: Hydrogen Superpower | C40: Option 1 | D40: ='Hydrogen Superpower'!F50 -> 30.83962616 | E40: =SUM('Hydrogen Superpower'!F59,'Hydrogen Superpower'!F66,'Hydrogen Superpower'!F73) -> 9.059590089 | F40: ='Hydrogen Superpower'!F82 -> 0.3443683592 | G40: ='Hydrogen Superpower'!F100 -> -1.044908417 | H40: ='Hydrogen Superpower'!F109 -> 0.5425100682 | I40: =-'Hydrogen Superpower'!F39 -> -1.438700803 | J40: ='Hydrogen Superpower'!F10 -> 38.56851534
C41: Option 2 | D41: ='Hydrogen Superpower'!F51 -> 40.81091076 | E41: =SUM('Hydrogen Superpower'!F60,'Hydrogen Superpower'!F67,'Hydrogen Superpower'!F74) -> 19.55745827 | F41: ='Hydrogen Superpower'!F83 -> 1.051344074 | G41: ='Hydrogen Superpower'!F101 -> -2.160487206 | H41: ='Hydrogen Superpower'!F110 -> 0.4992607154 | I41: =-'Hydrogen Superpower'!F40 -> -7.459534716 | J41: ='Hydrogen Superpower'!F11 -> 53.81429879
C42: Option 2A | D42: ='Hydrogen Superpower'!F52 -> 42.21539729 | E42: =SUM('Hydrogen Superpower'!F61,'Hydrogen Superpower'!F68,'Hydrogen Superpower'!F75) -> 17.76341484 | F42: ='Hydrogen Superpower'!F84 -> 1.703250036 | G42: ='Hydrogen Superpower'!F102 -> -2.403684583 | H42: ='Hydrogen Superpower'!F111 -> 0.4902958076 | I42: =-'Hydrogen Superpower'!F41 -> -8.112806938 | J42: ='Hydrogen Superpower'!F12 -> 53.30393438
C43: Option 2B | D43: ='Hydrogen Superpower'!F53 -> 60.43199901 | E43: =SUM('Hydrogen Superpower'!F62,'Hydrogen Superpower'!F69,'Hydrogen Superpower'!F76) -> 0.9400285271 | F43: ='Hydrogen Superpower'!F85 -> 4.055803243 | G43: ='Hydrogen Superpower'!F103 -> -3.716249969 | H43: ='Hydrogen Superpower'!F112 -> 0.4592645877 | I43: =-'Hydrogen Superpower'!F42 -> -25.82061855 | J43: ='Hydrogen Superpower'!F13 -> 37.85549518
C44: Option 3 | D44: ='Hydrogen Superpower'!F54 -> -82.02342011 | E44: =SUM('Hydrogen Superpower'!F63,'Hydrogen Superpower'!F70,'Hydrogen Superpower'!F77) -> 93.54471352 | F44: ='Hydrogen Superpower'!F86 -> 3.066045306 | G44: ='Hydrogen Superpower'!F104 -> 2.949840636 | H44: ='Hydrogen Superpower'!F113 -> -0.3825140829 | I44: =-'Hydrogen Superpower'!F43 -> -38.26127206 | J44: ='Hydrogen Superpower'!F14 -> -13.33541947
C45: Option 4 | D45: ='Hydrogen Superpower'!F55 -> 48.79473061 | E45: =SUM('Hydrogen Superpower'!F64,'Hydrogen Superpower'!F71,'Hydrogen Superpower'!F78) -> 79.96085879 | F45: ='Hydrogen Superpower'!F87 -> 0.6096461814 | G45: ='Hydrogen Superpower'!F105 -> -3.459937444 | H45: ='Hydrogen Superpower'!F114 -> 0.4304721275 | I45: =-'Hydrogen Superpower'!F44 -> -184.4567389 | J45: ='Hydrogen Superpower'!F15 -> -47.36890734
B46: Weighted | C46: Option 1 | D46: =Weighted!F50 -> 5.723851666 | E46: =SUM(Weighted!F59,Weighted!F66,Weighted!F73) -> 16.55558993 | F46: =Weighted!F82 -> -0.4646442689 | G46: =Weighted!F100 -> -0.4232954444 | H46: =Weighted!F109 -> -0.1425174641 | I46: =-Weighted!F39 -> -1.438700803 | J46: =Weighted!F10 -> 20.0763135
C47: Option 2 | D47: =Weighted!F51 -> 6.575733764 | E47: =SUM(Weighted!F60,Weighted!F67,Weighted!F74) -> 25.45564907 | F47: =Weighted!F83 -> -0.730741943 | G47: =Weighted!F101 -> -0.6893137803 | H47: =Weighted!F110 -> -0.2010415966 | I47: =-Weighted!F40 -> -7.459534716 | J47: =Weighted!F11 -> 24.4660977
C48: Option 2A | D48: =Weighted!F52 -> 6.873570166 | E48: =SUM(Weighted!F61,Weighted!F68,Weighted!F75) -> 25.24779102 | F48: =Weighted!F84 -> -0.6959216182 | G48: =Weighted!F102 -> -0.8710454647 | H48: =Weighted!F111 -> -0.1964849144 | I48: =-Weighted!F41 -> -8.112806938 | J48: =Weighted!F12 -> 23.89317018
C49: Option 2B | D49: =Weighted!F53 -> 10.16038383 | E49: =SUM(Weighted!F62,Weighted!F69,Weighted!F76) -> 20.88140028 | F49: =Weighted!F85 -> -0.3353794025 | G49: =Weighted!F103 -> -1.212575872 | H49: =Weighted!F112 -> -0.1668539052 | I49: =-Weighted!F42 -> -25.82061855 | J49: =Weighted!F13 -> 5.011624711
C50: Option 3 | D50: =Weighted!F54 -> -16.9600212 | E50: =SUM(Weighted!F63,Weighted!F70,Weighted!F77) -> 35.62044382 | F50: =Weighted!F86 -> 1.059599877 | G50: =Weighted!F104 -> 0.3235248732 | H50: =Weighted!F113 -> -0.3991872119 | I50: =-Weighted!F43 -> -38.26127206 | J50: =Weighted!F14 -> -10.84572458
C51: Option 4 | D51: =Weighted!F55 -> 15.11757744 | E51: =SUM(Weighted!F64,Weighted!F71,Weighted!F78) -> 97.58803006 | F51: =Weighted!F87 -> -0.1627998133 | G51: =Weighted!F105 -> -0.3274621291 | H51: =Weighted!F114 -> 0.8233533087 | I51: =-Weighted!F44 -> -184.4567389 | J51: =Weighted!F15 -> -60.66597874
B57: Estimated costs
B59: Option | D59: Step Change | E59: Progressive Change | F59: Hydrogen Superpower | G59: Weighted
B60: Scenario weighting | D60: =Weight_Step -> 0.52 | E60: =Weight_Progressive -> 0.3 | F60: =Weight_Hydro -> 0.18
B61: Option 1 | C61: June $2022 m | D61: ='Step Change'!F39 -> 1.438700803 | E61: ='Progressive Change'!F39 -> 1.438700803 | F61: ='Progressive Change'!F39 -> 1.438700803 | G61: =Weighted!F39 -> 1.438700803
B62: Option 2 | C62: June $2022 m | D62: ='Step Change'!F40 -> 7.459534716 | E62: ='Progressive Change'!F40 -> 7.459534716 | F62: ='Progressive Change'!F40 -> 7.459534716 | G62: =Weighted!F40 -> 7.459534716
B63: Option 2A | C63: June $2022 m | D63: ='Step Change'!F41 -> 8.112806938 | E63: ='Progressive Change'!F41 -> 8.112806938 | F63: ='Progressive Change'!F41 -> 8.112806938 | G63: =Weighted!F41 -> 8.112806938
B64: Option 2B | C64: June $2022 m | D64: ='Step Change'!F42 -> 25.82061855 | E64: ='Progressive Change'!F42 -> 25.82061855 | F64: ='Progressive Change'!F42 -> 25.82061855 | G64: =Weighted!F42 -> 25.82061855
B65: Option 3 | C65: June $2022 m | D65: ='Step Change'!F43 -> 38.26127206 | E65: ='Progressive Change'!F43 -> 38.26127206 | F65: ='Progressive Change'!F43 -> 38.26127206 | G65: =Weighted!F43 -> 38.26127206
B66: Option 4 | C66: June $2022 m | D66: ='Step Change'!F44 -> 184.4567389 | E66: ='Progressive Change'!F44 -> 184.4567389 | F66: ='Progressive Change'!F44 -> 184.4567389 | G66: =Weighted!F44 -> 184.4567389
B74: Estimated benefits
B76: Option | D76: Step Change | E76: Progressive Change | F76: Hydrogen Superpower | G76: Weighted
B77: Scenario weighting | D77: =Weight_Step -> 0.52 | E77: =Weight_Progressive -> 0.3 | F77: =Weight_Hydro -> 0.18
B78: Option 1 | C78: June $2022 m | D78: ='Step Change'!F118 -> 18.71550395 | E78: ='Progressive Change'!F118 -> 14.54502946 | F78: ='Hydrogen Superpower'!F118 -> 39.74118626 | G78: =Weighted!F118 -> 21.24898442
B79: Option 2 | C79: June $2022 m | D79: ='Step Change'!F119 -> 25.43625243 | E79: ='Progressive Change'!F119 -> 21.42302219 | F79: ='Hydrogen Superpower'!F119 -> 59.75848661 | G79: =Weighted!F119 -> 30.41028551
B80: Option 2A | C80: June $2022 m | D80: ='Step Change'!F120 -> 25.3141477 | E80: ='Progressive Change'!F120 -> 21.4539706 | F80: ='Hydrogen Superpower'!F120 -> 59.76867338 | G80: =Weighted!F120 -> 30.35790919
B81: Option 2B | C81: June $2022 m | D81: ='Step Change'!F121 -> 23.13861072 | E81: ='Progressive Change'!F121 -> 20.34715062 | F81: ='Hydrogen Superpower'!F121 -> 62.1708454 | G81: =Weighted!F121 -> 29.32697493
B82: Option 3 | C82: June $2022 m | D82: ='Step Change'!F122 -> 22.06692869 | E82: ='Progressive Change'!F122 -> 16.93905831 | F82: ='Hydrogen Superpower'!F122 -> 17.15466527 | G82: =Weighted!F122 -> 19.64436016
B83: Option 4 | C83: June $2022 m | D83: ='Step Change'!F123 -> 107.7699923 | E83: ='Progressive Change'!F123 -> 114.1928807 | F83: ='Hydrogen Superpower'!F123 -> 126.3357703 | G83: =Weighted!F123 -> 113.0386989
B92: S1 Capex
B94: % of baseline capital cost estimate | D94: Option 1 | E94: Option 2 | F94: Option 2A | G94: Option 2B | H94: Option 3 | I94: Option 4
B95: ='S1 Capex'!D140 -> 0.75 | C95: June $2022 m | D95: ='S1 Capex'!E140 -> 20.39530611 | E95: ='S1 Capex'!F140 -> 26.12998128 | F95: ='S1 Capex'!G140 -> 25.70278431 | G95: ='S1 Capex'!H140 -> 10.77106775 | H95: ='S1 Capex'!I140 -> -2.312793344 | I95: ='S1 Capex'!J140 -> -19.52654655
B96: ='S1 Capex'!D141 -> 0.8 | C96: June $2022 m | D96: ='S1 Capex'!E141 -> 20.33150758 | E96: ='S1 Capex'!F141 -> 25.79720456 | F96: ='S1 Capex'!G141 -> 25.34086148 | G96: ='S1 Capex'!H141 -> 9.619179138 | H96: ='S1 Capex'!I141 -> -4.019379592 | I96: ='S1 Capex'!J141 -> -27.75443298
B97: ='S1 Capex'!D142 -> 0.85 | C97: June $2022 m | D97: ='S1 Capex'!E142 -> 20.26770906 | E97: ='S1 Capex'!F142 -> 25.46442785 | F97: ='S1 Capex'!G142 -> 24.97893866 | G97: ='S1 Capex'!H142 -> 8.467290532 | H97: ='S1 Capex'!I142 -> -5.725965839 | I97: ='S1 Capex'!J142 -> -35.98231942
B98: ='S1 Capex'!D143 -> 0.9 | C98: June $2022 m | D98: ='S1 Capex'!E143 -> 20.20391054 | E98: ='S1 Capex'!F143 -> 25.13165113 | F98: ='S1 Capex'!G143 -> 24.61701583 | G98: ='S1 Capex'!H143 -> 7.315401925 | H98: ='S1 Capex'!I143 -> -7.432552087 | I98: ='S1 Capex'!J143 -> -44.21020586
B99: ='S1 Capex'!D144 -> 0.95 | C99: June $2022 m | D99: ='S1 Capex'!E144 -> 20.14011202 | E99: ='S1 Capex'!F144 -> 24.79887441 | F99: ='S1 Capex'!G144 -> 24.25509301 | G99: ='S1 Capex'!H144 -> 6.163513318 | H99: ='S1 Capex'!I144 -> -9.139138334 | I99: ='S1 Capex'!J144 -> -52.4380923
B100: ='S1 Capex'!D145 -> 1 | C100: June $2022 m | D100: ='S1 Capex'!E145 -> 20.0763135 | E100: ='S1 Capex'!F145 -> 24.4660977 | F100: ='S1 Capex'!G145 -> 23.89317018 | G100: ='S1 Capex'!H145 -> 5.011624711 | H100: ='S1 Capex'!I145 -> -10.84572458 | I100: ='S1 Capex'!J145 -> -60.66597874
B101: ='S1 Capex'!D146 -> 1.05 | C101: June $2022 m | D101: ='S1 Capex'!E146 -> 20.01251498 | E101: ='S1 Capex'!F146 -> 24.13332098 | F101: ='S1 Capex'!G146 -> 23.53124736 | G101: ='S1 Capex'!H146 -> 3.859736105 | H101: ='S1 Capex'!I146 -> -12.55231083 | I101: ='S1 Capex'!J146 -> -68.89386517
B102: ='S1 Capex'!D147 -> 1.1 | C102: June $2022 m | D102: ='S1 Capex'!E147 -> 19.94871645 | E102: ='S1 Capex'!F147 -> 23.80054427 | F102: ='S1 Capex'!G147 -> 23.16932453 | G102: ='S1 Capex'!H147 -> 2.707847498 | H102: ='S1 Capex'!I147 -> -14.25889708 | I102: ='S1 Capex'!J147 -> -77.12175161
B103: ='S1 Capex'!D148 -> 1.15 | C103: June $2022 m | D103: ='S1 Capex'!E148 -> 19.88491793 | E103: ='S1 Capex'!F148 -> 23.46776755 | F103: ='S1 Capex'!G148 -> 22.80740171 | G103: ='S1 Capex'!H148 -> 1.555958891 | H103: ='S1 Capex'!I148 -> -15.96548332 | I103: ='S1 Capex'!J148 -> -85.34963805
B104: ='S1 Capex'!D149 -> 1.2 | C104: June $2022 m | D104: ='S1 Capex'!E149 -> 19.82111941 | E104: ='S1 Capex'!F149 -> 23.13499084 | F104: ='S1 Capex'!G149 -> 22.44547889 | G104: ='S1 Capex'!H149 -> 0.4040702845 | H104: ='S1 Capex'!I149 -> -17.67206957 | I104: ='S1 Capex'!J149 -> -93.57752449
B105: ='S1 Capex'!D150 -> 1.25 | C105: June $2022 m | D105: ='S1 Capex'!E150 -> 19.75732089 | E105: ='S1 Capex'!F150 -> 22.80221412 | F105: ='S1 Capex'!G150 -> 22.08355606 | G105: ='S1 Capex'!H150 -> -0.7478183223 | H105: ='S1 Capex'!I150 -> -19.37865582 | I105: ='S1 Capex'!J150 -> -101.8054109
B116: S2 Discount rate
B118: Discount rate | D118: Option 1 | E118: Option 2 | F118: Option 2A | G118: Option 2B | H118: Option 3 | I118: Option 4
B119: ='S2 Discount rate'!D131 -> 0.03210690548 | C119: June $2022 m | D119: ='S2 Discount rate'!E131 -> 27.75847803 | E119: ='S2 Discount rate'!F131 -> 36.14484752 | F119: ='S2 Discount rate'!G131 -> 35.66992381 | G119: ='S2 Discount rate'!H131 -> 15.16994093 | H119: ='S2 Discount rate'!I131 -> -2.371702287 | I119: ='S2 Discount rate'!J131 -> -32.48674332
B120: ='S2 Discount rate'!D132 -> 0.036 | C120: June $2022 m | D120: ='S2 Discount rate'!E132 -> 26.21979478 | E120: ='S2 Discount rate'!F132 -> 33.7874931 | F120: ='S2 Discount rate'!G132 -> 33.28907974 | G120: ='S2 Discount rate'!H132 -> 13.08738198 | H120: ='S2 Discount rate'!I132 -> -4.155732037 | I120: ='S2 Discount rate'!J132 -> -38.36675941
B121: ='S2 Discount rate'!D133 -> 0.049 | C121: June $2022 m | D121: ='S2 Discount rate'!E133 -> 21.79850059 | E121: ='S2 Discount rate'!F133 -> 27.06261728 | F121: ='S2 Discount rate'!G133 -> 26.50714802 | G121: ='S2 Discount rate'!H133 -> 7.231175961 | H121: ='S2 Discount rate'!I133 -> -9.048835536 | I121: ='S2 Discount rate'!J133 -> -54.63351134
B122: ='S2 Discount rate'!D134 -> 0.055 | C122: June $2022 m | D122: ='S2 Discount rate'!E134 -> 20.0763135 | E122: ='S2 Discount rate'!F134 -> 24.4660977 | F122: ='S2 Discount rate'!G134 -> 23.89317018 | G122: ='S2 Discount rate'!H134 -> 5.011624711 | H122: ='S2 Discount rate'!I134 -> -10.84572458 | I122: ='S2 Discount rate'!J134 -> -60.66597874
B123: ='S2 Discount rate'!D135 -> 0.062 | C123: June $2022 m | D123: ='S2 Discount rate'!E135 -> 18.28010386 | E123: ='S2 Discount rate'!F135 -> 21.77443622 | F123: ='S2 Discount rate'!G135 -> 21.18659717 | G123: ='S2 Discount rate'!H135 -> 2.741935947 | H123: ='S2 Discount rate'!I135 -> -12.64203778 | I123: ='S2 Discount rate'!J135 -> -66.7332464
B124: ='S2 Discount rate'!D136 -> 0.075 | C124: June $2022 m | D124: ='S2 Discount rate'!E136 -> 15.45803624 | E124: ='S2 Discount rate'!F136 -> 17.58591773 | F124: ='S2 Discount rate'!G136 -> 16.98245602 | G124: ='S2 Discount rate'!H136 -> -0.7102704461 | H124: ='S2 Discount rate'!I136 -> -15.27382856 | I124: ='S2 Discount rate'!J136 -> -75.69757579

Sheet Inputs
C1: Increasing capacity for generation in Molong and Parkes area - Central analysis
C2: Inputs
C4: Description: This tab contains the inputs that feed into the other tabs under the central analysis
C6: General
D8: First year of analysis | E8: FY ending | G8: 2023
D9: Discount year | E9: FY ending | G9: 2023
D10: Analysis period | E10: Years | G10: 25
D12: Million | G12: 1000000
C14: Modelling scenarios
C16: Financial input scenarios | G16: Step Change | H16: Progressive Change | I16: Hydrogen Superpower | J16: Weighted
D18: Discount rate | E18: % | G18: 0.055 | H18: 0.055 | I18: 0.055 | J18: =G18*Weight_Step+H18*Weight_Progressive+I18*Weight_Hydro -> 0.055
C20: Cost scenarios
D22: Network capital costs | E22: Factor | G22: 1 | H22: 1 | I22: 1 | J22: =G22*Weight_Step+H22*Weight_Progressive+I22*Weight_Hydro -> 1
D23: Non-Network capital costs | E23: Factor | G23: 1 | H23: 1 | I23: 1 | J23: =G23*Weight_Step+H23*Weight_Progressive+I23*Weight_Hydro -> 1
D24: Operating and maintenance costs | E24: Factor | G24: 1 | H24: 1 | I24: 1 | J24: =G24*Weight_Step+H24*Weight_Progressive+I24*Weight_Hydro -> 1
C26: Market benefit scenarios
D28: Change in fuel consumption | E28: Factor | G28: 1 | H28: 1 | I28: 1 | J28: =G28*Weight_Step+H28*Weight_Progressive+I28*Weight_Hydro -> 1
D29: Change in cost for parties | E29: Factor | G29: 1 | H29: 1 | I29: 1 | J29: 1
D30: Difference in timing of unrelated expenditure | E30: Factor | G30: 1 | H30: 1 | I30: 1 | J30: 1
D31: Changes in ancillary service costs | E31: Factor | G31: 1 | H31: 1 | I31: 1 | J31: 1
D32: Voluntary load curtailment | E32: Factor | G32: 1 | H32: 1 | I32: 1 | J32: 1
D33: Involuntary load shedding | E33: Factor | G33: 1 | H33: 1 | I33: 1 | J33: 1
C35: Scenario weighting
D37: Scenario weighting | E37: % | G37: 0.52 | H37: 0.3 | I37: 0.18 | M37: =IF(SUM(G37:I37)=1,"OK","NO") -> OK
C39: Options
C41: Description of options | G41: Short description
D43: Option 1 | G43: Increase tranmission line design temperature of Line94T
D44: Option 2 | G44: Restring Line 94T with a higher rated conductor on existing infrastructures
D45: Option 2A | G45: Option 2 with a higher capacity conductor
D46: Option 2B | G46: Option 2 with power flow controllers
D47: Option 3 | G47: Double circuit tranmission line
D48: Option 4 | G48: 50MW/300MWh BESS
C50: Build summary | G50: Amount | H50: Build start | I50: Build end | J50: Commission | K50: Asset life
G51: June $2022 m | H51: FY ending | I51: FY ending | J51: FY ending | K51: Years
D52: Base case
D53: Option 1 | G53: 1.406775728 | H53: 2024 | I53: 2025 | J53: 2025 | K53: 40
D54: Option 2 | G54: 7.502803883 | H54: 2024 | I54: 2026 | J54: 2026 | K54: 40
D55: Option 2A | G55: 8.159299223 | H55: 2024 | I55: 2026 | J55: 2026 | K55: 40
D56: Option 2B | G56: 25.96907994 | H56: 2024 | I56: 2026 | J56: 2026 | K56: 25
D57: Option 3 | G57: 38.53627644 | H57: 2024 | I57: 2026 | J57: 2027 | K57: 40
D58: Option 4 | G58: 185.6943961 | H58: 2024 | I58: 2026 | J58: 2026 | K58: 25
C61: Terminal values | G61: Amount
D62: Base case | E62: June $2022 m
D63: Option 1 | E63: June $2022 m | G63: ='Terminal value'!AE13 -> 1.070272509
D64: Option 2 | E64: June $2022 m | G64: ='Terminal value'!AE25 -> 6.09643597
D65: Option 2A | E65: June $2022 m | G65: ='Terminal value'!AE38 -> 6.630389762
D66: Option 2B | E66: June $2022 m | G66: ='Terminal value'!AE50 -> 6.055888579
D67: Option 3 | E67: June $2022 m | G67: ='Terminal value'!AE62 -> 31.26448849
D68: Option 4 | E68: June $2022 m | G68: ='Terminal value'!AE74 -> 43.25692885
C70: Cost inputs
C72: Capital expenditure | E72: FY ending | G72: =$G$8 -> 2023 | H72: =G72+1 -> 2024 | I72: =H72+1 -> 2025 | J72: 2026 | K72: 2027 | L72: 2028 | M72: 2029 | N72: 2030 | O72: 2031 | P72: 2032 | Q72: 2033 | R72: 2034 | S72: 2035 | T72: 2036 | U72: 2037 | V72: 2038 | W72: 2039 | X72: 2040 | Y72: 2041 | Z72: 2042 | AA72: 2043 | AB72: 2044 | AC72: 2045 | AD72: 2046 | AE72: 2047 | AF72: 2048 | AG72: 2049 | AH72: 2050 | AI72: 2051 | AJ72: 2052 | AK72: 2053 | AL72: 2054 | AM72: 2055 | AN72: 2056
D74: Option 1 | E74: June $2022 m | H74: 0.2438411262 | I74: 1.162934602
D75: Option 2 | E75: June $2022 m | H75: 0.450168233 | I75: 4.754901961 | J75: 2.297733689
D76: Option 2A | E76: June $2022 m | H76: 0.4970607572 | I76: 5.167556174 | J76: 2.494682291
D77: Option 2B | E77: June $2022 m | H77: 1.575588815 | I77: 16.44989751 | J77: 7.943593611
D78: Option 3 | E78: June $2022 m | H78: 1.978864524 | I78: 23.98083691 | J78: 12.57657501
D79: Option 4 | E79: June $2022 m | H79: 18.75700971 | I79: 98.47430096 | J79: 68.46308543
C81: Operating expenditure
D83: Option 1 | E83: June $2022 m | J83: 0.01406775728 | K83: 0.01406775728 | L83: 0.01406775728 | M83: 0.01406775728 | N83: 0.01406775728 | O83: 0.01406775728 | P83: 0.01406775728 | Q83: 0.01406775728 | R83: 0.01406775728 | S83: 0.01406775728 | T83: 0.01406775728 | U83: 0.01406775728 | V83: 0.01406775728 | W83: 0.01406775728 | X83: 0.01406775728 | Y83: 0.01406775728 | Z83: 0.01406775728 | AA83: 0.01406775728 | AB83: 0.01406775728 | AC83: 0.01406775728 | AD83: 0.01406775728 | AE83: 0.01406775728 | AF83: 0.01406775728 | AG83: 0.01406775728 | AH83: 0.01406775728 | AI83: 0.01406775728 | AJ83: 0.01406775728 | AK83: 0.01406775728 | AL83: 0.01406775728 | AM83: 0.01406775728 | AN83: 0.01406775728
D84: Option 2 | E84: June $2022 m | K84: 0.07502803883 | L84: 0.07502803883 | M84: 0.07502803883 | N84: 0.07502803883 | O84: 0.07502803883 | P84: 0.07502803883 | Q84: 0.07502803883 | R84: 0.07502803883 | S84: 0.07502803883 | T84: 0.07502803883 | U84: 0.07502803883 | V84: 0.07502803883 | W84: 0.07502803883 | X84: 0.07502803883 | Y84: 0.07502803883 | Z84: 0.07502803883 | AA84: 0.07502803883 | AB84: 0.07502803883 | AC84: 0.07502803883 | AD84: 0.07502803883 | AE84: 0.07502803883 | AF84: 0.07502803883 | AG84: 0.07502803883 | AH84: 0.07502803883 | AI84: 0.07502803883 | AJ84: 0.07502803883 | AK84: 0.07502803883 | AL84: 0.07502803883 | AM84: 0.07502803883 | AN84: 0.07502803883
D85: Option 2A | E85: June $2022 m | K85: 0.08159299223 | L85: 0.08159299223 | M85: 0.08159299223 | N85: 0.08159299223 | O85: 0.08159299223 | P85: 0.08159299223 | Q85: 0.08159299223 | R85: 0.08159299223 | S85: 0.08159299223 | T85: 0.08159299223 | U85: 0.08159299223 | V85: 0.08159299223 | W85: 0.08159299223 | X85: 0.08159299223 | Y85: 0.08159299223 | Z85: 0.08159299223 | AA85: 0.08159299223 | AB85: 0.08159299223 | AC85: 0.08159299223 | AD85: 0.08159299223 | AE85: 0.08159299223 | AF85: 0.08159299223 | AG85: 0.08159299223 | AH85: 0.08159299223 | AI85: 0.08159299223 | AJ85: 0.08159299223 | AK85: 0.08159299223 | AL85: 0.08159299223 | AM85: 0.08159299223 | AN85: 0.08159299223
D86: Option 2B | E86: June $2022 m | K86: 0.2596907994 | L86: 0.2596907994 | M86: 0.2596907994 | N86: 0.2596907994 | O86: 0.2596907994 | P86: 0.2596907994 | Q86: 0.2596907994 | R86: 0.2596907994 | S86: 0.2596907994 | T86: 0.2596907994 | U86: 0.2596907994 | V86: 0.2596907994 | W86: 0.2596907994 | X86: 0.2596907994 | Y86: 0.2596907994 | Z86: 0.2596907994 | AA86: 0.2596907994 | AB86: 0.2596907994 | AC86: 0.2596907994 | AD86: 0.2596907994 | AE86: 0.2596907994 | AF86: 0.2596907994 | AG86: 0.2596907994 | AH86: 0.2596907994 | AI86: 0.2596907994 | AJ86: 0.2596907994 | AK86: 0.2596907994 | AL86: 0.2596907994 | AM86: 0.2596907994 | AN86: 0.2596907994
D87: Option 3 | E87: June $2022 m | K87: 0.3853627644 | L87: 0.3853627644 | M87: 0.3853627644 | N87: 0.3853627644 | O87: 0.3853627644 | P87: 0.3853627644 | Q87: 0.3853627644 | R87: 0.3853627644 | S87: 0.3853627644 | T87: 0.3853627644 | U87: 0.3853627644 | V87: 0.3853627644 | W87: 0.3853627644 | X87: 0.3853627644 | Y87: 0.3853627644 | Z87: 0.3853627644 | AA87: 0.3853627644 | AB87: 0.3853627644 | AC87: 0.3853627644 | AD87: 0.3853627644 | AE87: 0.3853627644 | AF87: 0.3853627644 | AG87: 0.3853627644 | AH87: 0.3853627644 | AI87: 0.3853627644 | AJ87: 0.3853627644 | AK87: 0.3853627644 | AL87: 0.3853627644 | AM87: 0.3853627644 | AN87: 0.3853627644
D88: Option 4 | E88: June $2022 m | K88: 1.856943961 | L88: 1.856943961 | M88: 1.856943961 | N88: 1.856943961 | O88: 1.856943961 | P88: 1.856943961 | Q88: 1.856943961 | R88: 1.856943961 | S88: 1.856943961 | T88: 1.856943961 | U88: 1.856943961 | V88: 1.856943961 | W88: 1.856943961 | X88: 1.856943961 | Y88: 1.856943961 | Z88: 1.856943961 | AA88: 1.856943961 | AB88: 1.856943961 | AC88: 1.856943961 | AD88: 1.856943961 | AE88: 1.856943961 | AF88: 1.856943961 | AG88: 1.856943961 | AH88: 1.856943961 | AI88: 1.856943961 | AJ88: 1.856943961 | AK88: 1.856943961 | AL88: 1.856943961 | AM88: 1.856943961 | AN88: 1.856943961
C90: Benefit inputs
D92: Step change
E94: FY ending | G94: =$G$8 -> 2023 | H94: =G94+1 -> 2024 | I94: =H94+1 -> 2025 | J94: 2026 | K94: 2027 | L94: 2028 | M94: 2029 | N94: 2030 | O94: 2031 | P94: 2032 | Q94: 2033 | R94: 2034 | S94: 2035 | T94: 2036 | U94: 2037 | V94: 2038 | W94: 2039 | X94: 2040 | Y94: 2041 | Z94: 2042 | AA94: 2043 | AB94: 2044 | AC94: 2045 | AD94: 2046 | AE94: 2047 | AF94: 2048 | AG94: 2049 | AH94: 2050 | AI94: 2051 | AJ94: 2052 | AK94: 2053 | AL94: 2054 | AM94: 2055 | AN94: 2056
C95: Fuel consumption (NER clause 5.15A.2(i))
D96: Base Case | E96: June $2022 m | G96: 0 | H96: 2493.529693 | I96: 2404.957547 | J96: 2113.594735 | K96: 1993.252783 | L96: 1743.85466 | M96: 1711.314707 | N96: 1577.782275 | O96: 1593.626676 | P96: 1303.664245 | Q96: 1188.967816 | R96: 1207.71074 | S96: 1544.547834 | T96: 1111.134507 | U96: 1173.922953 | V96: 1001.79715 | W96: 1188.743718 | X96: 1280.197977 | Y96: 1367.811622 | Z96: 817.7844655 | AA96: 980.6964547 | AB96: 1496.522209 | AC96: 955.6676383 | AD96: 1086.555317 | AE96: 1428.194532 | AF96: 1212.540828
D97: Option 1 | E97: June $2022 m | G97: 0 | H97: 2493.458673 | I97: 2404.718983 | J97: 2113.513002 | K97: 1993.006732 | L97: 1744.651694 | M97: 1711.125254 | N97: 1577.682081 | O97: 1594.161699 | P97: 1304.117686 | Q97: 1189.24112 | R97: 1208.197206 | S97: 1544.784489 | T97: 1111.086454 | U97: 1174.363654 | V97: 1002.263938 | W97: 1188.673381 | X97: 1280.352975 | Y97: 1367.482052 | Z97: 817.761914 | AA97: 980.9386956 | AB97: 1497.116373 | AC97: 955.3502686 | AD97: 1085.503815 | AE97: 1428.497488 | AF97: 1212.941447
D98: Option 2 | E98: June $2022 m | G98: 0 | H98: 2493.429465 | I98: 2404.876938 | J98: 2113.630652 | K98: 1992.924108 | L98: 1744.44268 | M98: 1711.025253 | N98: 1577.839715 | O98: 1594.269598 | P98: 1304.207145 | Q98: 1189.647601 | R98: 1208.44856 | S98: 1544.963052 | T98: 1111.140447 | U98: 1175.071089 | V98: 1002.880365 | W98: 1189.33268 | X98: 1280.721601 | Y98: 1367.479856 | Z98: 818.3843739 | AA98: 980.690051 | AB98: 1498.082335 | AC98: 955.472688 | AD98: 1084.910626 | AE98: 1428.133789 | AF98: 1212.678832
D99: Option 2A | E99: June $2022 m | G99: 0 | H99: 2493.429564 | I99: 2404.877123 | J99: 2113.623626 | K99: 1992.937014 | L99: 1744.429713 | M99: 1711.017462 | N99: 1577.837146 | O99: 1594.29059 | P99: 1304.207569 | Q99: 1189.640622 | R99: 1208.444668 | S99: 1544.951535 | T99: 1111.137504 | U99: 1175.07776 | V99: 1002.884263 | W99: 1189.381246 | X99: 1280.721652 | Y99: 1367.431666 | Z99: 818.3524567 | AA99: 980.6540339 | AB99: 1498.005229 | AC99: 955.4327352 | AD99: 1084.905255 | AE99: 1428.521884 | AF99: 1212.453906
D100: Option 2B | E100: June $2022 m | G100: 0 | H100: 2493.429384 | I100: 2404.877428 | J100: 2113.63862 | K100: 1992.988336 | L100: 1744.124868 | M100: 1711.003045 | N100: 1577.849717 | O100: 1594.31226 | P100: 1304.156473 | Q100: 1189.669642 | R100: 1208.461379 | S100: 1544.849767 | T100: 1111.216009 | U100: 1175.069702 | V100: 1002.923044 | W100: 1189.550734 | X100: 1280.734153 | Y100: 1367.263252 | Z100: 818.1975962 | AA100: 980.5096205 | AB100: 1497.583696 | AC100: 955.2171295 | AD100: 1084.727484 | AE100: 1429.642299 | AF100: 1212.433022
D101: Option 3 | E101: June $2022 m | G101: 0 | H101: 2493.437204 | I101: 2404.887051 | J101: 2114.011951 | K101: 1993.055247 | L101: 1744.250561 | M101: 1710.908485 | N101: 1577.818601 | O101: 1594.402352 | P101: 1304.275817 | Q101: 1189.580682 | R101: 1208.510052 | S101: 1545.355284 | T101: 1111.011562 | U101: 1174.812649 | V101: 1003.20126 | W101: 1189.462119 | X101: 1280.958103 | Y101: 1367.914358 | Z101: 819.6323539 | AA101: 981.2204878 | AB101: 1498.661291 | AC101: 956.2535759 | AD101: 1085.919674 | AE101: 1425.541468 | AF101: 1212.194221
D102: Option 4 | E102: June $2022 m | G102: 0 | H102: 2493.562528 | I102: 2404.994358 | J102: 2113.634847 | K102: 1993.153042 | L102: 1746.318497 | M102: 1709.958282 | N102: 1575.164864 | O102: 1592.651862 | P102: 1302.536829 | Q102: 1189.482897 | R102: 1208.319837 | S102: 1544.907672 | T102: 1111.605843 | U102: 1174.928995 | V102: 1002.270025 | W102: 1189.252199 | X102: 1280.354154 | Y102: 1367.286026 | Z102: 818.1302164 | AA102: 980.4316726 | AB102: 1495.490759 | AC102: 955.1797852 | AD102: 1084.076154 | AE102: 1430.634827 | AF102: 1214.711751
C104: Costs for parties other than the RIT-T proponent (NER clause 5.15A.2(iv))
D105: Capital costs
D106: Base Case | E106: June $2022 m | G106: 0 | H106: 0 | I106: 120.6733527 | J106: 826.0766081 | K106: 1435.320531 | L106: 2154.86357 | M106: 3001.577318 | N106: 3366.149505 | O106: 4454.395119 | P106: 4875.584819 | Q106: 5641.158351 | R106: 6202.911011 | S106: 6490.252821 | T106: 6904.289495 | U106: 7118.068869 | V106: 8859.696985 | W106: 9224.147999 | X106: 10117.64371 | Y106: 10720.99305 | Z106: 11645.52717 | AA106: 13128.13757 | AB106: 14127.27399 | AC106: 14445.80759 | AD106: 14656.68892 | AE106: 16582.80641 | AF106: 16993.61059
D107: Option 1 | E107: June $2022 m | G107: 0 | H107: 0 | I107: 120.6732655 | J107: 824.5162082 | K107: 1434.618078 | L107: 2152.393379 | M107: 3000.783234 | N107: 3365.369304 | O107: 4452.612061 | P107: 4873.703866 | Q107: 5639.324096 | R107: 6201.58859 | S107: 6489.411113 | T107: 6903.5314 | U107: 7116.693185 | V107: 8858.014677 | W107: 9222.635849 | X107: 10116.06322 | Y107: 10719.35506 | Z107: 11642.71947 | AA107: 13126.15437 | AB107: 14124.70945 | AC107: 14443.92987 | AD107: 14655.60332 | AE107: 16581.08036 | AF107: 16991.95073
D108: Option 2 | E108: June $2022 m | G108: 0 | H108: 0 | I108: 120.6733278 | J108: 823.6240256 | K108: 1434.475645 | L108: 2152.574997 | M108: 3000.590686 | N108: 3364.75575 | O108: 4452.072555 | P108: 4873.098536 | Q108: 5638.310826 | R108: 6201.012502 | S108: 6488.928998 | T108: 6903.156043 | U108: 7115.767179 | V108: 8856.881732 | W108: 9221.795835 | X108: 10114.91584 | Y108: 10718.17295 | Z108: 11640.13532 | AA108: 13126.07308 | AB108: 14122.54316 | AC108: 14442.43911 | AD108: 14655.71254 | AE108: 16581.09792 | AF108: 16992.46946
D109: Option 2A | E109: June $2022 m | G109: 0 | H109: 0 | I109: 120.6733466 | J109: 823.6466913 | K109: 1434.471834 | L109: 2152.608707 | M109: 3000.623616 | N109: 3364.776938 | O109: 4452.048236 | P109: 4873.087501 | Q109: 5638.336457 | R109: 6201.04028 | S109: 6488.950085 | T109: 6903.178068 | U109: 7115.757746 | V109: 8856.889689 | W109: 9221.764436 | X109: 10114.92125 | Y109: 10718.23495 | Z109: 11640.19344 | AA109: 13126.08636 | AB109: 14122.62772 | AC109: 14442.44372 | AD109: 14655.73859 | AE109: 16580.26599 | AF109: 16992.81304
D110: Option 2B | E110: June $2022 m | G110: 0 | H110: 0 | I110: 120.67351 | J110: 823.7554944 | K110: 1434.486639 | L110: 2153.240791 | M110: 3000.856752 | N110: 3364.918693 | O110: 4452.194532 | P110: 4873.191204 | Q110: 5638.460052 | R110: 6201.221893 | S110: 6489.175613 | T110: 6903.314371 | U110: 7115.929283 | V110: 8857.003597 | W110: 9221.591652 | X110: 10115.16608 | Y110: 10718.65429 | Z110: 11640.58257 | AA110: 13126.37207 | AB110: 14123.34871 | AC110: 14442.80003 | AD110: 14655.92361 | AE110: 16578.47985 | AF110: 16992.67387
D111: Option 3 | E111: June $2022 m | G111: 0 | H111: 0 | I111: 120.6734799 | J111: 824.8957505 | K111: 1434.404953 | L111: 2152.890048 | M111: 3000.792776 | N111: 3364.66054 | O111: 4451.852378 | P111: 4872.953221 | Q111: 5638.440402 | R111: 6200.759153 | S111: 6488.452548 | T111: 6903.329699 | U111: 7116.305302 | V111: 8856.94339 | W111: 9222.360076 | X111: 10115.07053 | Y111: 10718.71721 | Z111: 11639.05564 | AA111: 13126.22871 | AB111: 14121.99089 | AC111: 14442.54152 | AD111: 14655.09678 | AE111: 16586.11016 | AF111: 16997.28704
D112: Option 4 | E112: June $2022 m | G112: 0 | H112: 0 | I112: 120.673286 | J112: 816.7295894 | K112: 1426.482244 | L112: 2139.648009 | M112: 2998.864453 | N112: 3365.947675 | O112: 4448.529742 | P112: 4869.912047 | Q112: 5631.964977 | R112: 6194.869104 | S112: 6482.708244 | T112: 6896.059141 | U112: 7109.669167 | V112: 8851.479979 | W112: 9215.446753 | X112: 10109.16753 | Y112: 10713.43895 | Z112: 11636.59146 | AA112: 13120.30602 | AB112: 14120.9053 | AC112: 14437.9234 | AD112: 14654.36353 | AE112: 16574.28566 | AF112: 16984.77699
D113: Fixed Operating & Maintenance
D114: Base Case | E114: June $2022 m | G114: 0 | H114: 0 | I114: 22.24363842 | J114: 136.2001331 | K114: 233.3993805 | L114: 347.3181065 | M114: 485.8355539 | N114: 547.3132308 | O114: 744.4578107 | P114: 821.7275383 | Q114: 979.3502733 | R114: 1079.883306 | S114: 1146.467862 | T114: 1221.040706 | U114: 1264.483035 | V114: 1566.299519 | W114: 1658.310046 | X114: 1862.177037 | Y114: 2031.630854 | Z114: 2289.171902 | AA114: 2677.874435 | AB114: 2928.415514 | AC114: 2974.814853 | AD114: 3044.179522 | AE114: 3460.915024 | AF114: 3546.295094
D115: Option 1 | E115: June $2022 m | G115: 0 | H115: 0 | I115: 22.24362422 | J115: 135.9647453 | K115: 233.2932411 | L115: 346.9216538 | M115: 485.7189336 | N115: 547.1762829 | O115: 744.029447 | P115: 821.2563983 | Q115: 978.9901672 | R115: 1079.521109 | S115: 1146.209105 | T115: 1220.816513 | U115: 1264.054036 | V115: 1565.887322 | W115: 1657.94097 | X115: 1861.768511 | Y115: 2031.147143 | Z115: 2288.427724 | AA115: 2677.295105 | AB115: 2927.704749 | AC115: 2974.383718 | AD115: 3043.962947 | AE115: 3459.662252 | AF115: 3544.904013
D116: Option 2 | E116: June $2022 m | G116: 0 | H116: 0 | I116: 22.24363453 | J116: 135.8338436 | K116: 233.2701585 | L116: 346.9493407 | M116: 485.6929228 | N116: 547.0503245 | O116: 743.8701187 | P116: 821.0850199 | Q116: 978.7622101 | R116: 1079.351277 | S116: 1146.093481 | T116: 1220.749987 | U116: 1263.800001 | V116: 1565.642688 | W116: 1657.736572 | X116: 1861.42165 | Y116: 2030.823418 | Z116: 2287.649794 | AA116: 2677.546185 | AB116: 2927.121122 | AC116: 2973.978159 | AD116: 3043.835443 | AE116: 3459.528256 | AF116: 3544.861145
D117: Option 2A | E117: June $2022 m | G117: 0 | H117: 0 | I117: 22.24363741 | J117: 135.8372148 | K117: 233.2694946 | L117: 346.954746 | M117: 485.6986175 | N117: 547.0566238 | O117: 743.8704874 | P117: 821.0870449 | Q117: 978.7698641 | R117: 1079.359105 | S117: 1146.099162 | T117: 1220.75662 | U117: 1263.800987 | V117: 1565.645096 | W117: 1657.731378 | X117: 1861.425268 | Y117: 2030.833026 | Z117: 2287.632647 | AA117: 2677.547982 | AB117: 2927.154308 | AC117: 2974.007664 | AD117: 3043.84177 | AE117: 3459.069703 | AF117: 3544.628018
D118: Option 2B | E118: June $2022 m | G118: 0 | H118: 0 | I118: 22.2436642 | J118: 135.8535476 | K118: 233.2718677 | L118: 347.0541586 | M118: 485.7389386 | N118: 547.1060042 | O118: 743.9283396 | P118: 821.1373063 | Q118: 978.8158916 | R118: 1079.392793 | S118: 1146.148699 | T118: 1220.805241 | U118: 1263.852047 | V118: 1565.683048 | W118: 1657.669716 | X118: 1861.516164 | Y118: 2030.972004 | Z118: 2287.7358 | AA118: 2677.614946 | AB118: 2927.341087 | AC118: 2974.131136 | AD118: 3043.903266 | AE118: 3458.299139 | AF118: 3544.194662
D119: Option 3 | E119: June $2022 m | G119: 0 | H119: 0 | I119: 22.24365923 | J119: 136.0261722 | K119: 233.2554261 | L119: 346.9965319 | M119: 485.7225073 | N119: 547.0018598 | O119: 743.8092256 | P119: 821.0383866 | Q119: 978.7522914 | R119: 1079.30388 | S119: 1145.971025 | T119: 1220.762764 | U119: 1263.86101 | V119: 1565.587185 | W119: 1657.807074 | X119: 1861.457548 | Y119: 2031.009163 | Z119: 2287.350695 | AA119: 2677.847009 | AB119: 2926.957761 | AC119: 2973.826315 | AD119: 3043.614177 | AE119: 3463.702744 | AF119: 3548.764643
D120: Option 4 | E120: June $2022 m | G120: 0 | H120: 0 | I120: 22.24362767 | J120: 134.533165 | K120: 231.8382196 | L120: 344.9783556 | M120: 485.5439208 | N120: 547.5530926 | O120: 743.7651984 | P120: 821.1214192 | Q120: 977.4214518 | R120: 1077.98152 | S120: 1144.704163 | T120: 1219.144502 | U120: 1262.364789 | V120: 1564.286205 | W120: 1656.158544 | X120: 1860.202798 | Y120: 2029.989079 | Z120: 2287.084738 | AA120: 2676.029316 | AB120: 2927.038583 | AC120: 2973.08966 | AD120: 3042.048267 | AE120: 3454.72944 | AF120: 3540.775748
D121: Variable Operating & Maintenance
D122: Base Case | E122: June $2022 m | G122: 0 | H122: 716.4369684 | I122: 706.361234 | J122: 646.2816833 | K122: 594.8310669 | L122: 538.0362012 | M122: 550.8316684 | N122: 529.8649495 | O122: 500.1793818 | P122: 474.7518608 | Q122: 437.7964021 | R122: 451.9183365 | S122: 472.578132 | T122: 425.6981431 | U122: 424.35299 | V122: 412.3719173 | W122: 384.2526301 | X122: 368.876755 | Y122: 319.6853189 | Z122: 288.6683716 | AA122: 320.9330121 | AB122: 318.9282694 | AC122: 276.4129888 | AD122: 273.5958865 | AE122: 318.7553918 | AF122: 280.3417624
D123: Option 1 | E123: June $2022 m | G123: 0 | H123: 716.4385036 | I123: 706.3724085 | J123: 646.3792956 | K123: 594.8122867 | L123: 538.1909629 | M123: 550.8556736 | N123: 529.9101037 | O123: 500.2238153 | P123: 474.7993141 | Q123: 437.9143926 | R123: 451.9748252 | S123: 472.5686828 | T123: 425.703801 | U123: 424.3762195 | V123: 412.4041306 | W123: 384.2583562 | X123: 368.8557158 | Y123: 319.6666232 | Z123: 288.6819405 | AA123: 320.9185956 | AB123: 319.0037885 | AC123: 276.4076551 | AD123: 273.504249 | AE123: 318.7604799 | AF123: 280.3670257
D124: Option 2 | E124: June $2022 m | G124: 0 | H124: 716.4401884 | I124: 706.3634233 | J124: 646.4419697 | K124: 594.7468883 | L124: 538.12404 | M124: 550.8668769 | N124: 529.9647822 | O124: 500.2321147 | P124: 474.8322951 | Q124: 437.9844887 | R124: 452.0087604 | S124: 472.6103109 | T124: 425.7210599 | U124: 424.354234 | V124: 412.4829737 | W124: 384.2742091 | X124: 368.8664627 | Y124: 319.6155929 | Z124: 288.7336995 | AA124: 320.7714737 | AB124: 319.0697024 | AC124: 276.3923942 | AD124: 273.3732038 | AE124: 318.73128 | AF124: 280.3418967
D125: Option 2A | E125: June $2022 m | G125: 0 | H125: 716.4401885 | I125: 706.3634007 | J125: 646.4407976 | K125: 594.7469325 | L125: 538.1228757 | M125: 550.8640374 | N125: 529.9647627 | O125: 500.2371587 | P125: 474.8346923 | Q125: 437.984346 | R125: 452.0083461 | S125: 472.6090995 | T125: 425.7208724 | U125: 424.35642 | V125: 412.4819413 | W125: 384.2768786 | X125: 368.8672037 | Y125: 319.6117421 | Z125: 288.7302872 | AA125: 320.7682385 | AB125: 319.0691998 | AC125: 276.3886538 | AD125: 273.380232 | AE125: 318.750651 | AF125: 280.307569
D126: Option 2B | E126: June $2022 m | G126: 0 | H126: 716.4403439 | I126: 706.3635204 | J126: 646.4339861 | K126: 594.7567861 | L126: 538.0816274 | M126: 550.8469269 | N126: 529.9691849 | O126: 500.2446409 | P126: 474.8478399 | Q126: 438.0011566 | R126: 452.0000287 | S126: 472.6130492 | T126: 425.7157075 | U126: 424.3438294 | V126: 412.4876312 | W126: 384.3055599 | X126: 368.8627599 | Y126: 319.5957711 | Z126: 288.7167838 | AA126: 320.7581418 | AB126: 319.0349494 | AC126: 276.3803808 | AD126: 273.4022116 | AE126: 318.7513458 | AF126: 280.2885924
D127: Option 3 | E127: June $2022 m | G127: 0 | H127: 716.4402124 | I127: 706.3633043 | J127: 646.3732952 | K127: 594.7535646 | L127: 538.0809012 | M127: 550.8728145 | N127: 529.9281376 | O127: 500.2389467 | P127: 474.8250877 | Q127: 437.947882 | R127: 452.0302113 | S127: 472.6400975 | T127: 425.6929521 | U127: 424.3369553 | V127: 412.5799161 | W127: 384.3168234 | X127: 369.0018741 | Y127: 319.717823 | Z127: 288.8950815 | AA127: 320.8130421 | AB127: 319.0827997 | AC127: 276.3885656 | AD127: 273.4590179 | AE127: 318.4867061 | AF127: 280.3680517
D128: Option 4 | E128: June $2022 m | G128: 0 | H128: 716.4367526 | I128: 706.3607879 | J128: 646.3594977 | K128: 594.8026544 | L128: 538.3325303 | M128: 550.3068334 | N128: 529.0596247 | O128: 499.6605043 | P128: 474.3387806 | Q128: 438.039845 | R128: 451.9798771 | S128: 472.5989538 | T128: 425.7681574 | U128: 424.3946416 | V128: 412.3579257 | W128: 384.291131 | X128: 368.8670391 | Y128: 319.6488405 | Z128: 288.7111003 | AA128: 320.9149412 | AB128: 318.8584416 | AC128: 276.4017342 | AD128: 273.3738126 | AE128: 318.875379 | AF128: 280.7208671
C130: Timing of unrelated network expenditure (NER clause 5.15A.2(v))
D131: Base Case | E131: June $2022 m | G131: 0 | H131: 0.158926055 | I131: 0.1595140052 | J131: 0.1595214321 | K131: 0.347043383 | L131: 5.697733422 | M131: 56.57782853 | N131: 58.62473833 | O131: 86.66174859 | P131: 94.87351959 | Q131: 114.2050434 | R131: 171.8660722 | S131: 184.5790819 | T131: 185.636964 | U131: 196.3659643 | V131: 435.0329874 | W131: 485.1652892 | X131: 563.4183717 | Y131: 710.3540598 | Z131: 753.9040389 | AA131: 912.7580159 | AB131: 1044.6014 | AC131: 1045.698565 | AD131: 1125.998464 | AE131: 1461.578199 | AF131: 1636.974827
D132: Option 1 | E132: June $2022 m | G132: 0 | H132: 0.1589259756 | I132: 0.1595127885 | J132: 0.1595185336 | K132: 0.3437744687 | L132: 5.706114952 | M132: 56.57165711 | N132: 58.62162176 | O132: 86.60353931 | P132: 94.87647793 | Q132: 114.233012 | R132: 171.9412304 | S132: 184.7675213 | T132: 185.864563 | U132: 196.5371627 | V132: 435.13189 | W132: 485.3763457 | X132: 563.5713159 | Y132: 710.7199548 | Z132: 754.3612292 | AA132: 912.9643619 | AB132: 1044.900412 | AC132: 1045.992498 | AD132: 1126.730473 | AE132: 1461.372183 | AF132: 1636.874076
D133: Option 2 | E133: June $2022 m | G133: 0 | H133: 0.1589260865 | I133: 0.1595137612 | J133: 0.1595208583 | K133: 0.3443702586 | L133: 5.761754639 | M133: 56.57203852 | N133: 58.62634419 | O133: 86.60451116 | P133: 94.87688295 | Q133: 114.2613739 | R133: 171.9998509 | S133: 184.8177311 | T133: 185.9131836 | U133: 196.5587726 | V133: 434.8811324 | W133: 485.1615701 | X133: 563.4370247 | Y133: 711.2727974 | Z133: 754.6107471 | AA133: 913.2043087 | AB133: 1045.520698 | AC133: 1046.617807 | AD133: 1127.774873 | AE133: 1461.100056 | AF133: 1636.773595
D134: Option 2A | E134: June $2022 m | G134: 0 | H134: 0.1589260666 | I134: 0.1595139846 | J134: 0.1595212692 | K134: 0.3443814159 | L134: 5.762163933 | M134: 56.57245707 | N134: 58.62754182 | O134: 86.6036162 | P134: 94.87730226 | Q134: 114.2646675 | R134: 172.0033309 | S134: 184.8231516 | T134: 185.9134603 | U134: 196.5627439 | V134: 434.8675302 | W134: 485.1523767 | X134: 563.4367074 | Y134: 711.3321162 | Z134: 754.6757044 | AA134: 913.3069279 | AB134: 1045.545391 | AC134: 1046.632458 | AD134: 1127.781454 | AE134: 1461.286584 | AF134: 1636.872823
D135: Option 2B | E135: June $2022 m | G135: 0 | H135: 0.1589260797 | I135: 0.1595154694 | J135: 0.15952499 | K135: 0.3463890828 | L135: 5.745722732 | M135: 56.57456583 | N135: 58.61449642 | O135: 86.6067959 | P135: 94.87693593 | Q135: 114.3006979 | R135: 172.0327356 | S135: 184.8448847 | T135: 185.9051639 | U135: 196.63187 | V135: 434.8407638 | W135: 485.1346152 | X135: 563.390526 | Y135: 711.3076032 | Z135: 754.7835172 | AA135: 913.4783655 | AB135: 1045.685211 | AC135: 1046.756703 | AD135: 1127.779932 | AE135: 1461.175358 | AF135: 1636.995806
D136: Option 3 | E136: June $2022 m | G136: 0 | H136: 0.1589262415 | I136: 0.1595158841 | J136: 0.1595256143 | K136: 0.3444235985 | L136: 5.787196948 | M136: 56.57758063 | N136: 58.62640745 | O136: 86.6096555 | P136: 94.88194451 | Q136: 114.2986133 | R136: 171.8836562 | S136: 184.7029415 | T136: 185.810987 | U136: 196.454279 | V136: 434.135944 | W136: 484.5138094 | X136: 562.8406286 | Y136: 709.9010593 | Z136: 752.9991595 | AA136: 911.6483615 | AB136: 1045.092069 | AC136: 1046.266476 | AD136: 1128.34492 | AE136: 1460.728255 | AF136: 1636.979032
D137: Option 4 | E137: June $2022 m | G137: 0 | H137: 0.1589260479 | I137: 0.1595132605 | J137: 0.1595195018 | K137: 0.35887355 | L137: 5.782701865 | M137: 56.60225637 | N137: 58.62466778 | O137: 86.65957698 | P137: 94.89341754 | Q137: 114.1385114 | R137: 172.049253 | S137: 184.765929 | T137: 185.8244048 | U137: 196.4665367 | V137: 435.3901004 | W137: 485.5910193 | X137: 563.7275912 | Y137: 710.8656586 | Z137: 754.3897621 | AA137: 913.2105565 | AB137: 1045.315382 | AC137: 1046.380346 | AD137: 1127.584955 | AE137: 1461.71637 | AF137: 1636.662048
C139: Ancillary service costs (NER clause 5.15A.2(vii))
D140: Base Case | E140: June $2022 m | G140: 0 | H140: 0 | I140: 0 | J140: 0 | K140: 0 | L140: 0 | M140: 0 | N140: 0 | O140: 0 | P140: 0 | Q140: 0 | R140: 0 | S140: 0 | T140: 0 | U140: 0 | V140: 0 | W140: 0 | X140: 0 | Y140: 0 | Z140: 0 | AA140: 0 | AB140: 0 | AC140: 0 | AD140: 0 | AE140: 0 | AF140: 0
D141: Option 1 | E141: June $2022 m | G141: 0 | H141: 0 | I141: 0 | J141: 0 | K141: 0 | L141: 0 | M141: 0 | N141: 0 | O141: 0 | P141: 0 | Q141: 0 | R141: 0 | S141: 0 | T141: 0 | U141: 0 | V141: 0 | W141: 0 | X141: 0 | Y141: 0 | Z141: 0 | AA141: 0 | AB141: 0 | AC141: 0 | AD141: 0 | AE141: 0 | AF141: 0
D142: Option 2 | E142: June $2022 m | G142: 0 | H142: 0 | I142: 0 | J142: 0 | K142: 0 | L142: 0 | M142: 0 | N142: 0 | O142: 0 | P142: 0 | Q142: 0 | R142: 0 | S142: 0 | T142: 0 | U142: 0 | V142: 0 | W142: 0 | X142: 0 | Y142: 0 | Z142: 0 | AA142: 0 | AB142: 0 | AC142: 0 | AD142: 0 | AE142: 0 | AF142: 0
D143: Option 2A | E143: June $2022 m | G143: 0 | H143: 0 | I143: 0 | J143: 0 | K143: 0 | L143: 0 | M143: 0 | N143: 0 | O143: 0 | P143: 0 | Q143: 0 | R143: 0 | S143: 0 | T143: 0 | U143: 0 | V143: 0 | W143: 0 | X143: 0 | Y143: 0 | Z143: 0 | AA143: 0 | AB143: 0 | AC143: 0 | AD143: 0 | AE143: 0 | AF143: 0
D144: Option 2B | E144: June $2022 m | G144: 0 | H144: 0 | I144: 0 | J144: 0 | K144: 0 | L144: 0 | M144: 0 | N144: 0 | O144: 0 | P144: 0 | Q144: 0 | R144: 0 | S144: 0 | T144: 0 | U144: 0 | V144: 0 | W144: 0 | X144: 0 | Y144: 0 | Z144: 0 | AA144: 0 | AB144: 0 | AC144: 0 | AD144: 0 | AE144: 0 | AF144: 0
D145: Option 3 | E145: June $2022 m | G145: 0 | H145: 0 | I145: 0 | J145: 0 | K145: 0 | L145: 0 | M145: 0 | N145: 0 | O145: 0 | P145: 0 | Q145: 0 | R145: 0 | S145: 0 | T145: 0 | U145: 0 | V145: 0 | W145: 0 | X145: 0 | Y145: 0 | Z145: 0 | AA145: 0 | AB145: 0 | AC145: 0 | AD145: 0 | AE145: 0 | AF145: 0
D146: Option 4 | E146: June $2022 m | G146: 0 | H146: 0 | I146: 0 | J146: 0 | K146: 0 | L146: 0 | M146: 0 | N146: 0 | O146: 0 | P146: 0 | Q146: 0 | R146: 0 | S146: 0 | T146: 0 | U146: 0 | V146: 0 | W146: 0 | X146: 0 | Y146: 0 | Z146: 0 | AA146: 0 | AB146: 0 | AC146: 0 | AD146: 0 | AE146: 0 | AF146: 0
C148: Voluntary load curtailment (NER clause 5.15A.2(ii))
D149: Base Case | E149: June $2022 m | G149: 0 | H149: 22.63332896 | I149: 23.58422014 | J149: 51.09544655 | K149: 4.586725551 | L149: 2.358102095 | M149: 17.96648508 | N149: 1.16917683 | O149: 25.61124251 | P149: 3.545970815 | Q149: 7.696130728 | R149: 24.21972263 | S149: 1.335013546 | T149: 11.78467383 | U149: 5.054489355 | V149: 39.48369816 | W149: 0.0002860830094 | X149: 13.27096737 | Y149: 29.47524419 | Z149: 33.6225334 | AA149: 34.92404385 | AB149: 87.06359453 | AC149: 75.80837373 | AD149: 116.2389489 | AE149: 211.9125508 | AF149: 113.4213213
D150: Option 1 | E150: June $2022 m | G150: 0 | H150: 22.63330432 | I150: 23.58419895 | J150: 51.08859967 | K150: 4.55063094 | L150: 2.352296502 | M150: 17.91513543 | N150: 1.169145752 | O150: 25.61203742 | P150: 3.53296538 | Q150: 7.675247847 | R150: 24.37850305 | S150: 1.314191782 | T150: 11.79160307 | U150: 5.055388319 | V150: 39.45003493 | W150: 0.0002274292886 | X150: 13.3139353 | Y150: 29.59498776 | Z150: 33.80645868 | AA150: 35.00548587 | AB150: 87.08086351 | AC150: 75.80268249 | AD150: 116.5314235 | AE150: 212.1928751 | AF150: 113.7367692
D151: Option 2 | E151: June $2022 m | G151: 0 | H151: 22.63332071 | I151: 23.58421279 | J151: 51.07060409 | K151: 4.521408654 | L151: 2.350063529 | M151: 17.88420665 | N151: 1.169168447 | O151: 25.61379014 | P151: 3.53328672 | Q151: 7.675227365 | R151: 24.58854817 | S151: 1.314223388 | T151: 11.79304972 | U151: 5.066803799 | V151: 39.46497419 | W151: 0.0002663904615 | X151: 13.28726908 | Y151: 29.52184565 | Z151: 33.87155362 | AA151: 34.94061956 | AB151: 87.08538836 | AC151: 75.7897197 | AD151: 116.5311298 | AE151: 212.2214429 | AF151: 113.7437161
D152: Option 2A | E152: June $2022 m | G152: 0 | H152: 22.63332726 | I152: 23.5842185 | J152: 51.07034423 | K152: 4.5216218 | L152: 2.350072808 | M152: 17.87846146 | N152: 1.169170036 | O152: 25.61527358 | P152: 3.533554967 | Q152: 7.67523006 | R152: 24.5874287 | S152: 1.314235941 | T152: 11.79325326 | U152: 5.066191506 | V152: 39.46796289 | W152: 0.0002817690684 | X152: 13.28700393 | Y152: 29.50496289 | Z152: 33.86962424 | AA152: 34.93836371 | AB152: 87.08928811 | AC152: 75.7947621 | AD152: 116.5541561 | AE152: 212.4382291 | AF152: 113.8125814
D153: Option 2B | E153: June $2022 m | G153: 0 | H153: 22.6333698 | I153: 23.58425702 | J153: 51.07092096 | K153: 4.521245217 | L153: 2.346328296 | M153: 17.83624845 | N153: 1.169239447 | O153: 25.6125762 | P153: 3.536120747 | Q153: 7.675660763 | R153: 24.59983609 | S153: 1.314323274 | T153: 11.79459629 | U153: 5.073683759 | V153: 39.45928742 | W153: 0.0003892839966 | X153: 13.28613443 | Y153: 29.53903313 | Z153: 33.89014759 | AA153: 34.95909413 | AB153: 87.10018644 | AC153: 75.78359781 | AD153: 116.7573987 | AE153: 212.8682249 | AF153: 114.0824267
D154: Option 3 | E154: June $2022 m | G154: 0 | H154: 22.63336198 | I154: 23.58425078 | J154: 51.0703549 | K154: 4.537946324 | L154: 2.349407797 | M154: 17.88786062 | N154: 1.168900719 | O154: 25.61511361 | P154: 3.53404601 | Q154: 7.675194186 | R154: 24.74581266 | S154: 1.314307004 | T154: 11.79390002 | U154: 5.063738585 | V154: 39.50185657 | W154: 0.0003692263513 | X154: 13.26994492 | Y154: 29.47852195 | Z154: 33.84325809 | AA154: 34.79168293 | AB154: 86.94302873 | AC154: 75.81637791 | AD154: 115.6428218 | AE154: 210.435777 | AF154: 112.6278986
D155: Option 4 | E155: June $2022 m | G155: 0 | H155: 22.63330988 | I155: 23.58420401 | J155: 50.86774318 | K155: 4.349412234 | L155: 1.759642153 | M155: 18.05868874 | N155: 1.169152751 | O155: 25.54942565 | P155: 3.392472981 | Q155: 7.675508363 | R155: 24.34488016 | S155: 1.334977055 | T155: 11.84909676 | U155: 5.079067951 | V155: 39.46141865 | W155: 0.0002415441649 | X155: 13.34646185 | Y155: 29.29214454 | Z155: 33.66405856 | AA155: 34.90243678 | AB155: 87.22847934 | AC155: 75.67427387 | AD155: 116.760325 | AE155: 213.3312639 | AF155: 113.2614123
C157: Involuntary load shedding (NER clause 5.15A.2(iii))
D158: Base Case | E158: June $2022 m | G158: 0 | H158: 124.4381323 | I158: 83.04129128 | J158: 94.42580052 | K158: 2.912682642e-05 | L158: 3.081132093e-05 | M158: 86.09570253 | N158: 3.4204031e-05 | O158: 3.609287301e-05 | P158: 3.817767088e-05 | Q158: 4.017169888e-05 | R158: 4.2385546e-05 | S158: 4.472395748e-05 | T158: 4.72942507e-05 | U158: 4.976120485e-05 | V158: 5.252875143e-05 | W158: 5.539207915e-05 | X158: 5.860050929e-05 | Y158: 6.165529206e-05 | Z158: 6.50404404e-05 | AA158: 6.862921824e-05 | AB158: 7.262979878e-05 | AC158: 7.639346271e-05 | AD158: 8.057987119e-05 | AE158: 8.505114178e-05 | AF158: 8.994736311e-05
D159: Option 1 | E159: June $2022 m | G159: 0 | H159: 124.4381254 | I159: 83.04132375 | J159: 94.41972465 | K159: 2.306885481e-05 | L159: 2.440251066e-05 | M159: 85.94811 | N159: 2.708954029e-05 | O159: 2.858567308e-05 | P159: 3.023680031e-05 | Q159: 3.18161676e-05 | R159: 3.356952649e-05 | S159: 3.542164431e-05 | T159: 3.745728505e-05 | U159: 3.941110922e-05 | V159: 4.160324808e-05 | W159: 4.387096691e-05 | X159: 4.641207699e-05 | Y159: 4.883160597e-05 | Z159: 5.151286178e-05 | AA159: 5.435516984e-05 | AB159: 5.752416166e-05 | AC159: 6.050501572e-05 | AD159: 6.382055735e-05 | AE159: 6.736211516e-05 | AF159: 7.124047668e-05
D160: Option 2 | E160: June $2022 m | G160: 0 | H160: 124.4381283 | I160: 83.04130574 | J160: 94.4218702 | K160: 2.72888263e-05 | L160: 2.886661287e-05 | M160: 85.85879999 | N160: 3.204507712e-05 | O160: 3.381456184e-05 | P160: 3.576766203e-05 | Q160: 3.763566122e-05 | R160: 3.970969222e-05 | S160: 4.190052205e-05 | T160: 4.43082055e-05 | U160: 4.661939439e-05 | V160: 4.921222974e-05 | W160: 5.189491123e-05 | X160: 5.490035004e-05 | Y160: 5.776217601e-05 | Z160: 6.09335957e-05 | AA160: 6.429574975e-05 | AB160: 6.804410795e-05 | AC160: 7.156936064e-05 | AD160: 7.549184766e-05 | AE160: 7.968152227e-05 | AF160: 8.426873897e-05
D161: Option 2A | E161: June $2022 m | G161: 0 | H161: 124.4381316 | I161: 83.04129888 | J161: 94.42223766 | K161: 2.872196309e-05 | L161: 3.038281544e-05 | M161: 85.8426223 | N161: 3.372833639e-05 | O161: 3.55909909e-05 | P161: 3.764679558e-05 | Q161: 3.96131206e-05 | R161: 4.179617479e-05 | S161: 4.410212324e-05 | T161: 4.663663833e-05 | U161: 4.906930355e-05 | V161: 5.179837277e-05 | W161: 5.462198267e-05 | X161: 5.778576627e-05 | Y161: 6.07981102e-05 | Z161: 6.413630435e-05 | AA161: 6.767515857e-05 | AB161: 7.16204805e-05 | AC161: 7.533166329e-05 | AD161: 7.945988572e-05 | AE161: 8.386896737e-05 | AF161: 8.869743986e-05
D162: Option 2B | E162: June $2022 m | G162: 0 | H162: 124.4381387 | I162: 83.04123272 | J162: 94.42213556 | K162: 3.911948394e-05 | L162: 4.138149132e-05 | M162: 85.72422471 | N162: 4.59382003e-05 | O162: 4.847559692e-05 | P162: 5.127569683e-05 | Q162: 5.395427196e-05 | R162: 5.692768327e-05 | S162: 6.006847513e-05 | T162: 6.352090598e-05 | U162: 6.683432189e-05 | V162: 7.055201035e-05 | W162: 7.439725625e-05 | X162: 7.870727751e-05 | Y162: 8.281018778e-05 | Z162: 8.735733343e-05 | AA162: 9.217740871e-05 | AB162: 9.755144729e-05 | AC162: 0.0001026073744 | AD162: 0.0001082291818 | AE162: 0.0001142340267 | AF162: 0.0001208113069
D163: Option 3 | E163: June $2022 m | G163: 0 | H163: 124.438138 | I163: 83.04125021 | J163: 94.42469815 | K163: 3.784828425e-05 | L163: 4.003525151e-05 | M163: 85.87388849 | N163: 4.444360325e-05 | O163: 4.689791658e-05 | P163: 4.960662574e-05 | Q163: 5.21974574e-05 | R163: 5.507396799e-05 | S163: 5.811263795e-05 | T163: 6.145163024e-05 | U163: 6.465713421e-05 | V163: 6.82533192e-05 | W163: 7.197427798e-05 | X163: 7.614233962e-05 | Y163: 8.01117701e-05 | Z163: 8.451049625e-05 | AA163: 8.91734081e-05 | AB163: 9.437294075e-05 | AC163: 9.926181931e-05 | AD163: 0.0001047023493 | AE163: 0.0001105140375 | AF163: 0.0001168769497
D164: Option 4 | E164: June $2022 m | G164: 0 | H164: 124.4381264 | I164: 83.04132229 | J164: 92.77318102 | K164: 2.470259008e-05 | L164: 2.613085694e-05 | M164: 86.47095867 | N164: 2.900848978e-05 | O164: 3.061043731e-05 | P164: 3.237853995e-05 | Q164: 3.406967364e-05 | R164: 3.594727172e-05 | S164: 3.793053839e-05 | T164: 4.011035027e-05 | U164: 4.220261556e-05 | V164: 4.454966878e-05 | W164: 4.69782757e-05 | X164: 4.969931059e-05 | Y164: 5.229018028e-05 | Z164: 5.516114567e-05 | AA164: 5.82048484e-05 | AB164: 6.159780198e-05 | AC164: 6.478981187e-05 | AD164: 6.834045143e-05 | AE164: 7.213261944e-05 | AF164: 7.628544932e-05
D166: Progressive change
E168: FY ending | G168: =$G$8 -> 2023 | H168: 2024 | I168: 2025 | J168: 2026 | K168: 2027 | L168: 2028 | M168: 2029 | N168: 2030 | O168: 2031 | P168: 2032 | Q168: 2033 | R168: 2034 | S168: 2035 | T168: 2036 | U168: 2037 | V168: 2038 | W168: 2039 | X168: 2040 | Y168: 2041 | Z168: 2042 | AA168: 2043 | AB168: 2044 | AC168: 2045 | AD168: 2046 | AE168: 2047 | AF168: 2048 | AG168: =AF168+1 -> 2049 | AH168: =AG168+1 -> 2050 | AI168: =AH168+1 -> 2051 | AJ168: =AI168+1 -> 2052 | AK168: =AJ168+1 -> 2053 | AL168: =AK168+1 -> 2054 | AM168: =AL168+1 -> 2055 | AN168: =AM168+1 -> 2056
C169: Fuel consumption
D170: Base Case | E170: June $2022 m | G170: 0 | H170: 2184.181309 | I170: 2105.412448 | J170: 1911.667982 | K170: 1678.001803 | L170: 1622.083917 | M170: 1693.408558 | N170: 1484.755231 | O170: 1521.367504 | P170: 1462.132367 | Q170: 1807.668552 | R170: 2081.045631 | S170: 2461.322903 | T170: 2328.923066 | U170: 2498.046112 | V170: 2736.884206 | W170: 2206.214958 | X170: 2494.353077 | Y170: 2616.592846 | Z170: 2056.569036 | AA170: 2256.611698 | AB170: 2888.323424 | AC170: 2351.916613 | AD170: 2584.437174 | AE170: 3452.69983 | AF170: 3777.557959
D171: Option 1 | E171: June $2022 m | G171: 0 | H171: 2184.164663 | I171: 2105.289825 | J171: 1911.131333 | K171: 1677.33946 | L171: 1621.389483 | M171: 1692.561056 | N171: 1483.943544 | O171: 1520.405099 | P171: 1461.238914 | Q171: 1806.690345 | R171: 2081.449872 | S171: 2461.970986 | T171: 2329.45714 | U171: 2498.533924 | V171: 2737.503461 | W171: 2206.703755 | X171: 2494.854147 | Y171: 2616.301396 | Z171: 2055.925134 | AA171: 2257.671462 | AB171: 2888.725362 | AC171: 2351.837067 | AD171: 2585.099504 | AE171: 3451.114233 | AF171: 3777.409897
D172: Option 2 | E172: June $2022 m | G172: 0 | H172: 2184.166687 | I172: 2105.400346 | J172: 1910.902079 | K172: 1677.023514 | L172: 1621.041408 | M172: 1692.16552 | N172: 1483.495686 | O172: 1519.934768 | P172: 1460.665259 | Q172: 1806.156165 | R172: 2081.603353 | S172: 2462.597169 | T172: 2329.801411 | U172: 2498.825997 | V172: 2738.344006 | W172: 2207.370028 | X172: 2495.402357 | Y172: 2616.419209 | Z172: 2055.892787 | AA172: 2258.541385 | AB172: 2889.182831 | AC172: 2351.909733 | AD172: 2585.822027 | AE172: 3450.501129 | AF172: 3777.409262
D173: Option 2A | E173: June $2022 m | G173: 0 | H173: 2184.166906 | I173: 2105.400215 | J173: 1910.906895 | K173: 1677.02803 | L173: 1621.045503 | M173: 1692.173892 | N173: 1483.500636 | O173: 1519.942693 | P173: 1460.671347 | Q173: 1806.163102 | R173: 2081.609324 | S173: 2462.596293 | T173: 2329.823003 | U173: 2498.864502 | V173: 2738.435113 | W173: 2207.336737 | X173: 2495.365008 | Y173: 2616.454876 | Z173: 2055.548364 | AA173: 2258.474748 | AB173: 2889.184142 | AC173: 2351.99783 | AD173: 2586.485974 | AE173: 3450.150911 | AF173: 3776.709661
D174: Option 2B | E174: June $2022 m | G174: 0 | H174: 2184.169025 | I174: 2105.400625 | J174: 1910.957958 | K174: 1677.079964 | L174: 1621.12277 | M174: 1692.269732 | N174: 1483.628409 | O174: 1520.084413 | P174: 1460.794769 | Q174: 1806.308847 | R174: 2081.785816 | S174: 2462.498734 | T174: 2329.828613 | U174: 2498.6999 | V174: 2738.533037 | W174: 2207.487688 | X174: 2495.455793 | Y174: 2616.579549 | Z174: 2055.505556 | AA174: 2258.209307 | AB174: 2888.917386 | AC174: 2352.486816 | AD174: 2587.870632 | AE174: 3447.923737 | AF174: 3776.257533
D175: Option 3 | E175: June $2022 m | G175: 0 | H175: 2184.164301 | I175: 2105.39653 | J175: 1911.615543 | K175: 1677.0851 | L175: 1620.979021 | M175: 1692.06456 | N175: 1483.379269 | O175: 1519.807742 | P175: 1460.537126 | Q175: 1806.023494 | R175: 2081.648658 | S175: 2462.515955 | T175: 2329.730874 | U175: 2498.928517 | V175: 2738.108213 | W175: 2207.137656 | X175: 2495.570717 | Y175: 2616.451451 | Z175: 2058.737448 | AA175: 2260.116679 | AB175: 2888.12514 | AC175: 2348.975469 | AD175: 2582.498264 | AE175: 3453.595768 | AF175: 3785.725884
D176: Option 4 | E176: June $2022 m | G176: 0 | H176: 2184.209523 | I176: 2105.431984 | J176: 1908.772397 | K176: 1674.791775 | L176: 1619.278978 | M176: 1691.211057 | N176: 1482.803782 | O176: 1518.36156 | P176: 1459.854519 | Q176: 1804.692784 | R176: 2078.043578 | S176: 2458.043618 | T176: 2328.601484 | U176: 2497.926992 | V176: 2735.279961 | W176: 2205.654127 | X176: 2493.548577 | Y176: 2616.317153 | Z176: 2056.72787 | AA176: 2257.051199 | AB176: 2888.046807 | AC176: 2351.936744 | AD176: 2587.657906 | AE176: 3449.307173 | AF176: 3775.63423
C178: Changes in costs for parties
D179: Capital costs
D180: Base Case | E180: June $2022 m | G180: 0 | H180: 0 | I180: 146.0818607 | J180: 612.3658428 | K180: 969.5700155 | L180: 1493.836315 | M180: 1977.274919 | N180: 2380.509244 | O180: 2439.096913 | P180: 2469.088426 | Q180: 2526.708749 | R180: 3359.06038 | S180: 3686.813971 | T180: 4899.565373 | U180: 5500.822103 | V180: 6977.623507 | W180: 7390.549383 | X180: 7464.692592 | Y180: 7886.304218 | Z180: 9010.450096 | AA180: 9719.177828 | AB180: 10406.33219 | AC180: 11049.35062 | AD180: 11602.65327 | AE180: 14111.92562 | AF180: 15120.76654
D181: Option 1 | E181: June $2022 m | G181: 0 | H181: 0 | I181: 146.0798135 | J181: 612.0968568 | K181: 969.423975 | L181: 1493.689909 | M181: 1977.101068 | N181: 2380.604439 | O181: 2439.534924 | P181: 2469.527605 | Q181: 2527.181105 | R181: 3357.622405 | S181: 3685.460117 | T181: 4898.142561 | U181: 5499.403975 | V181: 6975.807672 | W181: 7389.130316 | X181: 7463.074815 | Y181: 7884.238577 | Z181: 9008.409564 | AA181: 9716.569821 | AB181: 10404.22172 | AC181: 11047.06888 | AD181: 11600.19958 | AE181: 14110.67996 | AF181: 15118.86558
D182: Option 2 | E182: June $2022 m | G182: 0 | H182: 0 | I182: 146.0788857 | J182: 612.0399831 | K182: 969.3949169 | L182: 1493.660715 | M182: 1977.068902 | N182: 2380.826167 | O182: 2439.807287 | P182: 2469.800703 | Q182: 2527.476057 | R182: 3356.936306 | S182: 3684.601747 | T182: 4897.265535 | U182: 5498.766738 | V182: 6974.390402 | W182: 7388.108704 | X182: 7462.170854 | Y182: 7882.403388 | Z182: 9006.827015 | AA182: 9715.03519 | AB182: 10402.96932 | AC182: 11046.32292 | AD182: 11598.61533 | AE182: 14109.84726 | AF182: 15118.56449
D183: Option 2A | E183: June $2022 m | G183: 0 | H183: 0 | I183: 146.0786923 | J183: 612.0397268 | K183: 969.3945705 | L183: 1493.660399 | M183: 1977.06879 | N183: 2380.823262 | O183: 2439.805695 | P183: 2469.799097 | Q183: 2527.47316 | R183: 3356.944086 | S183: 3684.60998 | T183: 4897.256828 | U183: 5498.769575 | V183: 6974.357043 | W183: 7388.161305 | X183: 7462.240024 | Y183: 7882.406335 | Z183: 9007.088023 | AA183: 9715.065458 | AB183: 10403.02813 | AC183: 11046.22837 | AD183: 11597.98378 | AE183: 14110.25364 | AF183: 15117.14828
D184: Option 2B | E184: June $2022 m | G184: 0 | H184: 0 | I184: 146.0790107 | J184: 612.0401733 | K184: 969.3950962 | L184: 1493.660889 | M184: 1977.069084 | N184: 2380.71727 | O184: 2439.701581 | P184: 2469.694719 | Q184: 2527.367116 | R184: 3356.966446 | S184: 3684.950157 | T184: 4897.421763 | U184: 5499.13829 | V184: 6974.619131 | W184: 7388.243692 | X184: 7462.425689 | Y184: 7882.558807 | Z184: 9007.178182 | AA184: 9715.404824 | AB184: 10403.56458 | AC184: 11045.78792 | AD184: 11596.67072 | AE184: 14111.74043 | AF184: 15116.66473
D185: Option 3 | E185: June $2022 m | G185: 0 | H185: 0 | I185: 146.0796482 | J185: 612.0670109 | K185: 969.3939088 | L185: 1493.659774 | M185: 1977.064701 | N185: 2380.918551 | O185: 2439.893132 | P185: 2469.886754 | Q185: 2527.568362 | R185: 3356.777657 | S185: 3684.534935 | T185: 4897.111825 | U185: 5498.450887 | V185: 6974.312961 | W185: 7388.195594 | X185: 7461.854573 | Y185: 7882.081715 | Z185: 9005.801192 | AA185: 9714.535038 | AB185: 10403.42899 | AC185: 11049.99572 | AD185: 11602.45775 | AE185: 14108.75322 | AF185: 15116.61336
D186: Option 4 | E186: June $2022 m | G186: 0 | H186: 0 | I186: 146.0785903 | J186: 608.4603599 | K186: 965.3531732 | L186: 1489.758855 | M186: 1973.081193 | N186: 2375.459818 | O186: 2433.529621 | P186: 2463.50628 | Q186: 2521.065732 | R186: 3351.522676 | S186: 3681.182276 | T186: 4890.968276 | U186: 5491.738783 | V186: 6970.59657 | W186: 7382.88319 | X186: 7456.817595 | Y186: 7877.196612 | Z186: 9001.117746 | AA186: 9710.665946 | AB186: 10398.79128 | AC186: 11040.29344 | AD186: 11591.50349 | AE186: 14106.07223 | AF186: 15110.45976
D187: Fixed Operating & Maintenance
D188: Base Case | E188: June $2022 m | G188: 0 | H188: 0 | I188: 22.2226459 | J188: 90.01056185 | K188: 146.5764276 | L188: 217.9182369 | M188: 290.0136434 | N188: 357.6796171 | O188: 366.0168608 | P188: 370.4828211 | Q188: 378.7082908 | R188: 513.2818149 | S188: 567.5020903 | T188: 774.8326634 | U188: 874.1775505 | V188: 1154.142419 | W188: 1224.239678 | X188: 1236.890909 | Y188: 1324.773043 | Z188: 1553.996727 | AA188: 1691.635 | AB188: 1842.021956 | AC188: 1944.055562 | AD188: 2082.26995 | AE188: 2553.952403 | AF188: 2749.448298
D189: Option 1 | E189: June $2022 m | G189: 0 | H189: 0 | I189: 22.22229231 | J189: 89.97505714 | K189: 146.5642151 | L189: 217.9059949 | M189: 289.9974299 | N189: 357.6594188 | O189: 366.0441458 | P189: 370.5101788 | Q189: 378.740357 | R189: 512.9864418 | S189: 567.1741096 | T189: 774.4934117 | U189: 873.914568 | V189: 1153.755479 | W189: 1223.919501 | X189: 1236.532331 | Y189: 1324.320495 | Z189: 1553.540833 | AA189: 1691.026047 | AB189: 1841.596138 | AC189: 1943.496816 | AD189: 2081.640201 | AE189: 2553.812646 | AF189: 2749.146724
D190: Option 2 | E190: June $2022 m | G190: 0 | H190: 0 | I190: 22.2221218 | J190: 89.96739272 | K190: 146.5618202 | L190: 217.9035896 | M190: 289.9941934 | N190: 357.6691428 | O190: 366.0608837 | P190: 370.5269628 | Q190: 378.7602607 | R190: 512.8856053 | S190: 566.9645631 | T190: 774.354065 | U190: 873.8296496 | V190: 1153.494273 | W190: 1223.724475 | X190: 1236.35467 | Y190: 1323.94934 | Z190: 1553.190107 | AA190: 1690.703672 | AB190: 1841.259672 | AC190: 1943.228531 | AD190: 2081.133155 | AE190: 2553.494673 | AF190: 2748.965965
D191: Option 2A | E191: June $2022 m | G191: 0 | H191: 0 | I191: 22.22209474 | J191: 89.96735592 | K191: 146.5617757 | L191: 217.9035467 | M191: 289.9941571 | N191: 357.6691933 | O191: 366.0611158 | P191: 370.5271939 | Q191: 378.7603034 | R191: 512.8863081 | S191: 566.9671428 | T191: 774.353257 | U191: 873.8236491 | V191: 1153.488762 | W191: 1223.733469 | X191: 1236.366655 | Y191: 1323.945693 | Z191: 1553.244565 | AA191: 1690.707143 | AB191: 1841.273114 | AC191: 1943.180562 | AD191: 2081.024661 | AE191: 2553.791925 | AF191: 2749.150028
D192: Option 2B | E192: June $2022 m | G192: 0 | H192: 0 | I192: 22.22214116 | J192: 89.9674243 | K192: 146.5618465 | L192: 217.9036159 | M192: 289.9942272 | N192: 357.6605093 | O192: 366.052692 | P192: 370.5187498 | Q192: 378.7516215 | R192: 512.8899204 | S192: 567.044054 | T192: 774.4004905 | U192: 873.8973815 | V192: 1153.541083 | W192: 1223.755748 | X192: 1236.403308 | Y192: 1323.972393 | Z192: 1553.290875 | AA192: 1690.857402 | AB192: 1841.415448 | AC192: 1943.145941 | AD192: 2080.817731 | AE192: 2554.285953 | AF192: 2749.287481
D193: Option 3 | E193: June $2022 m | G193: 0 | H193: 0 | I193: 22.2222715 | J193: 89.97251209 | K193: 146.5617749 | L193: 217.9035465 | M193: 289.9941775 | N193: 357.6751567 | O193: 366.0659912 | P193: 370.5320802 | Q193: 378.7662455 | R193: 512.8564989 | S193: 566.9056133 | T193: 774.3112585 | U193: 873.7817874 | V193: 1153.50724 | W193: 1223.765958 | X193: 1236.31558 | Y193: 1323.951512 | Z193: 1552.926717 | AA193: 1690.436798 | AB193: 1841.298183 | AC193: 1943.926267 | AD193: 2081.909623 | AE193: 2552.409039 | AF193: 2747.542958
D194: Option 4 | E194: June $2022 m | G194: 0 | H194: 0 | I194: 22.22208838 | J194: 89.47394762 | K194: 145.9787566 | L194: 217.3429986 | M194: 289.415981 | N194: 357.0739676 | O194: 365.3394816 | P194: 369.803634 | Q194: 378.0203548 | R194: 512.5657254 | S194: 566.4999522 | T194: 773.4987105 | U194: 872.8162195 | V194: 1153.048451 | W194: 1223.034961 | X194: 1235.649871 | Y194: 1323.150535 | Z194: 1552.022285 | AA194: 1689.874805 | AB194: 1840.47941 | AC194: 1942.076304 | AD194: 2079.799474 | AE194: 2552.955525 | AF194: 2747.814393
D195: Variable Operating & Maintenance
D196: Base Case | E196: June $2022 m | G196: 0 | H196: 650.895781 | I196: 639.5502666 | J196: 602.173359 | K196: 551.4907608 | L196: 513.9111424 | M196: 535.9598053 | N196: 516.0211061 | O196: 517.9430135 | P196: 505.6141558 | Q196: 558.1080106 | R196: 605.5920374 | S196: 633.8317709 | T196: 608.504307 | U196: 585.5858157 | V196: 583.7221291 | W196: 546.4915474 | X196: 553.9380459 | Y196: 508.1666707 | Z196: 489.4927869 | AA196: 486.0662365 | AB196: 496.9877979 | AC196: 441.4138028 | AD196: 411.2734287 | AE196: 428.3514138 | AF196: 412.7994939
D197: Option 1 | E197: June $2022 m | G197: 0 | H197: 650.9027534 | I197: 639.5592497 | J197: 602.1843257 | K197: 551.4583083 | L197: 513.897012 | M197: 535.9585031 | N197: 515.9770417 | O197: 517.9138544 | P197: 505.5583779 | Q197: 558.0065861 | R197: 605.6259046 | S197: 633.8108107 | T197: 608.5483186 | U197: 585.5904375 | V197: 583.6905913 | W197: 546.5083375 | X197: 553.9498988 | Y197: 508.1734068 | Z197: 489.4768351 | AA197: 486.1194017 | AB197: 496.9922986 | AC197: 441.4566328 | AD197: 411.3055595 | AE197: 428.3254659 | AF197: 412.8369088
D198: Option 2 | E198: June $2022 m | G198: 0 | H198: 650.9021388 | I198: 639.5579637 | J198: 602.1726303 | K198: 551.4643287 | L198: 513.8993816 | M198: 535.9349158 | N198: 515.936453 | O198: 517.8728194 | P198: 505.5352594 | Q198: 557.9347766 | R198: 605.6460357 | S198: 633.7776966 | T198: 608.6196072 | U198: 585.6057481 | V198: 583.7644307 | W198: 546.5207662 | X198: 553.9587092 | Y198: 508.2198754 | Z198: 489.5044789 | AA198: 486.133352 | AB198: 496.9962654 | AC198: 441.4385484 | AD198: 411.3375437 | AE198: 428.3027023 | AF198: 412.8252839
D199: Option 2A | E199: June $2022 m | G199: 0 | H199: 650.9019379 | I199: 639.5579476 | J199: 602.1722954 | K199: 551.4645477 | L199: 513.8996434 | M199: 535.9354045 | N199: 515.9364636 | O199: 517.8724364 | P199: 505.5352497 | Q199: 557.9356716 | R199: 605.6446648 | S199: 633.7782743 | T199: 608.6219486 | U199: 585.6016673 | V199: 583.769926 | W199: 546.523003 | X199: 553.9558748 | Y199: 508.2137928 | Z199: 489.4843566 | AA199: 486.1247737 | AB199: 496.9917843 | AC199: 441.4327452 | AD199: 411.3514902 | AE199: 428.2961092 | AF199: 412.813051
D200: Option 2B | E200: June $2022 m | G200: 0 | H200: 650.9012781 | I200: 639.5578728 | J200: 602.1710182 | K200: 551.4659595 | L200: 513.8969223 | M200: 535.9297207 | N200: 515.9484834 | O200: 517.8846438 | P200: 505.5489807 | Q200: 557.9606908 | R200: 605.6505631 | S200: 633.7690465 | T200: 608.6387601 | U200: 585.5954175 | V200: 583.7735412 | W200: 546.5357903 | X200: 553.9557683 | Y200: 508.1981816 | Z200: 489.4239153 | AA200: 486.0950004 | AB200: 496.9601998 | AC200: 441.4404422 | AD200: 411.3827995 | AE200: 428.3512556 | AF200: 412.8445528
D201: Option 3 | E201: June $2022 m | G201: 0 | H201: 650.9027655 | I201: 639.5583859 | J201: 602.1641577 | K201: 551.4571738 | L201: 513.9025671 | M201: 535.9404453 | N201: 515.9227191 | O201: 517.8610428 | P201: 505.5225127 | Q201: 557.9137071 | R201: 605.6712315 | S201: 633.7743791 | T201: 608.6335889 | U201: 585.6338676 | V201: 583.7537194 | W201: 546.4707151 | X201: 553.9919149 | Y201: 508.2469214 | Z201: 489.7441277 | AA201: 486.257607 | AB201: 496.951288 | AC201: 441.428517 | AD201: 411.3020532 | AE201: 428.3603664 | AF201: 412.781489
D202: Option 4 | E202: June $2022 m | G202: 0 | H202: 650.882381 | I202: 639.5440055 | J202: 601.5883745 | K202: 550.911329 | L202: 513.3331497 | M202: 535.3953324 | N202: 515.6307451 | O202: 517.5834373 | P202: 505.1715857 | Q202: 557.6342796 | R202: 605.5540141 | S202: 633.5352391 | T202: 608.343256 | U202: 585.4593758 | V202: 583.4771597 | W202: 546.4011372 | X202: 553.8167489 | Y202: 508.1200924 | Z202: 489.4517994 | AA202: 486.0768149 | AB202: 496.9382313 | AC202: 441.3964997 | AD202: 411.323044 | AE202: 428.4590243 | AF202: 412.9214565
C204: Difference in timing of unrelated expenditure
D205: Base Case | E205: June $2022 m | G205: 0 | H205: 0.1567464531 | I205: 0.1579161205 | J205: 0.1580452351 | K205: 0.1582386967 | L205: 0.1590457337 | M205: 0.1752654226 | N205: 0.1757587076 | O205: 0.1757599226 | P205: 0.1762294354 | Q205: 0.1757376335 | R205: 12.95585776 | S205: 14.40578626 | T205: 18.46363225 | U205: 80.61078372 | V205: 129.9112688 | W205: 129.9139355 | X205: 131.6607198 | Y205: 157.1026127 | Z205: 165.4468552 | AA205: 257.0608284 | AB205: 286.5619154 | AC205: 319.1213198 | AD205: 449.8925462 | AE205: 899.8660592 | AF205: 1062.082709
D206: Option 1 | E206: June $2022 m | G206: 0 | H206: 0.1567466414 | I206: 0.1579164222 | J206: 0.1580454032 | K206: 0.158238788 | L206: 0.1590458873 | M206: 0.1752649141 | N206: 0.1757581454 | O206: 0.1757594048 | P206: 0.1762289548 | Q206: 0.1757372087 | R206: 12.89792535 | S206: 14.3424438 | T206: 18.37099532 | U206: 80.53003673 | V206: 129.8629235 | W206: 129.865577 | X206: 131.6080521 | Y206: 157.0065428 | Z206: 165.345475 | AA206: 256.7698652 | AB206: 286.5188724 | AC206: 319.317541 | AD206: 449.8664843 | AE206: 899.8582396 | AF206: 1062.167564
D207: Option 2 | E207: June $2022 m | G207: 0 | H207: 0.1567467537 | I207: 0.1579180828 | J207: 0.1580489536 | K207: 0.1582428106 | L207: 0.1590502416 | M207: 0.1752696611 | N207: 0.1757631702 | O207: 0.1757648569 | P207: 0.1762347528 | Q207: 0.17574384 | R207: 12.87788976 | S207: 14.32234669 | T207: 18.34921007 | U207: 80.56750486 | V207: 129.7856109 | W207: 129.7882397 | X207: 131.5564166 | Y207: 156.9070924 | Z207: 165.3239634 | AA207: 256.7505641 | AB207: 286.5466045 | AC207: 319.2233328 | AD207: 449.7536279 | AE207: 899.8187867 | AF207: 1062.183673
D208: Option 2A | E208: June $2022 m | G208: 0 | H208: 0.1567464377 | I208: 0.1579158988 | J208: 0.1580446629 | K208: 0.1582379128 | L208: 0.1590448456 | M208: 0.1752638159 | N208: 0.175756912 | O208: 0.1757579753 | P208: 0.176227344 | Q208: 0.1757354451 | R208: 12.88128622 | S208: 14.3251855 | T208: 18.35235412 | U208: 80.57668368 | V208: 129.7624955 | W208: 129.7651252 | X208: 131.5377521 | Y208: 156.8975249 | Z208: 165.3307445 | AA208: 256.7303304 | AB208: 286.541673 | AC208: 319.1241087 | AD208: 449.8056908 | AE208: 899.8777801 | AF208: 1062.192274
D209: Option 2B | E209: June $2022 m | G209: 0 | H209: 0.1567466098 | I209: 0.1579179521 | J209: 0.1580490786 | K209: 0.1582429533 | L209: 0.1590502861 | M209: 0.1752697119 | N209: 0.1757632256 | O209: 0.1757648787 | P209: 0.1762347382 | Q209: 0.1757438265 | R209: 12.83870809 | S209: 14.27162303 | T209: 18.30061331 | U209: 80.52795799 | V209: 129.7051813 | W209: 129.7078114 | X209: 131.4613351 | Y209: 156.7963708 | Z209: 165.2393887 | AA209: 256.6995215 | AB209: 286.5286969 | AC209: 319.2243576 | AD209: 449.8352776 | AE209: 900.125608 | AF209: 1062.306635
D210: Option 3 | E210: June $2022 m | G210: 0 | H210: 0.1567461133 | I210: 0.1579138425 | J210: 0.1580408429 | K210: 0.1582336833 | L210: 0.1590403426 | M210: 0.1752626619 | N210: 0.1757559254 | O210: 0.1757565884 | P210: 0.1762256533 | Q210: 0.1757328568 | R210: 12.85468011 | S210: 14.29238752 | T210: 18.30381835 | U210: 80.53160982 | V210: 129.8675 | W210: 129.8701332 | X210: 131.6298898 | Y210: 156.9198414 | Z210: 165.3220404 | AA210: 256.8304914 | AB210: 286.427463 | AC210: 319.5667481 | AD210: 449.8614617 | AE210: 900.232861 | AF210: 1061.42929
D211: Option 4 | E211: June $2022 m | G211: 0 | H211: 0.1567462059 | I211: 0.1579144786 | J211: 0.1580422293 | K211: 0.1582352768 | L211: 0.1590694095 | M211: 0.1752752699 | N211: 0.175767007 | O211: 0.1757678719 | P211: 0.17623714 | Q211: 0.1757446054 | R211: 12.24525069 | S211: 13.61634492 | T211: 17.73867518 | U211: 79.82467103 | V211: 129.1410676 | W211: 129.1437053 | X211: 130.846531 | Y211: 156.4345738 | Z211: 164.8253445 | AA211: 256.6887472 | AB211: 286.3783988 | AC211: 319.1877662 | AD211: 449.7028107 | AE211: 900.225413 | AF211: 1062.617463
C213: Changes in ancillary service costs
D214: Base Case | E214: June $2022 m | G214: 0 | H214: 0 | I214: 0 | J214: 0 | K214: 0 | L214: 0 | M214: 0 | N214: 0 | O214: 0 | P214: 0 | Q214: 0 | R214: 0 | S214: 0 | T214: 0 | U214: 0 | V214: 0 | W214: 0 | X214: 0 | Y214: 0 | Z214: 0 | AA214: 0 | AB214: 0 | AC214: 0 | AD214: 0 | AE214: 0 | AF214: 0
D215: Option 1 | E215: June $2022 m | G215: 0 | H215: 0 | I215: 0 | J215: 0 | K215: 0 | L215: 0 | M215: 0 | N215: 0 | O215: 0 | P215: 0 | Q215: 0 | R215: 0 | S215: 0 | T215: 0 | U215: 0 | V215: 0 | W215: 0 | X215: 0 | Y215: 0 | Z215: 0 | AA215: 0 | AB215: 0 | AC215: 0 | AD215: 0 | AE215: 0 | AF215: 0
D216: Option 2 | E216: June $2022 m | G216: 0 | H216: 0 | I216: 0 | J216: 0 | K216: 0 | L216: 0 | M216: 0 | N216: 0 | O216: 0 | P216: 0 | Q216: 0 | R216: 0 | S216: 0 | T216: 0 | U216: 0 | V216: 0 | W216: 0 | X216: 0 | Y216: 0 | Z216: 0 | AA216: 0 | AB216: 0 | AC216: 0 | AD216: 0 | AE216: 0 | AF216: 0
D217: Option 2A | E217: June $2022 m | G217: 0 | H217: 0 | I217: 0 | J217: 0 | K217: 0 | L217: 0 | M217: 0 | N217: 0 | O217: 0 | P217: 0 | Q217: 0 | R217: 0 | S217: 0 | T217: 0 | U217: 0 | V217: 0 | W217: 0 | X217: 0 | Y217: 0 | Z217: 0 | AA217: 0 | AB217: 0 | AC217: 0 | AD217: 0 | AE217: 0 | AF217: 0
D218: Option 2B | E218: June $2022 m | G218: 0 | H218: 0 | I218: 0 | J218: 0 | K218: 0 | L218: 0 | M218: 0 | N218: 0 | O218: 0 | P218: 0 | Q218: 0 | R218: 0 | S218: 0 | T218: 0 | U218: 0 | V218: 0 | W218: 0 | X218: 0 | Y218: 0 | Z218: 0 | AA218: 0 | AB218: 0 | AC218: 0 | AD218: 0 | AE218: 0 | AF218: 0
D219: Option 3 | E219: June $2022 m | G219: 0 | H219: 0 | I219: 0 | J219: 0 | K219: 0 | L219: 0 | M219: 0 | N219: 0 | O219: 0 | P219: 0 | Q219: 0 | R219: 0 | S219: 0 | T219: 0 | U219: 0 | V219: 0 | W219: 0 | X219: 0 | Y219: 0 | Z219: 0 | AA219: 0 | AB219: 0 | AC219: 0 | AD219: 0 | AE219: 0 | AF219: 0
D220: Option 4 | E220: June $2022 m | G220: 0 | H220: 0 | I220: 0 | J220: 0 | K220: 0 | L220: 0 | M220: 0 | N220: 0 | O220: 0 | P220: 0 | Q220: 0 | R220: 0 | S220: 0 | T220: 0 | U220: 0 | V220: 0 | W220: 0 | X220: 0 | Y220: 0 | Z220: 0 | AA220: 0 | AB220: 0 | AC220: 0 | AD220: 0 | AE220: 0 | AF220: 0
C222: Voluntary load curtailment
D223: Base Case | E223: June $2022 m | G223: 0 | H223: 8.063491583 | I223: 11.32475834 | J223: 28.72217006 | K223: 12.2879589 | L223: 6.511873673 | M223: 14.63152875 | N223: 0.0002059587904 | O223: 20.47387896 | P223: 0.260943495 | Q223: 13.75242805 | R223: 65.12281724 | S223: 81.32946903 | T223: 49.36112428 | U223: 16.52956574 | V223: 99.22279881 | W223: 0.000372081711 | X223: 0.0003962556303 | Y223: 0.07702467633 | Z223: 79.39512193 | AA223: 8.513638165 | AB223: 32.48709582 | AC223: 15.30165093 | AD223: 9.829155734 | AE223: 32.23882318 | AF223: 2.84017762
D224: Option 1 | E224: June $2022 m | G224: 0 | H224: 8.063485613 | I224: 11.32474629 | J224: 29.00316605 | K224: 12.30568489 | L224: 6.656386475 | M224: 14.63177292 | N224: 0.0001978109346 | O224: 20.42375304 | P224: 0.2609343502 | Q224: 13.62025408 | R224: 65.09453105 | S224: 81.3446628 | T224: 49.3609816 | U224: 16.5306991 | V224: 99.14956408 | W224: 0.0003570931541 | X224: 0.0003802745958 | Y224: 0.07751290072 | Z224: 79.39474326 | AA224: 8.606545621 | AB224: 32.47643672 | AC224: 15.29956622 | AD224: 9.832594597 | AE224: 31.83773476 | AF224: 2.838725588
D225: Option 2 | E225: June $2022 m | G225: 0 | H225: 8.063531498 | I225: 11.32478188 | J225: 29.05905651 | K225: 12.30945263 | L225: 6.678988315 | M225: 14.63180935 | N225: 0.0002606313608 | O225: 20.39276389 | P225: 0.2610042954 | Q225: 13.53867915 | R225: 65.08287365 | S225: 81.36051807 | T225: 49.36637295 | U225: 16.55716748 | V225: 99.14738981 | W225: 0.0004705108929 | X225: 0.0005010682078 | Y225: 0.07820954927 | Z225: 79.39544525 | AA225: 8.844651556 | AB225: 32.48826112 | AC225: 15.29894048 | AD225: 9.8588982 | AE225: 31.99318221 | AF225: 2.837018754
D226: Option 2A | E226: June $2022 m | G226: 0 | H226: 8.063500318 | I226: 11.3247534 | J226: 29.05909 | K226: 12.30944008 | L226: 6.67903587 | M226: 14.63177417 | N226: 0.0002178846253 | O226: 20.39279899 | P226: 0.2609567069 | Q226: 13.5385114 | R226: 65.08225569 | S226: 81.36179619 | T226: 49.3646084 | U226: 16.55941893 | V226: 99.15711025 | W226: 0.0003941148322 | X226: 0.0004197750803 | Y226: 0.07786864301 | Z226: 79.3952218 | AA226: 8.864112753 | AB226: 32.48329357 | AC226: 15.2973944 | AD226: 9.862384394 | AE226: 31.8697651 | AF226: 4.173376011
D227: Option 2B | E227: June $2022 m | G227: 0 | H227: 8.063542028 | I227: 11.32479132 | J227: 29.05900902 | K227: 12.30944815 | L227: 6.678934071 | M227: 14.63179657 | N227: 0.0002753482926 | O227: 20.40511473 | P227: 0.2610207571 | Q227: 13.57286639 | R227: 65.08597319 | S227: 81.31239575 | T227: 49.36395543 | U227: 16.5590473 | V227: 99.11206112 | W227: 0.0004974565351 | X227: 0.0005297644565 | Y227: 0.07795533061 | Z227: 79.39535387 | AA227: 8.578301006 | AB227: 32.47259228 | AC227: 15.29758954 | AD227: 9.864779307 | AE227: 31.68220656 | AF227: 4.499317127
D228: Option 3 | E228: June $2022 m | G228: 0 | H228: 8.063447623 | I228: 11.3247118 | J228: 29.05341877 | K228: 12.31019241 | L228: 6.679300247 | M228: 14.63034989 | N228: 0.0001456803833 | O228: 20.38275335 | P228: 0.2608762539 | Q228: 13.51241459 | R228: 65.07577185 | S228: 81.33998399 | T228: 49.37895557 | U228: 16.57210532 | V228: 99.1377357 | W228: 0.00026362753 | X228: 0.0002807957625 | Y228: 0.07754659325 | Z228: 79.36886558 | AA228: 10.14867032 | AB228: 32.64674925 | AC228: 15.30854781 | AD228: 9.915410218 | AE228: 35.36183721 | AF228: 3.226539497
D229: Option 4 | E229: June $2022 m | G229: 0 | H229: 8.063446952 | I229: 11.3247079 | J229: 28.14734097 | K229: 12.26926552 | L229: 6.670563564 | M229: 14.63648177 | N229: 0.0001442295192 | O229: 20.6170057 | P229: 0.2608746571 | Q229: 14.13554674 | R229: 65.13407054 | S229: 80.56443742 | T229: 49.34756709 | U229: 16.58838744 | V229: 99.01067816 | W229: 0.0002604431859 | X229: 0.0002773642172 | Y229: 0.07727434226 | Z229: 79.39404943 | AA229: 8.574580548 | AB229: 32.46665375 | AC229: 15.29745024 | AD229: 9.847408533 | AE229: 31.08926589 | AF229: 4.490969938
C231: Involuntary load shedding
D232: Base Case | E232: June $2022 m | G232: 0 | H232: 14.59285126 | I232: 20.26060422 | J232: 36.35786791 | K232: 4.088726287e-05 | L232: 4.166683766e-05 | M232: 81.20163711 | N232: 4.624518118e-05 | O232: 67.31085002 | P232: 5.161246437e-05 | Q232: 5.432190926e-05 | R232: 20.40685616 | S232: 29.71528736 | T232: 32.53482908 | U232: 6.735862497e-05 | V232: 181.8124371 | W232: 7.496820427e-05 | X232: 7.930886764e-05 | Y232: 8.344655884e-05 | Z232: 8.80764476e-05 | AA232: 9.288409306e-05 | AB232: 9.828341118e-05 | AC232: 0.0001034152051 | AD232: 0.0001090834921 | AE232: 0.0001151159496 | AF232: 0.0001217723223
D233: Option 1 | E233: June $2022 m | G233: 0 | H233: 14.59285026 | I233: 20.26149864 | J233: 37.21601527 | K233: 3.969263187e-05 | L233: 4.028303782e-05 | M233: 81.3972776 | N233: 4.470918292e-05 | O233: 67.30598216 | P233: 4.989857345e-05 | Q233: 5.25180253e-05 | R233: 20.55801942 | S233: 29.78364847 | T233: 32.54393611 | U233: 6.512174981e-05 | V233: 181.8135955 | W233: 7.247912264e-05 | X233: 7.667487559e-05 | Y233: 8.06760738e-05 | Z233: 8.515196755e-05 | AA233: 8.980058839e-05 | AB233: 9.502195413e-05 | AC233: 9.998179881e-05 | AD233: 0.0001054629453 | AE233: 0.0001112994131 | AF233: 0.0001177377868
D234: Option 2 | E234: June $2022 m | G234: 0 | H234: 14.59286077 | I234: 20.26193184 | J234: 37.37988991 | K234: 5.188896006e-05 | L234: 5.308076755e-05 | M234: 81.43540348 | N234: 5.891339354e-05 | O234: 67.30333402 | P234: 6.575102806e-05 | Q234: 6.920249222e-05 | R234: 20.68829751 | S234: 29.82395613 | T234: 32.55514336 | U234: 8.580957788e-05 | V234: 181.8426486 | W234: 9.550368934e-05 | X234: 0.0001010327243 | Y234: 0.0001063038968 | Z234: 0.0001122009602 | AA234: 0.0001183264597 | AB234: 0.0001252052503 | AC234: 0.0001317413244 | AD234: 0.0001389628069 | AE234: 0.0001466511008 | AF234: 0.0001551326495
D235: Option 2A | E235: June $2022 m | G235: 0 | H235: 14.5928538 | I235: 20.2619876 | J235: 37.38009023 | K235: 4.193714814e-05 | L235: 4.345566515e-05 | M235: 81.43548334 | N235: 4.823069934e-05 | O235: 67.30293949 | P235: 5.382870671e-05 | Q235: 5.665490944e-05 | R235: 20.69169841 | S235: 29.8269803 | T235: 32.55540729 | U235: 7.025335758e-05 | V235: 181.8330123 | W235: 7.81897217e-05 | X235: 8.271774035e-05 | Y235: 8.703316817e-05 | Z235: 9.186352347e-05 | AA235: 9.687626161e-05 | AB235: 0.0001025074334 | AC235: 0.0001078621478 | AD235: 0.0001137727208 | AE235: 0.0001200610404 | AF235: 0.0001270025978
D236: Option 2B | E236: June $2022 m | G236: 0 | H236: 14.59286268 | I236: 20.26187731 | J236: 37.3798088 | K236: 5.427760617e-05 | L236: 5.571804218e-05 | M236: 81.43554742 | N236: 6.184022333e-05 | O236: 67.30636831 | P236: 6.90173168e-05 | Q236: 7.264036904e-05 | R236: 20.6987841 | S236: 29.88143331 | T236: 32.55679156 | U236: 9.007330166e-05 | V236: 181.8241269 | W236: 0.0001002489034 | X236: 0.0001060534355 | Y236: 0.0001115861253 | Z236: 0.0001177770283 | AA236: 0.0001242059989 | AB236: 0.0001314258147 | AC236: 0.0001382882987 | AD236: 0.0001458678547 | AE236: 0.000153934315 | AF236: 0.0001628341846
D237: Option 3 | E237: June $2022 m | G237: 0 | H237: 14.59284208 | I237: 20.26154392 | J237: 37.40156737 | K237: 2.771340201e-05 | L237: 2.899650696e-05 | M237: 81.4348098 | N237: 3.218281888e-05 | O237: 67.30238756 | P237: 3.591803701e-05 | Q237: 3.780383901e-05 | R237: 20.75052459 | S237: 29.96030458 | T237: 32.55728299 | U237: 4.687777069e-05 | V237: 181.8068684 | W237: 5.217336988e-05 | X237: 5.519496848e-05 | Y237: 5.807429365e-05 | Z237: 6.129743404e-05 | AA237: 6.464216482e-05 | AB237: 6.839908767e-05 | AC237: 7.197277491e-05 | AD237: 7.591634145e-05 | AE237: 8.011076503e-05 | AF237: 8.474139138e-05
D238: Option 4 | E238: June $2022 m | G238: 0 | H238: 14.59284233 | I238: 20.26200968 | J238: 34.71293327 | K238: 2.822302458e-05 | L238: 2.9341048e-05 | M238: 80.72503486 | N238: 3.25649256e-05 | O238: 67.33273207 | P238: 3.634459343e-05 | Q238: 3.825232756e-05 | R238: 21.08383441 | S238: 31.33491738 | T238: 32.51478603 | U238: 4.743213238e-05 | V238: 181.8016994 | W238: 5.279060923e-05 | X238: 5.58470857e-05 | Y238: 5.876076161e-05 | Z238: 6.202045012e-05 | AA238: 6.540632597e-05 | AB238: 6.920829903e-05 | AC238: 7.282160801e-05 | AD238: 7.681326494e-05 | AE238: 8.106188579e-05 | AF238: 8.574882395e-05
D240: Hydrogen Superpower
... 66 more rows

Sheet Terminal value
B1: Increasing capacity for generation in Molong and Parkes area - Central analysis
B2: Terminal value calculation
B4: Description: This tab presents the calculations to determine the terminal value (TV) for each option under each scenario.
B6: Option 1
B7: Asset life | D7: =Inputs!K53 -> 40 | H7: 1 | I7: 2 | J7: 3 | K7: 4 | L7: 5 | M7: 6 | N7: 7 | O7: 8 | P7: 9 | Q7: 10 | R7: 11 | S7: 12 | T7: 13 | U7: 14 | V7: 15 | W7: 16 | X7: 17 | Y7: 18 | Z7: 19 | AA7: 20 | AB7: 21 | AC7: 22 | AD7: 23 | AE7: 24 | AF7: 25 | AG7: 26 | AH7: 27 | AI7: 28 | AJ7: 29 | AK7: 30 | AL7: 31 | AM7: 32 | AN7: 33 | AO7: 34 | AP7: 35 | AQ7: 36 | AR7: 37 | AS7: 38 | AT7: 39 | AU7: 40
B8: FY ending | E8: =Inputs!$G$8 -> 2023 | F8: =E8+1 -> 2024 | G8: 2025 | H8: 2026 | I8: 2027 | J8: 2028 | K8: 2029 | L8: 2030 | M8: 2031 | N8: 2032 | O8: 2033 | P8: 2034 | Q8: 2035 | R8: 2036 | S8: 2037 | T8: 2038 | U8: 2039 | V8: 2040 | W8: 2041 | X8: 2042 | Y8: 2043 | Z8: 2044 | AA8: 2045 | AB8: 2046 | AC8: 2047 | AD8: 2048 | AE8: 2049 | AF8: 2050 | AG8: 2051 | AH8: 2052 | AI8: 2053 | AJ8: 2054 | AK8: 2055 | AL8: 2056 | AM8: =AL8+1 -> 2057 | AN8: =AM8+1 -> 2058 | AO8: =AN8+1 -> 2059 | AP8: =AO8+1 -> 2060 | AQ8: =AP8+1 -> 2061 | AR8: =AQ8+1 -> 2062 | AS8: =AR8+1 -> 2063 | AT8: 2064 | AU8: 2065
D9: NPV
B10: Annuity of total capex | C10: June $2022 m | D10: ='Step Change'!F21 -> 1.275970432 | E10: 0 | F10: 0 | G10: 0 | H10: =-PMT(Discount_Step,Inputs!$K$53,$D10*(1+Discount_Step)^3) -> 0.0933744006 | I10: =-PMT(Discount_Step,Inputs!$K$53,$D10*(1+Discount_Step)^3) -> 0.0933744006 | J10: =-PMT(Discount_Step,Inputs!$K$53,$D10*(1+Discount_Step)^3) -> 0.0933744006 | K10: =-PMT(Discount_Step,Inputs!$K$53,$D10*(1+Discount_Step)^3) -> 0.0933744006 | L10: =-PMT(Discount_Step,Inputs!$K$53,$D10*(1+Discount_Step)^3) -> 0.0933744006 | M10: =-PMT(Discount_Step,Inputs!$K$53,$D10*(1+Discount_Step)^3) -> 0.0933744006 | N10: =-PMT(Discount_Step,Inputs!$K$53,$D10*(1+Discount_Step)^3) -> 0.0933744006 | O10: =-PMT(Discount_Step,Inputs!$K$53,$D10*(1+Discount_Step)^3) -> 0.0933744006 | P10: =-PMT(Discount_Step,Inputs!$K$53,$D10*(1+Discount_Step)^3) -> 0.0933744006 | Q10: =-PMT(Discount_Step,Inputs!$K$53,$D10*(1+Discount_Step)^3) -> 0.0933744006 | R10: =-PMT(Discount_Step,Inputs!$K$53,$D10*(1+Discount_Step)^3) -> 0.0933744006 | S10: =-PMT(Discount_Step,Inputs!$K$53,$D10*(1+Discount_Step)^3) -> 0.0933744006 | T10: =-PMT(Discount_Step,Inputs!$K$53,$D10*(1+Discount_Step)^3) -> 0.0933744006 | U10: =-PMT(Discount_Step,Inputs!$K$53,$D10*(1+Discount_Step)^3) -> 0.0933744006 | V10: =-PMT(Discount_Step,Inputs!$K$53,$D10*(1+Discount_Step)^3) -> 0.0933744006 | W10: =-PMT(Discount_Step,Inputs!$K$53,$D10*(1+Discount_Step)^3) -> 0.0933744006 | X10: =-PMT(Discount_Step,Inputs!$K$53,$D10*(1+Discount_Step)^3) -> 0.0933744006 | Y10: =-PMT(Discount_Step,Inputs!$K$53,$D10*(1+Discount_Step)^3) -> 0.0933744006 | Z10: =-PMT(Discount_Step,Inputs!$K$53,$D10*(1+Discount_Step)^3) -> 0.0933744006 | AA10: =-PMT(Discount_Step,Inputs!$K$53,$D10*(1+Discount_Step)^3) -> 0.0933744006 | AB10: =-PMT(Discount_Step,Inputs!$K$53,$D10*(1+Discount_Step)^3) -> 0.0933744006 | AC10: =-PMT(Discount_Step,Inputs!$K$53,$D10*(1+Discount_Step)^3) -> 0.0933744006 | AD10: =-PMT(Discount_Step,Inputs!$K$53,$D10*(1+Discount_Step)^3) -> 0.0933744006 | AE10: =-PMT(Discount_Step,Inputs!$K$53,$D10*(1+Discount_Step)^3) -> 0.0933744006 | AF10: =-PMT(Discount_Step,Inputs!$K$53,$D10*(1+Discount_Step)^3) -> 0.0933744006 | AG10: =-PMT(Discount_Step,Inputs!$K$53,$D10*(1+Discount_Step)^3) -> 0.0933744006 | AH10: =-PMT(Discount_Step,Inputs!$K$53,$D10*(1+Discount_Step)^3) -> 0.0933744006 | AI10: =-PMT(Discount_Step,Inputs!$K$53,$D10*(1+Discount_Step)^3) -> 0.0933744006 | AJ10: =-PMT(Discount_Step,Inputs!$K$53,$D10*(1+Discount_Step)^3) -> 0.0933744006 | AK10: =-PMT(Discount_Step,Inputs!$K$53,$D10*(1+Discount_Step)^3) -> 0.0933744006 | AL10: =-PMT(Discount_Step,Inputs!$K$53,$D10*(1+Discount_Step)^3) -> 0.0933744006 | AM10: =-PMT(Discount_Step,Inputs!$K$53,$D10*(1+Discount_Step)^3) -> 0.0933744006 | AN10: =-PMT(Discount_Step,Inputs!$K$53,$D10*(1+Discount_Step)^3) -> 0.0933744006 | AO10: =-PMT(Discount_Step,Inputs!$K$53,$D10*(1+Discount_Step)^3) -> 0.0933744006 | AP10: =-PMT(Discount_Step,Inputs!$K$53,$D10*(1+Discount_Step)^3) -> 0.0933744006 | AQ10: =-PMT(Discount_Step,Inputs!$K$53,$D10*(1+Discount_Step)^3) -> 0.0933744006 | AR10: =-PMT(Discount_Step,Inputs!$K$53,$D10*(1+Discount_Step)^3) -> 0.0933744006 | AS10: =-PMT(Discount_Step,Inputs!$K$53,$D10*(1+Discount_Step)^3) -> 0.0933744006 | AT10: =-PMT(Discount_Step,Inputs!$K$53,$D10*(1+Discount_Step)^3) -> 0.0933744006 | AU10: =-PMT(Discount_Step,Inputs!$K$53,$D10*(1+Discount_Step)^3) -> 0.0933744006
B11: NPV of annuity within modelling period | C11: June $2022 m | D11: =NPV(Discount_Step,E10:AD10) -> 1.023809407 | E11: 0 | F11: 0 | G11: 0 | H11: 0 | I11: 0 | J11: 0 | K11: 0 | L11: 0 | M11: 0 | N11: 0 | O11: 0 | P11: 0 | Q11: 0 | R11: 0 | S11: 0 | T11: 0 | U11: 0 | V11: 0 | W11: 0 | X11: 0 | Y11: 0 | Z11: 0 | AA11: 0 | AB11: 0 | AC11: 0 | AD11: 0 | AE11: =AE10 -> 0.0933744006 | AF11: =AF10 -> 0.0933744006 | AG11: 0.0933744006 | AH11: 0.0933744006 | AI11: 0.0933744006 | AJ11: 0.0933744006 | AK11: 0.0933744006 | AL11: 0.0933744006 | AM11: =AM10 -> 0.0933744006 | AN11: 0.0933744006 | AO11: 0.0933744006 | AP11: 0.0933744006 | AQ11: 0.0933744006 | AR11: =AR10 -> 0.0933744006 | AS11: 0.0933744006 | AT11: 0.0933744006 | AU11: =AU10 -> 0.0933744006
B12: NPV of annuity beyond modelling period | C12: June $2022 m | D12: =NPV(Discount_Step,E11:AU11) -> 0.2521610245
B13: Terminal value at 2049 | C13: June $2022 m | D13: =NPV(Discount_Step,E13:AE13) -> 0.2521610245 | E13: 0 | F13: 0 | G13: 0 | H13: 0 | I13: 0 | J13: 0 | K13: 0 | L13: 0 | M13: 0 | N13: 0 | O13: 0 | P13: 0 | Q13: 0 | R13: 0 | S13: 0 | T13: 0 | U13: 0 | V13: 0 | W13: 0 | X13: 0 | Y13: 0 | Z13: 0 | AA13: 0 | AB13: 0 | AC13: 0 | AD13: 0 | AE13: =-PV(Discount_Step,(Inputs!K53-AD7),AE10,,1) -> 1.070272509
C15: check | D15: =IF(ROUNDUP(SUM(D11,D12),2)=ROUNDUP(D10,2),"OK","ERROR") -> OK | E15: =IF(COUNTA(E7:AU7)=D7,"OK","ERROR") -> OK
C16: check | D16: =IF(ROUND(D13,2)=ROUND(D12,2),"OK","ERROR") -> OK | E16: =IF(NPV(5.5%,E10:AU10)=D10,"OK","ERROR") -> OK
B18: Option 2
B19: Asset life | D19: =Inputs!K54 -> 40 | I19: 1 | J19: 2 | K19: 3 | L19: 4 | M19: 5 | N19: 6 | O19: 7 | P19: 8 | Q19: 9 | R19: 10 | S19: 11 | T19: 12 | U19: 13 | V19: 14 | W19: 15 | X19: 16 | Y19: 17 | Z19: 18 | AA19: 19 | AB19: 20 | AC19: 21 | AD19: 22 | AE19: 23 | AF19: 24 | AG19: 25 | AH19: 26 | AI19: 27 | AJ19: 28 | AK19: 29 | AL19: 30 | AM19: 31 | AN19: 32 | AO19: 33 | AP19: 34 | AQ19: 35 | AR19: 36 | AS19: 37 | AT19: 38 | AU19: 39 | AV19: 40
B20: FY ending | E20: =Inputs!$G$8 -> 2023 | F20: =E20+1 -> 2024 | G20: =F20+1 -> 2025 | H20: =G20+1 -> 2026 | I20: =H20+1 -> 2027 | J20: =I20+1 -> 2028 | K20: =J20+1 -> 2029 | L20: =K20+1 -> 2030 | M20: =L20+1 -> 2031 | N20: =M20+1 -> 2032 | O20: =N20+1 -> 2033 | P20: =O20+1 -> 2034 | Q20: =P20+1 -> 2035 | R20: =Q20+1 -> 2036 | S20: =R20+1 -> 2037 | T20: =S20+1 -> 2038 | U20: =T20+1 -> 2039 | V20: =U20+1 -> 2040 | W20: =V20+1 -> 2041 | X20: =W20+1 -> 2042 | Y20: =X20+1 -> 2043 | Z20: =Y20+1 -> 2044 | AA20: =Z20+1 -> 2045 | AB20: =AA20+1 -> 2046 | AC20: =AB20+1 -> 2047 | AD20: =AC20+1 -> 2048 | AE20: =AD20+1 -> 2049 | AF20: =AE20+1 -> 2050 | AG20: =AF20+1 -> 2051 | AH20: =AG20+1 -> 2052 | AI20: =AH20+1 -> 2053 | AJ20: =AI20+1 -> 2054 | AK20: =AJ20+1 -> 2055 | AL20: =AK20+1 -> 2056 | AM20: =AL20+1 -> 2057 | AN20: =AM20+1 -> 2058 | AO20: =AN20+1 -> 2059 | AP20: =AO20+1 -> 2060 | AQ20: =AP20+1 -> 2061 | AR20: =AQ20+1 -> 2062 | AS20: =AR20+1 -> 2063 | AT20: =AS20+1 -> 2064 | AU20: 2065 | AV20: 2066
D21: NPV
B22: Annuity of total capex | C22: June $2022 m | D22: ='Step Change'!F22 -> 6.655534306 | E22: 0 | F22: 0 | G22: 0 | H22: 0 | I22: =-PMT(Discount_Step,Inputs!$K$54,$D22*(1+Discount_Step)^4) -> 0.5138337214 | J22: =-PMT(Discount_Step,Inputs!$K$54,$D22*(1+Discount_Step)^4) -> 0.5138337214 | K22: =-PMT(Discount_Step,Inputs!$K$54,$D22*(1+Discount_Step)^4) -> 0.5138337214 | L22: =-PMT(Discount_Step,Inputs!$K$54,$D22*(1+Discount_Step)^4) -> 0.5138337214 | M22: =-PMT(Discount_Step,Inputs!$K$54,$D22*(1+Discount_Step)^4) -> 0.5138337214 | N22: =-PMT(Discount_Step,Inputs!$K$54,$D22*(1+Discount_Step)^4) -> 0.5138337214 | O22: =-PMT(Discount_Step,Inputs!$K$54,$D22*(1+Discount_Step)^4) -> 0.5138337214 | P22: =-PMT(Discount_Step,Inputs!$K$54,$D22*(1+Discount_Step)^4) -> 0.5138337214 | Q22: =-PMT(Discount_Step,Inputs!$K$54,$D22*(1+Discount_Step)^4) -> 0.5138337214 | R22: =-PMT(Discount_Step,Inputs!$K$54,$D22*(1+Discount_Step)^4) -> 0.5138337214 | S22: =-PMT(Discount_Step,Inputs!$K$54,$D22*(1+Discount_Step)^4) -> 0.5138337214 | T22: =-PMT(Discount_Step,Inputs!$K$54,$D22*(1+Discount_Step)^4) -> 0.5138337214 | U22: =-PMT(Discount_Step,Inputs!$K$54,$D22*(1+Discount_Step)^4) -> 0.5138337214 | V22: =-PMT(Discount_Step,Inputs!$K$54,$D22*(1+Discount_Step)^4) -> 0.5138337214 | W22: =-PMT(Discount_Step,Inputs!$K$54,$D22*(1+Discount_Step)^4) -> 0.5138337214 | X22: =-PMT(Discount_Step,Inputs!$K$54,$D22*(1+Discount_Step)^4) -> 0.5138337214 | Y22: =-PMT(Discount_Step,Inputs!$K$54,$D22*(1+Discount_Step)^4) -> 0.5138337214 | Z22: =-PMT(Discount_Step,Inputs!$K$54,$D22*(1+Discount_Step)^4) -> 0.5138337214 | AA22: =-PMT(Discount_Step,Inputs!$K$54,$D22*(1+Discount_Step)^4) -> 0.5138337214 | AB22: =-PMT(Discount_Step,Inputs!$K$54,$D22*(1+Discount_Step)^4) -> 0.5138337214 | AC22: =-PMT(Discount_Step,Inputs!$K$54,$D22*(1+Discount_Step)^4) -> 0.5138337214 | AD22: =-PMT(Discount_Step,Inputs!$K$54,$D22*(1+Discount_Step)^4) -> 0.5138337214 | AE22: =-PMT(Discount_Step,Inputs!$K$54,$D22*(1+Discount_Step)^4) -> 0.5138337214 | AF22: =-PMT(Discount_Step,Inputs!$K$54,$D22*(1+Discount_Step)^4) -> 0.5138337214 | AG22: =-PMT(Discount_Step,Inputs!$K$54,$D22*(1+Discount_Step)^4) -> 0.5138337214 | AH22: =-PMT(Discount_Step,Inputs!$K$54,$D22*(1+Discount_Step)^4) -> 0.5138337214 | AI22: =-PMT(Discount_Step,Inputs!$K$54,$D22*(1+Discount_Step)^4) -> 0.5138337214 | AJ22: =-PMT(Discount_Step,Inputs!$K$54,$D22*(1+Discount_Step)^4) -> 0.5138337214 | AK22: =-PMT(Discount_Step,Inputs!$K$54,$D22*(1+Discount_Step)^4) -> 0.5138337214 | AL22: =-PMT(Discount_Step,Inputs!$K$54,$D22*(1+Discount_Step)^4) -> 0.5138337214 | AM22: =-PMT(Discount_Step,Inputs!$K$54,$D22*(1+Discount_Step)^4) -> 0.5138337214 | AN22: =-PMT(Discount_Step,Inputs!$K$54,$D22*(1+Discount_Step)^4) -> 0.5138337214 | AO22: =-PMT(Discount_Step,Inputs!$K$54,$D22*(1+Discount_Step)^4) -> 0.5138337214 | AP22: =-PMT(Discount_Step,Inputs!$K$54,$D22*(1+Discount_Step)^4) -> 0.5138337214 | AQ22: =-PMT(Discount_Step,Inputs!$K$54,$D22*(1+Discount_Step)^4) -> 0.5138337214 | AR22: =-PMT(Discount_Step,Inputs!$K$54,$D22*(1+Discount_Step)^4) -> 0.5138337214 | AS22: =-PMT(Discount_Step,Inputs!$K$54,$D22*(1+Discount_Step)^4) -> 0.5138337214 | AT22: =-PMT(Discount_Step,Inputs!$K$54,$D22*(1+Discount_Step)^4) -> 0.5138337214 | AU22: =-PMT(Discount_Step,Inputs!$K$54,$D22*(1+Discount_Step)^4) -> 0.5138337214 | AV22: =-PMT(Discount_Step,Inputs!$K$54,$D22*(1+Discount_Step)^4) -> 0.5138337214
B23: NPV of annuity within modelling period | C23: June $2022 m | D23: =NPV(Discount_Step,E22:AD22) -> 5.219186529 | E23: 0 | F23: 0 | G23: 0 | H23: 0 | I23: 0 | J23: 0 | K23: 0 | L23: 0 | M23: 0 | N23: 0 | O23: 0 | P23: 0 | Q23: 0 | R23: 0 | S23: 0 | T23: 0 | U23: 0 | V23: 0 | W23: 0 | X23: 0 | Y23: 0 | Z23: 0 | AA23: 0 | AB23: 0 | AC23: 0 | AD23: 0 | AE23: =AE22 -> 0.5138337214 | AF23: =AF22 -> 0.5138337214 | AG23: 0.5138337214 | AH23: 0.5138337214 | AI23: 0.5138337214 | AJ23: 0.5138337214 | AK23: 0.5138337214 | AL23: 0.5138337214 | AM23: 0.5138337214 | AN23: 0.5138337214 | AO23: 0.5138337214 | AP23: 0.5138337214 | AQ23: 0.5138337214 | AR23: 0.5138337214 | AS23: 0.5138337214 | AT23: 0.5138337214 | AU23: =AU22 -> 0.5138337214 | AV23: 0.5138337214
B24: NPV of annuity beyond modelling period | C24: June $2022 m | D24: =NPV(Discount_Step,E23:AV23) -> 1.436347778
B25: Terminal value at 2048 | C25: June $2022 m | D25: =NPV(Discount_Step,E25:AE25) -> 1.436347778 | E25: 0 | F25: 0 | G25: 0 | H25: 0 | I25: 0 | J25: 0 | K25: 0 | L25: 0 | M25: 0 | N25: 0 | O25: 0 | P25: 0 | Q25: 0 | R25: 0 | S25: 0 | T25: 0 | U25: 0 | V25: 0 | W25: 0 | X25: 0 | Y25: 0 | Z25: 0 | AA25: 0 | AB25: 0 | AC25: 0 | AD25: 0 | AE25: =-PV(Discount_Step,(Inputs!$K54-AD19),AE22,,1) -> 6.09643597
C27: check | D27: =IF(ROUNDUP(SUM(D23,D24),2)=ROUNDUP(D22,2),"OK","ERROR") -> OK | E27: =IF(COUNTA(E19:AV19)=D19,"OK","ERROR") -> OK
C28: check | D28: =IF(ROUND(D25,2)=ROUND(D24,2),"OK","ERROR") -> OK | E28: =IF(NPV(5.5%,E22:AV22)=D22,"OK","ERROR") -> OK
B31: Option 2A
B32: Asset life | D32: =Inputs!K55 -> 40 | I32: 1 | J32: 2 | K32: 3 | L32: 4 | M32: 5 | N32: 6 | O32: 7 | P32: 8 | Q32: 9 | R32: 10 | S32: 11 | T32: 12 | U32: 13 | V32: 14 | W32: 15 | X32: 16 | Y32: 17 | Z32: 18 | AA32: 19 | AB32: 20 | AC32: 21 | AD32: 22 | AE32: 23 | AF32: 24 | AG32: 25 | AH32: 26 | AI32: 27 | AJ32: 28 | AK32: 29 | AL32: 30 | AM32: 31 | AN32: 32 | AO32: 33 | AP32: 34 | AQ32: 35 | AR32: 36 | AS32: 37 | AT32: 38 | AU32: 39 | AV32: 40
B33: FY ending | E33: =Inputs!$G$8 -> 2023 | F33: =E33+1 -> 2024 | G33: =F33+1 -> 2025 | H33: =G33+1 -> 2026 | I33: =H33+1 -> 2027 | J33: =I33+1 -> 2028 | K33: =J33+1 -> 2029 | L33: =K33+1 -> 2030 | M33: =L33+1 -> 2031 | N33: =M33+1 -> 2032 | O33: =N33+1 -> 2033 | P33: =O33+1 -> 2034 | Q33: =P33+1 -> 2035 | R33: =Q33+1 -> 2036 | S33: =R33+1 -> 2037 | T33: =S33+1 -> 2038 | U33: =T33+1 -> 2039 | V33: =U33+1 -> 2040 | W33: =V33+1 -> 2041 | X33: =W33+1 -> 2042 | Y33: =X33+1 -> 2043 | Z33: =Y33+1 -> 2044 | AA33: =Z33+1 -> 2045 | AB33: =AA33+1 -> 2046 | AC33: =AB33+1 -> 2047 | AD33: =AC33+1 -> 2048 | AE33: =AD33+1 -> 2049 | AF33: =AE33+1 -> 2050 | AG33: =AF33+1 -> 2051 | AH33: =AG33+1 -> 2052 | AI33: =AH33+1 -> 2053 | AJ33: =AI33+1 -> 2054 | AK33: =AJ33+1 -> 2055 | AL33: =AK33+1 -> 2056 | AM33: =AL33+1 -> 2057 | AN33: =AM33+1 -> 2058 | AO33: =AN33+1 -> 2059 | AP33: =AO33+1 -> 2060 | AQ33: =AP33+1 -> 2061 | AR33: =AQ33+1 -> 2062 | AS33: =AR33+1 -> 2063 | AT33: =AS33+1 -> 2064 | AU33: 2065 | AV33: 2066
D34: NPV
B35: Annuity of total capex | C35: June $2022 m | D35: ='Step Change'!F23 -> 7.238456492 | E35: 0 | F35: 0 | G35: 0 | H35: 0 | I35: =-PMT(Discount_Step,Inputs!$K$55,$D35*(1+Discount_Step)^4) -> 0.5588376328 | J35: =-PMT(Discount_Step,Inputs!$K$55,$D35*(1+Discount_Step)^4) -> 0.5588376328 | K35: =-PMT(Discount_Step,Inputs!$K$55,$D35*(1+Discount_Step)^4) -> 0.5588376328 | L35: =-PMT(Discount_Step,Inputs!$K$55,$D35*(1+Discount_Step)^4) -> 0.5588376328 | M35: =-PMT(Discount_Step,Inputs!$K$55,$D35*(1+Discount_Step)^4) -> 0.5588376328 | N35: =-PMT(Discount_Step,Inputs!$K$55,$D35*(1+Discount_Step)^4) -> 0.5588376328 | O35: =-PMT(Discount_Step,Inputs!$K$55,$D35*(1+Discount_Step)^4) -> 0.5588376328 | P35: =-PMT(Discount_Step,Inputs!$K$55,$D35*(1+Discount_Step)^4) -> 0.5588376328 | Q35: =-PMT(Discount_Step,Inputs!$K$55,$D35*(1+Discount_Step)^4) -> 0.5588376328 | R35: =-PMT(Discount_Step,Inputs!$K$55,$D35*(1+Discount_Step)^4) -> 0.5588376328 | S35: =-PMT(Discount_Step,Inputs!$K$55,$D35*(1+Discount_Step)^4) -> 0.5588376328 | T35: =-PMT(Discount_Step,Inputs!$K$55,$D35*(1+Discount_Step)^4) -> 0.5588376328 | U35: =-PMT(Discount_Step,Inputs!$K$55,$D35*(1+Discount_Step)^4) -> 0.5588376328 | V35: =-PMT(Discount_Step,Inputs!$K$55,$D35*(1+Discount_Step)^4) -> 0.5588376328 | W35: =-PMT(Discount_Step,Inputs!$K$55,$D35*(1+Discount_Step)^4) -> 0.5588376328 | X35: =-PMT(Discount_Step,Inputs!$K$55,$D35*(1+Discount_Step)^4) -> 0.5588376328 | Y35: =-PMT(Discount_Step,Inputs!$K$55,$D35*(1+Discount_Step)^4) -> 0.5588376328 | Z35: =-PMT(Discount_Step,Inputs!$K$55,$D35*(1+Discount_Step)^4) -> 0.5588376328 | AA35: =-PMT(Discount_Step,Inputs!$K$55,$D35*(1+Discount_Step)^4) -> 0.5588376328 | AB35: =-PMT(Discount_Step,Inputs!$K$55,$D35*(1+Discount_Step)^4) -> 0.5588376328 | AC35: =-PMT(Discount_Step,Inputs!$K$55,$D35*(1+Discount_Step)^4) -> 0.5588376328 | AD35: =-PMT(Discount_Step,Inputs!$K$55,$D35*(1+Discount_Step)^4) -> 0.5588376328 | AE35: =-PMT(Discount_Step,Inputs!$K$55,$D35*(1+Discount_Step)^4) -> 0.5588376328 | AF35: =-PMT(Discount_Step,Inputs!$K$55,$D35*(1+Discount_Step)^4) -> 0.5588376328 | AG35: =-PMT(Discount_Step,Inputs!$K$55,$D35*(1+Discount_Step)^4) -> 0.5588376328 | AH35: =-PMT(Discount_Step,Inputs!$K$55,$D35*(1+Discount_Step)^4) -> 0.5588376328 | AI35: =-PMT(Discount_Step,Inputs!$K$55,$D35*(1+Discount_Step)^4) -> 0.5588376328 | AJ35: =-PMT(Discount_Step,Inputs!$K$55,$D35*(1+Discount_Step)^4) -> 0.5588376328 | AK35: =-PMT(Discount_Step,Inputs!$K$55,$D35*(1+Discount_Step)^4) -> 0.5588376328 | AL35: =-PMT(Discount_Step,Inputs!$K$55,$D35*(1+Discount_Step)^4) -> 0.5588376328 | AM35: =-PMT(Discount_Step,Inputs!$K$55,$D35*(1+Discount_Step)^4) -> 0.5588376328 | AN35: =-PMT(Discount_Step,Inputs!$K$55,$D35*(1+Discount_Step)^4) -> 0.5588376328 | AO35: =-PMT(Discount_Step,Inputs!$K$55,$D35*(1+Discount_Step)^4) -> 0.5588376328 | AP35: =-PMT(Discount_Step,Inputs!$K$55,$D35*(1+Discount_Step)^4) -> 0.5588376328 | AQ35: =-PMT(Discount_Step,Inputs!$K$55,$D35*(1+Discount_Step)^4) -> 0.5588376328 | AR35: =-PMT(Discount_Step,Inputs!$K$55,$D35*(1+Discount_Step)^4) -> 0.5588376328 | AS35: =-PMT(Discount_Step,Inputs!$K$55,$D35*(1+Discount_Step)^4) -> 0.5588376328 | AT35: =-PMT(Discount_Step,Inputs!$K$55,$D35*(1+Discount_Step)^4) -> 0.5588376328 | AU35: =-PMT(Discount_Step,Inputs!$K$55,$D35*(1+Discount_Step)^4) -> 0.5588376328 | AV35: =-PMT(Discount_Step,Inputs!$K$55,$D35*(1+Discount_Step)^4) -> 0.5588376328
B36: NPV of annuity within modelling period | C36: June $2022 m | D36: =NPV(Discount_Step,E35:AD35) -> 5.676306796 | E36: 0 | F36: 0 | G36: 0 | H36: 0 | I36: 0 | J36: 0 | K36: 0 | L36: 0 | M36: 0 | N36: 0 | O36: 0 | P36: 0 | Q36: 0 | R36: 0 | S36: 0 | T36: 0 | U36: 0 | V36: 0 | W36: 0 | X36: 0 | Y36: 0 | Z36: 0 | AA36: 0 | AB36: 0 | AC36: 0 | AD36: 0 | AE36: =AE35 -> 0.5588376328 | AF36: =AF35 -> 0.5588376328 | AG36: 0.5588376328 | AH36: 0.5588376328 | AI36: 0.5588376328 | AJ36: 0.5588376328 | AK36: 0.5588376328 | AL36: 0.5588376328 | AM36: 0.5588376328 | AN36: 0.5588376328 | AO36: 0.5588376328 | AP36: 0.5588376328 | AQ36: 0.5588376328 | AR36: 0.5588376328 | AS36: 0.5588376328 | AT36: 0.5588376328 | AU36: =AU35 -> 0.5588376328 | AV36: 0.5588376328
B37: NPV of annuity beyond modelling period | C37: June $2022 m | D37: =NPV(Discount_Step,E36:AV36) -> 1.562149696
B38: Terminal value at 2048 | C38: June $2022 m | D38: =NPV(Discount_Step,E38:AE38) -> 1.562149696 | E38: 0 | F38: 0 | G38: 0 | H38: 0 | I38: 0 | J38: 0 | K38: 0 | L38: 0 | M38: 0 | N38: 0 | O38: 0 | P38: 0 | Q38: 0 | R38: 0 | S38: 0 | T38: 0 | U38: 0 | V38: 0 | W38: 0 | X38: 0 | Y38: 0 | Z38: 0 | AA38: 0 | AB38: 0 | AC38: 0 | AD38: 0 | AE38: =-PV(Discount_Step,(Inputs!$K55-AD32),AE35,,1) -> 6.630389762
C40: check | D40: =IF(ROUNDUP(SUM(D36,D37),2)=ROUNDUP(D35,2),"OK","ERROR") -> OK | E40: =IF(COUNTA(E32:AV32)=D32,"OK","ERROR") -> OK
C41: check | D41: =IF(ROUND(D38,2)=ROUND(D37,2),"OK","ERROR") -> OK | E41: =IF(ROUND(NPV(5.5%,E35:AV35),3)=ROUND(D35,3),"OK","ERROR") -> OK
B43: Option 2B
B44: Asset life | D44: =Inputs!K56 -> 25 | I44: 1 | J44: 2 | K44: 3 | L44: 4 | M44: 5 | N44: 6 | O44: 7 | P44: 8 | Q44: 9 | R44: 10 | S44: 11 | T44: 12 | U44: 13 | V44: 14 | W44: 15 | X44: 16 | Y44: 17 | Z44: 18 | AA44: 19 | AB44: 20 | AC44: 21 | AD44: 22 | AE44: 23 | AF44: 24 | AG44: 25
B45: FY ending | E45: =Inputs!$G$8 -> 2023 | F45: =E45+1 -> 2024 | G45: =F45+1 -> 2025 | H45: =G45+1 -> 2026 | I45: =H45+1 -> 2027 | J45: =I45+1 -> 2028 | K45: =J45+1 -> 2029 | L45: =K45+1 -> 2030 | M45: =L45+1 -> 2031 | N45: =M45+1 -> 2032 | O45: =N45+1 -> 2033 | P45: =O45+1 -> 2034 | Q45: =P45+1 -> 2035 | R45: =Q45+1 -> 2036 | S45: =R45+1 -> 2037 | T45: =S45+1 -> 2038 | U45: =T45+1 -> 2039 | V45: =U45+1 -> 2040 | W45: =V45+1 -> 2041 | X45: =W45+1 -> 2042 | Y45: =X45+1 -> 2043 | Z45: =Y45+1 -> 2044 | AA45: =Z45+1 -> 2045 | AB45: =AA45+1 -> 2046 | AC45: =AB45+1 -> 2047 | AD45: =AC45+1 -> 2048 | AE45: =AD45+1 -> 2049 | AF45: =AE45+1 -> 2050 | AG45: =AF45+1 -> 2051
D46: NPV
B47: Annuity of total capex | C47: June $2022 m | D47: ='Step Change'!F24 -> 23.03777214 | E47: 0 | F47: 0 | G47: 0 | H47: 0 | I47: =-PMT(Discount_Step,Inputs!$K$56,$D47*(1+Discount_Step)^4) -> 2.127620642 | J47: =-PMT(Discount_Step,Inputs!$K$56,$D47*(1+Discount_Step)^4) -> 2.127620642 | K47: =-PMT(Discount_Step,Inputs!$K$56,$D47*(1+Discount_Step)^4) -> 2.127620642 | L47: =-PMT(Discount_Step,Inputs!$K$56,$D47*(1+Discount_Step)^4) -> 2.127620642 | M47: =-PMT(Discount_Step,Inputs!$K$56,$D47*(1+Discount_Step)^4) -> 2.127620642 | N47: =-PMT(Discount_Step,Inputs!$K$56,$D47*(1+Discount_Step)^4) -> 2.127620642 | O47: =-PMT(Discount_Step,Inputs!$K$56,$D47*(1+Discount_Step)^4) -> 2.127620642 | P47: =-PMT(Discount_Step,Inputs!$K$56,$D47*(1+Discount_Step)^4) -> 2.127620642 | Q47: =-PMT(Discount_Step,Inputs!$K$56,$D47*(1+Discount_Step)^4) -> 2.127620642 | R47: =-PMT(Discount_Step,Inputs!$K$56,$D47*(1+Discount_Step)^4) -> 2.127620642 | S47: =-PMT(Discount_Step,Inputs!$K$56,$D47*(1+Discount_Step)^4) -> 2.127620642 | T47: =-PMT(Discount_Step,Inputs!$K$56,$D47*(1+Discount_Step)^4) -> 2.127620642 | U47: =-PMT(Discount_Step,Inputs!$K$56,$D47*(1+Discount_Step)^4) -> 2.127620642 | V47: =-PMT(Discount_Step,Inputs!$K$56,$D47*(1+Discount_Step)^4) -> 2.127620642 | W47: =-PMT(Discount_Step,Inputs!$K$56,$D47*(1+Discount_Step)^4) -> 2.127620642 | X47: =-PMT(Discount_Step,Inputs!$K$56,$D47*(1+Discount_Step)^4) -> 2.127620642 | Y47: =-PMT(Discount_Step,Inputs!$K$56,$D47*(1+Discount_Step)^4) -> 2.127620642 | Z47: =-PMT(Discount_Step,Inputs!$K$56,$D47*(1+Discount_Step)^4) -> 2.127620642 | AA47: =-PMT(Discount_Step,Inputs!$K$56,$D47*(1+Discount_Step)^4) -> 2.127620642 | AB47: =-PMT(Discount_Step,Inputs!$K$56,$D47*(1+Discount_Step)^4) -> 2.127620642 | AC47: =-PMT(Discount_Step,Inputs!$K$56,$D47*(1+Discount_Step)^4) -> 2.127620642 | AD47: =-PMT(Discount_Step,Inputs!$K$56,$D47*(1+Discount_Step)^4) -> 2.127620642 | AE47: =-PMT(Discount_Step,Inputs!$K$56,$D47*(1+Discount_Step)^4) -> 2.127620642 | AF47: =-PMT(Discount_Step,Inputs!$K$56,$D47*(1+Discount_Step)^4) -> 2.127620642 | AG47: =-PMT(Discount_Step,Inputs!$K$56,$D47*(1+Discount_Step)^4) -> 2.127620642
B48: NPV of annuity within modelling period | C48: June $2022 m | D48: =NPV(Discount_Step,E47:AD47) -> 21.61097751 | E48: 0 | F48: 0 | G48: 0 | H48: 0 | I48: 0 | J48: 0 | K48: 0 | L48: 0 | M48: 0 | N48: 0 | O48: 0 | P48: 0 | Q48: 0 | R48: 0 | S48: 0 | T48: 0 | U48: 0 | V48: 0 | W48: 0 | X48: 0 | Y48: 0 | Z48: 0 | AA48: 0 | AB48: 0 | AC48: 0 | AD48: 0 | AE48: =AE47 -> 2.127620642 | AF48: =AF47 -> 2.127620642 | AG48: 2.127620642
B49: NPV of annuity beyond modelling period | C49: June $2022 m | D49: =NPV(Discount_Step,E48:AU48) -> 1.42679463
B50: Terminal value at 2048 | C50: June $2022 m | D50: =NPV(Discount_Step,E50:AE50) -> 1.42679463 | E50: 0 | F50: 0 | G50: 0 | H50: 0 | I50: 0 | J50: 0 | K50: 0 | L50: 0 | M50: 0 | N50: 0 | O50: 0 | P50: 0 | Q50: 0 | R50: 0 | S50: 0 | T50: 0 | U50: 0 | V50: 0 | W50: 0 | X50: 0 | Y50: 0 | Z50: 0 | AA50: 0 | AB50: 0 | AC50: 0 | AD50: 0 | AE50: =-PV(Discount_Step,(Inputs!$K56-AD44),AE47,,1) -> 6.055888579
C52: check | D52: =IF(ROUNDUP(SUM(D48,D49),2)=ROUNDUP(D47,2),"OK","ERROR") -> OK | E52: =IF(COUNTA(E44:AV44)=D44,"OK","ERROR") -> OK
C53: check | D53: =IF(ROUND(D50,2)=ROUND(D49,2),"OK","ERROR") -> OK | E53: =IF(NPV(5.5%,E47:AV47)=D47,"OK","ERROR") -> OK
B55: Option 3
B56: Asset life | D56: =Inputs!K57 -> 40 | I56: 1 | J56: 2 | K56: 3 | L56: 4 | M56: 5 | N56: 6 | O56: 7 | P56: 8 | Q56: 9 | R56: 10 | S56: 11 | T56: 12 | U56: 13 | V56: 14 | W56: 15 | X56: 16 | Y56: 17 | Z56: 18 | AA56: 19 | AB56: 20 | AC56: 21 | AD56: 22 | AE56: 23 | AF56: 24 | AG56: 25 | AH56: 26 | AI56: 27 | AJ56: 28 | AK56: 29 | AL56: 30 | AM56: 31 | AN56: 32 | AO56: 33 | AP56: 34 | AQ56: 35 | AR56: 36 | AS56: 37 | AT56: 38 | AU56: 39 | AV56: 40
B57: FY ending | E57: =Inputs!$G$8 -> 2023 | F57: =E57+1 -> 2024 | G57: =F57+1 -> 2025 | H57: =G57+1 -> 2026 | I57: =H57+1 -> 2027 | J57: =I57+1 -> 2028 | K57: =J57+1 -> 2029 | L57: =K57+1 -> 2030 | M57: =L57+1 -> 2031 | N57: =M57+1 -> 2032 | O57: =N57+1 -> 2033 | P57: =O57+1 -> 2034 | Q57: =P57+1 -> 2035 | R57: =Q57+1 -> 2036 | S57: =R57+1 -> 2037 | T57: =S57+1 -> 2038 | U57: =T57+1 -> 2039 | V57: =U57+1 -> 2040 | W57: =V57+1 -> 2041 | X57: =W57+1 -> 2042 | Y57: =X57+1 -> 2043 | Z57: =Y57+1 -> 2044 | AA57: =Z57+1 -> 2045 | AB57: =AA57+1 -> 2046 | AC57: =AB57+1 -> 2047 | AD57: =AC57+1 -> 2048 | AE57: =AD57+1 -> 2049 | AF57: =AE57+1 -> 2050 | AG57: =AF57+1 -> 2051 | AH57: =AG57+1 -> 2052 | AI57: =AH57+1 -> 2053 | AJ57: =AI57+1 -> 2054 | AK57: =AJ57+1 -> 2055 | AL57: =AK57+1 -> 2056 | AM57: =AL57+1 -> 2057 | AN57: =AM57+1 -> 2058 | AO57: =AN57+1 -> 2059 | AP57: =AO57+1 -> 2060 | AQ57: =AP57+1 -> 2061 | AR57: =AQ57+1 -> 2062 | AS57: =AR57+1 -> 2063 | AT57: =AS57+1 -> 2064 | AU57: =AT57+1 -> 2065 | AV57: =AU57+1 -> 2066
D58: NPV
B59: Annuity of total capex | C59: June $2022 m | D59: ='Step Change'!F25 -> 34.13172495 | E59: 0 | F59: 0 | G59: 0 | H59: 0 | I59: =-PMT(Discount_Step,Inputs!$K$57,$D59*(1+Discount_Step)^4) -> 2.635104928 | J59: =-PMT(Discount_Step,Inputs!$K$57,$D59*(1+Discount_Step)^4) -> 2.635104928 | K59: =-PMT(Discount_Step,Inputs!$K$57,$D59*(1+Discount_Step)^4) -> 2.635104928 | L59: =-PMT(Discount_Step,Inputs!$K$57,$D59*(1+Discount_Step)^4) -> 2.635104928 | M59: =-PMT(Discount_Step,Inputs!$K$57,$D59*(1+Discount_Step)^4) -> 2.635104928 | N59: =-PMT(Discount_Step,Inputs!$K$57,$D59*(1+Discount_Step)^4) -> 2.635104928 | O59: =-PMT(Discount_Step,Inputs!$K$57,$D59*(1+Discount_Step)^4) -> 2.635104928 | P59: =-PMT(Discount_Step,Inputs!$K$57,$D59*(1+Discount_Step)^4) -> 2.635104928 | Q59: =-PMT(Discount_Step,Inputs!$K$57,$D59*(1+Discount_Step)^4) -> 2.635104928 | R59: =-PMT(Discount_Step,Inputs!$K$57,$D59*(1+Discount_Step)^4) -> 2.635104928 | S59: =-PMT(Discount_Step,Inputs!$K$57,$D59*(1+Discount_Step)^4) -> 2.635104928 | T59: =-PMT(Discount_Step,Inputs!$K$57,$D59*(1+Discount_Step)^4) -> 2.635104928 | U59: =-PMT(Discount_Step,Inputs!$K$57,$D59*(1+Discount_Step)^4) -> 2.635104928 | V59: =-PMT(Discount_Step,Inputs!$K$57,$D59*(1+Discount_Step)^4) -> 2.635104928 | W59: =-PMT(Discount_Step,Inputs!$K$57,$D59*(1+Discount_Step)^4) -> 2.635104928 | X59: =-PMT(Discount_Step,Inputs!$K$57,$D59*(1+Discount_Step)^4) -> 2.635104928 | Y59: =-PMT(Discount_Step,Inputs!$K$57,$D59*(1+Discount_Step)^4) -> 2.635104928 | Z59: =-PMT(Discount_Step,Inputs!$K$57,$D59*(1+Discount_Step)^4) -> 2.635104928 | AA59: =-PMT(Discount_Step,Inputs!$K$57,$D59*(1+Discount_Step)^4) -> 2.635104928 | AB59: =-PMT(Discount_Step,Inputs!$K$57,$D59*(1+Discount_Step)^4) -> 2.635104928 | AC59: =-PMT(Discount_Step,Inputs!$K$57,$D59*(1+Discount_Step)^4) -> 2.635104928 | AD59: =-PMT(Discount_Step,Inputs!$K$57,$D59*(1+Discount_Step)^4) -> 2.635104928 | AE59: =-PMT(Discount_Step,Inputs!$K$57,$D59*(1+Discount_Step)^4) -> 2.635104928 | AF59: =-PMT(Discount_Step,Inputs!$K$57,$D59*(1+Discount_Step)^4) -> 2.635104928 | AG59: =-PMT(Discount_Step,Inputs!$K$57,$D59*(1+Discount_Step)^4) -> 2.635104928 | AH59: =-PMT(Discount_Step,Inputs!$K$57,$D59*(1+Discount_Step)^4) -> 2.635104928 | AI59: =-PMT(Discount_Step,Inputs!$K$57,$D59*(1+Discount_Step)^4) -> 2.635104928 | AJ59: =-PMT(Discount_Step,Inputs!$K$57,$D59*(1+Discount_Step)^4) -> 2.635104928 | AK59: =-PMT(Discount_Step,Inputs!$K$57,$D59*(1+Discount_Step)^4) -> 2.635104928 | AL59: =-PMT(Discount_Step,Inputs!$K$57,$D59*(1+Discount_Step)^4) -> 2.635104928 | AM59: =-PMT(Discount_Step,Inputs!$K$57,$D59*(1+Discount_Step)^4) -> 2.635104928 | AN59: =-PMT(Discount_Step,Inputs!$K$57,$D59*(1+Discount_Step)^4) -> 2.635104928 | AO59: =-PMT(Discount_Step,Inputs!$K$57,$D59*(1+Discount_Step)^4) -> 2.635104928 | AP59: =-PMT(Discount_Step,Inputs!$K$57,$D59*(1+Discount_Step)^4) -> 2.635104928 | AQ59: =-PMT(Discount_Step,Inputs!$K$57,$D59*(1+Discount_Step)^4) -> 2.635104928 | AR59: =-PMT(Discount_Step,Inputs!$K$57,$D59*(1+Discount_Step)^4) -> 2.635104928 | AS59: =-PMT(Discount_Step,Inputs!$K$57,$D59*(1+Discount_Step)^4) -> 2.635104928 | AT59: =-PMT(Discount_Step,Inputs!$K$57,$D59*(1+Discount_Step)^4) -> 2.635104928 | AU59: =-PMT(Discount_Step,Inputs!$K$57,$D59*(1+Discount_Step)^4) -> 2.635104928 | AV59: =-PMT(Discount_Step,Inputs!$K$57,$D59*(1+Discount_Step)^4) -> 2.635104928
B60: NPV of annuity within modelling period | C60: June $2022 m | D60: =NPV(Discount_Step,E59:AD59) -> 26.76567062 | E60: 0 | F60: 0 | G60: 0 | H60: 0 | I60: 0 | J60: 0 | K60: 0 | L60: 0 | M60: 0 | N60: 0 | O60: 0 | P60: 0 | Q60: 0 | R60: 0 | S60: 0 | T60: 0 | U60: 0 | V60: 0 | W60: 0 | X60: 0 | Y60: 0 | Z60: 0 | AA60: 0 | AB60: 0 | AC60: 0 | AD60: 0 | AE60: =AE59 -> 2.635104928 | AF60: =AF59 -> 2.635104928 | AG60: 2.635104928 | AH60: 2.635104928 | AI60: 2.635104928 | AJ60: 2.635104928 | AK60: 2.635104928 | AL60: 2.635104928 | AM60: 2.635104928 | AN60: 2.635104928 | AO60: 2.635104928 | AP60: 2.635104928 | AQ60: 2.635104928 | AR60: 2.635104928 | AS60: 2.635104928 | AT60: 2.635104928 | AU60: =AU59 -> 2.635104928 | AV60: 2.635104928
B61: NPV of annuity beyond modelling period | C61: June $2022 m | D61: =NPV(Discount_Step,E60:AV60) -> 7.366054327
B62: Terminal value at 2048 | C62: June $2022 m | D62: =NPV(Discount_Step,E62:AE62) -> 7.366054327 | E62: 0 | F62: 0 | G62: 0 | H62: 0 | I62: 0 | J62: 0 | K62: 0 | L62: 0 | M62: 0 | N62: 0 | O62: 0 | P62: 0 | Q62: 0 | R62: 0 | S62: 0 | T62: 0 | U62: 0 | V62: 0 | W62: 0 | X62: 0 | Y62: 0 | Z62: 0 | AA62: 0 | AB62: 0 | AC62: 0 | AD62: 0 | AE62: =-PV(Discount_Step,(Inputs!$K57-AD56),AE59,,1) -> 31.26448849
C64: check | D64: =IF(ROUNDUP(SUM(D60,D61),2)=ROUNDUP(D59,2),"OK","ERROR") -> OK | E64: =IF(COUNTA(E56:AV56)=D56,"OK","ERROR") -> OK
C65: check | D65: =IF(ROUND(D62,2)=ROUND(D61,2),"OK","ERROR") -> OK | E65: =IF(NPV(5.5%,E59:AV59)=D59,"OK","ERROR") -> OK
B67: Option 4
B68: Asset life | D68: =Inputs!K58 -> 25 | I68: 1 | J68: 2 | K68: 3 | L68: 4 | M68: 5 | N68: 6 | O68: 7 | P68: 8 | Q68: 9 | R68: 10 | S68: 11 | T68: 12 | U68: 13 | V68: 14 | W68: 15 | X68: 16 | Y68: 17 | Z68: 18 | AA68: 19 | AB68: 20 | AC68: 21 | AD68: 22 | AE68: 23 | AF68: 24 | AG68: 25
B69: FY ending | E69: =Inputs!$G$8 -> 2023 | F69: =E69+1 -> 2024 | G69: =F69+1 -> 2025 | H69: =G69+1 -> 2026 | I69: =H69+1 -> 2027 | J69: =I69+1 -> 2028 | K69: =J69+1 -> 2029 | L69: =K69+1 -> 2030 | M69: =L69+1 -> 2031 | N69: =M69+1 -> 2032 | O69: =N69+1 -> 2033 | P69: =O69+1 -> 2034 | Q69: =P69+1 -> 2035 | R69: =Q69+1 -> 2036 | S69: =R69+1 -> 2037 | T69: =S69+1 -> 2038 | U69: =T69+1 -> 2039 | V69: =U69+1 -> 2040 | W69: =V69+1 -> 2041 | X69: =W69+1 -> 2042 | Y69: =X69+1 -> 2043 | Z69: =Y69+1 -> 2044 | AA69: =Z69+1 -> 2045 | AB69: =AA69+1 -> 2046 | AC69: =AB69+1 -> 2047 | AD69: =AC69+1 -> 2048 | AE69: =AD69+1 -> 2049 | AF69: =AE69+1 -> 2050 | AG69: =AF69+1 -> 2051
D70: NPV
B71: Annuity of total capex | C71: June $2022 m | D71: ='Step Change'!F26 -> 164.5577288 | E71: 0 | F71: 0 | G71: 0 | H71: 0 | I71: =-PMT(Discount_Step,Inputs!$K$58,$D71*(1+Discount_Step)^4) -> 15.19749473 | J71: =-PMT(Discount_Step,Inputs!$K$58,$D71*(1+Discount_Step)^4) -> 15.19749473 | K71: =-PMT(Discount_Step,Inputs!$K$58,$D71*(1+Discount_Step)^4) -> 15.19749473 | L71: =-PMT(Discount_Step,Inputs!$K$58,$D71*(1+Discount_Step)^4) -> 15.19749473 | M71: =-PMT(Discount_Step,Inputs!$K$58,$D71*(1+Discount_Step)^4) -> 15.19749473 | N71: =-PMT(Discount_Step,Inputs!$K$58,$D71*(1+Discount_Step)^4) -> 15.19749473 | O71: =-PMT(Discount_Step,Inputs!$K$58,$D71*(1+Discount_Step)^4) -> 15.19749473 | P71: =-PMT(Discount_Step,Inputs!$K$58,$D71*(1+Discount_Step)^4) -> 15.19749473 | Q71: =-PMT(Discount_Step,Inputs!$K$58,$D71*(1+Discount_Step)^4) -> 15.19749473 | R71: =-PMT(Discount_Step,Inputs!$K$58,$D71*(1+Discount_Step)^4) -> 15.19749473 | S71: =-PMT(Discount_Step,Inputs!$K$58,$D71*(1+Discount_Step)^4) -> 15.19749473 | T71: =-PMT(Discount_Step,Inputs!$K$58,$D71*(1+Discount_Step)^4) -> 15.19749473 | U71: =-PMT(Discount_Step,Inputs!$K$58,$D71*(1+Discount_Step)^4) -> 15.19749473 | V71: =-PMT(Discount_Step,Inputs!$K$58,$D71*(1+Discount_Step)^4) -> 15.19749473 | W71: =-PMT(Discount_Step,Inputs!$K$58,$D71*(1+Discount_Step)^4) -> 15.19749473 | X71: =-PMT(Discount_Step,Inputs!$K$58,$D71*(1+Discount_Step)^4) -> 15.19749473 | Y71: =-PMT(Discount_Step,Inputs!$K$58,$D71*(1+Discount_Step)^4) -> 15.19749473 | Z71: =-PMT(Discount_Step,Inputs!$K$58,$D71*(1+Discount_Step)^4) -> 15.19749473 | AA71: =-PMT(Discount_Step,Inputs!$K$58,$D71*(1+Discount_Step)^4) -> 15.19749473 | AB71: =-PMT(Discount_Step,Inputs!$K$58,$D71*(1+Discount_Step)^4) -> 15.19749473 | AC71: =-PMT(Discount_Step,Inputs!$K$58,$D71*(1+Discount_Step)^4) -> 15.19749473 | AD71: =-PMT(Discount_Step,Inputs!$K$58,$D71*(1+Discount_Step)^4) -> 15.19749473 | AE71: =-PMT(Discount_Step,Inputs!$K$58,$D71*(1+Discount_Step)^4) -> 15.19749473 | AF71: =-PMT(Discount_Step,Inputs!$K$58,$D71*(1+Discount_Step)^4) -> 15.19749473 | AG71: =-PMT(Discount_Step,Inputs!$K$58,$D71*(1+Discount_Step)^4) -> 15.19749473
B72: NPV of annuity within modelling period | C72: June $2022 m | D72: =NPV(Discount_Step,E71:AD71) -> 154.3662015 | E72: 0 | F72: 0 | G72: 0 | H72: 0 | I72: 0 | J72: 0 | K72: 0 | L72: 0 | M72: 0 | N72: 0 | O72: 0 | P72: 0 | Q72: 0 | R72: 0 | S72: 0 | T72: 0 | U72: 0 | V72: 0 | W72: 0 | X72: 0 | Y72: 0 | Z72: 0 | AA72: 0 | AB72: 0 | AC72: 0 | AD72: 0 | AE72: =AE71 -> 15.19749473 | AF72: =AF71 -> 15.19749473 | AG72: 15.19749473
B73: NPV of annuity beyond modelling period | C73: June $2022 m | D73: =NPV(Discount_Step,E72:AU72) -> 10.1915273
B74: Terminal value at 2048 | C74: June $2022 m | D74: =NPV(Discount_Step,E74:AE74) -> 10.1915273 | E74: 0 | F74: 0 | G74: 0 | H74: 0 | I74: 0 | J74: 0 | K74: 0 | L74: 0 | M74: 0 | N74: 0 | O74: 0 | P74: 0 | Q74: 0 | R74: 0 | S74: 0 | T74: 0 | U74: 0 | V74: 0 | W74: 0 | X74: 0 | Y74: 0 | Z74: 0 | AA74: 0 | AB74: 0 | AC74: 0 | AD74: 0 | AE74: =-PV(Discount_Step,(Inputs!$K58-AD68),AE71,,1) -> 43.25692885
C76: check | D76: =IF(ROUNDUP(SUM(D72,D73),2)=ROUNDUP(D71,2),"OK","ERROR") -> OK | E76: =IF(COUNTA(E68:AV68)=D68,"OK","ERROR") -> OK
C77: check | D77: =IF(ROUND(D74,2)=ROUND(D73,2),"OK","ERROR") -> OK | E77: =IF(NPV(5.5%,E71:AV71)=D71,"OK","ERROR") -> OK

Sheet Step Change
C1: Increasing capacity for generation in Molong and Parkes area - Central analysis
C2: Step Change scenario
C4: Description: This tab presents the NPV net economic benefit calculations for the credible options in this RIT-T using the assumptions made under the Step change scenario. The calculations here determine the preferred option for this RIT-T under the Step change scenario.
C6: Net economic benefit
C8: Net economic benefit | F8: NPV | G8: =Inputs!G8 -> 2023 | H8: =G8+1 -> 2024 | I8: 2025 | J8: 2026 | K8: 2027 | L8: 2028 | M8: 2029 | N8: 2030 | O8: 2031 | P8: 2032 | Q8: 2033 | R8: 2034 | S8: 2035 | T8: 2036 | U8: 2037 | V8: 2038 | W8: 2039 | X8: 2040 | Y8: 2041 | Z8: 2042 | AA8: 2043 | AB8: =AA8+1 -> 2044 | AC8: =AB8+1 -> 2045 | AD8: =AC8+1 -> 2046 | AE8: =AD8+1 -> 2047 | AF8: =AE8+1 -> 2048 | AG8: 2049
D10: Option 1 | E10: June $2022 m | F10: =G10+NPV(Discount_Step,H10:AG10) -> 17.54283303 | G10: =(G118-G39) -> 0 | H10: =(H118-H39) -> -0.1743249216 | I10: -0.9354531285 | J10: 1.778766624 | K10: 1.098725702 | L10: =(L118-L39) -> 1.898211229 | M10: 1.267198891 | N10: 0.9612765807 | O10: 1.675318167 | P10: 1.847185351 | Q10: 1.781922286 | R10: 0.8936656485 | S10: 0.6915827986 | T10: 0.7760962734 | U10: 1.154597655 | V10: 1.516207048 | W10: 1.720781954 | X10: 1.64508722 | Y10: 1.970271473 | Z10: 2.905697232 | AA10: 2.032860879 | AB10: 2.275290689 | AC10: 2.329261307 | AD10: 1.406772445 | AE10: 2.582416893 | AF10: 2.396306263 | AG10: =Inputs!G63 -> 1.070272509
D11: Option 2 | E11: June $2022 m | F11: 19.49206462 | G11: =(G119-G40) -> 0 | H11: =(H119-H40) -> -0.3531480131 | I11: -4.676460296 | J11: 0.3537077436 | K11: 1.379925958 | L11: =(L119-L40) -> 1.850471562 | M11: 1.633451354 | N11: 1.422765995 | O11: 2.194264382 | P11: 2.439762379 | Q11: 2.457264232 | R11: 1.024664156 | S11: 0.9579227339 | T11: 1.035692607 | U11: 1.555195749 | V11: 2.373366529 | W11: 2.243811042 | X11: 2.859946881 | Y11: 2.988661983 | Z11: 5.217968396 | AA11: 2.022784944 | AB11: 3.307545131 | AC11: 3.445108127 | AD11: 1.044210385 | AE11: 3.274340969 | AF11: 2.240752457 | AG11: =Inputs!G64 -> 6.09643597
D12: Option 2A | E12: June $2022 m | F12: 18.84940869 | G12: 0 | H12: =(H120-H41) -> -0.4001493393 | I12: =(I120-I41) -> -5.089297749 | J12: 0.1388129573 | K12: 1.364659227 | L12: 1.818502024 | M12: 1.620397161 | N12: 1.390101918 | O12: 2.185022994 | P12: 2.438696601 | Q12: 2.421237041 | R12: 0.9844374756 | S12: 0.931884005 | T12: 1.003117542 | U12: 1.544859328 | V12: 2.364182612 | W12: 2.231778616 | X12: 2.844138653 | Y12: 2.920089264 | Z12: 5.142732762 | AA12: 1.94003622 | AB12: 3.232252115 | AC12: 3.42842815 | AD12: 0.9740059872 | AE12: 3.747469622 | AF12: 2.214885356 | AG12: =Inputs!G65 -> 6.630389762
D13: Option 2B | E13: June $2022 m | F13: -1.176739503 | G13: 0 | H13: =(H121-H42) -> -1.478702919 | I13: -16.37222773 | J13: -5.443895123 | K13: 1.106566798 | L13: 1.2751751 | M13: 1.358871364 | N13: 1.016838239 | O13: 1.77312929 | P13: 2.142369695 | Q13: 1.991211486 | R13: 0.540817837 | S13: 0.5547024421 | T13: 0.5736923093 | U13: 1.088177006 | V13: 2.025175889 | W13: 2.107591156 | X13: 2.369292053 | Y13: 2.358476891 | Z13: 4.512358288 | AA13: 1.371574824 | AB13: 2.451423598 | AC13: 2.881317903 | AD13: 0.5034394871 | AE13: 4.686172819 | AF13: 2.256313774 | AG13: =Inputs!G66 -> 6.055888579
D14: Option 3 | E14: June $2022 m | F14: -8.423156052 | G14: 0 | H14: =(H122-H43) -> -1.889658108 | I14: -23.91255052 | J14: -11.70439454 | K14: 1.00059847 | L14: 1.388355197 | M14: 1.17798824 | N14: 1.314056194 | O14: 2.018932826 | P14: 2.254076842 | Q14: 2.093577661 | R14: 0.8910477776 | S14: 0.9391655122 | T14: 0.7972481836 | U14: 1.028988792 | V14: 2.347327334 | W14: 1.774316787 | X14: 2.600809669 | Y14: 2.826623847 | Z14: 6.516914896 | AA14: 2.388853046 | AB14: 3.691749463 | AC14: 2.731792828 | AD14: 0.7942775042 | AE14: -1.228397445 | AF14: -5.421857606 | AG14: =Inputs!G67 -> 31.26448849
D15: Option 4 | E15: June $2022 m | F15: -65.93468526 | G15: 0 | H15: =(H123-H44) -> -18.78960379 | I15: -98.51060259 | J15: -55.68670036 | K15: 8.896145731 | L15: 13.45169802 | M15: 2.536927634 | N15: 1.527860082 | O15: 6.258730472 | P15: 6.096049814 | Q15: 8.59388792 | R15: 7.107780057 | S15: 6.883868419 | T15: 7.476406025 | U15: 7.48816637 | V15: 7.579667827 | W15: 8.023143629 | X15: 8.062305944 | Y15: 7.572513198 | Z15: 8.250211863 | AA15: 7.671658948 | AB15: 6.111102035 | AC15: 7.703876511 | AD15: 3.193074622 | AE15: 8.732234946 | AF15: 10.41866934 | AG15: =Inputs!G68 -> 43.25692885
C17: Cost calculations
C19: Capital costs | F19: NPV | G19: =Inputs!G$8 -> 2023 | H19: =G19+1 -> 2024 | I19: 2025 | J19: 2026 | K19: 2027 | L19: 2028 | M19: 2029 | N19: 2030 | O19: 2031 | P19: 2032 | Q19: 2033 | R19: 2034 | S19: 2035 | T19: 2036 | U19: 2037 | V19: 2038 | W19: 2039 | X19: 2040 | Y19: 2041 | Z19: 2042 | AA19: 2043 | AB19: =AA19+1 -> 2044 | AC19: =AB19+1 -> 2045 | AD19: =AC19+1 -> 2046 | AE19: =AD19+1 -> 2047 | AF19: =AE19+1 -> 2048 | AG19: 2049
D21: Option 1 | E21: June $2022 m | F21: =G21+NPV(Discount_Step,H21:AG21) -> 1.275970432 | G21: =Inputs!G74*Inputs!$G$22 -> 0 | H21: =Inputs!H74*Inputs!$G$22 -> 0.2438411262 | I21: =Inputs!I74*Inputs!$G$22 -> 1.162934602 | J21: =Inputs!J74*Inputs!$G$22 -> 0 | K21: =Inputs!K74*Inputs!$G$22 -> 0 | L21: =Inputs!L74*Inputs!$G$22 -> 0 | M21: =Inputs!M74*Inputs!$G$22 -> 0 | N21: =Inputs!N74*Inputs!$G$22 -> 0 | O21: =Inputs!O74*Inputs!$G$22 -> 0 | P21: =Inputs!P74*Inputs!$G$22 -> 0 | Q21: =Inputs!Q74*Inputs!$G$22 -> 0 | R21: =Inputs!R74*Inputs!$G$22 -> 0 | S21: =Inputs!S74*Inputs!$G$22 -> 0 | T21: =Inputs!T74*Inputs!$G$22 -> 0 | U21: =Inputs!U74*Inputs!$G$22 -> 0 | V21: =Inputs!V74*Inputs!$G$22 -> 0 | W21: =Inputs!W74*Inputs!$G$22 -> 0 | X21: =Inputs!X74*Inputs!$G$22 -> 0 | Y21: =Inputs!Y74*Inputs!$G$22 -> 0 | Z21: =Inputs!Z74*Inputs!$G$22 -> 0 | AA21: =Inputs!AA74*Inputs!$G$22 -> 0 | AB21: =Inputs!AB74*Inputs!$G$22 -> 0 | AC21: =Inputs!AC74*Inputs!$G$22 -> 0 | AD21: =Inputs!AD74*Inputs!$G$22 -> 0 | AE21: =Inputs!AE74*Inputs!$G$22 -> 0 | AF21: =Inputs!AF74*Inputs!$G$22 -> 0 | AG21: =Inputs!AG74*Inputs!$G$22 -> 0
D22: Option 2 | E22: June $2022 m | F22: 6.655534306 | G22: =Inputs!G75*Inputs!$G$22 -> 0 | H22: =Inputs!H75*Inputs!$G$22 -> 0.450168233 | I22: =Inputs!I75*Inputs!$G$22 -> 4.754901961 | J22: =Inputs!J75*Inputs!$G$22 -> 2.297733689 | K22: =Inputs!K75*Inputs!$G$22 -> 0 | L22: =Inputs!L75*Inputs!$G$22 -> 0 | M22: =Inputs!M75*Inputs!$G$22 -> 0 | N22: =Inputs!N75*Inputs!$G$22 -> 0 | O22: =Inputs!O75*Inputs!$G$22 -> 0 | P22: =Inputs!P75*Inputs!$G$22 -> 0 | Q22: =Inputs!Q75*Inputs!$G$22 -> 0 | R22: =Inputs!R75*Inputs!$G$22 -> 0 | S22: =Inputs!S75*Inputs!$G$22 -> 0 | T22: =Inputs!T75*Inputs!$G$22 -> 0 | U22: =Inputs!U75*Inputs!$G$22 -> 0 | V22: =Inputs!V75*Inputs!$G$22 -> 0 | W22: =Inputs!W75*Inputs!$G$22 -> 0 | X22: =Inputs!X75*Inputs!$G$22 -> 0 | Y22: =Inputs!Y75*Inputs!$G$22 -> 0 | Z22: =Inputs!Z75*Inputs!$G$22 -> 0 | AA22: =Inputs!AA75*Inputs!$G$22 -> 0 | AB22: =Inputs!AB75*Inputs!$G$22 -> 0 | AC22: =Inputs!AC75*Inputs!$G$22 -> 0 | AD22: =Inputs!AD75*Inputs!$G$22 -> 0 | AE22: =Inputs!AE75*Inputs!$G$22 -> 0 | AF22: =Inputs!AF75*Inputs!$G$22 -> 0 | AG22: =Inputs!AG75*Inputs!$G$22 -> 0
D23: Option 2A | E23: June $2022 m | F23: 7.238456492 | G23: =Inputs!G76*Inputs!$G$22 -> 0 | H23: =Inputs!H76*Inputs!$G$22 -> 0.4970607572 | I23: =Inputs!I76*Inputs!$G$22 -> 5.167556174 | J23: =Inputs!J76*Inputs!$G$22 -> 2.494682291 | K23: =Inputs!K76*Inputs!$G$22 -> 0 | L23: =Inputs!L76*Inputs!$G$22 -> 0 | M23: =Inputs!M76*Inputs!$G$22 -> 0 | N23: =Inputs!N76*Inputs!$G$22 -> 0 | O23: =Inputs!O76*Inputs!$G$22 -> 0 | P23: =Inputs!P76*Inputs!$G$22 -> 0 | Q23: =Inputs!Q76*Inputs!$G$22 -> 0 | R23: =Inputs!R76*Inputs!$G$22 -> 0 | S23: =Inputs!S76*Inputs!$G$22 -> 0 | T23: =Inputs!T76*Inputs!$G$22 -> 0 | U23: =Inputs!U76*Inputs!$G$22 -> 0 | V23: =Inputs!V76*Inputs!$G$22 -> 0 | W23: =Inputs!W76*Inputs!$G$22 -> 0 | X23: =Inputs!X76*Inputs!$G$22 -> 0 | Y23: =Inputs!Y76*Inputs!$G$22 -> 0 | Z23: =Inputs!Z76*Inputs!$G$22 -> 0 | AA23: =Inputs!AA76*Inputs!$G$22 -> 0 | AB23: =Inputs!AB76*Inputs!$G$22 -> 0 | AC23: =Inputs!AC76*Inputs!$G$22 -> 0 | AD23: =Inputs!AD76*Inputs!$G$22 -> 0 | AE23: =Inputs!AE76*Inputs!$G$22 -> 0 | AF23: =Inputs!AF76*Inputs!$G$22 -> 0 | AG23: =Inputs!AG76*Inputs!$G$22 -> 0
D24: Option 2B | E24: June $2022 m | F24: 23.03777214 | G24: =Inputs!G77*Inputs!$G$22 -> 0 | H24: =Inputs!H77*Inputs!$G$22 -> 1.575588815 | I24: =Inputs!I77*Inputs!$G$22 -> 16.44989751 | J24: =Inputs!J77*Inputs!$G$22 -> 7.943593611 | K24: =Inputs!K77*Inputs!$G$22 -> 0 | L24: =Inputs!L77*Inputs!$G$22 -> 0 | M24: =Inputs!M77*Inputs!$G$22 -> 0 | N24: =Inputs!N77*Inputs!$G$22 -> 0 | O24: =Inputs!O77*Inputs!$G$22 -> 0 | P24: =Inputs!P77*Inputs!$G$22 -> 0 | Q24: =Inputs!Q77*Inputs!$G$22 -> 0 | R24: =Inputs!R77*Inputs!$G$22 -> 0 | S24: =Inputs!S77*Inputs!$G$22 -> 0 | T24: =Inputs!T77*Inputs!$G$22 -> 0 | U24: =Inputs!U77*Inputs!$G$22 -> 0 | V24: =Inputs!V77*Inputs!$G$22 -> 0 | W24: =Inputs!W77*Inputs!$G$22 -> 0 | X24: =Inputs!X77*Inputs!$G$22 -> 0 | Y24: =Inputs!Y77*Inputs!$G$22 -> 0 | Z24: =Inputs!Z77*Inputs!$G$22 -> 0 | AA24: =Inputs!AA77*Inputs!$G$22 -> 0 | AB24: =Inputs!AB77*Inputs!$G$22 -> 0 | AC24: =Inputs!AC77*Inputs!$G$22 -> 0 | AD24: =Inputs!AD77*Inputs!$G$22 -> 0 | AE24: =Inputs!AE77*Inputs!$G$22 -> 0 | AF24: =Inputs!AF77*Inputs!$G$22 -> 0 | AG24: =Inputs!AG77*Inputs!$G$22 -> 0
D25: Option 3 | E25: June $2022 m | F25: 34.13172495 | G25: =Inputs!G78*Inputs!$G$22 -> 0 | H25: =Inputs!H78*Inputs!$G$22 -> 1.978864524 | I25: =Inputs!I78*Inputs!$G$22 -> 23.98083691 | J25: =Inputs!J78*Inputs!$G$22 -> 12.57657501 | K25: =Inputs!K78*Inputs!$G$22 -> 0 | L25: =Inputs!L78*Inputs!$G$22 -> 0 | M25: =Inputs!M78*Inputs!$G$22 -> 0 | N25: =Inputs!N78*Inputs!$G$22 -> 0 | O25: =Inputs!O78*Inputs!$G$22 -> 0 | P25: =Inputs!P78*Inputs!$G$22 -> 0 | Q25: =Inputs!Q78*Inputs!$G$22 -> 0 | R25: =Inputs!R78*Inputs!$G$22 -> 0 | S25: =Inputs!S78*Inputs!$G$22 -> 0 | T25: =Inputs!T78*Inputs!$G$22 -> 0 | U25: =Inputs!U78*Inputs!$G$22 -> 0 | V25: =Inputs!V78*Inputs!$G$22 -> 0 | W25: =Inputs!W78*Inputs!$G$22 -> 0 | X25: =Inputs!X78*Inputs!$G$22 -> 0 | Y25: =Inputs!Y78*Inputs!$G$22 -> 0 | Z25: =Inputs!Z78*Inputs!$G$22 -> 0 | AA25: =Inputs!AA78*Inputs!$G$22 -> 0 | AB25: =Inputs!AB78*Inputs!$G$22 -> 0 | AC25: =Inputs!AC78*Inputs!$G$22 -> 0 | AD25: =Inputs!AD78*Inputs!$G$22 -> 0 | AE25: =Inputs!AE78*Inputs!$G$22 -> 0 | AF25: =Inputs!AF78*Inputs!$G$22 -> 0 | AG25: =Inputs!AG78*Inputs!$G$22 -> 0
D26: Option 4 | E26: June $2022 m | F26: 164.5577288 | G26: =Inputs!G79*Inputs!$G$22 -> 0 | H26: =Inputs!H79*Inputs!$G$22 -> 18.75700971 | I26: =Inputs!I79*Inputs!$G$22 -> 98.47430096 | J26: =Inputs!J79*Inputs!$G$22 -> 68.46308543 | K26: =Inputs!K79*Inputs!$G$22 -> 0 | L26: =Inputs!L79*Inputs!$G$22 -> 0 | M26: =Inputs!M79*Inputs!$G$22 -> 0 | N26: =Inputs!N79*Inputs!$G$22 -> 0 | O26: =Inputs!O79*Inputs!$G$22 -> 0 | P26: =Inputs!P79*Inputs!$G$22 -> 0 | Q26: =Inputs!Q79*Inputs!$G$22 -> 0 | R26: =Inputs!R79*Inputs!$G$22 -> 0 | S26: =Inputs!S79*Inputs!$G$22 -> 0 | T26: =Inputs!T79*Inputs!$G$22 -> 0 | U26: =Inputs!U79*Inputs!$G$22 -> 0 | V26: =Inputs!V79*Inputs!$G$22 -> 0 | W26: =Inputs!W79*Inputs!$G$22 -> 0 | X26: =Inputs!X79*Inputs!$G$22 -> 0 | Y26: =Inputs!Y79*Inputs!$G$22 -> 0 | Z26: =Inputs!Z79*Inputs!$G$22 -> 0 | AA26: =Inputs!AA79*Inputs!$G$22 -> 0 | AB26: =Inputs!AB79*Inputs!$G$22 -> 0 | AC26: =Inputs!AC79*Inputs!$G$22 -> 0 | AD26: =Inputs!AD79*Inputs!$G$22 -> 0 | AE26: =Inputs!AE79*Inputs!$G$22 -> 0 | AF26: =Inputs!AF79*Inputs!$G$22 -> 0 | AG26: =Inputs!AG79*Inputs!$G$22 -> 0
C28: Operating costs
D30: Option 1 | E30: June $2022 m | F30: =G30+NPV(Discount_Step,H30:AG30) -> 0.1627303712 | G30: =Inputs!G83*Inputs!$G$24 -> 0 | H30: =Inputs!H83*Inputs!$G$24 -> 0 | I30: =Inputs!I83*Inputs!$G$24 -> 0 | J30: =Inputs!J83*Inputs!$G$24 -> 0.01406775728 | K30: =Inputs!K83*Inputs!$G$24 -> 0.01406775728 | L30: =Inputs!L83*Inputs!$G$24 -> 0.01406775728 | M30: =Inputs!M83*Inputs!$G$24 -> 0.01406775728 | N30: =Inputs!N83*Inputs!$G$24 -> 0.01406775728 | O30: =Inputs!O83*Inputs!$G$24 -> 0.01406775728 | P30: =Inputs!P83*Inputs!$G$24 -> 0.01406775728 | Q30: =Inputs!Q83*Inputs!$G$24 -> 0.01406775728 | R30: =Inputs!R83*Inputs!$G$24 -> 0.01406775728 | S30: =Inputs!S83*Inputs!$G$24 -> 0.01406775728 | T30: =Inputs!T83*Inputs!$G$24 -> 0.01406775728 | U30: =Inputs!U83*Inputs!$G$24 -> 0.01406775728 | V30: =Inputs!V83*Inputs!$G$24 -> 0.01406775728 | W30: =Inputs!W83*Inputs!$G$24 -> 0.01406775728 | X30: =Inputs!X83*Inputs!$G$24 -> 0.01406775728 | Y30: =Inputs!Y83*Inputs!$G$24 -> 0.01406775728 | Z30: =Inputs!Z83*Inputs!$G$24 -> 0.01406775728 | AA30: =Inputs!AA83*Inputs!$G$24 -> 0.01406775728 | AB30: =Inputs!AB83*Inputs!$G$24 -> 0.01406775728 | AC30: =Inputs!AC83*Inputs!$G$24 -> 0.01406775728 | AD30: =Inputs!AD83*Inputs!$G$24 -> 0.01406775728 | AE30: =Inputs!AE83*Inputs!$G$24 -> 0.01406775728 | AF30: =Inputs!AF83*Inputs!$G$24 -> 0.01406775728
D31: Option 2 | E31: June $2022 m | F31: 0.8040004099 | G31: =Inputs!G84*Inputs!$G$24 -> 0 | H31: =Inputs!H84*Inputs!$G$24 -> 0 | I31: =Inputs!I84*Inputs!$G$24 -> 0 | J31: =Inputs!J84*Inputs!$G$24 -> 0 | K31: =Inputs!K84*Inputs!$G$24 -> 0.07502803883 | L31: =Inputs!L84*Inputs!$G$24 -> 0.07502803883 | M31: =Inputs!M84*Inputs!$G$24 -> 0.07502803883 | N31: =Inputs!N84*Inputs!$G$24 -> 0.07502803883 | O31: =Inputs!O84*Inputs!$G$24 -> 0.07502803883 | P31: =Inputs!P84*Inputs!$G$24 -> 0.07502803883 | Q31: =Inputs!Q84*Inputs!$G$24 -> 0.07502803883 | R31: =Inputs!R84*Inputs!$G$24 -> 0.07502803883 | S31: =Inputs!S84*Inputs!$G$24 -> 0.07502803883 | T31: =Inputs!T84*Inputs!$G$24 -> 0.07502803883 | U31: =Inputs!U84*Inputs!$G$24 -> 0.07502803883 | V31: =Inputs!V84*Inputs!$G$24 -> 0.07502803883 | W31: =Inputs!W84*Inputs!$G$24 -> 0.07502803883 | X31: =Inputs!X84*Inputs!$G$24 -> 0.07502803883 | Y31: =Inputs!Y84*Inputs!$G$24 -> 0.07502803883 | Z31: =Inputs!Z84*Inputs!$G$24 -> 0.07502803883 | AA31: =Inputs!AA84*Inputs!$G$24 -> 0.07502803883 | AB31: =Inputs!AB84*Inputs!$G$24 -> 0.07502803883 | AC31: =Inputs!AC84*Inputs!$G$24 -> 0.07502803883 | AD31: =Inputs!AD84*Inputs!$G$24 -> 0.07502803883 | AE31: =Inputs!AE84*Inputs!$G$24 -> 0.07502803883 | AF31: =Inputs!AF84*Inputs!$G$24 -> 0.07502803883
D32: Option 2A | E32: June $2022 m | F32: 0.8743504458 | G32: =Inputs!G85*Inputs!$G$24 -> 0 | H32: =Inputs!H85*Inputs!$G$24 -> 0 | I32: =Inputs!I85*Inputs!$G$24 -> 0 | J32: =Inputs!J85*Inputs!$G$24 -> 0 | K32: =Inputs!K85*Inputs!$G$24 -> 0.08159299223 | L32: =Inputs!L85*Inputs!$G$24 -> 0.08159299223 | M32: =Inputs!M85*Inputs!$G$24 -> 0.08159299223 | N32: =Inputs!N85*Inputs!$G$24 -> 0.08159299223 | O32: =Inputs!O85*Inputs!$G$24 -> 0.08159299223 | P32: =Inputs!P85*Inputs!$G$24 -> 0.08159299223 | Q32: =Inputs!Q85*Inputs!$G$24 -> 0.08159299223 | R32: =Inputs!R85*Inputs!$G$24 -> 0.08159299223 | S32: =Inputs!S85*Inputs!$G$24 -> 0.08159299223 | T32: =Inputs!T85*Inputs!$G$24 -> 0.08159299223 | U32: =Inputs!U85*Inputs!$G$24 -> 0.08159299223 | V32: =Inputs!V85*Inputs!$G$24 -> 0.08159299223 | W32: =Inputs!W85*Inputs!$G$24 -> 0.08159299223 | X32: =Inputs!X85*Inputs!$G$24 -> 0.08159299223 | Y32: =Inputs!Y85*Inputs!$G$24 -> 0.08159299223 | Z32: =Inputs!Z85*Inputs!$G$24 -> 0.08159299223 | AA32: =Inputs!AA85*Inputs!$G$24 -> 0.08159299223 | AB32: =Inputs!AB85*Inputs!$G$24 -> 0.08159299223 | AC32: =Inputs!AC85*Inputs!$G$24 -> 0.08159299223 | AD32: =Inputs!AD85*Inputs!$G$24 -> 0.08159299223 | AE32: =Inputs!AE85*Inputs!$G$24 -> 0.08159299223 | AF32: =Inputs!AF85*Inputs!$G$24 -> 0.08159299223
D33: Option 2B | E33: June $2022 m | F33: 2.782846419 | G33: =Inputs!G86*Inputs!$G$24 -> 0 | H33: =Inputs!H86*Inputs!$G$24 -> 0 | I33: =Inputs!I86*Inputs!$G$24 -> 0 | J33: =Inputs!J86*Inputs!$G$24 -> 0 | K33: =Inputs!K86*Inputs!$G$24 -> 0.2596907994 | L33: =Inputs!L86*Inputs!$G$24 -> 0.2596907994 | M33: =Inputs!M86*Inputs!$G$24 -> 0.2596907994 | N33: =Inputs!N86*Inputs!$G$24 -> 0.2596907994 | O33: =Inputs!O86*Inputs!$G$24 -> 0.2596907994 | P33: =Inputs!P86*Inputs!$G$24 -> 0.2596907994 | Q33: =Inputs!Q86*Inputs!$G$24 -> 0.2596907994 | R33: =Inputs!R86*Inputs!$G$24 -> 0.2596907994 | S33: =Inputs!S86*Inputs!$G$24 -> 0.2596907994 | T33: =Inputs!T86*Inputs!$G$24 -> 0.2596907994 | U33: =Inputs!U86*Inputs!$G$24 -> 0.2596907994 | V33: =Inputs!V86*Inputs!$G$24 -> 0.2596907994 | W33: =Inputs!W86*Inputs!$G$24 -> 0.2596907994 | X33: =Inputs!X86*Inputs!$G$24 -> 0.2596907994 | Y33: =Inputs!Y86*Inputs!$G$24 -> 0.2596907994 | Z33: =Inputs!Z86*Inputs!$G$24 -> 0.2596907994 | AA33: =Inputs!AA86*Inputs!$G$24 -> 0.2596907994 | AB33: =Inputs!AB86*Inputs!$G$24 -> 0.2596907994 | AC33: =Inputs!AC86*Inputs!$G$24 -> 0.2596907994 | AD33: =Inputs!AD86*Inputs!$G$24 -> 0.2596907994 | AE33: =Inputs!AE86*Inputs!$G$24 -> 0.2596907994 | AF33: =Inputs!AF86*Inputs!$G$24 -> 0.2596907994
D34: Option 3 | E34: June $2022 m | F34: 4.129547105 | G34: =Inputs!G87*Inputs!$G$24 -> 0 | H34: =Inputs!H87*Inputs!$G$24 -> 0 | I34: =Inputs!I87*Inputs!$G$24 -> 0 | J34: =Inputs!J87*Inputs!$G$24 -> 0 | K34: =Inputs!K87*Inputs!$G$24 -> 0.3853627644 | L34: =Inputs!L87*Inputs!$G$24 -> 0.3853627644 | M34: =Inputs!M87*Inputs!$G$24 -> 0.3853627644 | N34: =Inputs!N87*Inputs!$G$24 -> 0.3853627644 | O34: =Inputs!O87*Inputs!$G$24 -> 0.3853627644 | P34: =Inputs!P87*Inputs!$G$24 -> 0.3853627644 | Q34: =Inputs!Q87*Inputs!$G$24 -> 0.3853627644 | R34: =Inputs!R87*Inputs!$G$24 -> 0.3853627644 | S34: =Inputs!S87*Inputs!$G$24 -> 0.3853627644 | T34: =Inputs!T87*Inputs!$G$24 -> 0.3853627644 | U34: =Inputs!U87*Inputs!$G$24 -> 0.3853627644 | V34: =Inputs!V87*Inputs!$G$24 -> 0.3853627644 | W34: =Inputs!W87*Inputs!$G$24 -> 0.3853627644 | X34: =Inputs!X87*Inputs!$G$24 -> 0.3853627644 | Y34: =Inputs!Y87*Inputs!$G$24 -> 0.3853627644 | Z34: =Inputs!Z87*Inputs!$G$24 -> 0.3853627644 | AA34: =Inputs!AA87*Inputs!$G$24 -> 0.3853627644 | AB34: =Inputs!AB87*Inputs!$G$24 -> 0.3853627644 | AC34: =Inputs!AC87*Inputs!$G$24 -> 0.3853627644 | AD34: =Inputs!AD87*Inputs!$G$24 -> 0.3853627644 | AE34: =Inputs!AE87*Inputs!$G$24 -> 0.3853627644 | AF34: =Inputs!AF87*Inputs!$G$24 -> 0.3853627644
D35: Option 4 | E35: June $2022 m | F35: 19.89901015 | G35: =Inputs!G88*Inputs!$G$24 -> 0 | H35: =Inputs!H88*Inputs!$G$24 -> 0 | I35: =Inputs!I88*Inputs!$G$24 -> 0 | J35: =Inputs!J88*Inputs!$G$24 -> 0 | K35: =Inputs!K88*Inputs!$G$24 -> 1.856943961 | L35: =Inputs!L88*Inputs!$G$24 -> 1.856943961 | M35: =Inputs!M88*Inputs!$G$24 -> 1.856943961 | N35: =Inputs!N88*Inputs!$G$24 -> 1.856943961 | O35: =Inputs!O88*Inputs!$G$24 -> 1.856943961 | P35: =Inputs!P88*Inputs!$G$24 -> 1.856943961 | Q35: =Inputs!Q88*Inputs!$G$24 -> 1.856943961 | R35: =Inputs!R88*Inputs!$G$24 -> 1.856943961 | S35: =Inputs!S88*Inputs!$G$24 -> 1.856943961 | T35: =Inputs!T88*Inputs!$G$24 -> 1.856943961 | U35: =Inputs!U88*Inputs!$G$24 -> 1.856943961 | V35: =Inputs!V88*Inputs!$G$24 -> 1.856943961 | W35: =Inputs!W88*Inputs!$G$24 -> 1.856943961 | X35: =Inputs!X88*Inputs!$G$24 -> 1.856943961 | Y35: =Inputs!Y88*Inputs!$G$24 -> 1.856943961 | Z35: =Inputs!Z88*Inputs!$G$24 -> 1.856943961 | AA35: =Inputs!AA88*Inputs!$G$24 -> 1.856943961 | AB35: =Inputs!AB88*Inputs!$G$24 -> 1.856943961 | AC35: =Inputs!AC88*Inputs!$G$24 -> 1.856943961 | AD35: =Inputs!AD88*Inputs!$G$24 -> 1.856943961 | AE35: =Inputs!AE88*Inputs!$G$24 -> 1.856943961 | AF35: =Inputs!AF88*Inputs!$G$24 -> 1.856943961
C37: Total costs
D39: Option 1 | E39: June $2022 m | F39: =G39+NPV(Discount_Step,H39:AG39) -> 1.438700803 | G39: =SUM(G21,G30) -> 0 | H39: 0.2438411262 | I39: 1.162934602 | J39: 0.01406775728 | K39: 0.01406775728 | L39: 0.01406775728 | M39: 0.01406775728 | N39: 0.01406775728 | O39: 0.01406775728 | P39: 0.01406775728 | Q39: 0.01406775728 | R39: 0.01406775728 | S39: 0.01406775728 | T39: 0.01406775728 | U39: 0.01406775728 | V39: 0.01406775728 | W39: 0.01406775728 | X39: 0.01406775728 | Y39: 0.01406775728 | Z39: 0.01406775728 | AA39: 0.01406775728 | AB39: =SUM(AB21,AB30) -> 0.01406775728 | AC39: 0.01406775728 | AD39: 0.01406775728 | AE39: 0.01406775728 | AF39: 0.01406775728 | AG39: =SUM(AG21,AG30) -> 0
D40: Option 2 | E40: June $2022 m | F40: 7.459534716 | G40: =SUM(G22,G31) -> 0 | H40: 0.450168233 | I40: 4.754901961 | J40: 2.297733689 | K40: 0.07502803883 | L40: 0.07502803883 | M40: 0.07502803883 | N40: 0.07502803883 | O40: 0.07502803883 | P40: 0.07502803883 | Q40: 0.07502803883 | R40: 0.07502803883 | S40: 0.07502803883 | T40: 0.07502803883 | U40: 0.07502803883 | V40: 0.07502803883 | W40: 0.07502803883 | X40: 0.07502803883 | Y40: 0.07502803883 | Z40: 0.07502803883 | AA40: 0.07502803883 | AB40: =SUM(AB22,AB31) -> 0.07502803883 | AC40: 0.07502803883 | AD40: 0.07502803883 | AE40: 0.07502803883 | AF40: 0.07502803883 | AG40: =SUM(AG22,AG31) -> 0
D41: Option 2A | E41: June $2022 m | F41: 8.112806938 | G41: =SUM(G23,G32) -> 0 | H41: 0.4970607572 | I41: 5.167556174 | J41: 2.494682291 | K41: 0.08159299223 | L41: 0.08159299223 | M41: 0.08159299223 | N41: 0.08159299223 | O41: 0.08159299223 | P41: 0.08159299223 | Q41: 0.08159299223 | R41: 0.08159299223 | S41: 0.08159299223 | T41: 0.08159299223 | U41: 0.08159299223 | V41: 0.08159299223 | W41: 0.08159299223 | X41: 0.08159299223 | Y41: 0.08159299223 | Z41: 0.08159299223 | AA41: 0.08159299223 | AB41: =SUM(AB23,AB32) -> 0.08159299223 | AC41: 0.08159299223 | AD41: 0.08159299223 | AE41: 0.08159299223 | AF41: 0.08159299223 | AG41: =SUM(AG23,AG32) -> 0
D42: Option 2B | E42: June $2022 m | F42: 25.82061855 | G42: =SUM(G24,G33) -> 0 | H42: 1.575588815 | I42: 16.44989751 | J42: 7.943593611 | K42: 0.2596907994 | L42: 0.2596907994 | M42: 0.2596907994 | N42: 0.2596907994 | O42: 0.2596907994 | P42: 0.2596907994 | Q42: 0.2596907994 | R42: 0.2596907994 | S42: 0.2596907994 | T42: 0.2596907994 | U42: 0.2596907994 | V42: 0.2596907994 | W42: 0.2596907994 | X42: 0.2596907994 | Y42: 0.2596907994 | Z42: 0.2596907994 | AA42: 0.2596907994 | AB42: =SUM(AB24,AB33) -> 0.2596907994 | AC42: 0.2596907994 | AD42: 0.2596907994 | AE42: 0.2596907994 | AF42: 0.2596907994 | AG42: =SUM(AG24,AG33) -> 0
D43: Option 3 | E43: June $2022 m | F43: 38.26127206 | G43: =SUM(G25,G34) -> 0 | H43: 1.978864524 | I43: 23.98083691 | J43: 12.57657501 | K43: 0.3853627644 | L43: 0.3853627644 | M43: 0.3853627644 | N43: 0.3853627644 | O43: 0.3853627644 | P43: 0.3853627644 | Q43: 0.3853627644 | R43: 0.3853627644 | S43: 0.3853627644 | T43: 0.3853627644 | U43: 0.3853627644 | V43: 0.3853627644 | W43: 0.3853627644 | X43: 0.3853627644 | Y43: 0.3853627644 | Z43: 0.3853627644 | AA43: 0.3853627644 | AB43: =SUM(AB25,AB34) -> 0.3853627644 | AC43: 0.3853627644 | AD43: 0.3853627644 | AE43: 0.3853627644 | AF43: 0.3853627644 | AG43: =SUM(AG25,AG34) -> 0
D44: Option 4 | E44: June $2022 m | F44: 184.4567389 | G44: =SUM(G26,G35) -> 0 | H44: 18.75700971 | I44: 98.47430096 | J44: 68.46308543 | K44: 1.856943961 | L44: 1.856943961 | M44: 1.856943961 | N44: 1.856943961 | O44: 1.856943961 | P44: 1.856943961 | Q44: 1.856943961 | R44: 1.856943961 | S44: 1.856943961 | T44: 1.856943961 | U44: 1.856943961 | V44: 1.856943961 | W44: 1.856943961 | X44: 1.856943961 | Y44: 1.856943961 | Z44: 1.856943961 | AA44: 1.856943961 | AB44: =SUM(AB26,AB35) -> 1.856943961 | AC44: 1.856943961 | AD44: 1.856943961 | AE44: 1.856943961 | AF44: 1.856943961 | AG44: =SUM(AG26,AG35) -> 0
C46: Market benefit calculations
C48: Fuel consumption | F48: NPV | G48: =Inputs!G$8 -> 2023 | H48: =G48+1 -> 2024 | I48: =H48+1 -> 2025 | J48: =I48+1 -> 2026 | K48: =J48+1 -> 2027 | L48: =K48+1 -> 2028 | M48: =L48+1 -> 2029 | N48: =M48+1 -> 2030 | O48: =N48+1 -> 2031 | P48: =O48+1 -> 2032 | Q48: =P48+1 -> 2033 | R48: =Q48+1 -> 2034 | S48: =R48+1 -> 2035 | T48: =S48+1 -> 2036 | U48: =T48+1 -> 2037 | V48: =U48+1 -> 2038 | W48: =V48+1 -> 2039 | X48: =W48+1 -> 2040 | Y48: =X48+1 -> 2041 | Z48: =Y48+1 -> 2042 | AA48: =Z48+1 -> 2043 | AB48: =AA48+1 -> 2044 | AC48: =AB48+1 -> 2045 | AD48: =AC48+1 -> 2046 | AE48: =AD48+1 -> 2047 | AF48: =AE48+1 -> 2048 | AG48: 2049
D50: Option 1 | E50: June $2022 m | F50: =G50+NPV(Discount_Step,H50:AG50) -> -1.389101371 | G50: =(-(Inputs!G97-Inputs!G$96)*Inputs!$G$28) -> 0 | H50: =(-(Inputs!H97-Inputs!H$96)*Inputs!$G$28) -> 0.07101985143 | I50: =(-(Inputs!I97-Inputs!I$96)*Inputs!$G$28) -> 0.2385646202 | J50: =(-(Inputs!J97-Inputs!J$96)*Inputs!$G$28) -> 0.08173327262 | K50: =(-(Inputs!K97-Inputs!K$96)*Inputs!$G$28) -> 0.2460516039 | L50: =(-(Inputs!L97-Inputs!L$96)*Inputs!$G$28) -> -0.7970334303 | M50: =(-(Inputs!M97-Inputs!M$96)*Inputs!$G$28) -> 0.1894536243 | N50: =(-(Inputs!N97-Inputs!N$96)*Inputs!$G$28) -> 0.1001944577 | O50: =(-(Inputs!O97-Inputs!O$96)*Inputs!$G$28) -> -0.5350237774 | P50: =(-(Inputs!P97-Inputs!P$96)*Inputs!$G$28) -> -0.4534412832 | Q50: =(-(Inputs!Q97-Inputs!Q$96)*Inputs!$G$28) -> -0.2733035566 | R50: =(-(Inputs!R97-Inputs!R$96)*Inputs!$G$28) -> -0.4864658476 | S50: =(-(Inputs!S97-Inputs!S$96)*Inputs!$G$28) -> -0.236655054 | T50: =(-(Inputs!T97-Inputs!T$96)*Inputs!$G$28) -> 0.04805293116 | U50: =(-(Inputs!U97-Inputs!U$96)*Inputs!$G$28) -> -0.440700743 | V50: =(-(Inputs!V97-Inputs!V$96)*Inputs!$G$28) -> -0.4667886956 | W50: =(-(Inputs!W97-Inputs!W$96)*Inputs!$G$28) -> 0.07033714585 | X50: =(-(Inputs!X97-Inputs!X$96)*Inputs!$G$28) -> -0.1549984023 | Y50: =(-(Inputs!Y97-Inputs!Y$96)*Inputs!$G$28) -> 0.3295705653 | Z50: =(-(Inputs!Z97-Inputs!Z$96)*Inputs!$G$28) -> 0.02255144528 | AA50: =(-(Inputs!AA97-Inputs!AA$96)*Inputs!$G$28) -> -0.2422409083 | AB50: =(-(Inputs!AB97-Inputs!AB$96)*Inputs!$G$28) -> -0.5941647999 | AC50: =(-(Inputs!AC97-Inputs!AC$96)*Inputs!$G$28) -> 0.3173697373 | AD50: =(-(Inputs!AD97-Inputs!AD$96)*Inputs!$G$28) -> 1.051502027 | AE50: =(-(Inputs!AE97-Inputs!AE$96)*Inputs!$G$28) -> -0.3029567066 | AF50: =(-(Inputs!AF97-Inputs!AF$96)*Inputs!$G$28) -> -0.4006185384 | AG50: =(-(Inputs!AG97-Inputs!AG$96)*Inputs!$G$28) -> 0
D51: Option 2 | E51: June $2022 m | F51: -3.223187096 | G51: =(-(Inputs!G98-Inputs!G$96)*Inputs!$G$28) -> 0 | H51: =(-(Inputs!H98-Inputs!H$96)*Inputs!$G$28) -> 0.1002280226 | I51: =(-(Inputs!I98-Inputs!I$96)*Inputs!$G$28) -> 0.08060910873 | J51: =(-(Inputs!J98-Inputs!J$96)*Inputs!$G$28) -> -0.03591751502 | K51: =(-(Inputs!K98-Inputs!K$96)*Inputs!$G$28) -> 0.3286755918 | L51: =(-(Inputs!L98-Inputs!L$96)*Inputs!$G$28) -> -0.5880198675 | M51: =(-(Inputs!M98-Inputs!M$96)*Inputs!$G$28) -> 0.2894540482 | N51: =(-(Inputs!N98-Inputs!N$96)*Inputs!$G$28) -> -0.05743911421 | O51: =(-(Inputs!O98-Inputs!O$96)*Inputs!$G$28) -> -0.6429221964 | P51: =(-(Inputs!P98-Inputs!P$96)*Inputs!$G$28) -> -0.5428996434 | Q51: =(-(Inputs!Q98-Inputs!Q$96)*Inputs!$G$28) -> -0.6797848444 | R51: =(-(Inputs!R98-Inputs!R$96)*Inputs!$G$28) -> -0.7378197252 | S51: =(-(Inputs!S98-Inputs!S$96)*Inputs!$G$28) -> -0.4152184322 | T51: =(-(Inputs!T98-Inputs!T$96)*Inputs!$G$28) -> -0.005940228172 | U51: =(-(Inputs!U98-Inputs!U$96)*Inputs!$G$28) -> -1.148136082 | V51: =(-(Inputs!V98-Inputs!V$96)*Inputs!$G$28) -> -1.083215415 | W51: =(-(Inputs!W98-Inputs!W$96)*Inputs!$G$28) -> -0.5889621338 | X51: =(-(Inputs!X98-Inputs!X$96)*Inputs!$G$28) -> -0.5236243497 | Y51: =(-(Inputs!Y98-Inputs!Y$96)*Inputs!$G$28) -> 0.3317664674 | Z51: =(-(Inputs!Z98-Inputs!Z$96)*Inputs!$G$28) -> -0.5999084608 | AA51: =(-(Inputs!AA98-Inputs!AA$96)*Inputs!$G$28) -> 0.006403640269 | AB51: =(-(Inputs!AB98-Inputs!AB$96)*Inputs!$G$28) -> -1.560125963 | AC51: =(-(Inputs!AC98-Inputs!AC$96)*Inputs!$G$28) -> 0.1949503062 | AD51: =(-(Inputs!AD98-Inputs!AD$96)*Inputs!$G$28) -> 1.644690805 | AE51: =(-(Inputs!AE98-Inputs!AE$96)*Inputs!$G$28) -> 0.06074227251 | AF51: =(-(Inputs!AF98-Inputs!AF$96)*Inputs!$G$28) -> -0.1380032173 | AG51: =(-(Inputs!AG98-Inputs!AG$96)*Inputs!$G$28) -> 0
D52: Option 2A | E52: June $2022 m | F52: -3.203452394 | G52: =(-(Inputs!G99-Inputs!G$96)*Inputs!$G$28) -> 0 | H52: =(-(Inputs!H99-Inputs!H$96)*Inputs!$G$28) -> 0.1001292365 | I52: =(-(Inputs!I99-Inputs!I$96)*Inputs!$G$28) -> 0.08042396975 | J52: =(-(Inputs!J99-Inputs!J$96)*Inputs!$G$28) -> -0.02889082201 | K52: =(-(Inputs!K99-Inputs!K$96)*Inputs!$G$28) -> 0.3157688159 | L52: =(-(Inputs!L99-Inputs!L$96)*Inputs!$G$28) -> -0.5750527017 | M52: =(-(Inputs!M99-Inputs!M$96)*Inputs!$G$28) -> 0.2972448659 | N52: =(-(Inputs!N99-Inputs!N$96)*Inputs!$G$28) -> -0.05487015458 | O52: =(-(Inputs!O99-Inputs!O$96)*Inputs!$G$28) -> -0.663914642 | P52: =(-(Inputs!P99-Inputs!P$96)*Inputs!$G$28) -> -0.543323621 | Q52: =(-(Inputs!Q99-Inputs!Q$96)*Inputs!$G$28) -> -0.6728063173 | R52: =(-(Inputs!R99-Inputs!R$96)*Inputs!$G$28) -> -0.7339278186 | S52: =(-(Inputs!S99-Inputs!S$96)*Inputs!$G$28) -> -0.4037005799 | T52: =(-(Inputs!T99-Inputs!T$96)*Inputs!$G$28) -> -0.002997185344 | U52: =(-(Inputs!U99-Inputs!U$96)*Inputs!$G$28) -> -1.154807077 | V52: =(-(Inputs!V99-Inputs!V$96)*Inputs!$G$28) -> -1.087113731 | W52: =(-(Inputs!W99-Inputs!W$96)*Inputs!$G$28) -> -0.6375280404 | X52: =(-(Inputs!X99-Inputs!X$96)*Inputs!$G$28) -> -0.5236747364 | Y52: =(-(Inputs!Y99-Inputs!Y$96)*Inputs!$G$28) -> 0.3799564632 | Z52: =(-(Inputs!Z99-Inputs!Z$96)*Inputs!$G$28) -> -0.5679912582 | AA52: =(-(Inputs!AA99-Inputs!AA$96)*Inputs!$G$28) -> 0.0424207784 | AB52: =(-(Inputs!AB99-Inputs!AB$96)*Inputs!$G$28) -> -1.483020845 | AC52: =(-(Inputs!AC99-Inputs!AC$96)*Inputs!$G$28) -> 0.2349031357 | AD52: =(-(Inputs!AD99-Inputs!AD$96)*Inputs!$G$28) -> 1.650062188 | AE52: =(-(Inputs!AE99-Inputs!AE$96)*Inputs!$G$28) -> -0.3273523309 | AF52: =(-(Inputs!AF99-Inputs!AF$96)*Inputs!$G$28) -> 0.08692224587 | AG52: =(-(Inputs!AG99-Inputs!AG$96)*Inputs!$G$28) -> 0
D53: Option 2B | E53: June $2022 m | F53: -2.987226147 | G53: =(-(Inputs!G100-Inputs!G$96)*Inputs!$G$28) -> 0 | H53: =(-(Inputs!H100-Inputs!H$96)*Inputs!$G$28) -> 0.1003087071 | I53: =(-(Inputs!I100-Inputs!I$96)*Inputs!$G$28) -> 0.08011907002 | J53: =(-(Inputs!J100-Inputs!J$96)*Inputs!$G$28) -> -0.04388495372 | K53: =(-(Inputs!K100-Inputs!K$96)*Inputs!$G$28) -> 0.2644472255 | L53: =(-(Inputs!L100-Inputs!L$96)*Inputs!$G$28) -> -0.2702082069 | M53: =(-(Inputs!M100-Inputs!M$96)*Inputs!$G$28) -> 0.311662418 | N53: =(-(Inputs!N100-Inputs!N$96)*Inputs!$G$28) -> -0.06744147678 | O53: =(-(Inputs!O100-Inputs!O$96)*Inputs!$G$28) -> -0.6855847502 | P53: =(-(Inputs!P100-Inputs!P$96)*Inputs!$G$28) -> -0.4922276493 | Q53: =(-(Inputs!Q100-Inputs!Q$96)*Inputs!$G$28) -> -0.7018258218 | R53: =(-(Inputs!R100-Inputs!R$96)*Inputs!$G$28) -> -0.7506381136 | S53: =(-(Inputs!S100-Inputs!S$96)*Inputs!$G$28) -> -0.3019329163 | T53: =(-(Inputs!T100-Inputs!T$96)*Inputs!$G$28) -> -0.0815021929 | U53: =(-(Inputs!U100-Inputs!U$96)*Inputs!$G$28) -> -1.146748794 | V53: =(-(Inputs!V100-Inputs!V$96)*Inputs!$G$28) -> -1.125894652 | W53: =(-(Inputs!W100-Inputs!W$96)*Inputs!$G$28) -> -0.8070161352 | X53: =(-(Inputs!X100-Inputs!X$96)*Inputs!$G$28) -> -0.5361758304 | Y53: =(-(Inputs!Y100-Inputs!Y$96)*Inputs!$G$28) -> 0.5483703881 | Z53: =(-(Inputs!Z100-Inputs!Z$96)*Inputs!$G$28) -> -0.4131307853 | AA53: =(-(Inputs!AA100-Inputs!AA$96)*Inputs!$G$28) -> 0.186834206 | AB53: =(-(Inputs!AB100-Inputs!AB$96)*Inputs!$G$28) -> -1.06148763 | AC53: =(-(Inputs!AC100-Inputs!AC$96)*Inputs!$G$28) -> 0.4505088078 | AD53: =(-(Inputs!AD100-Inputs!AD$96)*Inputs!$G$28) -> 1.827833279 | AE53: =(-(Inputs!AE100-Inputs!AE$96)*Inputs!$G$28) -> -1.447767736 | AF53: =(-(Inputs!AF100-Inputs!AF$96)*Inputs!$G$28) -> 0.1078062366 | AG53: =(-(Inputs!AG100-Inputs!AG$96)*Inputs!$G$28) -> 0
D54: Option 3 | E54: June $2022 m | F54: -4.539217362 | G54: =(-(Inputs!G101-Inputs!G$96)*Inputs!$G$28) -> 0 | H54: =(-(Inputs!H101-Inputs!H$96)*Inputs!$G$28) -> 0.09248941185 | I54: =(-(Inputs!I101-Inputs!I$96)*Inputs!$G$28) -> 0.07049615273 | J54: =(-(Inputs!J101-Inputs!J$96)*Inputs!$G$28) -> -0.4172159611 | K54: =(-(Inputs!K101-Inputs!K$96)*Inputs!$G$28) -> 0.197536562 | L54: =(-(Inputs!L101-Inputs!L$96)*Inputs!$G$28) -> -0.3959004474 | M54: =(-(Inputs!M101-Inputs!M$96)*Inputs!$G$28) -> 0.4062219373 | N54: =(-(Inputs!N101-Inputs!N$96)*Inputs!$G$28) -> -0.03632560949 | O54: =(-(Inputs!O101-Inputs!O$96)*Inputs!$G$28) -> -0.7756761622 | P54: =(-(Inputs!P101-Inputs!P$96)*Inputs!$G$28) -> -0.6115714378 | Q54: =(-(Inputs!Q101-Inputs!Q$96)*Inputs!$G$28) -> -0.612865613 | R54: =(-(Inputs!R101-Inputs!R$96)*Inputs!$G$28) -> -0.7993116248 | S54: =(-(Inputs!S101-Inputs!S$96)*Inputs!$G$28) -> -0.8074496854 | T54: =(-(Inputs!T101-Inputs!T$96)*Inputs!$G$28) -> 0.1229454232 | U54: =(-(Inputs!U101-Inputs!U$96)*Inputs!$G$28) -> -0.8896957963 | V54: =(-(Inputs!V101-Inputs!V$96)*Inputs!$G$28) -> -1.404110543 | W54: =(-(Inputs!W101-Inputs!W$96)*Inputs!$G$28) -> -0.7184009735 | X54: =(-(Inputs!X101-Inputs!X$96)*Inputs!$G$28) -> -0.7601263816 | Y54: =(-(Inputs!Y101-Inputs!Y$96)*Inputs!$G$28) -> -0.1027354469 | Z54: =(-(Inputs!Z101-Inputs!Z$96)*Inputs!$G$28) -> -1.84788845 | AA54: =(-(Inputs!AA101-Inputs!AA$96)*Inputs!$G$28) -> -0.5240331281 | AB54: =(-(Inputs!AB101-Inputs!AB$96)*Inputs!$G$28) -> -2.139082598 | AC54: =(-(Inputs!AC101-Inputs!AC$96)*Inputs!$G$28) -> -0.5859375868 | AD54: =(-(Inputs!AD101-Inputs!AD$96)*Inputs!$G$28) -> 0.6356425972 | AE54: =(-(Inputs!AE101-Inputs!AE$96)*Inputs!$G$28) -> 2.653063816 | AF54: =(-(Inputs!AF101-Inputs!AF$96)*Inputs!$G$28) -> 0.3466072794 | AG54: =(-(Inputs!AG101-Inputs!AG$96)*Inputs!$G$28) -> 0
D55: Option 4 | E55: June $2022 m | F55: 0.3124857649 | G55: =(-(Inputs!G102-Inputs!G$96)*Inputs!$G$28) -> 0 | H55: =(-(Inputs!H102-Inputs!H$96)*Inputs!$G$28) -> -0.03283479235 | I55: =(-(Inputs!I102-Inputs!I$96)*Inputs!$G$28) -> -0.03681107666 | J55: =(-(Inputs!J102-Inputs!J$96)*Inputs!$G$28) -> -0.04011210577 | K55: =(-(Inputs!K102-Inputs!K$96)*Inputs!$G$28) -> 0.09974178041 | L55: =(-(Inputs!L102-Inputs!L$96)*Inputs!$G$28) -> -2.463836818 | M55: =(-(Inputs!M102-Inputs!M$96)*Inputs!$G$28) -> 1.356425394 | N55: =(-(Inputs!N102-Inputs!N$96)*Inputs!$G$28) -> 2.61741101 | O55: =(-(Inputs!O102-Inputs!O$96)*Inputs!$G$28) -> 0.974813644 | P55: =(-(Inputs!P102-Inputs!P$96)*Inputs!$G$28) -> 1.127416277 | Q55: =(-(Inputs!Q102-Inputs!Q$96)*Inputs!$G$28) -> -0.5150813189 | R55: =(-(Inputs!R102-Inputs!R$96)*Inputs!$G$28) -> -0.6090962333 | S55: =(-(Inputs!S102-Inputs!S$96)*Inputs!$G$28) -> -0.3598379506 | T55: =(-(Inputs!T102-Inputs!T$96)*Inputs!$G$28) -> -0.4713361371 | U55: =(-(Inputs!U102-Inputs!U$96)*Inputs!$G$28) -> -1.006042302 | V55: =(-(Inputs!V102-Inputs!V$96)*Inputs!$G$28) -> -0.4728752792 | W55: =(-(Inputs!W102-Inputs!W$96)*Inputs!$G$28) -> -0.5084811587 | X55: =(-(Inputs!X102-Inputs!X$96)*Inputs!$G$28) -> -0.1561770485 | Y55: =(-(Inputs!Y102-Inputs!Y$96)*Inputs!$G$28) -> 0.5255959314 | Z55: =(-(Inputs!Z102-Inputs!Z$96)*Inputs!$G$28) -> -0.3457509929 | AA55: =(-(Inputs!AA102-Inputs!AA$96)*Inputs!$G$28) -> 0.2647820667 | AB55: =(-(Inputs!AB102-Inputs!AB$96)*Inputs!$G$28) -> 1.03145009 | AC55: =(-(Inputs!AC102-Inputs!AC$96)*Inputs!$G$28) -> 0.4878530948 | AD55: =(-(Inputs!AD102-Inputs!AD$96)*Inputs!$G$28) -> 2.479162821 | AE55: =(-(Inputs!AE102-Inputs!AE$96)*Inputs!$G$28) -> -2.440295502 | AF55: =(-(Inputs!AF102-Inputs!AF$96)*Inputs!$G$28) -> -2.170922545 | AG55: =(-(Inputs!AG102-Inputs!AG$96)*Inputs!$G$28) -> 0
C57: Costs for parties other than the RIT-T proponent | F57: NPV | G57: =Inputs!G$8 -> 2023 | H57: =G57+1 -> 2024 | I57: =H57+1 -> 2025 | J57: =I57+1 -> 2026 | K57: =J57+1 -> 2027 | L57: =K57+1 -> 2028 | M57: =L57+1 -> 2029 | N57: =M57+1 -> 2030 | O57: =N57+1 -> 2031 | P57: =O57+1 -> 2032 | Q57: =P57+1 -> 2033 | R57: =Q57+1 -> 2034 | S57: =R57+1 -> 2035 | T57: =S57+1 -> 2036 | U57: =T57+1 -> 2037 | V57: =U57+1 -> 2038 | W57: =V57+1 -> 2039 | X57: =W57+1 -> 2040 | Y57: =X57+1 -> 2041 | Z57: =Y57+1 -> 2042 | AA57: =Z57+1 -> 2043 | AB57: =AA57+1 -> 2044 | AC57: =AB57+1 -> 2045 | AD57: =AC57+1 -> 2046 | AE57: =AD57+1 -> 2047 | AF57: =AE57+1 -> 2048 | AG57: 2049
D58: Capital costs
D59: Option 1 | E59: June $2022 m | F59: =G59+NPV(Discount_Step,H59:AG59) -> 17.4926127 | G59: =(-(Inputs!G107-Inputs!G$106)*Inputs!$G$29) -> 0 | H59: =(-(Inputs!H107-Inputs!H$106)*Inputs!$G$29) -> 0 | I59: =(-(Inputs!I107-Inputs!I$106)*Inputs!$G$29) -> 8.720002656e-05 | J59: =(-(Inputs!J107-Inputs!J$106)*Inputs!$G$29) -> 1.560399914 | K59: =(-(Inputs!K107-Inputs!K$106)*Inputs!$G$29) -> 0.7024526578 | L59: =(-(Inputs!L107-Inputs!L$106)*Inputs!$G$29) -> 2.470190991 | M59: =(-(Inputs!M107-Inputs!M$106)*Inputs!$G$29) -> 0.7940843021 | N59: =(-(Inputs!N107-Inputs!N$106)*Inputs!$G$29) -> 0.7802014101 | O59: =(-(Inputs!O107-Inputs!O$106)*Inputs!$G$29) -> 1.783057623 | P59: =(-(Inputs!P107-Inputs!P$106)*Inputs!$G$29) -> 1.880952741 | Q59: =(-(Inputs!Q107-Inputs!Q$106)*Inputs!$G$29) -> 1.834255314 | R59: =(-(Inputs!R107-Inputs!R$106)*Inputs!$G$29) -> 1.322420969 | S59: =(-(Inputs!S107-Inputs!S$106)*Inputs!$G$29) -> 0.8417078954 | T59: =(-(Inputs!T107-Inputs!T$106)*Inputs!$G$29) -> 0.7580944301 | U59: =(-(Inputs!U107-Inputs!U$106)*Inputs!$G$29) -> 1.375684017 | V59: =(-(Inputs!V107-Inputs!V$106)*Inputs!$G$29) -> 1.682308587 | W59: =(-(Inputs!W107-Inputs!W$106)*Inputs!$G$29) -> 1.512149645 | X59: =(-(Inputs!X107-Inputs!X$106)*Inputs!$G$29) -> 1.580488225 | Y59: =(-(Inputs!Y107-Inputs!Y$106)*Inputs!$G$29) -> 1.637987382 | Z59: =(-(Inputs!Z107-Inputs!Z$106)*Inputs!$G$29) -> 2.807706295 | AA59: =(-(Inputs!AA107-Inputs!AA$106)*Inputs!$G$29) -> 1.983197324 | AB59: =(-(Inputs!AB107-Inputs!AB$106)*Inputs!$G$29) -> 2.564543136 | AC59: =(-(Inputs!AC107-Inputs!AC$106)*Inputs!$G$29) -> 1.877716127 | AD59: =(-(Inputs!AD107-Inputs!AD$106)*Inputs!$G$29) -> 1.085593294 | AE59: =(-(Inputs!AE107-Inputs!AE$106)*Inputs!$G$29) -> 1.726047197 | AF59: =(-(Inputs!AF107-Inputs!AF$106)*Inputs!$G$29) -> 1.659852858 | AG59: =(-(Inputs!AG107-Inputs!AG$106)*Inputs!$G$29) -> 0
D60: Option 2 | E60: June $2022 m | F60: 25.03548575 | G60: =(-(Inputs!G108-Inputs!G$106)*Inputs!$G$29) -> 0 | H60: =(-(Inputs!H108-Inputs!H$106)*Inputs!$G$29) -> 0 | I60: =(-(Inputs!I108-Inputs!I$106)*Inputs!$G$29) -> 2.48521532e-05 | J60: =(-(Inputs!J108-Inputs!J$106)*Inputs!$G$29) -> 2.452582487 | K60: =(-(Inputs!K108-Inputs!K$106)*Inputs!$G$29) -> 0.8448859172 | L60: =(-(Inputs!L108-Inputs!L$106)*Inputs!$G$29) -> 2.288573116 | M60: =(-(Inputs!M108-Inputs!M$106)*Inputs!$G$29) -> 0.9866317299 | N60: =(-(Inputs!N108-Inputs!N$106)*Inputs!$G$29) -> 1.393754836 | O60: =(-(Inputs!O108-Inputs!O$106)*Inputs!$G$29) -> 2.322563533 | P60: =(-(Inputs!P108-Inputs!P$106)*Inputs!$G$29) -> 2.486282859 | Q60: =(-(Inputs!Q108-Inputs!Q$106)*Inputs!$G$29) -> 2.847525152 | R60: =(-(Inputs!R108-Inputs!R$106)*Inputs!$G$29) -> 1.898509177 | S60: =(-(Inputs!S108-Inputs!S$106)*Inputs!$G$29) -> 1.323823208 | T60: =(-(Inputs!T108-Inputs!T$106)*Inputs!$G$29) -> 1.133451348 | U60: =(-(Inputs!U108-Inputs!U$106)*Inputs!$G$29) -> 2.301689411 | V60: =(-(Inputs!V108-Inputs!V$106)*Inputs!$G$29) -> 2.81525339 | W60: =(-(Inputs!W108-Inputs!W$106)*Inputs!$G$29) -> 2.35216389 | X60: =(-(Inputs!X108-Inputs!X$106)*Inputs!$G$29) -> 2.727871293 | Y60: =(-(Inputs!Y108-Inputs!Y$106)*Inputs!$G$29) -> 2.820096327 | Z60: =(-(Inputs!Z108-Inputs!Z$106)*Inputs!$G$29) -> 5.39184898 | AA60: =(-(Inputs!AA108-Inputs!AA$106)*Inputs!$G$29) -> 2.06448609 | AB60: =(-(Inputs!AB108-Inputs!AB$106)*Inputs!$G$29) -> 4.730827529 | AC60: =(-(Inputs!AC108-Inputs!AC$106)*Inputs!$G$29) -> 3.368479764 | AD60: =(-(Inputs!AD108-Inputs!AD$106)*Inputs!$G$29) -> 0.9763711097 | AE60: =(-(Inputs!AE108-Inputs!AE$106)*Inputs!$G$29) -> 1.708489898 | AF60: =(-(Inputs!AF108-Inputs!AF$106)*Inputs!$G$29) -> 1.141126005 | AG60: =(-(Inputs!AG108-Inputs!AG$106)*Inputs!$G$29) -> 0
D61: Option 2A | E61: June $2022 m | F61: 24.99157479 | G61: =(-(Inputs!G109-Inputs!G$106)*Inputs!$G$29) -> 0 | H61: =(-(Inputs!H109-Inputs!H$106)*Inputs!$G$29) -> 0 | I61: =(-(Inputs!I109-Inputs!I$106)*Inputs!$G$29) -> 6.092568071e-06 | J61: =(-(Inputs!J109-Inputs!J$106)*Inputs!$G$29) -> 2.429916752 | K61: =(-(Inputs!K109-Inputs!K$106)*Inputs!$G$29) -> 0.8486969025 | L61: =(-(Inputs!L109-Inputs!L$106)*Inputs!$G$29) -> 2.254862497 | M61: =(-(Inputs!M109-Inputs!M$106)*Inputs!$G$29) -> 0.9537025523 | N61: =(-(Inputs!N109-Inputs!N$106)*Inputs!$G$29) -> 1.372567413 | O61: =(-(Inputs!O109-Inputs!O$106)*Inputs!$G$29) -> 2.346882325 | P61: =(-(Inputs!P109-Inputs!P$106)*Inputs!$G$29) -> 2.497317628 | Q61: =(-(Inputs!Q109-Inputs!Q$106)*Inputs!$G$29) -> 2.821893905 | R61: =(-(Inputs!R109-Inputs!R$106)*Inputs!$G$29) -> 1.870731407 | S61: =(-(Inputs!S109-Inputs!S$106)*Inputs!$G$29) -> 1.302735847 | T61: =(-(Inputs!T109-Inputs!T$106)*Inputs!$G$29) -> 1.111426676 | U61: =(-(Inputs!U109-Inputs!U$106)*Inputs!$G$29) -> 2.311122984 | V61: =(-(Inputs!V109-Inputs!V$106)*Inputs!$G$29) -> 2.807296777 | W61: =(-(Inputs!W109-Inputs!W$106)*Inputs!$G$29) -> 2.383562997 | X61: =(-(Inputs!X109-Inputs!X$106)*Inputs!$G$29) -> 2.722457531 | Y61: =(-(Inputs!Y109-Inputs!Y$106)*Inputs!$G$29) -> 2.758094718 | Z61: =(-(Inputs!Z109-Inputs!Z$106)*Inputs!$G$29) -> 5.333732693 | AA61: =(-(Inputs!AA109-Inputs!AA$106)*Inputs!$G$29) -> 2.051213574 | AB61: =(-(Inputs!AB109-Inputs!AB$106)*Inputs!$G$29) -> 4.646273612 | AC61: =(-(Inputs!AC109-Inputs!AC$106)*Inputs!$G$29) -> 3.363873945 | AD61: =(-(Inputs!AD109-Inputs!AD$106)*Inputs!$G$29) -> 0.9503263074 | AE61: =(-(Inputs!AE109-Inputs!AE$106)*Inputs!$G$29) -> 2.540414161 | AF61: =(-(Inputs!AF109-Inputs!AF$106)*Inputs!$G$29) -> 0.7975412734 | AG61: =(-(Inputs!AG109-Inputs!AG$106)*Inputs!$G$29) -> 0
D62: Option 2B | E62: June $2022 m | F62: 23.19442938 | G62: =(-(Inputs!G110-Inputs!G$106)*Inputs!$G$29) -> 0 | H62: =(-(Inputs!H110-Inputs!H$106)*Inputs!$G$29) -> 0 | I62: =(-(Inputs!I110-Inputs!I$106)*Inputs!$G$29) -> -0.0001573726455 | J62: =(-(Inputs!J110-Inputs!J$106)*Inputs!$G$29) -> 2.321113702 | K62: =(-(Inputs!K110-Inputs!K$106)*Inputs!$G$29) -> 0.8338920181 | L62: =(-(Inputs!L110-Inputs!L$106)*Inputs!$G$29) -> 1.622778487 | M62: =(-(Inputs!M110-Inputs!M$106)*Inputs!$G$29) -> 0.7205657354 | N62: =(-(Inputs!N110-Inputs!N$106)*Inputs!$G$29) -> 1.230811734 | O62: =(-(Inputs!O110-Inputs!O$106)*Inputs!$G$29) -> 2.200586257 | P62: =(-(Inputs!P110-Inputs!P$106)*Inputs!$G$29) -> 2.393614704 | Q62: =(-(Inputs!Q110-Inputs!Q$106)*Inputs!$G$29) -> 2.698299258 | R62: =(-(Inputs!R110-Inputs!R$106)*Inputs!$G$29) -> 1.689118069 | S62: =(-(Inputs!S110-Inputs!S$106)*Inputs!$G$29) -> 1.077208045 | T62: =(-(Inputs!T110-Inputs!T$106)*Inputs!$G$29) -> 0.9751233956 | U62: =(-(Inputs!U110-Inputs!U$106)*Inputs!$G$29) -> 2.139585294 | V62: =(-(Inputs!V110-Inputs!V$106)*Inputs!$G$29) -> 2.693388167 | W62: =(-(Inputs!W110-Inputs!W$106)*Inputs!$G$29) -> 2.556346489 | X62: =(-(Inputs!X110-Inputs!X$106)*Inputs!$G$29) -> 2.477631621 | Y62: =(-(Inputs!Y110-Inputs!Y$106)*Inputs!$G$29) -> 2.338752517 | Z62: =(-(Inputs!Z110-Inputs!Z$106)*Inputs!$G$29) -> 4.944604758 | AA62: =(-(Inputs!AA110-Inputs!AA$106)*Inputs!$G$29) -> 1.765496213 | AB62: =(-(Inputs!AB110-Inputs!AB$106)*Inputs!$G$29) -> 3.925282531 | AC62: =(-(Inputs!AC110-Inputs!AC$106)*Inputs!$G$29) -> 3.007562463 | AD62: =(-(Inputs!AD110-Inputs!AD$106)*Inputs!$G$29) -> 0.7653105961 | AE62: =(-(Inputs!AE110-Inputs!AE$106)*Inputs!$G$29) -> 4.32656235 | AF62: =(-(Inputs!AF110-Inputs!AF$106)*Inputs!$G$29) -> 0.9367120298 | AG62: =(-(Inputs!AG110-Inputs!AG$106)*Inputs!$G$29) -> 0
D63: Option 3 | E63: June $2022 m | F63: 21.37248981 | G63: =(-(Inputs!G111-Inputs!G$106)*Inputs!$G$29) -> 0 | H63: =(-(Inputs!H111-Inputs!H$106)*Inputs!$G$29) -> 0 | I63: =(-(Inputs!I111-Inputs!I$106)*Inputs!$G$29) -> -0.0001272144698 | J63: =(-(Inputs!J111-Inputs!J$106)*Inputs!$G$29) -> 1.180857582 | K63: =(-(Inputs!K111-Inputs!K$106)*Inputs!$G$29) -> 0.9155776721 | L63: =(-(Inputs!L111-Inputs!L$106)*Inputs!$G$29) -> 1.973522202 | M63: =(-(Inputs!M111-Inputs!M$106)*Inputs!$G$29) -> 0.7845420797 | N63: =(-(Inputs!N111-Inputs!N$106)*Inputs!$G$29) -> 1.488964934 | O63: =(-(Inputs!O111-Inputs!O$106)*Inputs!$G$29) -> 2.542740329 | P63: =(-(Inputs!P111-Inputs!P$106)*Inputs!$G$29) -> 2.631597739 | Q63: =(-(Inputs!Q111-Inputs!Q$106)*Inputs!$G$29) -> 2.717949394 | R63: =(-(Inputs!R111-Inputs!R$106)*Inputs!$G$29) -> 2.151857872 | S63: =(-(Inputs!S111-Inputs!S$106)*Inputs!$G$29) -> 1.800273216 | T63: =(-(Inputs!T111-Inputs!T$106)*Inputs!$G$29) -> 0.9597959902 | U63: =(-(Inputs!U111-Inputs!U$106)*Inputs!$G$29) -> 1.763566483 | V63: =(-(Inputs!V111-Inputs!V$106)*Inputs!$G$29) -> 2.753595795 | W63: =(-(Inputs!W111-Inputs!W$106)*Inputs!$G$29) -> 1.787922202 | X63: =(-(Inputs!X111-Inputs!X$106)*Inputs!$G$29) -> 2.573181112 | Y63: =(-(Inputs!Y111-Inputs!Y$106)*Inputs!$G$29) -> 2.275830543 | Z63: =(-(Inputs!Z111-Inputs!Z$106)*Inputs!$G$29) -> 6.471533743 | AA63: =(-(Inputs!AA111-Inputs!AA$106)*Inputs!$G$29) -> 1.908858277 | AB63: =(-(Inputs!AB111-Inputs!AB$106)*Inputs!$G$29) -> 5.283097015 | AC63: =(-(Inputs!AC111-Inputs!AC$106)*Inputs!$G$29) -> 3.266069357 | AD63: =(-(Inputs!AD111-Inputs!AD$106)*Inputs!$G$29) -> 1.592137292 | AE63: =(-(Inputs!AE111-Inputs!AE$106)*Inputs!$G$29) -> -3.303756676 | AF63: =(-(Inputs!AF111-Inputs!AF$106)*Inputs!$G$29) -> -3.676454764 | AG63: =(-(Inputs!AG111-Inputs!AG$106)*Inputs!$G$29) -> 0
D64: Option 4 | E64: June $2022 m | F64: 87.48610256 | G64: =(-(Inputs!G112-Inputs!G$106)*Inputs!$G$29) -> 0 | H64: =(-(Inputs!H112-Inputs!H$106)*Inputs!$G$29) -> 0 | I64: =(-(Inputs!I112-Inputs!I$106)*Inputs!$G$29) -> 6.669332988e-05 | J64: =(-(Inputs!J112-Inputs!J$106)*Inputs!$G$29) -> 9.347018668 | K64: =(-(Inputs!K112-Inputs!K$106)*Inputs!$G$29) -> 8.83828678 | L64: =(-(Inputs!L112-Inputs!L$106)*Inputs!$G$29) -> 15.21556091 | M64: =(-(Inputs!M112-Inputs!M$106)*Inputs!$G$29) -> 2.712865684 | N64: =(-(Inputs!N112-Inputs!N$106)*Inputs!$G$29) -> 0.2018301981 | O64: =(-(Inputs!O112-Inputs!O$106)*Inputs!$G$29) -> 5.865376985 | P64: =(-(Inputs!P112-Inputs!P$106)*Inputs!$G$29) -> 5.672772458 | Q64: =(-(Inputs!Q112-Inputs!Q$106)*Inputs!$G$29) -> 9.19337411 | R64: =(-(Inputs!R112-Inputs!R$106)*Inputs!$G$29) -> 8.041907337 | S64: =(-(Inputs!S112-Inputs!S$106)*Inputs!$G$29) -> 7.544576755 | T64: =(-(Inputs!T112-Inputs!T$106)*Inputs!$G$29) -> 8.230353661 | U64: =(-(Inputs!U112-Inputs!U$106)*Inputs!$G$29) -> 8.399701609 | V64: =(-(Inputs!V112-Inputs!V$106)*Inputs!$G$29) -> 8.217006538 | W64: =(-(Inputs!W112-Inputs!W$106)*Inputs!$G$29) -> 8.701245345 | X64: =(-(Inputs!X112-Inputs!X$106)*Inputs!$G$29) -> 8.476177348 | Y64: =(-(Inputs!Y112-Inputs!Y$106)*Inputs!$G$29) -> 7.554096719 | Z64: =(-(Inputs!Z112-Inputs!Z$106)*Inputs!$G$29) -> 8.93571004 | AA64: =(-(Inputs!AA112-Inputs!AA$106)*Inputs!$G$29) -> 7.83155413 | AB64: =(-(Inputs!AB112-Inputs!AB$106)*Inputs!$G$29) -> 6.368693003 | AC64: =(-(Inputs!AC112-Inputs!AC$106)*Inputs!$G$29) -> 7.88418878 | AD64: =(-(Inputs!AD112-Inputs!AD$106)*Inputs!$G$29) -> 2.325381484 | AE64: =(-(Inputs!AE112-Inputs!AE$106)*Inputs!$G$29) -> 8.520748883 | AF64: =(-(Inputs!AF112-Inputs!AF$106)*Inputs!$G$29) -> 8.833593602 | AG64: =(-(Inputs!AG112-Inputs!AG$106)*Inputs!$G$29) -> 0
D65: Fixed Operating & Maintenance
D66: Option 1 | E66: June $2022 m | F66: =G66+NPV(Discount_Step,H66:AG66) -> 4.496878722 | G66: =(-(Inputs!G115-Inputs!G$114)*Inputs!$G$29) -> 0 | H66: =(-(Inputs!H115-Inputs!H$114)*Inputs!$G$29) -> 0 | I66: =(-(Inputs!I115-Inputs!I$114)*Inputs!$G$29) -> 1.420146925e-05 | J66: =(-(Inputs!J115-Inputs!J$114)*Inputs!$G$29) -> 0.2353877808 | K66: =(-(Inputs!K115-Inputs!K$114)*Inputs!$G$29) -> 0.106139407 | L66: =(-(Inputs!L115-Inputs!L$114)*Inputs!$G$29) -> 0.3964526206 | M66: =(-(Inputs!M115-Inputs!M$114)*Inputs!$G$29) -> 0.1166202623 | N66: =(-(Inputs!N115-Inputs!N$114)*Inputs!$G$29) -> 0.1369479141 | O66: =(-(Inputs!O115-Inputs!O$114)*Inputs!$G$29) -> 0.4283637301 | P66: =(-(Inputs!P115-Inputs!P$114)*Inputs!$G$29) -> 0.4711399955 | Q66: =(-(Inputs!Q115-Inputs!Q$114)*Inputs!$G$29) -> 0.3601061045 | R66: =(-(Inputs!R115-Inputs!R$114)*Inputs!$G$29) -> 0.3621968547 | S66: =(-(Inputs!S115-Inputs!S$114)*Inputs!$G$29) -> 0.2587567655 | T66: =(-(Inputs!T115-Inputs!T$114)*Inputs!$G$29) -> 0.2241930108 | U66: =(-(Inputs!U115-Inputs!U$114)*Inputs!$G$29) -> 0.4289986343 | V66: =(-(Inputs!V115-Inputs!V$114)*Inputs!$G$29) -> 0.4121966632 | W66: =(-(Inputs!W115-Inputs!W$114)*Inputs!$G$29) -> 0.3690753398 | X66: =(-(Inputs!X115-Inputs!X$114)*Inputs!$G$29) -> 0.4085258763 | Y66: =(-(Inputs!Y115-Inputs!Y$114)*Inputs!$G$29) -> 0.4837113436 | Z66: =(-(Inputs!Z115-Inputs!Z$114)*Inputs!$G$29) -> 0.7441781505 | AA66: =(-(Inputs!AA115-Inputs!AA$114)*Inputs!$G$29) -> 0.5793294765 | AB66: =(-(Inputs!AB115-Inputs!AB$114)*Inputs!$G$29) -> 0.7107647222 | AC66: =(-(Inputs!AC115-Inputs!AC$114)*Inputs!$G$29) -> 0.4311345519 | AD66: =(-(Inputs!AD115-Inputs!AD$114)*Inputs!$G$29) -> 0.2165742873 | AE66: =(-(Inputs!AE115-Inputs!AE$114)*Inputs!$G$29) -> 1.252772754 | AF66: =(-(Inputs!AF115-Inputs!AF$114)*Inputs!$G$29) -> 1.391081463 | AG66: =(-(Inputs!AG115-Inputs!AG$114)*Inputs!$G$29) -> 0
D67: Option 2 | E67: June $2022 m | F67: 6.417326212 | G67: =(-(Inputs!G116-Inputs!G$114)*Inputs!$G$29) -> 0 | H67: =(-(Inputs!H116-Inputs!H$114)*Inputs!$G$29) -> 0 | I67: =(-(Inputs!I116-Inputs!I$114)*Inputs!$G$29) -> 3.892012032e-06 | J67: =(-(Inputs!J116-Inputs!J$114)*Inputs!$G$29) -> 0.3662894751 | K67: =(-(Inputs!K116-Inputs!K$114)*Inputs!$G$29) -> 0.1292219924 | L67: =(-(Inputs!L116-Inputs!L$114)*Inputs!$G$29) -> 0.3687657841 | M67: =(-(Inputs!M116-Inputs!M$114)*Inputs!$G$29) -> 0.1426310798 | N67: =(-(Inputs!N116-Inputs!N$114)*Inputs!$G$29) -> 0.2629063247 | O67: =(-(Inputs!O116-Inputs!O$114)*Inputs!$G$29) -> 0.5876919356 | P67: =(-(Inputs!P116-Inputs!P$114)*Inputs!$G$29) -> 0.6425184145 | Q67: =(-(Inputs!Q116-Inputs!Q$114)*Inputs!$G$29) -> 0.5880631414 | R67: =(-(Inputs!R116-Inputs!R$114)*Inputs!$G$29) -> 0.5320283223 | S67: =(-(Inputs!S116-Inputs!S$114)*Inputs!$G$29) -> 0.374381108 | T67: =(-(Inputs!T116-Inputs!T$114)*Inputs!$G$29) -> 0.2907188463 | U67: =(-(Inputs!U116-Inputs!U$114)*Inputs!$G$29) -> 0.6830339506 | V67: =(-(Inputs!V116-Inputs!V$114)*Inputs!$G$29) -> 0.6568307589 | W67: =(-(Inputs!W116-Inputs!W$114)*Inputs!$G$29) -> 0.5734740278 | X67: =(-(Inputs!X116-Inputs!X$114)*Inputs!$G$29) -> 0.7553867122 | Y67: =(-(Inputs!Y116-Inputs!Y$114)*Inputs!$G$29) -> 0.8074363565 | Z67: =(-(Inputs!Z116-Inputs!Z$114)*Inputs!$G$29) -> 1.522108081 | AA67: =(-(Inputs!AA116-Inputs!AA$114)*Inputs!$G$29) -> 0.328249102 | AB67: =(-(Inputs!AB116-Inputs!AB$114)*Inputs!$G$29) -> 1.294391458 | AC67: =(-(Inputs!AC116-Inputs!AC$114)*Inputs!$G$29) -> 0.8366941314 | AD67: =(-(Inputs!AD116-Inputs!AD$114)*Inputs!$G$29) -> 0.3440785525 | AE67: =(-(Inputs!AE116-Inputs!AE$114)*Inputs!$G$29) -> 1.386768709 | AF67: =(-(Inputs!AF116-Inputs!AF$114)*Inputs!$G$29) -> 1.433949062 | AG67: =(-(Inputs!AG116-Inputs!AG$114)*Inputs!$G$29) -> 0
D68: Option 2A | E68: June $2022 m | F68: 6.55318853 | G68: =(-(Inputs!G117-Inputs!G$114)*Inputs!$G$29) -> 0 | H68: =(-(Inputs!H117-Inputs!H$114)*Inputs!$G$29) -> 0 | I68: =(-(Inputs!I117-Inputs!I$114)*Inputs!$G$29) -> 1.015979535e-06 | J68: =(-(Inputs!J117-Inputs!J$114)*Inputs!$G$29) -> 0.362918257 | K68: =(-(Inputs!K117-Inputs!K$114)*Inputs!$G$29) -> 0.1298859675 | L68: =(-(Inputs!L117-Inputs!L$114)*Inputs!$G$29) -> 0.3633604516 | M68: =(-(Inputs!M117-Inputs!M$114)*Inputs!$G$29) -> 0.1369363533 | N68: =(-(Inputs!N117-Inputs!N$114)*Inputs!$G$29) -> 0.2566070681 | O68: =(-(Inputs!O117-Inputs!O$114)*Inputs!$G$29) -> 0.5873233216 | P68: =(-(Inputs!P117-Inputs!P$114)*Inputs!$G$29) -> 0.6404933835 | Q68: =(-(Inputs!Q117-Inputs!Q$114)*Inputs!$G$29) -> 0.5804091392 | R68: =(-(Inputs!R117-Inputs!R$114)*Inputs!$G$29) -> 0.5242006635 | S68: =(-(Inputs!S117-Inputs!S$114)*Inputs!$G$29) -> 0.368700621 | T68: =(-(Inputs!T117-Inputs!T$114)*Inputs!$G$29) -> 0.2840854604 | U68: =(-(Inputs!U117-Inputs!U$114)*Inputs!$G$29) -> 0.682047323 | V68: =(-(Inputs!V117-Inputs!V$114)*Inputs!$G$29) -> 0.6544233731 | W68: =(-(Inputs!W117-Inputs!W$114)*Inputs!$G$29) -> 0.5786675422 | X68: =(-(Inputs!X117-Inputs!X$114)*Inputs!$G$29) -> 0.7517690101 | Y68: =(-(Inputs!Y117-Inputs!Y$114)*Inputs!$G$29) -> 0.7978285288 | Z68: =(-(Inputs!Z117-Inputs!Z$114)*Inputs!$G$29) -> 1.53925529 | AA68: =(-(Inputs!AA117-Inputs!AA$114)*Inputs!$G$29) -> 0.3264521223 | AB68: =(-(Inputs!AB117-Inputs!AB$114)*Inputs!$G$29) -> 1.261205776 | AC68: =(-(Inputs!AC117-Inputs!AC$114)*Inputs!$G$29) -> 0.8071890007 | AD68: =(-(Inputs!AD117-Inputs!AD$114)*Inputs!$G$29) -> 0.3377521302 | AE68: =(-(Inputs!AE117-Inputs!AE$114)*Inputs!$G$29) -> 1.845321847 | AF68: =(-(Inputs!AF117-Inputs!AF$114)*Inputs!$G$29) -> 1.667076195 | AG68: =(-(Inputs!AG117-Inputs!AG$114)*Inputs!$G$29) -> 0
D69: Option 2B | E69: June $2022 m | F69: 6.278793719 | G69: =(-(Inputs!G118-Inputs!G$114)*Inputs!$G$29) -> 0 | H69: =(-(Inputs!H118-Inputs!H$114)*Inputs!$G$29) -> 0 | I69: =(-(Inputs!I118-Inputs!I$114)*Inputs!$G$29) -> -2.577524912e-05 | J69: =(-(Inputs!J118-Inputs!J$114)*Inputs!$G$29) -> 0.3465855029 | K69: =(-(Inputs!K118-Inputs!K$114)*Inputs!$G$29) -> 0.1275128606 | L69: =(-(Inputs!L118-Inputs!L$114)*Inputs!$G$29) -> 0.2639478593 | M69: =(-(Inputs!M118-Inputs!M$114)*Inputs!$G$29) -> 0.09661529825 | N69: =(-(Inputs!N118-Inputs!N$114)*Inputs!$G$29) -> 0.2072265954 | O69: =(-(Inputs!O118-Inputs!O$114)*Inputs!$G$29) -> 0.5294710721 | P69: =(-(Inputs!P118-Inputs!P$114)*Inputs!$G$29) -> 0.5902319797 | Q69: =(-(Inputs!Q118-Inputs!Q$114)*Inputs!$G$29) -> 0.5343816393 | R69: =(-(Inputs!R118-Inputs!R$114)*Inputs!$G$29) -> 0.4905123262 | S69: =(-(Inputs!S118-Inputs!S$114)*Inputs!$G$29) -> 0.3191631132 | T69: =(-(Inputs!T118-Inputs!T$114)*Inputs!$G$29) -> 0.2354649544 | U69: =(-(Inputs!U118-Inputs!U$114)*Inputs!$G$29) -> 0.6309877258 | V69: =(-(Inputs!V118-Inputs!V$114)*Inputs!$G$29) -> 0.6164707973 | W69: =(-(Inputs!W118-Inputs!W$114)*Inputs!$G$29) -> 0.6403296107 | X69: =(-(Inputs!X118-Inputs!X$114)*Inputs!$G$29) -> 0.6608733978 | Y69: =(-(Inputs!Y118-Inputs!Y$114)*Inputs!$G$29) -> 0.658850339 | Z69: =(-(Inputs!Z118-Inputs!Z$114)*Inputs!$G$29) -> 1.436102105 | AA69: =(-(Inputs!AA118-Inputs!AA$114)*Inputs!$G$29) -> 0.2594882617 | AB69: =(-(Inputs!AB118-Inputs!AB$114)*Inputs!$G$29) -> 1.074426789 | AC69: =(-(Inputs!AC118-Inputs!AC$114)*Inputs!$G$29) -> 0.6837170484 | AD69: =(-(Inputs!AD118-Inputs!AD$114)*Inputs!$G$29) -> 0.2762561144 | AE69: =(-(Inputs!AE118-Inputs!AE$114)*Inputs!$G$29) -> 2.615885814 | AF69: =(-(Inputs!AF118-Inputs!AF$114)*Inputs!$G$29) -> 2.100431683 | AG69: =(-(Inputs!AG118-Inputs!AG$114)*Inputs!$G$29) -> 0
D70: Option 3 | E70: June $2022 m | F70: 4.271508303 | G70: =(-(Inputs!G119-Inputs!G$114)*Inputs!$G$29) -> 0 | H70: =(-(Inputs!H119-Inputs!H$114)*Inputs!$G$29) -> 0 | I70: =(-(Inputs!I119-Inputs!I$114)*Inputs!$G$29) -> -2.081081981e-05 | J70: =(-(Inputs!J119-Inputs!J$114)*Inputs!$G$29) -> 0.1739608687 | K70: =(-(Inputs!K119-Inputs!K$114)*Inputs!$G$29) -> 0.1439544067 | L70: =(-(Inputs!L119-Inputs!L$114)*Inputs!$G$29) -> 0.3215746002 | M70: =(-(Inputs!M119-Inputs!M$114)*Inputs!$G$29) -> 0.1130465878 | N70: =(-(Inputs!N119-Inputs!N$114)*Inputs!$G$29) -> 0.3113710547 | O70: =(-(Inputs!O119-Inputs!O$114)*Inputs!$G$29) -> 0.6485851228 | P70: =(-(Inputs!P119-Inputs!P$114)*Inputs!$G$29) -> 0.6891517458 | Q70: =(-(Inputs!Q119-Inputs!Q$114)*Inputs!$G$29) -> 0.5979818872 | R70: =(-(Inputs!R119-Inputs!R$114)*Inputs!$G$29) -> 0.5794258784 | S70: =(-(Inputs!S119-Inputs!S$114)*Inputs!$G$29) -> 0.4968366754 | T70: =(-(Inputs!T119-Inputs!T$114)*Inputs!$G$29) -> 0.2779418998 | U70: =(-(Inputs!U119-Inputs!U$114)*Inputs!$G$29) -> 0.6220249647 | V70: =(-(Inputs!V119-Inputs!V$114)*Inputs!$G$29) -> 0.7123343725 | W70: =(-(Inputs!W119-Inputs!W$114)*Inputs!$G$29) -> 0.5029716279 | X70: =(-(Inputs!X119-Inputs!X$114)*Inputs!$G$29) -> 0.719488859 | Y70: =(-(Inputs!Y119-Inputs!Y$114)*Inputs!$G$29) -> 0.6216912759 | Z70: =(-(Inputs!Z119-Inputs!Z$114)*Inputs!$G$29) -> 1.821207034 | AA70: =(-(Inputs!AA119-Inputs!AA$114)*Inputs!$G$29) -> 0.02742591763 | AB70: =(-(Inputs!AB119-Inputs!AB$114)*Inputs!$G$29) -> 1.457752441 | AC70: =(-(Inputs!AC119-Inputs!AC$114)*Inputs!$G$29) -> 0.9885378863 | AD70: =(-(Inputs!AD119-Inputs!AD$114)*Inputs!$G$29) -> 0.5653448303 | AE70: =(-(Inputs!AE119-Inputs!AE$114)*Inputs!$G$29) -> -2.787719194 | AF70: =(-(Inputs!AF119-Inputs!AF$114)*Inputs!$G$29) -> -2.469548608 | AG70: =(-(Inputs!AG119-Inputs!AG$114)*Inputs!$G$29) -> 0
D71: Option 4 | E71: June $2022 m | F71: 19.7833091 | G71: =(-(Inputs!G120-Inputs!G$114)*Inputs!$G$29) -> 0 | H71: =(-(Inputs!H120-Inputs!H$114)*Inputs!$G$29) -> 0 | I71: =(-(Inputs!I120-Inputs!I$114)*Inputs!$G$29) -> 1.074985724e-05 | J71: =(-(Inputs!J120-Inputs!J$114)*Inputs!$G$29) -> 1.666968124 | K71: =(-(Inputs!K120-Inputs!K$114)*Inputs!$G$29) -> 1.561160983 | L71: =(-(Inputs!L120-Inputs!L$114)*Inputs!$G$29) -> 2.339750818 | M71: =(-(Inputs!M120-Inputs!M$114)*Inputs!$G$29) -> 0.2916331124 | N71: =(-(Inputs!N120-Inputs!N$114)*Inputs!$G$29) -> -0.2398617287 | O71: =(-(Inputs!O120-Inputs!O$114)*Inputs!$G$29) -> 0.6926123071 | P71: =(-(Inputs!P120-Inputs!P$114)*Inputs!$G$29) -> 0.6061191584 | Q71: =(-(Inputs!Q120-Inputs!Q$114)*Inputs!$G$29) -> 1.928821483 | R71: =(-(Inputs!R120-Inputs!R$114)*Inputs!$G$29) -> 1.901785437 | S71: =(-(Inputs!S120-Inputs!S$114)*Inputs!$G$29) -> 1.763699193 | T71: =(-(Inputs!T120-Inputs!T$114)*Inputs!$G$29) -> 1.896203369 | U71: =(-(Inputs!U120-Inputs!U$114)*Inputs!$G$29) -> 2.118246021 | V71: =(-(Inputs!V120-Inputs!V$114)*Inputs!$G$29) -> 2.013314463 | W71: =(-(Inputs!W120-Inputs!W$114)*Inputs!$G$29) -> 2.151501413 | X71: =(-(Inputs!X120-Inputs!X$114)*Inputs!$G$29) -> 1.974238816 | Y71: =(-(Inputs!Y120-Inputs!Y$114)*Inputs!$G$29) -> 1.641775841 | Z71: =(-(Inputs!Z120-Inputs!Z$114)*Inputs!$G$29) -> 2.087163886 | AA71: =(-(Inputs!AA120-Inputs!AA$114)*Inputs!$G$29) -> 1.845118969 | AB71: =(-(Inputs!AB120-Inputs!AB$114)*Inputs!$G$29) -> 1.376931017 | AC71: =(-(Inputs!AC120-Inputs!AC$114)*Inputs!$G$29) -> 1.725193324 | AD71: =(-(Inputs!AD120-Inputs!AD$114)*Inputs!$G$29) -> 2.131254828 | AE71: =(-(Inputs!AE120-Inputs!AE$114)*Inputs!$G$29) -> 6.185584638 | AF71: =(-(Inputs!AF120-Inputs!AF$114)*Inputs!$G$29) -> 5.519345706 | AG71: =(-(Inputs!AG120-Inputs!AG$114)*Inputs!$G$29) -> 0
D72: Variable Operating & Maintenance
D73: Option 1 | E73: June $2022 m | F73: =G73+NPV(Discount_Step,H73:AG73) -> -0.4192419144 | G73: =(-(Inputs!G123-Inputs!G$122)*Inputs!$G$29) -> 0 | H73: =(-(Inputs!H123-Inputs!H$122)*Inputs!$G$29) -> -0.001535231404 | I73: =(-(Inputs!I123-Inputs!I$122)*Inputs!$G$29) -> -0.01117449742 | J73: =(-(Inputs!J123-Inputs!J$122)*Inputs!$G$29) -> -0.0976122294 | K73: =(-(Inputs!K123-Inputs!K$122)*Inputs!$G$29) -> 0.01878020784 | L73: =(-(Inputs!L123-Inputs!L$122)*Inputs!$G$29) -> -0.1547616676 | M73: =(-(Inputs!M123-Inputs!M$122)*Inputs!$G$29) -> -0.02400514261 | N73: =(-(Inputs!N123-Inputs!N$122)*Inputs!$G$29) -> -0.04515420086 | O73: =(-(Inputs!O123-Inputs!O$122)*Inputs!$G$29) -> -0.04443352336 | P73: =(-(Inputs!P123-Inputs!P$122)*Inputs!$G$29) -> -0.04745337703 | Q73: =(-(Inputs!Q123-Inputs!Q$122)*Inputs!$G$29) -> -0.1179905046 | R73: =(-(Inputs!R123-Inputs!R$122)*Inputs!$G$29) -> -0.05648876194 | S73: =(-(Inputs!S123-Inputs!S$122)*Inputs!$G$29) -> 0.009449229928 | T73: =(-(Inputs!T123-Inputs!T$122)*Inputs!$G$29) -> -0.005657890665 | U73: =(-(Inputs!U123-Inputs!U$122)*Inputs!$G$29) -> -0.02322949945 | V73: =(-(Inputs!V123-Inputs!V$122)*Inputs!$G$29) -> -0.03221325026 | W73: =(-(Inputs!W123-Inputs!W$122)*Inputs!$G$29) -> -0.005726073765 | X73: =(-(Inputs!X123-Inputs!X$122)*Inputs!$G$29) -> 0.02103921045 | Y73: =(-(Inputs!Y123-Inputs!Y$122)*Inputs!$G$29) -> 0.01869570984 | Z73: =(-(Inputs!Z123-Inputs!Z$122)*Inputs!$G$29) -> -0.01356890913 | AA73: =(-(Inputs!AA123-Inputs!AA$122)*Inputs!$G$29) -> 0.01441646655 | AB73: =(-(Inputs!AB123-Inputs!AB$122)*Inputs!$G$29) -> -0.07551910184 | AC73: =(-(Inputs!AC123-Inputs!AC$122)*Inputs!$G$29) -> 0.005333673096 | AD73: =(-(Inputs!AD123-Inputs!AD$122)*Inputs!$G$29) -> 0.09163748614 | AE73: =(-(Inputs!AE123-Inputs!AE$122)*Inputs!$G$29) -> -0.005088134706 | AF73: =(-(Inputs!AF123-Inputs!AF$122)*Inputs!$G$29) -> -0.02526330908 | AG73: =(-(Inputs!AG123-Inputs!AG$122)*Inputs!$G$29) -> 0
D74: Option 2 | E74: June $2022 m | F74: -0.4726086933 | G74: =(-(Inputs!G124-Inputs!G$122)*Inputs!$G$29) -> 0 | H74: =(-(Inputs!H124-Inputs!H$122)*Inputs!$G$29) -> -0.00321998791 | I74: =(-(Inputs!I124-Inputs!I$122)*Inputs!$G$29) -> -0.002189330109 | J74: =(-(Inputs!J124-Inputs!J$122)*Inputs!$G$29) -> -0.1602863675 | K74: =(-(Inputs!K124-Inputs!K$122)*Inputs!$G$29) -> 0.08417863674 | L74: =(-(Inputs!L124-Inputs!L$122)*Inputs!$G$29) -> -0.08783872505 | M74: =(-(Inputs!M124-Inputs!M$122)*Inputs!$G$29) -> -0.0352084469 | N74: =(-(Inputs!N124-Inputs!N$122)*Inputs!$G$29) -> -0.09983269127 | O74: =(-(Inputs!O124-Inputs!O$122)*Inputs!$G$29) -> -0.05273292243 | P74: =(-(Inputs!P124-Inputs!P$122)*Inputs!$G$29) -> -0.08043435363 | Q74: =(-(Inputs!Q124-Inputs!Q$122)*Inputs!$G$29) -> -0.1880866542 | R74: =(-(Inputs!R124-Inputs!R$122)*Inputs!$G$29) -> -0.09042395013 | S74: =(-(Inputs!S124-Inputs!S$122)*Inputs!$G$29) -> -0.03217892162 | T74: =(-(Inputs!T124-Inputs!T$122)*Inputs!$G$29) -> -0.02291676605 | U74: =(-(Inputs!U124-Inputs!U$122)*Inputs!$G$29) -> -0.001243942327 | V74: =(-(Inputs!V124-Inputs!V$122)*Inputs!$G$29) -> -0.1110564033 | W74: =(-(Inputs!W124-Inputs!W$122)*Inputs!$G$29) -> -0.02157901619 | X74: =(-(Inputs!X124-Inputs!X$122)*Inputs!$G$29) -> 0.01029230022 | Y74: =(-(Inputs!Y124-Inputs!Y$122)*Inputs!$G$29) -> 0.06972603598 | Z74: =(-(Inputs!Z124-Inputs!Z$122)*Inputs!$G$29) -> -0.06532786867 | AA74: =(-(Inputs!AA124-Inputs!AA$122)*Inputs!$G$29) -> 0.1615383581 | AB74: =(-(Inputs!AB124-Inputs!AB$122)*Inputs!$G$29) -> -0.1414330169 | AC74: =(-(Inputs!AC124-Inputs!AC$122)*Inputs!$G$29) -> 0.02059455998 | AD74: =(-(Inputs!AD124-Inputs!AD$122)*Inputs!$G$29) -> 0.2226827182 | AE74: =(-(Inputs!AE124-Inputs!AE$122)*Inputs!$G$29) -> 0.02411181818 | AF74: =(-(Inputs!AF124-Inputs!AF$122)*Inputs!$G$29) -> -0.0001342918632 | AG74: =(-(Inputs!AG124-Inputs!AG$122)*Inputs!$G$29) -> 0
D75: Option 2A | E75: June $2022 m | F75: -0.4676696369 | G75: =(-(Inputs!G125-Inputs!G$122)*Inputs!$G$29) -> 0 | H75: =(-(Inputs!H125-Inputs!H$122)*Inputs!$G$29) -> -0.003220127558 | I75: =(-(Inputs!I125-Inputs!I$122)*Inputs!$G$29) -> -0.00216672201 | J75: =(-(Inputs!J125-Inputs!J$122)*Inputs!$G$29) -> -0.1591142731 | K75: =(-(Inputs!K125-Inputs!K$122)*Inputs!$G$29) -> 0.08413441103 | L75: =(-(Inputs!L125-Inputs!L$122)*Inputs!$G$29) -> -0.08667443443 | M75: =(-(Inputs!M125-Inputs!M$122)*Inputs!$G$29) -> -0.03236894305 | N75: =(-(Inputs!N125-Inputs!N$122)*Inputs!$G$29) -> -0.09981319512 | O75: =(-(Inputs!O125-Inputs!O$122)*Inputs!$G$29) -> -0.05777683553 | P75: =(-(Inputs!P125-Inputs!P$122)*Inputs!$G$29) -> -0.08283150063 | Q75: =(-(Inputs!Q125-Inputs!Q$122)*Inputs!$G$29) -> -0.1879439136 | R75: =(-(Inputs!R125-Inputs!R$122)*Inputs!$G$29) -> -0.09000961135 | S75: =(-(Inputs!S125-Inputs!S$122)*Inputs!$G$29) -> -0.03096743534 | T75: =(-(Inputs!T125-Inputs!T$122)*Inputs!$G$29) -> -0.02272935015 | U75: =(-(Inputs!U125-Inputs!U$122)*Inputs!$G$29) -> -0.003429928629 | V75: =(-(Inputs!V125-Inputs!V$122)*Inputs!$G$29) -> -0.1100239651 | W75: =(-(Inputs!W125-Inputs!W$122)*Inputs!$G$29) -> -0.02424847149 | X75: =(-(Inputs!X125-Inputs!X$122)*Inputs!$G$29) -> 0.009551249888 | Y75: =(-(Inputs!Y125-Inputs!Y$122)*Inputs!$G$29) -> 0.07357680915 | Z75: =(-(Inputs!Z125-Inputs!Z$122)*Inputs!$G$29) -> -0.06191555493 | AA75: =(-(Inputs!AA125-Inputs!AA$122)*Inputs!$G$29) -> 0.1647736225 | AB75: =(-(Inputs!AB125-Inputs!AB$122)*Inputs!$G$29) -> -0.1409304491 | AC75: =(-(Inputs!AC125-Inputs!AC$122)*Inputs!$G$29) -> 0.02433501875 | AD75: =(-(Inputs!AD125-Inputs!AD$122)*Inputs!$G$29) -> 0.2156545019 | AE75: =(-(Inputs!AE125-Inputs!AE$122)*Inputs!$G$29) -> 0.004740796109 | AF75: =(-(Inputs!AF125-Inputs!AF$122)*Inputs!$G$29) -> 0.03419339338 | AG75: =(-(Inputs!AG125-Inputs!AG$122)*Inputs!$G$29) -> 0
D76: Option 2B | E76: June $2022 m | F76: -0.4273815882 | G76: =(-(Inputs!G126-Inputs!G$122)*Inputs!$G$29) -> 0 | H76: =(-(Inputs!H126-Inputs!H$122)*Inputs!$G$29) -> -0.003375477927 | I76: =(-(Inputs!I126-Inputs!I$122)*Inputs!$G$29) -> -0.002286372034 | J76: =(-(Inputs!J126-Inputs!J$122)*Inputs!$G$29) -> -0.1523027541 | K76: =(-(Inputs!K126-Inputs!K$122)*Inputs!$G$29) -> 0.07428085241 | L76: =(-(Inputs!L126-Inputs!L$122)*Inputs!$G$29) -> -0.04542615871 | M76: =(-(Inputs!M126-Inputs!M$122)*Inputs!$G$29) -> -0.01525843833 | N76: =(-(Inputs!N126-Inputs!N$122)*Inputs!$G$29) -> -0.1042353745 | O76: =(-(Inputs!O126-Inputs!O$122)*Inputs!$G$29) -> -0.06525910703 | P76: =(-(Inputs!P126-Inputs!P$122)*Inputs!$G$29) -> -0.0959791723 | Q76: =(-(Inputs!Q126-Inputs!Q$122)*Inputs!$G$29) -> -0.2047545038 | R76: =(-(Inputs!R126-Inputs!R$122)*Inputs!$G$29) -> -0.08169220296 | S76: =(-(Inputs!S126-Inputs!S$122)*Inputs!$G$29) -> -0.03491716759 | T76: =(-(Inputs!T126-Inputs!T$122)*Inputs!$G$29) -> -0.01756439241 | U76: =(-(Inputs!U126-Inputs!U$122)*Inputs!$G$29) -> 0.009160683326 | V76: =(-(Inputs!V126-Inputs!V$122)*Inputs!$G$29) -> -0.1157138882 | W76: =(-(Inputs!W126-Inputs!W$122)*Inputs!$G$29) -> -0.05292976456 | X76: =(-(Inputs!X126-Inputs!X$122)*Inputs!$G$29) -> 0.01399509767 | Y76: =(-(Inputs!Y126-Inputs!Y$122)*Inputs!$G$29) -> 0.08954788549 | Z76: =(-(Inputs!Z126-Inputs!Z$122)*Inputs!$G$29) -> -0.04841219167 | AA76: =(-(Inputs!AA126-Inputs!AA$122)*Inputs!$G$29) -> 0.174870333 | AB76: =(-(Inputs!AB126-Inputs!AB$122)*Inputs!$G$29) -> -0.1066800099 | AC76: =(-(Inputs!AC126-Inputs!AC$122)*Inputs!$G$29) -> 0.03260796286 | AD76: =(-(Inputs!AD126-Inputs!AD$122)*Inputs!$G$29) -> 0.1936748705 | AE76: =(-(Inputs!AE126-Inputs!AE$122)*Inputs!$G$29) -> 0.004045975275 | AF76: =(-(Inputs!AF126-Inputs!AF$122)*Inputs!$G$29) -> 0.05317001845 | AG76: =(-(Inputs!AG126-Inputs!AG$122)*Inputs!$G$29) -> 0
D77: Option 3 | E77: June $2022 m | F77: -0.5444268118 | G77: =(-(Inputs!G127-Inputs!G$122)*Inputs!$G$29) -> 0 | H77: =(-(Inputs!H127-Inputs!H$122)*Inputs!$G$29) -> -0.003244074668 | I77: =(-(Inputs!I127-Inputs!I$122)*Inputs!$G$29) -> -0.002070291359 | J77: =(-(Inputs!J127-Inputs!J$122)*Inputs!$G$29) -> -0.09161185932 | K77: =(-(Inputs!K127-Inputs!K$122)*Inputs!$G$29) -> 0.07750230407 | L77: =(-(Inputs!L127-Inputs!L$122)*Inputs!$G$29) -> -0.04469994138 | M77: =(-(Inputs!M127-Inputs!M$122)*Inputs!$G$29) -> -0.04114600358 | N77: =(-(Inputs!N127-Inputs!N$122)*Inputs!$G$29) -> -0.06318816571 | O77: =(-(Inputs!O127-Inputs!O$122)*Inputs!$G$29) -> -0.05956488518 | P77: =(-(Inputs!P127-Inputs!P$122)*Inputs!$G$29) -> -0.07322689405 | Q77: =(-(Inputs!Q127-Inputs!Q$122)*Inputs!$G$29) -> -0.1514799435 | R77: =(-(Inputs!R127-Inputs!R$122)*Inputs!$G$29) -> -0.1118748246 | S77: =(-(Inputs!S127-Inputs!S$122)*Inputs!$G$29) -> -0.0619654789 | T77: =(-(Inputs!T127-Inputs!T$122)*Inputs!$G$29) -> 0.005191025931 | U77: =(-(Inputs!U127-Inputs!U$122)*Inputs!$G$29) -> 0.01603469143 | V77: =(-(Inputs!V127-Inputs!V$122)*Inputs!$G$29) -> -0.2079987346 | W77: =(-(Inputs!W127-Inputs!W$122)*Inputs!$G$29) -> -0.06419333512 | X77: =(-(Inputs!X127-Inputs!X$122)*Inputs!$G$29) -> -0.1251191141 | Y77: =(-(Inputs!Y127-Inputs!Y$122)*Inputs!$G$29) -> -0.0325040395 | Z77: =(-(Inputs!Z127-Inputs!Z$122)*Inputs!$G$29) -> -0.2267099492 | AA77: =(-(Inputs!AA127-Inputs!AA$122)*Inputs!$G$29) -> 0.1199700152 | AB77: =(-(Inputs!AB127-Inputs!AB$122)*Inputs!$G$29) -> -0.1545303578 | AC77: =(-(Inputs!AC127-Inputs!AC$122)*Inputs!$G$29) -> 0.02442319177 | AD77: =(-(Inputs!AD127-Inputs!AD$122)*Inputs!$G$29) -> 0.1368685819 | AE77: =(-(Inputs!AE127-Inputs!AE$122)*Inputs!$G$29) -> 0.2686857071 | AF77: =(-(Inputs!AF127-Inputs!AF$122)*Inputs!$G$29) -> -0.02628925724 | AG77: =(-(Inputs!AG127-Inputs!AG$122)*Inputs!$G$29) -> 0
D78: Option 4 | E78: June $2022 m | F78: 0.9726533384 | G78: =(-(Inputs!G128-Inputs!G$122)*Inputs!$G$29) -> 0 | H78: =(-(Inputs!H128-Inputs!H$122)*Inputs!$G$29) -> 0.0002157437866 | I78: =(-(Inputs!I128-Inputs!I$122)*Inputs!$G$29) -> 0.0004461428517 | J78: =(-(Inputs!J128-Inputs!J$122)*Inputs!$G$29) -> -0.07781440078 | K78: =(-(Inputs!K128-Inputs!K$122)*Inputs!$G$29) -> 0.02841257423 | L78: =(-(Inputs!L128-Inputs!L$122)*Inputs!$G$29) -> -0.2963291086 | M78: =(-(Inputs!M128-Inputs!M$122)*Inputs!$G$29) -> 0.5248350347 | N78: =(-(Inputs!N128-Inputs!N$122)*Inputs!$G$29) -> 0.8053247446 | O78: =(-(Inputs!O128-Inputs!O$122)*Inputs!$G$29) -> 0.5188775387 | P78: =(-(Inputs!P128-Inputs!P$122)*Inputs!$G$29) -> 0.4130801964 | Q78: =(-(Inputs!Q128-Inputs!Q$122)*Inputs!$G$29) -> -0.2434428941 | R78: =(-(Inputs!R128-Inputs!R$122)*Inputs!$G$29) -> -0.0615405795 | S78: =(-(Inputs!S128-Inputs!S$122)*Inputs!$G$29) -> -0.02082181396 | T78: =(-(Inputs!T128-Inputs!T$122)*Inputs!$G$29) -> -0.07001428157 | U78: =(-(Inputs!U128-Inputs!U$122)*Inputs!$G$29) -> -0.04165156847 | V78: =(-(Inputs!V128-Inputs!V$122)*Inputs!$G$29) -> 0.01399160839 | W78: =(-(Inputs!W128-Inputs!W$122)*Inputs!$G$29) -> -0.03850086294 | X78: =(-(Inputs!X128-Inputs!X$122)*Inputs!$G$29) -> 0.009715842749 | Y78: =(-(Inputs!Y128-Inputs!Y$122)*Inputs!$G$29) -> 0.03647844659 | Z78: =(-(Inputs!Z128-Inputs!Z$122)*Inputs!$G$29) -> -0.04272868764 | AA78: =(-(Inputs!AA128-Inputs!AA$122)*Inputs!$G$29) -> 0.01807087685 | AB78: =(-(Inputs!AB128-Inputs!AB$122)*Inputs!$G$29) -> 0.06982774954 | AC78: =(-(Inputs!AC128-Inputs!AC$122)*Inputs!$G$29) -> 0.01125456997 | AD78: =(-(Inputs!AD128-Inputs!AD$122)*Inputs!$G$29) -> 0.2220738872 | AE78: =(-(Inputs!AE128-Inputs!AE$122)*Inputs!$G$29) -> -0.1199872548 | AF78: =(-(Inputs!AF128-Inputs!AF$122)*Inputs!$G$29) -> -0.3791047149 | AG78: =(-(Inputs!AG128-Inputs!AG$122)*Inputs!$G$29) -> 0
C80: Difference in timing of unrelated expenditure | F80: NPV | G80: =Inputs!G$8 -> 2023 | H80: =G80+1 -> 2024 | I80: =H80+1 -> 2025 | J80: =I80+1 -> 2026 | K80: =J80+1 -> 2027 | L80: =K80+1 -> 2028 | M80: =L80+1 -> 2029 | N80: =M80+1 -> 2030 | O80: =N80+1 -> 2031 | P80: =O80+1 -> 2032 | Q80: =P80+1 -> 2033 | R80: =Q80+1 -> 2034 | S80: =R80+1 -> 2035 | T80: =S80+1 -> 2036 | U80: =T80+1 -> 2037 | V80: =U80+1 -> 2038 | W80: =V80+1 -> 2039 | X80: =W80+1 -> 2040 | Y80: =X80+1 -> 2041 | Z80: =Y80+1 -> 2042 | AA80: =Z80+1 -> 2043 | AB80: =AA80+1 -> 2044 | AC80: =AB80+1 -> 2045 | AD80: =AC80+1 -> 2046 | AE80: =AD80+1 -> 2047 | AF80: =AE80+1 -> 2048 | AG80: 2049
D82: Option 1 | E82: June $2022 m | F82: =G82+NPV(Discount_Step,H82:AG82) -> -1.20157681 | G82: =(-(Inputs!G132-Inputs!G$131)*Inputs!$G$30) -> 0 | H82: =(-(Inputs!H132-Inputs!H$131)*Inputs!$G$30) -> 7.935024637e-08 | I82: =(-(Inputs!I132-Inputs!I$131)*Inputs!$G$30) -> 1.216756878e-06 | J82: =(-(Inputs!J132-Inputs!J$131)*Inputs!$G$30) -> 2.898535482e-06 | K82: =(-(Inputs!K132-Inputs!K$131)*Inputs!$G$30) -> 0.003268914355 | L82: =(-(Inputs!L132-Inputs!L$131)*Inputs!$G$30) -> -0.008381530338 | M82: =(-(Inputs!M132-Inputs!M$131)*Inputs!$G$30) -> 0.006171415886 | N82: =(-(Inputs!N132-Inputs!N$131)*Inputs!$G$30) -> 0.003116564652 | O82: =(-(Inputs!O132-Inputs!O$131)*Inputs!$G$30) -> 0.05820927513 | P82: =(-(Inputs!P132-Inputs!P$131)*Inputs!$G$30) -> -0.002958343619 | Q82: =(-(Inputs!Q132-Inputs!Q$131)*Inputs!$G$30) -> -0.02796855051 | R82: =(-(Inputs!R132-Inputs!R$131)*Inputs!$G$30) -> -0.07515820105 | S82: =(-(Inputs!S132-Inputs!S$131)*Inputs!$G$30) -> -0.1884393475 | T82: =(-(Inputs!T132-Inputs!T$131)*Inputs!$G$30) -> -0.227599053 | U82: =(-(Inputs!U132-Inputs!U$131)*Inputs!$G$30) -> -0.1711983824 | V82: =(-(Inputs!V132-Inputs!V$131)*Inputs!$G$30) -> -0.09890265295 | W82: =(-(Inputs!W132-Inputs!W$131)*Inputs!$G$30) -> -0.2110565213 | X82: =(-(Inputs!X132-Inputs!X$131)*Inputs!$G$30) -> -0.1529441937 | Y82: =(-(Inputs!Y132-Inputs!Y$131)*Inputs!$G$30) -> -0.3658950229 | Z82: =(-(Inputs!Z132-Inputs!Z$131)*Inputs!$G$30) -> -0.4571902351 | AA82: =(-(Inputs!AA132-Inputs!AA$131)*Inputs!$G$30) -> -0.2063459761 | AB82: =(-(Inputs!AB132-Inputs!AB$131)*Inputs!$G$30) -> -0.2990116346 | AC82: =(-(Inputs!AC132-Inputs!AC$131)*Inputs!$G$30) -> -0.2939321521 | AD82: =(-(Inputs!AD132-Inputs!AD$131)*Inputs!$G$30) -> -0.7320090091 | AE82: =(-(Inputs!AE132-Inputs!AE$131)*Inputs!$G$30) -> 0.2060161704 | AF82: =(-(Inputs!AF132-Inputs!AF$131)*Inputs!$G$30) -> 0.1007507688 | AG82: =(-(Inputs!AG132-Inputs!AG$131)*Inputs!$G$30) -> 0
D83: Option 2 | E83: June $2022 m | F83: -2.082076768 | G83: =(-(Inputs!G133-Inputs!G$131)*Inputs!$G$30) -> 0 | H83: =(-(Inputs!H133-Inputs!H$131)*Inputs!$G$30) -> -3.151550343e-08 | I83: =(-(Inputs!I133-Inputs!I$131)*Inputs!$G$30) -> 2.440252608e-07 | J83: =(-(Inputs!J133-Inputs!J$131)*Inputs!$G$30) -> 5.738369544e-07 | K83: =(-(Inputs!K133-Inputs!K$131)*Inputs!$G$30) -> 0.002673124458 | L83: =(-(Inputs!L133-Inputs!L$131)*Inputs!$G$30) -> -0.06402121728 | M83: =(-(Inputs!M133-Inputs!M$131)*Inputs!$G$30) -> 0.005790004495 | N83: =(-(Inputs!N133-Inputs!N$131)*Inputs!$G$30) -> -0.001605862843 | O83: =(-(Inputs!O133-Inputs!O$131)*Inputs!$G$30) -> 0.05723742663 | P83: =(-(Inputs!P133-Inputs!P$131)*Inputs!$G$30) -> -0.003363362996 | Q83: =(-(Inputs!Q133-Inputs!Q$131)*Inputs!$G$30) -> -0.0563304239 | R83: =(-(Inputs!R133-Inputs!R$131)*Inputs!$G$30) -> -0.1337787709 | S83: =(-(Inputs!S133-Inputs!S$131)*Inputs!$G$30) -> -0.2386491702 | T83: =(-(Inputs!T133-Inputs!T$131)*Inputs!$G$30) -> -0.2762196556 | U83: =(-(Inputs!U133-Inputs!U$131)*Inputs!$G$30) -> -0.1928082477 | V83: =(-(Inputs!V133-Inputs!V$131)*Inputs!$G$30) -> 0.151854955 | W83: =(-(Inputs!W133-Inputs!W$131)*Inputs!$G$30) -> 0.003719123393 | X83: =(-(Inputs!X133-Inputs!X$131)*Inputs!$G$30) -> -0.018653029 | Y83: =(-(Inputs!Y133-Inputs!Y$131)*Inputs!$G$30) -> -0.9187375954 | Z83: =(-(Inputs!Z133-Inputs!Z$131)*Inputs!$G$30) -> -0.7067081844 | AA83: =(-(Inputs!AA133-Inputs!AA$131)*Inputs!$G$30) -> -0.4462928304 | AB83: =(-(Inputs!AB133-Inputs!AB$131)*Inputs!$G$30) -> -0.9192975982 | AC83: =(-(Inputs!AC133-Inputs!AC$131)*Inputs!$G$30) -> -0.9192414498 | AD83: =(-(Inputs!AD133-Inputs!AD$131)*Inputs!$G$30) -> -1.776408925 | AE83: =(-(Inputs!AE133-Inputs!AE$131)*Inputs!$G$30) -> 0.4781431307 | AF83: =(-(Inputs!AF133-Inputs!AF$131)*Inputs!$G$30) -> 0.2012320694 | AG83: =(-(Inputs!AG133-Inputs!AG$131)*Inputs!$G$30) -> 0
D84: Option 2A | E84: June $2022 m | F84: -2.255168143 | G84: =(-(Inputs!G134-Inputs!G$131)*Inputs!$G$30) -> 0 | H84: =(-(Inputs!H134-Inputs!H$131)*Inputs!$G$30) -> -1.155647208e-08 | I84: =(-(Inputs!I134-Inputs!I$131)*Inputs!$G$30) -> 2.061857107e-08 | J84: =(-(Inputs!J134-Inputs!J$131)*Inputs!$G$30) -> 1.629545608e-07 | K84: =(-(Inputs!K134-Inputs!K$131)*Inputs!$G$30) -> 0.002661967145 | L84: =(-(Inputs!L134-Inputs!L$131)*Inputs!$G$30) -> -0.06443051131 | M84: =(-(Inputs!M134-Inputs!M$131)*Inputs!$G$30) -> 0.005371461079 | N84: =(-(Inputs!N134-Inputs!N$131)*Inputs!$G$30) -> -0.002803490114 | O84: =(-(Inputs!O134-Inputs!O$131)*Inputs!$G$30) -> 0.0581323918 | P84: =(-(Inputs!P134-Inputs!P$131)*Inputs!$G$30) -> -0.003782675321 | Q84: =(-(Inputs!Q134-Inputs!Q$131)*Inputs!$G$30) -> -0.05962400613 | R84: =(-(Inputs!R134-Inputs!R$131)*Inputs!$G$30) -> -0.1372586888 | S84: =(-(Inputs!S134-Inputs!S$131)*Inputs!$G$30) -> -0.2440696814 | T84: =(-(Inputs!T134-Inputs!T$131)*Inputs!$G$30) -> -0.2764962916 | U84: =(-(Inputs!U134-Inputs!U$131)*Inputs!$G$30) -> -0.1967795221 | V84: =(-(Inputs!V134-Inputs!V$131)*Inputs!$G$30) -> 0.1654571542 | W84: =(-(Inputs!W134-Inputs!W$131)*Inputs!$G$30) -> 0.01291249685 | X84: =(-(Inputs!X134-Inputs!X$131)*Inputs!$G$30) -> -0.01833566951 | Y84: =(-(Inputs!Y134-Inputs!Y$131)*Inputs!$G$30) -> -0.9780564185 | Z84: =(-(Inputs!Z134-Inputs!Z$131)*Inputs!$G$30) -> -0.7716654798 | AA84: =(-(Inputs!AA134-Inputs!AA$131)*Inputs!$G$30) -> -0.5489119774 | AB84: =(-(Inputs!AB134-Inputs!AB$131)*Inputs!$G$30) -> -0.9439904232 | AC84: =(-(Inputs!AC134-Inputs!AC$131)*Inputs!$G$30) -> -0.9338926469 | AD84: =(-(Inputs!AD134-Inputs!AD$131)*Inputs!$G$30) -> -1.782990073 | AE84: =(-(Inputs!AE134-Inputs!AE$131)*Inputs!$G$30) -> 0.2916152896 | AF84: =(-(Inputs!AF134-Inputs!AF$131)*Inputs!$G$30) -> 0.1020040809 | AG84: =(-(Inputs!AG134-Inputs!AG$131)*Inputs!$G$30) -> 0
D85: Option 2B | E85: June $2022 m | F85: -2.45098011 | G85: =(-(Inputs!G135-Inputs!G$131)*Inputs!$G$30) -> 0 | H85: =(-(Inputs!H135-Inputs!H$131)*Inputs!$G$30) -> -2.469112595e-08 | I85: =(-(Inputs!I135-Inputs!I$131)*Inputs!$G$30) -> -1.46416044e-06 | J85: =(-(Inputs!J135-Inputs!J$131)*Inputs!$G$30) -> -3.557819307e-06 | K85: =(-(Inputs!K135-Inputs!K$131)*Inputs!$G$30) -> 0.0006543002101 | L85: =(-(Inputs!L135-Inputs!L$131)*Inputs!$G$30) -> -0.04798930947 | M85: =(-(Inputs!M135-Inputs!M$131)*Inputs!$G$30) -> 0.003262697593 | N85: =(-(Inputs!N135-Inputs!N$131)*Inputs!$G$30) -> 0.01024191148 | O85: =(-(Inputs!O135-Inputs!O$131)*Inputs!$G$30) -> 0.05495269218 | P85: =(-(Inputs!P135-Inputs!P$131)*Inputs!$G$30) -> -0.003416337779 | Q85: =(-(Inputs!Q135-Inputs!Q$131)*Inputs!$G$30) -> -0.09565446951 | R85: =(-(Inputs!R135-Inputs!R$131)*Inputs!$G$30) -> -0.1666634383 | S85: =(-(Inputs!S135-Inputs!S$131)*Inputs!$G$30) -> -0.2658027598 | T85: =(-(Inputs!T135-Inputs!T$131)*Inputs!$G$30) -> -0.2681999723 | U85: =(-(Inputs!U135-Inputs!U$131)*Inputs!$G$30) -> -0.2659056259 | V85: =(-(Inputs!V135-Inputs!V$131)*Inputs!$G$30) -> 0.1922235448 | W85: =(-(Inputs!W135-Inputs!W$131)*Inputs!$G$30) -> 0.03067396151 | X85: =(-(Inputs!X135-Inputs!X$131)*Inputs!$G$30) -> 0.02784572793 | Y85: =(-(Inputs!Y135-Inputs!Y$131)*Inputs!$G$30) -> -0.953543341 | Z85: =(-(Inputs!Z135-Inputs!Z$131)*Inputs!$G$30) -> -0.8794782931 | AA85: =(-(Inputs!AA135-Inputs!AA$131)*Inputs!$G$30) -> -0.7203495668 | AB85: =(-(Inputs!AB135-Inputs!AB$131)*Inputs!$G$30) -> -1.083810455 | AC85: =(-(Inputs!AC135-Inputs!AC$131)*Inputs!$G$30) -> -1.058137291 | AD85: =(-(Inputs!AD135-Inputs!AD$131)*Inputs!$G$30) -> -1.781467178 | AE85: =(-(Inputs!AE135-Inputs!AE$131)*Inputs!$G$30) -> 0.4028405011 | AF85: =(-(Inputs!AF135-Inputs!AF$131)*Inputs!$G$30) -> -0.02097916555 | AG85: =(-(Inputs!AG135-Inputs!AG$131)*Inputs!$G$30) -> 0
D86: Option 3 | E86: June $2022 m | F86: 0.7093827335 | G86: =(-(Inputs!G136-Inputs!G$131)*Inputs!$G$30) -> 0 | H86: =(-(Inputs!H136-Inputs!H$131)*Inputs!$G$30) -> -1.865411093e-07 | I86: =(-(Inputs!I136-Inputs!I$131)*Inputs!$G$30) -> -1.878849553e-06 | J86: =(-(Inputs!J136-Inputs!J$131)*Inputs!$G$30) -> -4.182151316e-06 | K86: =(-(Inputs!K136-Inputs!K$131)*Inputs!$G$30) -> 0.002619784493 | L86: =(-(Inputs!L136-Inputs!L$131)*Inputs!$G$30) -> -0.08946352572 | M86: =(-(Inputs!M136-Inputs!M$131)*Inputs!$G$30) -> 0.000247894786 | N86: =(-(Inputs!N136-Inputs!N$131)*Inputs!$G$30) -> -0.001669125215 | O86: =(-(Inputs!O136-Inputs!O$131)*Inputs!$G$30) -> 0.05209309039 | P86: =(-(Inputs!P136-Inputs!P$131)*Inputs!$G$30) -> -0.008424922621 | Q86: =(-(Inputs!Q136-Inputs!Q$131)*Inputs!$G$30) -> -0.09356981543 | R86: =(-(Inputs!R136-Inputs!R$131)*Inputs!$G$30) -> -0.01758404405 | S86: =(-(Inputs!S136-Inputs!S$131)*Inputs!$G$30) -> -0.1238596034 | T86: =(-(Inputs!T136-Inputs!T$131)*Inputs!$G$30) -> -0.1740230419 | U86: =(-(Inputs!U136-Inputs!U$131)*Inputs!$G$30) -> -0.08831466111 | V86: =(-(Inputs!V136-Inputs!V$131)*Inputs!$G$30) -> 0.8970433453 | W86: =(-(Inputs!W136-Inputs!W$131)*Inputs!$G$30) -> 0.6514797558 | X86: =(-(Inputs!X136-Inputs!X$131)*Inputs!$G$30) -> 0.5777430472 | Y86: =(-(Inputs!Y136-Inputs!Y$131)*Inputs!$G$30) -> 0.4530004908 | Z86: =(-(Inputs!Z136-Inputs!Z$131)*Inputs!$G$30) -> 0.9048794501 | AA86: =(-(Inputs!AA136-Inputs!AA$131)*Inputs!$G$30) -> 1.109654354 | AB86: =(-(Inputs!AB136-Inputs!AB$131)*Inputs!$G$30) -> -0.490668336 | AC86: =(-(Inputs!AC136-Inputs!AC$131)*Inputs!$G$30) -> -0.5679102107 | AD86: =(-(Inputs!AD136-Inputs!AD$131)*Inputs!$G$30) -> -2.346455987 | AE86: =(-(Inputs!AE136-Inputs!AE$131)*Inputs!$G$30) -> 0.8499433453 | AF86: =(-(Inputs!AF136-Inputs!AF$131)*Inputs!$G$30) -> -0.004205237181 | AG86: =(-(Inputs!AG136-Inputs!AG$131)*Inputs!$G$30) -> 0
D87: Option 4 | E87: June $2022 m | F87: -2.257245922 | G87: =(-(Inputs!G137-Inputs!G$131)*Inputs!$G$30) -> 0 | H87: =(-(Inputs!H137-Inputs!H$131)*Inputs!$G$30) -> 7.106959632e-09 | I87: =(-(Inputs!I137-Inputs!I$131)*Inputs!$G$30) -> 7.447958653e-07 | J87: =(-(Inputs!J137-Inputs!J$131)*Inputs!$G$30) -> 1.930303534e-06 | K87: =(-(Inputs!K137-Inputs!K$131)*Inputs!$G$30) -> -0.01183016698 | L87: =(-(Inputs!L137-Inputs!L$131)*Inputs!$G$30) -> -0.08496844246 | M87: =(-(Inputs!M137-Inputs!M$131)*Inputs!$G$30) -> -0.02442783987 | N87: =(-(Inputs!N137-Inputs!N$131)*Inputs!$G$30) -> 7.054414334e-05 | O87: =(-(Inputs!O137-Inputs!O$131)*Inputs!$G$30) -> 0.002171614295 | P87: =(-(Inputs!P137-Inputs!P$131)*Inputs!$G$30) -> -0.01989794771 | Q87: =(-(Inputs!Q137-Inputs!Q$131)*Inputs!$G$30) -> 0.0665320338 | R87: =(-(Inputs!R137-Inputs!R$131)*Inputs!$G$30) -> -0.1831808498 | S87: =(-(Inputs!S137-Inputs!S$131)*Inputs!$G$30) -> -0.1868470878 | T87: =(-(Inputs!T137-Inputs!T$131)*Inputs!$G$30) -> -0.1874408754 | U87: =(-(Inputs!U137-Inputs!U$131)*Inputs!$G$30) -> -0.1005723914 | V87: =(-(Inputs!V137-Inputs!V$131)*Inputs!$G$30) -> -0.3571130343 | W87: =(-(Inputs!W137-Inputs!W$131)*Inputs!$G$30) -> -0.4257300989 | X87: =(-(Inputs!X137-Inputs!X$131)*Inputs!$G$30) -> -0.3092194751 | Y87: =(-(Inputs!Y137-Inputs!Y$131)*Inputs!$G$30) -> -0.5115987992 | Z87: =(-(Inputs!Z137-Inputs!Z$131)*Inputs!$G$30) -> -0.4857231425 | AA87: =(-(Inputs!AA137-Inputs!AA$131)*Inputs!$G$30) -> -0.4525406303 | AB87: =(-(Inputs!AB137-Inputs!AB$131)*Inputs!$G$30) -> -0.7139820863 | AC87: =(-(Inputs!AC137-Inputs!AC$131)*Inputs!$G$30) -> -0.6817807637 | AD87: =(-(Inputs!AD137-Inputs!AD$131)*Inputs!$G$30) -> -1.586490567 | AE87: =(-(Inputs!AE137-Inputs!AE$131)*Inputs!$G$30) -> -0.1381715903 | AF87: =(-(Inputs!AF137-Inputs!AF$131)*Inputs!$G$30) -> 0.3127785854 | AG87: =(-(Inputs!AG137-Inputs!AG$131)*Inputs!$G$30) -> 0
C89: Changes in ancillary service costs | F89: NPV | G89: =Inputs!G$8 -> 2023 | H89: =G89+1 -> 2024 | I89: =H89+1 -> 2025 | J89: =I89+1 -> 2026 | K89: =J89+1 -> 2027 | L89: =K89+1 -> 2028 | M89: =L89+1 -> 2029 | N89: =M89+1 -> 2030 | O89: =N89+1 -> 2031 | P89: =O89+1 -> 2032 | Q89: =P89+1 -> 2033 | R89: =Q89+1 -> 2034 | S89: =R89+1 -> 2035 | T89: =S89+1 -> 2036 | U89: =T89+1 -> 2037 | V89: =U89+1 -> 2038 | W89: =V89+1 -> 2039 | X89: =W89+1 -> 2040 | Y89: =X89+1 -> 2041 | Z89: =Y89+1 -> 2042 | AA89: =Z89+1 -> 2043 | AB89: =AA89+1 -> 2044 | AC89: =AB89+1 -> 2045 | AD89: =AC89+1 -> 2046 | AE89: =AD89+1 -> 2047 | AF89: =AE89+1 -> 2048 | AG89: 2049
D91: Option 1 | E91: June $2022 m | F91: =G91+NPV(Discount_Step,H91:AG91) -> 0 | G91: =(-(Inputs!G141-Inputs!G$140)*Inputs!$G$31) -> 0 | H91: =(-(Inputs!H141-Inputs!H$140)*Inputs!$G$31) -> 0 | I91: =(-(Inputs!I141-Inputs!I$140)*Inputs!$G$31) -> 0 | J91: =(-(Inputs!J141-Inputs!J$140)*Inputs!$G$31) -> 0 | K91: =(-(Inputs!K141-Inputs!K$140)*Inputs!$G$31) -> 0 | L91: =(-(Inputs!L141-Inputs!L$140)*Inputs!$G$31) -> 0 | M91: =(-(Inputs!M141-Inputs!M$140)*Inputs!$G$31) -> 0 | N91: =(-(Inputs!N141-Inputs!N$140)*Inputs!$G$31) -> 0 | O91: =(-(Inputs!O141-Inputs!O$140)*Inputs!$G$31) -> 0 | P91: =(-(Inputs!P141-Inputs!P$140)*Inputs!$G$31) -> 0 | Q91: =(-(Inputs!Q141-Inputs!Q$140)*Inputs!$G$31) -> 0 | R91: =(-(Inputs!R141-Inputs!R$140)*Inputs!$G$31) -> 0 | S91: =(-(Inputs!S141-Inputs!S$140)*Inputs!$G$31) -> 0 | T91: =(-(Inputs!T141-Inputs!T$140)*Inputs!$G$31) -> 0 | U91: =(-(Inputs!U141-Inputs!U$140)*Inputs!$G$31) -> 0 | V91: =(-(Inputs!V141-Inputs!V$140)*Inputs!$G$31) -> 0 | W91: =(-(Inputs!W141-Inputs!W$140)*Inputs!$G$31) -> 0 | X91: =(-(Inputs!X141-Inputs!X$140)*Inputs!$G$31) -> 0 | Y91: =(-(Inputs!Y141-Inputs!Y$140)*Inputs!$G$31) -> 0 | Z91: =(-(Inputs!Z141-Inputs!Z$140)*Inputs!$G$31) -> 0 | AA91: =(-(Inputs!AA141-Inputs!AA$140)*Inputs!$G$31) -> 0 | AB91: =(-(Inputs!AB141-Inputs!AB$140)*Inputs!$G$31) -> 0 | AC91: =(-(Inputs!AC141-Inputs!AC$140)*Inputs!$G$31) -> 0 | AD91: =(-(Inputs!AD141-Inputs!AD$140)*Inputs!$G$31) -> 0 | AE91: =(-(Inputs!AE141-Inputs!AE$140)*Inputs!$G$31) -> 0 | AF91: =(-(Inputs!AF141-Inputs!AF$140)*Inputs!$G$31) -> 0 | AG91: =(-(Inputs!AG141-Inputs!AG$140)*Inputs!$G$31) -> 0
D92: Option 2 | E92: June $2022 m | F92: 0 | G92: =(-(Inputs!G142-Inputs!G$140)*Inputs!$G$31) -> 0 | H92: =(-(Inputs!H142-Inputs!H$140)*Inputs!$G$31) -> 0 | I92: =(-(Inputs!I142-Inputs!I$140)*Inputs!$G$31) -> 0 | J92: =(-(Inputs!J142-Inputs!J$140)*Inputs!$G$31) -> 0 | K92: =(-(Inputs!K142-Inputs!K$140)*Inputs!$G$31) -> 0 | L92: =(-(Inputs!L142-Inputs!L$140)*Inputs!$G$31) -> 0 | M92: =(-(Inputs!M142-Inputs!M$140)*Inputs!$G$31) -> 0 | N92: =(-(Inputs!N142-Inputs!N$140)*Inputs!$G$31) -> 0 | O92: =(-(Inputs!O142-Inputs!O$140)*Inputs!$G$31) -> 0 | P92: =(-(Inputs!P142-Inputs!P$140)*Inputs!$G$31) -> 0 | Q92: =(-(Inputs!Q142-Inputs!Q$140)*Inputs!$G$31) -> 0 | R92: =(-(Inputs!R142-Inputs!R$140)*Inputs!$G$31) -> 0 | S92: =(-(Inputs!S142-Inputs!S$140)*Inputs!$G$31) -> 0 | T92: =(-(Inputs!T142-Inputs!T$140)*Inputs!$G$31) -> 0 | U92: =(-(Inputs!U142-Inputs!U$140)*Inputs!$G$31) -> 0 | V92: =(-(Inputs!V142-Inputs!V$140)*Inputs!$G$31) -> 0 | W92: =(-(Inputs!W142-Inputs!W$140)*Inputs!$G$31) -> 0 | X92: =(-(Inputs!X142-Inputs!X$140)*Inputs!$G$31) -> 0 | Y92: =(-(Inputs!Y142-Inputs!Y$140)*Inputs!$G$31) -> 0 | Z92: =(-(Inputs!Z142-Inputs!Z$140)*Inputs!$G$31) -> 0 | AA92: =(-(Inputs!AA142-Inputs!AA$140)*Inputs!$G$31) -> 0 | AB92: =(-(Inputs!AB142-Inputs!AB$140)*Inputs!$G$31) -> 0 | AC92: =(-(Inputs!AC142-Inputs!AC$140)*Inputs!$G$31) -> 0 | AD92: =(-(Inputs!AD142-Inputs!AD$140)*Inputs!$G$31) -> 0 | AE92: =(-(Inputs!AE142-Inputs!AE$140)*Inputs!$G$31) -> 0 | AF92: =(-(Inputs!AF142-Inputs!AF$140)*Inputs!$G$31) -> 0 | AG92: =(-(Inputs!AG142-Inputs!AG$140)*Inputs!$G$31) -> 0
D93: Option 2A | E93: June $2022 m | F93: 0 | G93: =(-(Inputs!G143-Inputs!G$140)*Inputs!$G$31) -> 0 | H93: =(-(Inputs!H143-Inputs!H$140)*Inputs!$G$31) -> 0 | I93: =(-(Inputs!I143-Inputs!I$140)*Inputs!$G$31) -> 0 | J93: =(-(Inputs!J143-Inputs!J$140)*Inputs!$G$31) -> 0 | K93: =(-(Inputs!K143-Inputs!K$140)*Inputs!$G$31) -> 0 | L93: =(-(Inputs!L143-Inputs!L$140)*Inputs!$G$31) -> 0 | M93: =(-(Inputs!M143-Inputs!M$140)*Inputs!$G$31) -> 0 | N93: =(-(Inputs!N143-Inputs!N$140)*Inputs!$G$31) -> 0 | O93: =(-(Inputs!O143-Inputs!O$140)*Inputs!$G$31) -> 0 | P93: =(-(Inputs!P143-Inputs!P$140)*Inputs!$G$31) -> 0 | Q93: =(-(Inputs!Q143-Inputs!Q$140)*Inputs!$G$31) -> 0 | R93: =(-(Inputs!R143-Inputs!R$140)*Inputs!$G$31) -> 0 | S93: =(-(Inputs!S143-Inputs!S$140)*Inputs!$G$31) -> 0 | T93: =(-(Inputs!T143-Inputs!T$140)*Inputs!$G$31) -> 0 | U93: =(-(Inputs!U143-Inputs!U$140)*Inputs!$G$31) -> 0 | V93: =(-(Inputs!V143-Inputs!V$140)*Inputs!$G$31) -> 0 | W93: =(-(Inputs!W143-Inputs!W$140)*Inputs!$G$31) -> 0 | X93: =(-(Inputs!X143-Inputs!X$140)*Inputs!$G$31) -> 0 | Y93: =(-(Inputs!Y143-Inputs!Y$140)*Inputs!$G$31) -> 0 | Z93: =(-(Inputs!Z143-Inputs!Z$140)*Inputs!$G$31) -> 0 | AA93: =(-(Inputs!AA143-Inputs!AA$140)*Inputs!$G$31) -> 0 | AB93: =(-(Inputs!AB143-Inputs!AB$140)*Inputs!$G$31) -> 0 | AC93: =(-(Inputs!AC143-Inputs!AC$140)*Inputs!$G$31) -> 0 | AD93: =(-(Inputs!AD143-Inputs!AD$140)*Inputs!$G$31) -> 0 | AE93: =(-(Inputs!AE143-Inputs!AE$140)*Inputs!$G$31) -> 0 | AF93: =(-(Inputs!AF143-Inputs!AF$140)*Inputs!$G$31) -> 0 | AG93: =(-(Inputs!AG143-Inputs!AG$140)*Inputs!$G$31) -> 0
D94: Option 2B | E94: June $2022 m | F94: 0 | G94: =(-(Inputs!G144-Inputs!G$140)*Inputs!$G$31) -> 0 | H94: =(-(Inputs!H144-Inputs!H$140)*Inputs!$G$31) -> 0 | I94: =(-(Inputs!I144-Inputs!I$140)*Inputs!$G$31) -> 0 | J94: =(-(Inputs!J144-Inputs!J$140)*Inputs!$G$31) -> 0 | K94: =(-(Inputs!K144-Inputs!K$140)*Inputs!$G$31) -> 0 | L94: =(-(Inputs!L144-Inputs!L$140)*Inputs!$G$31) -> 0 | M94: =(-(Inputs!M144-Inputs!M$140)*Inputs!$G$31) -> 0 | N94: =(-(Inputs!N144-Inputs!N$140)*Inputs!$G$31) -> 0 | O94: =(-(Inputs!O144-Inputs!O$140)*Inputs!$G$31) -> 0 | P94: =(-(Inputs!P144-Inputs!P$140)*Inputs!$G$31) -> 0 | Q94: =(-(Inputs!Q144-Inputs!Q$140)*Inputs!$G$31) -> 0 | R94: =(-(Inputs!R144-Inputs!R$140)*Inputs!$G$31) -> 0 | S94: =(-(Inputs!S144-Inputs!S$140)*Inputs!$G$31) -> 0 | T94: =(-(Inputs!T144-Inputs!T$140)*Inputs!$G$31) -> 0 | U94: =(-(Inputs!U144-Inputs!U$140)*Inputs!$G$31) -> 0 | V94: =(-(Inputs!V144-Inputs!V$140)*Inputs!$G$31) -> 0 | W94: =(-(Inputs!W144-Inputs!W$140)*Inputs!$G$31) -> 0 | X94: =(-(Inputs!X144-Inputs!X$140)*Inputs!$G$31) -> 0 | Y94: =(-(Inputs!Y144-Inputs!Y$140)*Inputs!$G$31) -> 0 | Z94: =(-(Inputs!Z144-Inputs!Z$140)*Inputs!$G$31) -> 0 | AA94: =(-(Inputs!AA144-Inputs!AA$140)*Inputs!$G$31) -> 0 | AB94: =(-(Inputs!AB144-Inputs!AB$140)*Inputs!$G$31) -> 0 | AC94: =(-(Inputs!AC144-Inputs!AC$140)*Inputs!$G$31) -> 0 | AD94: =(-(Inputs!AD144-Inputs!AD$140)*Inputs!$G$31) -> 0 | AE94: =(-(Inputs!AE144-Inputs!AE$140)*Inputs!$G$31) -> 0 | AF94: =(-(Inputs!AF144-Inputs!AF$140)*Inputs!$G$31) -> 0 | AG94: =(-(Inputs!AG144-Inputs!AG$140)*Inputs!$G$31) -> 0
D95: Option 3 | E95: June $2022 m | F95: 0 | G95: =(-(Inputs!G145-Inputs!G$140)*Inputs!$G$31) -> 0 | H95: =(-(Inputs!H145-Inputs!H$140)*Inputs!$G$31) -> 0 | I95: =(-(Inputs!I145-Inputs!I$140)*Inputs!$G$31) -> 0 | J95: =(-(Inputs!J145-Inputs!J$140)*Inputs!$G$31) -> 0 | K95: =(-(Inputs!K145-Inputs!K$140)*Inputs!$G$31) -> 0 | L95: =(-(Inputs!L145-Inputs!L$140)*Inputs!$G$31) -> 0 | M95: =(-(Inputs!M145-Inputs!M$140)*Inputs!$G$31) -> 0 | N95: =(-(Inputs!N145-Inputs!N$140)*Inputs!$G$31) -> 0 | O95: =(-(Inputs!O145-Inputs!O$140)*Inputs!$G$31) -> 0 | P95: =(-(Inputs!P145-Inputs!P$140)*Inputs!$G$31) -> 0 | Q95: =(-(Inputs!Q145-Inputs!Q$140)*Inputs!$G$31) -> 0 | R95: =(-(Inputs!R145-Inputs!R$140)*Inputs!$G$31) -> 0 | S95: =(-(Inputs!S145-Inputs!S$140)*Inputs!$G$31) -> 0 | T95: =(-(Inputs!T145-Inputs!T$140)*Inputs!$G$31) -> 0 | U95: =(-(Inputs!U145-Inputs!U$140)*Inputs!$G$31) -> 0 | V95: =(-(Inputs!V145-Inputs!V$140)*Inputs!$G$31) -> 0 | W95: =(-(Inputs!W145-Inputs!W$140)*Inputs!$G$31) -> 0 | X95: =(-(Inputs!X145-Inputs!X$140)*Inputs!$G$31) -> 0 | Y95: =(-(Inputs!Y145-Inputs!Y$140)*Inputs!$G$31) -> 0 | Z95: =(-(Inputs!Z145-Inputs!Z$140)*Inputs!$G$31) -> 0 | AA95: =(-(Inputs!AA145-Inputs!AA$140)*Inputs!$G$31) -> 0 | AB95: =(-(Inputs!AB145-Inputs!AB$140)*Inputs!$G$31) -> 0 | AC95: =(-(Inputs!AC145-Inputs!AC$140)*Inputs!$G$31) -> 0 | AD95: =(-(Inputs!AD145-Inputs!AD$140)*Inputs!$G$31) -> 0 | AE95: =(-(Inputs!AE145-Inputs!AE$140)*Inputs!$G$31) -> 0 | AF95: =(-(Inputs!AF145-Inputs!AF$140)*Inputs!$G$31) -> 0 | AG95: =(-(Inputs!AG145-Inputs!AG$140)*Inputs!$G$31) -> 0
D96: Option 4 | E96: June $2022 m | F96: 0 | G96: =(-(Inputs!G146-Inputs!G$140)*Inputs!$G$31) -> 0 | H96: =(-(Inputs!H146-Inputs!H$140)*Inputs!$G$31) -> 0 | I96: =(-(Inputs!I146-Inputs!I$140)*Inputs!$G$31) -> 0 | J96: =(-(Inputs!J146-Inputs!J$140)*Inputs!$G$31) -> 0 | K96: =(-(Inputs!K146-Inputs!K$140)*Inputs!$G$31) -> 0 | L96: =(-(Inputs!L146-Inputs!L$140)*Inputs!$G$31) -> 0 | M96: =(-(Inputs!M146-Inputs!M$140)*Inputs!$G$31) -> 0 | N96: =(-(Inputs!N146-Inputs!N$140)*Inputs!$G$31) -> 0 | O96: =(-(Inputs!O146-Inputs!O$140)*Inputs!$G$31) -> 0 | P96: =(-(Inputs!P146-Inputs!P$140)*Inputs!$G$31) -> 0 | Q96: =(-(Inputs!Q146-Inputs!Q$140)*Inputs!$G$31) -> 0 | R96: =(-(Inputs!R146-Inputs!R$140)*Inputs!$G$31) -> 0 | S96: =(-(Inputs!S146-Inputs!S$140)*Inputs!$G$31) -> 0 | T96: =(-(Inputs!T146-Inputs!T$140)*Inputs!$G$31) -> 0 | U96: =(-(Inputs!U146-Inputs!U$140)*Inputs!$G$31) -> 0 | V96: =(-(Inputs!V146-Inputs!V$140)*Inputs!$G$31) -> 0 | W96: =(-(Inputs!W146-Inputs!W$140)*Inputs!$G$31) -> 0 | X96: =(-(Inputs!X146-Inputs!X$140)*Inputs!$G$31) -> 0 | Y96: =(-(Inputs!Y146-Inputs!Y$140)*Inputs!$G$31) -> 0 | Z96: =(-(Inputs!Z146-Inputs!Z$140)*Inputs!$G$31) -> 0 | AA96: =(-(Inputs!AA146-Inputs!AA$140)*Inputs!$G$31) -> 0 | AB96: =(-(Inputs!AB146-Inputs!AB$140)*Inputs!$G$31) -> 0 | AC96: =(-(Inputs!AC146-Inputs!AC$140)*Inputs!$G$31) -> 0 | AD96: =(-(Inputs!AD146-Inputs!AD$140)*Inputs!$G$31) -> 0 | AE96: =(-(Inputs!AE146-Inputs!AE$140)*Inputs!$G$31) -> 0 | AF96: =(-(Inputs!AF146-Inputs!AF$140)*Inputs!$G$31) -> 0 | AG96: =(-(Inputs!AG146-Inputs!AG$140)*Inputs!$G$31) -> 0
C98: Voluntary load curtailment | F98: NPV | G98: =Inputs!G$8 -> 2023 | H98: =G98+1 -> 2024 | I98: =H98+1 -> 2025 | J98: =I98+1 -> 2026 | K98: =J98+1 -> 2027 | L98: =K98+1 -> 2028 | M98: =L98+1 -> 2029 | N98: =M98+1 -> 2030 | O98: =N98+1 -> 2031 | P98: =O98+1 -> 2032 | Q98: =P98+1 -> 2033 | R98: =Q98+1 -> 2034 | S98: =R98+1 -> 2035 | T98: =S98+1 -> 2036 | U98: =T98+1 -> 2037 | V98: =U98+1 -> 2038 | W98: =V98+1 -> 2039 | X98: =W98+1 -> 2040 | Y98: =X98+1 -> 2041 | Z98: =Y98+1 -> 2042 | AA98: =Z98+1 -> 2043 | AB98: =AA98+1 -> 2044 | AC98: =AB98+1 -> 2045 | AD98: =AC98+1 -> 2046 | AE98: =AD98+1 -> 2047 | AF98: =AE98+1 -> 2048 | AG98: 2049
D100: Option 1 | E100: June $2022 m | F100: =G100+NPV(Discount_Step,H100:AG100) -> -0.3763626767 | G100: =(-(Inputs!G150-Inputs!G$149)*Inputs!$G$32) -> 0 | H100: =(-(Inputs!H150-Inputs!H$149)*Inputs!$G$32) -> 2.464452671e-05 | I100: =(-(Inputs!I150-Inputs!I$149)*Inputs!$G$32) -> 2.119639393e-05 | J100: =(-(Inputs!J150-Inputs!J$149)*Inputs!$G$32) -> 0.006846879429 | K100: =(-(Inputs!K150-Inputs!K$149)*Inputs!$G$32) -> 0.03609461083 | L100: =(-(Inputs!L150-Inputs!L$149)*Inputs!$G$32) -> 0.005805593436 | M100: =(-(Inputs!M150-Inputs!M$149)*Inputs!$G$32) -> 0.05134965585 | N100: =(-(Inputs!N150-Inputs!N$149)*Inputs!$G$32) -> 3.107777947e-05 | O100: =(-(Inputs!O150-Inputs!O$149)*Inputs!$G$32) -> -0.0007949105426 | P100: =(-(Inputs!P150-Inputs!P$149)*Inputs!$G$32) -> 0.01300543499 | Q100: =(-(Inputs!Q150-Inputs!Q$149)*Inputs!$G$32) -> 0.02088288084 | R100: =(-(Inputs!R150-Inputs!R$149)*Inputs!$G$32) -> -0.1587804235 | S100: =(-(Inputs!S150-Inputs!S$149)*Inputs!$G$32) -> 0.02082176416 | T100: =(-(Inputs!T150-Inputs!T$149)*Inputs!$G$32) -> -0.00692923465 | U100: =(-(Inputs!U150-Inputs!U$149)*Inputs!$G$32) -> -0.0008989643429 | V100: =(-(Inputs!V150-Inputs!V$149)*Inputs!$G$32) -> 0.03366322838 | W100: =(-(Inputs!W150-Inputs!W$149)*Inputs!$G$32) -> 5.865372081e-05 | X100: =(-(Inputs!X150-Inputs!X$149)*Inputs!$G$32) -> -0.04296792634 | Y100: =(-(Inputs!Y150-Inputs!Y$149)*Inputs!$G$32) -> -0.1197435713 | Z100: =(-(Inputs!Z150-Inputs!Z$149)*Inputs!$G$32) -> -0.1839252848 | AA100: =(-(Inputs!AA150-Inputs!AA$149)*Inputs!$G$32) -> -0.08144202021 | AB100: =(-(Inputs!AB150-Inputs!AB$149)*Inputs!$G$32) -> -0.01726898103 | AC100: =(-(Inputs!AC150-Inputs!AC$149)*Inputs!$G$32) -> 0.005691238814 | AD100: =(-(Inputs!AD150-Inputs!AD$149)*Inputs!$G$32) -> -0.2924746422 | AE100: =(-(Inputs!AE150-Inputs!AE$149)*Inputs!$G$32) -> -0.280324319 | AF100: =(-(Inputs!AF150-Inputs!AF$149)*Inputs!$G$32) -> -0.3154479285 | AG100: =(-(Inputs!AG150-Inputs!AG$149)*Inputs!$G$32) -> 0
D101: Option 2 | E101: June $2022 m | F101: -0.4138686458 | G101: =(-(Inputs!G151-Inputs!G$149)*Inputs!$G$32) -> 0 | H101: =(-(Inputs!H151-Inputs!H$149)*Inputs!$G$32) -> 8.252276697e-06 | I101: =(-(Inputs!I151-Inputs!I$149)*Inputs!$G$32) -> 7.356845369e-06 | J101: =(-(Inputs!J151-Inputs!J$149)*Inputs!$G$32) -> 0.0248424615 | K101: =(-(Inputs!K151-Inputs!K$149)*Inputs!$G$32) -> 0.06531689636 | L101: =(-(Inputs!L151-Inputs!L$149)*Inputs!$G$32) -> 0.008038565823 | M101: =(-(Inputs!M151-Inputs!M$149)*Inputs!$G$32) -> 0.08227843021 | N101: =(-(Inputs!N151-Inputs!N$149)*Inputs!$G$32) -> 8.382544192e-06 | O101: =(-(Inputs!O151-Inputs!O$149)*Inputs!$G$32) -> -0.002547633712 | P101: =(-(Inputs!P151-Inputs!P$149)*Inputs!$G$32) -> 0.01268409472 | Q101: =(-(Inputs!Q151-Inputs!Q$149)*Inputs!$G$32) -> 0.02090336325 | R101: =(-(Inputs!R151-Inputs!R$149)*Inputs!$G$32) -> -0.3688255346 | S101: =(-(Inputs!S151-Inputs!S$149)*Inputs!$G$32) -> 0.02079015778 | T101: =(-(Inputs!T151-Inputs!T$149)*Inputs!$G$32) -> -0.008375884524 | U101: =(-(Inputs!U151-Inputs!U$149)*Inputs!$G$32) -> -0.01231444378 | V101: =(-(Inputs!V151-Inputs!V$149)*Inputs!$G$32) -> 0.0187239658 | W101: =(-(Inputs!W151-Inputs!W$149)*Inputs!$G$32) -> 1.969254783e-05 | X101: =(-(Inputs!X151-Inputs!X$149)*Inputs!$G$32) -> -0.01630170636 | Y101: =(-(Inputs!Y151-Inputs!Y$149)*Inputs!$G$32) -> -0.04660146258 | Z101: =(-(Inputs!Z151-Inputs!Z$149)*Inputs!$G$32) -> -0.2490202203 | AA101: =(-(Inputs!AA151-Inputs!AA$149)*Inputs!$G$32) -> -0.01657571095 | AB101: =(-(Inputs!AB151-Inputs!AB$149)*Inputs!$G$32) -> -0.02179382478 | AC101: =(-(Inputs!AC151-Inputs!AC$149)*Inputs!$G$32) -> 0.01865403041 | AD101: =(-(Inputs!AD151-Inputs!AD$149)*Inputs!$G$32) -> -0.2921809243 | AE101: =(-(Inputs!AE151-Inputs!AE$149)*Inputs!$G$32) -> -0.3088921897 | AF101: =(-(Inputs!AF151-Inputs!AF$149)*Inputs!$G$32) -> -0.3223948103 | AG101: =(-(Inputs!AG151-Inputs!AG$149)*Inputs!$G$32) -> 0
D102: Option 2A | E102: June $2022 m | F102: -0.490905645 | G102: =(-(Inputs!G152-Inputs!G$149)*Inputs!$G$32) -> 0 | H102: =(-(Inputs!H152-Inputs!H$149)*Inputs!$G$32) -> 1.70478982e-06 | I102: =(-(Inputs!I152-Inputs!I$149)*Inputs!$G$32) -> 1.647613399e-06 | J102: =(-(Inputs!J152-Inputs!J$149)*Inputs!$G$32) -> 0.02510231915 | K102: =(-(Inputs!K152-Inputs!K$149)*Inputs!$G$32) -> 0.06510375041 | L102: =(-(Inputs!L152-Inputs!L$149)*Inputs!$G$32) -> 0.008029286988 | M102: =(-(Inputs!M152-Inputs!M$149)*Inputs!$G$32) -> 0.08802362745 | N102: =(-(Inputs!N152-Inputs!N$149)*Inputs!$G$32) -> 6.793172207e-06 | O102: =(-(Inputs!O152-Inputs!O$149)*Inputs!$G$32) -> -0.004031076518 | P102: =(-(Inputs!P152-Inputs!P$149)*Inputs!$G$32) -> 0.01241584747 | Q102: =(-(Inputs!Q152-Inputs!Q$149)*Inputs!$G$32) -> 0.02090066802 | R102: =(-(Inputs!R152-Inputs!R$149)*Inputs!$G$32) -> -0.3677060731 | S102: =(-(Inputs!S152-Inputs!S$149)*Inputs!$G$32) -> 0.02077760446 | T102: =(-(Inputs!T152-Inputs!T$149)*Inputs!$G$32) -> -0.00857943256 | U102: =(-(Inputs!U152-Inputs!U$149)*Inputs!$G$32) -> -0.01170215074 | V102: =(-(Inputs!V152-Inputs!V$149)*Inputs!$G$32) -> 0.01573526632 | W102: =(-(Inputs!W152-Inputs!W$149)*Inputs!$G$32) -> 4.313940985e-06 | X102: =(-(Inputs!X152-Inputs!X$149)*Inputs!$G$32) -> -0.016036554 | Y102: =(-(Inputs!Y152-Inputs!Y$149)*Inputs!$G$32) -> -0.02971870155 | Z102: =(-(Inputs!Z152-Inputs!Z$149)*Inputs!$G$32) -> -0.2470908401 | AA102: =(-(Inputs!AA152-Inputs!AA$149)*Inputs!$G$32) -> -0.01431986161 | AB102: =(-(Inputs!AB152-Inputs!AB$149)*Inputs!$G$32) -> -0.02569357285 | AC102: =(-(Inputs!AC152-Inputs!AC$149)*Inputs!$G$32) -> 0.01361162738 | AD102: =(-(Inputs!AD152-Inputs!AD$149)*Inputs!$G$32) -> -0.3152071942 | AE102: =(-(Inputs!AE152-Inputs!AE$149)*Inputs!$G$32) -> -0.5256783305 | AF102: =(-(Inputs!AF152-Inputs!AF$149)*Inputs!$G$32) -> -0.3912600899 | AG102: =(-(Inputs!AG152-Inputs!AG$149)*Inputs!$G$32) -> 0
D103: Option 2B | E103: June $2022 m | F103: -0.7414352959 | G103: =(-(Inputs!G153-Inputs!G$149)*Inputs!$G$32) -> 0 | H103: =(-(Inputs!H153-Inputs!H$149)*Inputs!$G$32) -> -4.083902623e-05 | I103: =(-(Inputs!I153-Inputs!I$149)*Inputs!$G$32) -> -3.687170279e-05 | J103: =(-(Inputs!J153-Inputs!J$149)*Inputs!$G$32) -> 0.02452559146 | K103: =(-(Inputs!K153-Inputs!K$149)*Inputs!$G$32) -> 0.06548033362 | L103: =(-(Inputs!L153-Inputs!L$149)*Inputs!$G$32) -> 0.01177379867 | M103: =(-(Inputs!M153-Inputs!M$149)*Inputs!$G$32) -> 0.1302366319 | N103: =(-(Inputs!N153-Inputs!N$149)*Inputs!$G$32) -> -6.261692589e-05 | O103: =(-(Inputs!O153-Inputs!O$149)*Inputs!$G$32) -> -0.001333691781 | P103: =(-(Inputs!P153-Inputs!P$149)*Inputs!$G$32) -> 0.009850067925 | Q103: =(-(Inputs!Q153-Inputs!Q$149)*Inputs!$G$32) -> 0.02046996548 | R103: =(-(Inputs!R153-Inputs!R$149)*Inputs!$G$32) -> -0.3801134622 | S103: =(-(Inputs!S153-Inputs!S$149)*Inputs!$G$32) -> 0.02069027198 | T103: =(-(Inputs!T153-Inputs!T$149)*Inputs!$G$32) -> -0.009922457018 | U103: =(-(Inputs!U153-Inputs!U$149)*Inputs!$G$32) -> -0.01919440436 | V103: =(-(Inputs!V153-Inputs!V$149)*Inputs!$G$32) -> 0.02441074288 | W103: =(-(Inputs!W153-Inputs!W$149)*Inputs!$G$32) -> -0.0001032009872 | X103: =(-(Inputs!X153-Inputs!X$149)*Inputs!$G$32) -> -0.01516705428 | Y103: =(-(Inputs!Y153-Inputs!Y$149)*Inputs!$G$32) -> -0.06378894279 | Z103: =(-(Inputs!Z153-Inputs!Z$149)*Inputs!$G$32) -> -0.2676141894 | AA103: =(-(Inputs!AA153-Inputs!AA$149)*Inputs!$G$32) -> -0.03505027534 | AB103: =(-(Inputs!AB153-Inputs!AB$149)*Inputs!$G$32) -> -0.03659190531 | AC103: =(-(Inputs!AC153-Inputs!AC$149)*Inputs!$G$32) -> 0.02477592523 | AD103: =(-(Inputs!AD153-Inputs!AD$149)*Inputs!$G$32) -> -0.5184497461 | AE103: =(-(Inputs!AE153-Inputs!AE$149)*Inputs!$G$32) -> -0.9556741038 | AF103: =(-(Inputs!AF153-Inputs!AF$149)*Inputs!$G$32) -> -0.661105365 | AG103: =(-(Inputs!AG153-Inputs!AG$149)*Inputs!$G$32) -> 0
D104: Option 3 | E104: June $2022 m | F104: 0.6355000051 | G104: =(-(Inputs!G154-Inputs!G$149)*Inputs!$G$32) -> 0 | H104: =(-(Inputs!H154-Inputs!H$149)*Inputs!$G$32) -> -3.3023219e-05 | I104: =(-(Inputs!I154-Inputs!I$149)*Inputs!$G$32) -> -3.063494544e-05 | J104: =(-(Inputs!J154-Inputs!J$149)*Inputs!$G$32) -> 0.02509165008 | K104: =(-(Inputs!K154-Inputs!K$149)*Inputs!$G$32) -> 0.04877922694 | L104: =(-(Inputs!L154-Inputs!L$149)*Inputs!$G$32) -> 0.008694297702 | M104: =(-(Inputs!M154-Inputs!M$149)*Inputs!$G$32) -> 0.07862446601 | N104: =(-(Inputs!N154-Inputs!N$149)*Inputs!$G$32) -> 0.0002761104714 | O104: =(-(Inputs!O154-Inputs!O$149)*Inputs!$G$32) -> -0.00387109863 | P104: =(-(Inputs!P154-Inputs!P$149)*Inputs!$G$32) -> 0.01192480443 | Q104: =(-(Inputs!Q154-Inputs!Q$149)*Inputs!$G$32) -> 0.02093654174 | R104: =(-(Inputs!R154-Inputs!R$149)*Inputs!$G$32) -> -0.5260900267 | S104: =(-(Inputs!S154-Inputs!S$149)*Inputs!$G$32) -> 0.02070654206 | T104: =(-(Inputs!T154-Inputs!T$149)*Inputs!$G$32) -> -0.009226191878 | U104: =(-(Inputs!U154-Inputs!U$149)*Inputs!$G$32) -> -0.009249230106 | V104: =(-(Inputs!V154-Inputs!V$149)*Inputs!$G$32) -> -0.01815841242 | W104: =(-(Inputs!W154-Inputs!W$149)*Inputs!$G$32) -> -8.314334191e-05 | X104: =(-(Inputs!X154-Inputs!X$149)*Inputs!$G$32) -> 0.001022452837 | Y104: =(-(Inputs!Y154-Inputs!Y$149)*Inputs!$G$32) -> -0.003277755655 | Z104: =(-(Inputs!Z154-Inputs!Z$149)*Inputs!$G$32) -> -0.2207246973 | AA104: =(-(Inputs!AA154-Inputs!AA$149)*Inputs!$G$32) -> 0.1323609197 | AB104: =(-(Inputs!AB154-Inputs!AB$149)*Inputs!$G$32) -> 0.1205658061 | AC104: =(-(Inputs!AC154-Inputs!AC$149)*Inputs!$G$32) -> -0.008004177406 | AD104: =(-(Inputs!AD154-Inputs!AD$149)*Inputs!$G$32) -> 0.5961270768 | AE104: =(-(Inputs!AE154-Inputs!AE$149)*Inputs!$G$32) -> 1.476773784 | AF104: =(-(Inputs!AF154-Inputs!AF$149)*Inputs!$G$32) -> 0.793422675 | AG104: =(-(Inputs!AG154-Inputs!AG$149)*Inputs!$G$32) -> 0
D105: Option 4 | E105: June $2022 m | F105: 0.3373943062 | G105: =(-(Inputs!G155-Inputs!G$149)*Inputs!$G$32) -> 0 | H105: =(-(Inputs!H155-Inputs!H$149)*Inputs!$G$32) -> 1.907929381e-05 | I105: =(-(Inputs!I155-Inputs!I$149)*Inputs!$G$32) -> 1.612917505e-05 | J105: =(-(Inputs!J155-Inputs!J$149)*Inputs!$G$32) -> 0.2277033666 | K105: =(-(Inputs!K155-Inputs!K$149)*Inputs!$G$32) -> 0.2373133164 | L105: =(-(Inputs!L155-Inputs!L$149)*Inputs!$G$32) -> 0.598459942 | M105: =(-(Inputs!M155-Inputs!M$149)*Inputs!$G$32) -> -0.09220365228 | N105: =(-(Inputs!N155-Inputs!N$149)*Inputs!$G$32) -> 2.407899122e-05 | O105: =(-(Inputs!O155-Inputs!O$149)*Inputs!$G$32) -> 0.06181686081 | P105: =(-(Inputs!P155-Inputs!P$149)*Inputs!$G$32) -> 0.1534978342 | Q105: =(-(Inputs!Q155-Inputs!Q$149)*Inputs!$G$32) -> 0.02062236492 | R105: =(-(Inputs!R155-Inputs!R$149)*Inputs!$G$32) -> -0.1251575314 | S105: =(-(Inputs!S155-Inputs!S$149)*Inputs!$G$32) -> 3.649097653e-05 | T105: =(-(Inputs!T155-Inputs!T$149)*Inputs!$G$32) -> -0.06442293305 | U105: =(-(Inputs!U155-Inputs!U$149)*Inputs!$G$32) -> -0.02457859566 | V105: =(-(Inputs!V155-Inputs!V$149)*Inputs!$G$32) -> 0.02227951239 | W105: =(-(Inputs!W155-Inputs!W$149)*Inputs!$G$32) -> 4.453884446e-05 | X105: =(-(Inputs!X155-Inputs!X$149)*Inputs!$G$32) -> -0.0754944797 | Y105: =(-(Inputs!Y155-Inputs!Y$149)*Inputs!$G$32) -> 0.1830996546 | Z105: =(-(Inputs!Z155-Inputs!Z$149)*Inputs!$G$32) -> -0.0415251589 | AA105: =(-(Inputs!AA155-Inputs!AA$149)*Inputs!$G$32) -> 0.02160707284 | AB105: =(-(Inputs!AB155-Inputs!AB$149)*Inputs!$G$32) -> -0.1648848094 | AC105: =(-(Inputs!AC155-Inputs!AC$149)*Inputs!$G$32) -> 0.1340998631 | AD105: =(-(Inputs!AD155-Inputs!AD$149)*Inputs!$G$32) -> -0.521376108 | AE105: =(-(Inputs!AE155-Inputs!AE$149)*Inputs!$G$32) -> -1.418713186 | AF105: =(-(Inputs!AF155-Inputs!AF$149)*Inputs!$G$32) -> 0.1599090018 | AG105: =(-(Inputs!AG155-Inputs!AG$149)*Inputs!$G$32) -> 0
C107: Involuntary load shedding | F107: NPV | G107: =Inputs!G$8 -> 2023 | H107: =G107+1 -> 2024 | I107: =H107+1 -> 2025 | J107: =I107+1 -> 2026 | K107: =J107+1 -> 2027 | L107: =K107+1 -> 2028 | M107: =L107+1 -> 2029 | N107: =M107+1 -> 2030 | O107: =N107+1 -> 2031 | P107: =O107+1 -> 2032 | Q107: =P107+1 -> 2033 | R107: =Q107+1 -> 2034 | S107: =R107+1 -> 2035 | T107: =S107+1 -> 2036 | U107: =T107+1 -> 2037 | V107: =U107+1 -> 2038 | W107: =V107+1 -> 2039 | X107: =W107+1 -> 2040 | Y107: =X107+1 -> 2041 | Z107: =Y107+1 -> 2042 | AA107: =Z107+1 -> 2043 | AB107: =AA107+1 -> 2044 | AC107: =AB107+1 -> 2045 | AD107: =AC107+1 -> 2046 | AE107: =AD107+1 -> 2047 | AF107: =AE107+1 -> 2048 | AG107: 2049
D109: Option 1 | E109: June $2022 m | F109: =G109+NPV(Discount_Step,H109:AG109) -> 0.1122953027 | G109: =(-(Inputs!G159-Inputs!G$158)*Inputs!$G$33) -> 0 | H109: =(-(Inputs!H159-Inputs!H$158)*Inputs!$G$33) -> 6.860668421e-06 | I109: =(-(Inputs!I159-Inputs!I$158)*Inputs!$G$33) -> -3.246405167e-05 | J109: =(-(Inputs!J159-Inputs!J$158)*Inputs!$G$33) -> 0.006075865395 | K109: =(-(Inputs!K159-Inputs!K$158)*Inputs!$G$33) -> 6.057971614e-06 | L109: =(-(Inputs!L159-Inputs!L$158)*Inputs!$G$33) -> 6.408810271e-06 | M109: =(-(Inputs!M159-Inputs!M$158)*Inputs!$G$33) -> 0.1475925306 | N109: =(-(Inputs!N159-Inputs!N$158)*Inputs!$G$33) -> 7.114490715e-06 | O109: =(-(Inputs!O159-Inputs!O$158)*Inputs!$G$33) -> 7.507199932e-06 | P109: =(-(Inputs!P159-Inputs!P$158)*Inputs!$G$33) -> 7.940870569e-06 | Q109: =(-(Inputs!Q159-Inputs!Q$158)*Inputs!$G$33) -> 8.355531286e-06 | R109: =(-(Inputs!R159-Inputs!R$158)*Inputs!$G$33) -> 8.81601951e-06 | S109: =(-(Inputs!S159-Inputs!S$158)*Inputs!$G$33) -> 9.302313168e-06 | T109: =(-(Inputs!T159-Inputs!T$158)*Inputs!$G$33) -> 9.836965642e-06 | U109: =(-(Inputs!U159-Inputs!U$158)*Inputs!$G$33) -> 1.035009563e-05 | V109: =(-(Inputs!V159-Inputs!V$158)*Inputs!$G$33) -> 1.092550336e-05 | W109: =(-(Inputs!W159-Inputs!W$158)*Inputs!$G$33) -> 1.152111224e-05 | X109: =(-(Inputs!X159-Inputs!X$158)*Inputs!$G$33) -> 1.21884323e-05 | Y109: =(-(Inputs!Y159-Inputs!Y$158)*Inputs!$G$33) -> 1.282368609e-05 | Z109: =(-(Inputs!Z159-Inputs!Z$158)*Inputs!$G$33) -> 1.352757862e-05 | AA109: =(-(Inputs!AA159-Inputs!AA$158)*Inputs!$G$33) -> 1.42740484e-05 | AB109: =(-(Inputs!AB159-Inputs!AB$158)*Inputs!$G$33) -> 1.510563712e-05 | AC109: =(-(Inputs!AC159-Inputs!AC$158)*Inputs!$G$33) -> 1.588844699e-05 | AD109: =(-(Inputs!AD159-Inputs!AD$158)*Inputs!$G$33) -> 1.675931384e-05 | AE109: =(-(Inputs!AE159-Inputs!AE$158)*Inputs!$G$33) -> 1.768902662e-05 | AF109: =(-(Inputs!AF159-Inputs!AF$158)*Inputs!$G$33) -> 1.870688644e-05 | AG109: =(-(Inputs!AG159-Inputs!AG$158)*Inputs!$G$33) -> 0
D110: Option 2 | E110: June $2022 m | F110: 0.1751816714 | G110: =(-(Inputs!G160-Inputs!G$158)*Inputs!$G$33) -> 0 | H110: =(-(Inputs!H160-Inputs!H$158)*Inputs!$G$33) -> 3.964478879e-06 | I110: =(-(Inputs!I160-Inputs!I$158)*Inputs!$G$33) -> -1.445896677e-05 | J110: =(-(Inputs!J160-Inputs!J$158)*Inputs!$G$33) -> 0.003930317864 | K110: =(-(Inputs!K160-Inputs!K$158)*Inputs!$G$33) -> 1.838000126e-06 | L110: =(-(Inputs!L160-Inputs!L$158)*Inputs!$G$33) -> 1.944708063e-06 | M110: =(-(Inputs!M160-Inputs!M$158)*Inputs!$G$33) -> 0.2369025474 | N110: =(-(Inputs!N160-Inputs!N$158)*Inputs!$G$33) -> 2.158953884e-06 | O110: =(-(Inputs!O160-Inputs!O$158)*Inputs!$G$33) -> 2.278311172e-06 | P110: =(-(Inputs!P160-Inputs!P$158)*Inputs!$G$33) -> 2.41000885e-06 | Q110: =(-(Inputs!Q160-Inputs!Q$158)*Inputs!$G$33) -> 2.536037661e-06 | R110: =(-(Inputs!R160-Inputs!R$158)*Inputs!$G$33) -> 2.675853776e-06 | S110: =(-(Inputs!S160-Inputs!S$158)*Inputs!$G$33) -> 2.823435427e-06 | T110: =(-(Inputs!T160-Inputs!T$158)*Inputs!$G$33) -> 2.986045194e-06 | U110: =(-(Inputs!U160-Inputs!U$158)*Inputs!$G$33) -> 3.141810469e-06 | V110: =(-(Inputs!V160-Inputs!V$158)*Inputs!$G$33) -> 3.316521696e-06 | W110: =(-(Inputs!W160-Inputs!W$158)*Inputs!$G$33) -> 3.497167922e-06 | X110: =(-(Inputs!X160-Inputs!X$158)*Inputs!$G$33) -> 3.700159249e-06 | Y110: =(-(Inputs!Y160-Inputs!Y$158)*Inputs!$G$33) -> 3.893116058e-06 | Z110: =(-(Inputs!Z160-Inputs!Z$158)*Inputs!$G$33) -> 4.106844701e-06 | AA110: =(-(Inputs!AA160-Inputs!AA$158)*Inputs!$G$33) -> 4.333468489e-06 | AB110: =(-(Inputs!AB160-Inputs!AB$158)*Inputs!$G$33) -> 4.585690832e-06 | AC110: =(-(Inputs!AC160-Inputs!AC$158)*Inputs!$G$33) -> 4.824102072e-06 | AD110: =(-(Inputs!AD160-Inputs!AD$158)*Inputs!$G$33) -> 5.088023533e-06 | AE110: =(-(Inputs!AE160-Inputs!AE$158)*Inputs!$G$33) -> 5.36961951e-06 | AF110: =(-(Inputs!AF160-Inputs!AF$158)*Inputs!$G$33) -> 5.678624149e-06 | AG110: =(-(Inputs!AG160-Inputs!AG$158)*Inputs!$G$33) -> 0
D111: Option 2A | E111: June $2022 m | F111: 0.1865801895 | G111: =(-(Inputs!G161-Inputs!G$158)*Inputs!$G$33) -> 0 | H111: =(-(Inputs!H161-Inputs!H$158)*Inputs!$G$33) -> 6.157351891e-07 | I111: =(-(Inputs!I161-Inputs!I$158)*Inputs!$G$33) -> -7.598757534e-06 | J111: =(-(Inputs!J161-Inputs!J$158)*Inputs!$G$33) -> 0.003562852533 | K111: =(-(Inputs!K161-Inputs!K$158)*Inputs!$G$33) -> 4.048633288e-07 | L111: =(-(Inputs!L161-Inputs!L$158)*Inputs!$G$33) -> 4.285054939e-07 | M111: =(-(Inputs!M161-Inputs!M$158)*Inputs!$G$33) -> 0.2530802367 | N111: =(-(Inputs!N161-Inputs!N$158)*Inputs!$G$33) -> 4.756946192e-07 | O111: =(-(Inputs!O161-Inputs!O$158)*Inputs!$G$33) -> 5.018821189e-07 | P111: =(-(Inputs!P161-Inputs!P$158)*Inputs!$G$33) -> 5.308753042e-07 | Q111: =(-(Inputs!Q161-Inputs!Q$158)*Inputs!$G$33) -> 5.585782857e-07 | R111: =(-(Inputs!R161-Inputs!R$158)*Inputs!$G$33) -> 5.893712008e-07 | S111: =(-(Inputs!S161-Inputs!S$158)*Inputs!$G$33) -> 6.218342346e-07 | T111: =(-(Inputs!T161-Inputs!T$158)*Inputs!$G$33) -> 6.576123614e-07 | U111: =(-(Inputs!U161-Inputs!U$158)*Inputs!$G$33) -> 6.919013e-07 | V111: =(-(Inputs!V161-Inputs!V$158)*Inputs!$G$33) -> 7.303786608e-07 | W111: =(-(Inputs!W161-Inputs!W$158)*Inputs!$G$33) -> 7.70096488e-07 | X111: =(-(Inputs!X161-Inputs!X$158)*Inputs!$G$33) -> 8.147430227e-07 | Y111: =(-(Inputs!Y161-Inputs!Y$158)*Inputs!$G$33) -> 8.571818605e-07 | Z111: =(-(Inputs!Z161-Inputs!Z$158)*Inputs!$G$33) -> 9.041360475e-07 | AA111: =(-(Inputs!AA161-Inputs!AA$158)*Inputs!$G$33) -> 9.540596696e-07 | AB111: =(-(Inputs!AB161-Inputs!AB$158)*Inputs!$G$33) -> 1.009318285e-06 | AC111: =(-(Inputs!AC161-Inputs!AC$158)*Inputs!$G$33) -> 1.061799416e-06 | AD111: =(-(Inputs!AD161-Inputs!AD$158)*Inputs!$G$33) -> 1.119985474e-06 | AE111: =(-(Inputs!AE161-Inputs!AE$158)*Inputs!$G$33) -> 1.182174409e-06 | AF111: =(-(Inputs!AF161-Inputs!AF$158)*Inputs!$G$33) -> 1.249923258e-06 | AG111: =(-(Inputs!AG161-Inputs!AG$158)*Inputs!$G$33) -> 0
D112: Option 2B | E112: June $2022 m | F112: 0.2724107602 | G112: =(-(Inputs!G162-Inputs!G$158)*Inputs!$G$33) -> 0 | H112: =(-(Inputs!H162-Inputs!H$158)*Inputs!$G$33) -> -6.469383834e-06 | I112: =(-(Inputs!I162-Inputs!I$158)*Inputs!$G$33) -> 5.856607925e-05 | J112: =(-(Inputs!J162-Inputs!J$158)*Inputs!$G$33) -> 0.003664957489 | K112: =(-(Inputs!K162-Inputs!K$158)*Inputs!$G$33) -> -9.992657514e-06 | L112: =(-(Inputs!L162-Inputs!L$158)*Inputs!$G$33) -> -1.057017039e-05 | M112: =(-(Inputs!M162-Inputs!M$158)*Inputs!$G$33) -> 0.3714778203 | N112: =(-(Inputs!N162-Inputs!N$158)*Inputs!$G$33) -> -1.17341693e-05 | O112: =(-(Inputs!O162-Inputs!O$158)*Inputs!$G$33) -> -1.23827239e-05 | P112: =(-(Inputs!P162-Inputs!P$158)*Inputs!$G$33) -> -1.309802595e-05 | Q112: =(-(Inputs!Q162-Inputs!Q$158)*Inputs!$G$33) -> -1.378257308e-05 | R112: =(-(Inputs!R162-Inputs!R$158)*Inputs!$G$33) -> -1.454213728e-05 | S112: =(-(Inputs!S162-Inputs!S$158)*Inputs!$G$33) -> -1.534451765e-05 | T112: =(-(Inputs!T162-Inputs!T$158)*Inputs!$G$33) -> -1.622665528e-05 | U112: =(-(Inputs!U162-Inputs!U$158)*Inputs!$G$33) -> -1.707311704e-05 | V112: =(-(Inputs!V162-Inputs!V$158)*Inputs!$G$33) -> -1.802325891e-05 | W112: =(-(Inputs!W162-Inputs!W$158)*Inputs!$G$33) -> -1.90051771e-05 | X112: =(-(Inputs!X162-Inputs!X$158)*Inputs!$G$33) -> -2.010676822e-05 | Y112: =(-(Inputs!Y162-Inputs!Y$158)*Inputs!$G$33) -> -2.115489571e-05 | Z112: =(-(Inputs!Z162-Inputs!Z$158)*Inputs!$G$33) -> -2.231689303e-05 | AA112: =(-(Inputs!AA162-Inputs!AA$158)*Inputs!$G$33) -> -2.354819047e-05 | AB112: =(-(Inputs!AB162-Inputs!AB$158)*Inputs!$G$33) -> -2.492164851e-05 | AC112: =(-(Inputs!AC162-Inputs!AC$158)*Inputs!$G$33) -> -2.621391169e-05 | AD112: =(-(Inputs!AD162-Inputs!AD$158)*Inputs!$G$33) -> -2.764931058e-05 | AE112: =(-(Inputs!AE162-Inputs!AE$158)*Inputs!$G$33) -> -2.918288493e-05 | AF112: =(-(Inputs!AF162-Inputs!AF$158)*Inputs!$G$33) -> -3.086394379e-05 | AG112: =(-(Inputs!AG162-Inputs!AG$158)*Inputs!$G$33) -> 0
D113: Option 3 | E113: June $2022 m | F113: 0.1616920126 | G113: =(-(Inputs!G163-Inputs!G$158)*Inputs!$G$33) -> 0 | H113: =(-(Inputs!H163-Inputs!H$158)*Inputs!$G$33) -> -5.711101224e-06 | I113: =(-(Inputs!I163-Inputs!I$158)*Inputs!$G$33) -> 4.107027269e-05 | J113: =(-(Inputs!J163-Inputs!J$158)*Inputs!$G$33) -> 0.001102367005 | K113: =(-(Inputs!K163-Inputs!K$158)*Inputs!$G$33) -> -8.721457823e-06 | L113: =(-(Inputs!L163-Inputs!L$158)*Inputs!$G$33) -> -9.223930579e-06 | M113: =(-(Inputs!M163-Inputs!M$158)*Inputs!$G$33) -> 0.2218140428 | N113: =(-(Inputs!N163-Inputs!N$158)*Inputs!$G$33) -> -1.023957224e-05 | O113: =(-(Inputs!O163-Inputs!O$158)*Inputs!$G$33) -> -1.080504356e-05 | P113: =(-(Inputs!P163-Inputs!P$158)*Inputs!$G$33) -> -1.142895486e-05 | Q113: =(-(Inputs!Q163-Inputs!Q$158)*Inputs!$G$33) -> -1.202575852e-05 | R113: =(-(Inputs!R163-Inputs!R$158)*Inputs!$G$33) -> -1.2688422e-05 | S113: =(-(Inputs!S163-Inputs!S$158)*Inputs!$G$33) -> -1.338868047e-05 | T113: =(-(Inputs!T163-Inputs!T$158)*Inputs!$G$33) -> -1.415737955e-05 | U113: =(-(Inputs!U163-Inputs!U$158)*Inputs!$G$33) -> -1.489592936e-05 | V113: =(-(Inputs!V163-Inputs!V$158)*Inputs!$G$33) -> -1.572456776e-05 | W113: =(-(Inputs!W163-Inputs!W$158)*Inputs!$G$33) -> -1.658219883e-05 | X113: =(-(Inputs!X163-Inputs!X$158)*Inputs!$G$33) -> -1.754183033e-05 | Y113: =(-(Inputs!Y163-Inputs!Y$158)*Inputs!$G$33) -> -1.845647804e-05 | Z113: =(-(Inputs!Z163-Inputs!Z$158)*Inputs!$G$33) -> -1.947005585e-05 | AA113: =(-(Inputs!AA163-Inputs!AA$158)*Inputs!$G$33) -> -2.054418986e-05 | AB113: =(-(Inputs!AB163-Inputs!AB$158)*Inputs!$G$33) -> -2.174314196e-05 | AC113: =(-(Inputs!AC163-Inputs!AC$158)*Inputs!$G$33) -> -2.28683566e-05 | AD113: =(-(Inputs!AD163-Inputs!AD$158)*Inputs!$G$33) -> -2.412247812e-05 | AE113: =(-(Inputs!AE163-Inputs!AE$158)*Inputs!$G$33) -> -2.546289574e-05 | AF113: =(-(Inputs!AF163-Inputs!AF$158)*Inputs!$G$33) -> -2.692958655e-05 | AG113: =(-(Inputs!AG163-Inputs!AG$158)*Inputs!$G$33) -> 0
D114: Option 4 | E114: June $2022 m | F114: 1.135293191 | G114: =(-(Inputs!G164-Inputs!G$158)*Inputs!$G$33) -> 0 | H114: =(-(Inputs!H164-Inputs!H$158)*Inputs!$G$33) -> 5.884298659e-06 | I114: =(-(Inputs!I164-Inputs!I$158)*Inputs!$G$33) -> -3.100888095e-05 | J114: =(-(Inputs!J164-Inputs!J$158)*Inputs!$G$33) -> 1.652619493 | K114: =(-(Inputs!K164-Inputs!K$158)*Inputs!$G$33) -> 4.424236347e-06 | L114: =(-(Inputs!L164-Inputs!L$158)*Inputs!$G$33) -> 4.680463995e-06 | M114: =(-(Inputs!M164-Inputs!M$158)*Inputs!$G$33) -> -0.3752561381 | N114: =(-(Inputs!N164-Inputs!N$158)*Inputs!$G$33) -> 5.195541221e-06 | O114: =(-(Inputs!O164-Inputs!O$158)*Inputs!$G$33) -> 5.482435707e-06 | P114: =(-(Inputs!P164-Inputs!P$158)*Inputs!$G$33) -> 5.799130929e-06 | Q114: =(-(Inputs!Q164-Inputs!Q$158)*Inputs!$G$33) -> 6.102025242e-06 | R114: =(-(Inputs!R164-Inputs!R$158)*Inputs!$G$33) -> 6.438274273e-06 | S114: =(-(Inputs!S164-Inputs!S$158)*Inputs!$G$33) -> 6.793419087e-06 | T114: =(-(Inputs!T164-Inputs!T$158)*Inputs!$G$33) -> 7.183900424e-06 | U114: =(-(Inputs!U164-Inputs!U$158)*Inputs!$G$33) -> 7.558589292e-06 | V114: =(-(Inputs!V164-Inputs!V$158)*Inputs!$G$33) -> 7.979082654e-06 | W114: =(-(Inputs!W164-Inputs!W$158)*Inputs!$G$33) -> 8.413803453e-06 | X114: =(-(Inputs!X164-Inputs!X$158)*Inputs!$G$33) -> 8.9011987e-06 | Y114: =(-(Inputs!Y164-Inputs!Y$158)*Inputs!$G$33) -> 9.365111786e-06 | Z114: =(-(Inputs!Z164-Inputs!Z$158)*Inputs!$G$33) -> 9.87929473e-06 | AA114: =(-(Inputs!AA164-Inputs!AA$158)*Inputs!$G$33) -> 1.042436983e-05 | AB114: =(-(Inputs!AB164-Inputs!AB$158)*Inputs!$G$33) -> 1.10319968e-05 | AC114: =(-(Inputs!AC164-Inputs!AC$158)*Inputs!$G$33) -> 1.160365084e-05 | AD114: =(-(Inputs!AD164-Inputs!AD$158)*Inputs!$G$33) -> 1.223941976e-05 | AE114: =(-(Inputs!AE164-Inputs!AE$158)*Inputs!$G$33) -> 1.291852234e-05 | AF114: =(-(Inputs!AF164-Inputs!AF$158)*Inputs!$G$33) -> 1.366191379e-05 | AG114: =(-(Inputs!AG164-Inputs!AG$158)*Inputs!$G$33) -> 0
C116: Total market benefits | F116: NPV | G116: =Inputs!G$8 -> 2023 | H116: =G116+1 -> 2024 | I116: =H116+1 -> 2025 | J116: =I116+1 -> 2026 | K116: =J116+1 -> 2027 | L116: =K116+1 -> 2028 | M116: =L116+1 -> 2029 | N116: =M116+1 -> 2030 | O116: =N116+1 -> 2031 | P116: =O116+1 -> 2032 | Q116: =P116+1 -> 2033 | R116: =Q116+1 -> 2034 | S116: =R116+1 -> 2035 | T116: =S116+1 -> 2036 | U116: =T116+1 -> 2037 | V116: =U116+1 -> 2038 | W116: =V116+1 -> 2039 | X116: =W116+1 -> 2040 | Y116: =X116+1 -> 2041 | Z116: =Y116+1 -> 2042 | AA116: =Z116+1 -> 2043 | AB116: =AA116+1 -> 2044 | AC116: =AB116+1 -> 2045 | AD116: =AC116+1 -> 2046 | AE116: =AD116+1 -> 2047 | AF116: =AE116+1 -> 2048 | AG116: 2049
D118: Option 1 | E118: June $2022 m | F118: =G118+NPV(Discount_Step,H118:AG118) -> 18.71550395 | G118: =SUM(G50,G59,G66,G73,G82,G91,G100,G109) -> 0 | H118: =SUMIF($D$50:$D$114,$D118,H$50:H$114) -> 0.06951620458 | I118: =SUMIF($D$50:$D$114,$D118,I$50:I$114) -> 0.2274814734 | J118: =SUMIF($D$50:$D$114,$D118,J$50:J$114) -> 1.792834382 | K118: 1.11279346 | L118: 1.912278986 | M118: 1.281266649 | N118: 0.975344338 | O118: 1.689385924 | P118: 1.861253108 | Q118: 1.795990043 | R118: 0.9077334057 | S118: 0.7056505559 | T118: 0.7901640307 | U118: 1.168665412 | V118: 1.530274806 | W118: 1.734849711 | X118: 1.659154978 | Y118: 1.984339231 | Z118: 2.919764989 | AA118: 2.046928636 | AB118: 2.289358446 | AC118: 2.343329064 | AD118: 1.420840202 | AE118: 2.59648465 | AF118: 2.410374021 | AG118: 0
D119: Option 2 | E119: June $2022 m | F119: 25.43625243 | G119: =SUM(G51,G60,G67,G74,G83,G92,G101,G110) -> 0 | H119: =SUMIF($D$50:$D$114,$D119,H$50:H$114) -> 0.09702021992 | I119: 0.07844166469 | J119: 2.651441433 | K119: 1.454953997 | L119: 1.925499601 | M119: 1.708479393 | N119: 1.497794034 | O119: 2.269292421 | P119: 2.514790418 | Q119: 2.53229227 | R119: 1.099692194 | S119: 1.032950773 | T119: 1.110720646 | U119: 1.630223788 | V119: 2.448394568 | W119: 2.318839081 | X119: 2.93497492 | Y119: 3.063690022 | Z119: 5.292996434 | AA119: 2.097812983 | AB119: 3.38257317 | AC119: 3.520136166 | AD119: 1.119238424 | AE119: 3.349369007 | AF119: 2.315780496 | AG119: 0
D120: Option 2A | E120: June $2022 m | F120: 25.3141477 | G120: 0 | H120: 0.09691141789 | I120: 0.07825842577 | J120: 2.633495248 | K120: 1.446252219 | L120: 1.900095016 | M120: 1.701990154 | N120: 1.47169491 | O120: 2.266615986 | P120: 2.520289593 | Q120: 2.502830034 | R120: 1.066030468 | S120: 1.013476997 | T120: 1.084710534 | U120: 1.62645232 | V120: 2.445775604 | W120: 2.313371608 | X120: 2.925731646 | Y120: 3.001682256 | Z120: 5.224325754 | AA120: 2.021629213 | AB120: 3.313845107 | AC120: 3.510021142 | AD120: 1.055598979 | AE120: 3.829062614 | AF120: 2.296478348 | AG120: 0
D121: Option 2B | E121: June $2022 m | F121: 23.13861072 | G121: 0 | H121: 0.09688589603 | I121: 0.0776697803 | J121: 2.499698488 | K121: 1.366257598 | L121: 1.534865899 | M121: 1.618562163 | N121: 1.276529038 | O121: 2.032820089 | P121: 2.402060494 | Q121: 2.250902285 | R121: 0.8005086364 | S121: 0.8143932415 | T121: 0.8333831087 | U121: 1.347867805 | V121: 2.284866688 | W121: 2.367281955 | X121: 2.628982853 | Y121: 2.618167691 | Z121: 4.772049087 | AA121: 1.631265623 | AB121: 2.711114397 | AC121: 3.141008702 | AD121: 0.7631302865 | AE121: 4.945863618 | AF121: 2.516004573 | AG121: 0
D122: Option 3 | E122: June $2022 m | F122: 22.06692869 | G122: 0 | H122: 0.08920641632 | I122: 0.06828639256 | J122: 0.8721804656 | K122: 1.385961235 | L122: 1.773717962 | M122: 1.563351005 | N122: 1.699418959 | O122: 2.404295591 | P122: 2.639439606 | Q122: 2.478940425 | R122: 1.276410542 | S122: 1.324528277 | T122: 1.182610948 | U122: 1.414351556 | V122: 2.732690099 | W122: 2.159679551 | X122: 2.986172434 | Y122: 3.211986611 | Z122: 6.90227766 | AA122: 2.77421581 | AB122: 4.077112227 | AC122: 3.117155592 | AD122: 1.179640269 | AE122: -0.8430346806 | AF122: -5.036494842 | AG122: 0
D123: Option 4 | E123: June $2022 m | F123: 107.7699923 | G123: 0 | H123: -0.03259407787 | I123: -0.03630162553 | J123: 12.77638508 | K123: 10.75308969 | L123: 15.30864198 | M123: 4.393871595 | N123: 3.384804043 | O123: 8.115674433 | P123: 7.952993775 | Q123: 10.45083188 | R123: 8.964724018 | S123: 8.74081238 | T123: 9.333349986 | U123: 9.345110331 | V123: 9.436611788 | W123: 9.88008759 | X123: 9.919249905 | Y123: 9.429457159 | Z123: 10.10715582 | AA123: 9.52860291 | AB123: 7.968045996 | AC123: 9.560820472 | AD123: 5.050018583 | AE123: 10.58917891 | AF123: 12.2756133 | AG123: 0

Sheet Progressive Change
C1: Increasing capacity for generation in Molong and Parkes area - Central analysis
C2: Progressive Change scenario
C4: Description: This tab presents the NPV net economic benefit calculations for the credible options in this RIT-T using the assumptions made under the Progressive change scenario. The calculations here determine the preferred option for this RIT-T under the Progressive change scenario.
C6: Net economic benefit
C8: Net economic benefit | F8: NPV | G8: =Inputs!G$8 -> 2023 | H8: =G8+1 -> 2024 | I8: =H8+1 -> 2025 | J8: 2026 | K8: 2027 | L8: 2028 | M8: 2029 | N8: 2030 | O8: 2031 | P8: 2032 | Q8: 2033 | R8: 2034 | S8: 2035 | T8: 2036 | U8: 2037 | V8: 2038 | W8: 2039 | X8: 2040 | Y8: 2041 | Z8: 2042 | AA8: 2043 | AB8: 2044 | AC8: 2045 | AD8: 2046 | AE8: 2047 | AF8: =AE8+1 -> 2048 | AG8: 2049
D10: Option 1 | E10: June $2022 m | F10: =G10+NPV(Discount_Progressive,H10:AG10) -> 13.37235854 | G10: =(G118-G39) -> 0 | H10: =(H118-H39) -> -0.2341607833 | I10: -1.047776406 | J10: -0.3230389168 | K10: 0.8212560023 | L10: 0.7086326834 | M10: 0.8289172673 | N10: 0.7666975463 | O10: 0.56719509 | P10: 0.4686390749 | Q10: 0.6933173979 | R10: 1.216226595 | S10: 1.020432107 | T10: 1.253582443 | U10: 1.254225076 | V10: 1.721411872 | W10: 1.267965768 | X10: 1.502050555 | Y10: 2.884420059 | Z10: 3.243973145 | AA10: 2.28802181 | AB10: 2.169486602 | AC10: 2.668998749 | AD10: 2.397536851 | AE10: 3.391804719 | AF10: 2.215710866 | AG10: =Inputs!G63 -> 1.070272509
D11: Option 2 | E11: June $2022 m | F11: 15.47883438 | G11: =(G119-G40) -> 0 | H11: -0.4419536224 | I11: -4.748351087 | J11: -2.520985586 | K11: 1.097890096 | L11: 1.002358442 | M11: 1.184314802 | N11: 0.962649874 | O11: 0.762131944 | P11: 0.7144780065 | Q11: 1.005043242 | R11: 1.670004461 | S11: 1.398253575 | T11: 1.79862278 | U11: 1.544078987 | V11: 2.474976331 | W11: 1.822141473 | X11: 2.017181571 | Y11: 4.964250143 | Z11: 5.1417738 | AA11: 2.98136072 | AB11: 3.196366629 | AC11: 3.662505349 | AD11: 3.759886987 | AE11: 5.001356737 | AF11: 2.63442464 | AG11: =Inputs!G64 -> 6.09643597
D12: Option 2A | E12: June $2022 m | F12: 14.9892316 | G12: 0 | H12: -0.4888253815 | I12: -5.16066276 | J12: -2.722352205 | K12: 1.087008339 | L12: 0.9917626958 | M12: 1.168999282 | N12: 0.9540383212 | O12: 0.7497504996 | P12: 0.7032764114 | Q12: 0.9936895563 | R12: 1.644177551 | S12: 1.374033715 | T12: 1.775995943 | U12: 1.49483941 | V12: 2.433709955 | W12: 1.808244061 | X12: 1.98840892 | Y12: 4.938729404 | Z12: 5.177750787 | AA12: 3.017065679 | AB12: 3.130637212 | AC12: 3.816956803 | AD12: 3.759949248 | AE12: 4.712423871 | AF12: 3.22691256 | AG12: =Inputs!G65 -> 6.630389762
D13: Option 2B | E13: June $2022 m | F13: -3.9681996 | G13: 0 | H13: -1.568863962 | I13: -16.44363386 | J13: -8.221206234 | K13: 0.8549425559 | L13: 0.7386438293 | M13: 0.9002888176 | N13: 0.7507463644 | O13: 0.5145113973 | P13: 0.5007614855 | Q13: 0.7251735926 | R13: 1.289492482 | S13: 0.9341438271 | T13: 1.41431744 | U13: 1.094223268 | V13: 1.950913531 | W13: 1.41892966 | X13: 1.573599006 | Y13: 4.573440533 | Z13: 5.057631237 | AA13: 2.961152317 | AB13: 2.595750907 | AC13: 3.516776781 | AD13: 3.653855857 | AE13: 4.665231951 | AF13: 3.375197375 | AG13: =Inputs!G66 -> 6.055888579
D14: Option 3 | E14: June $2022 m | F14: -13.55102643 | G14: 0 | H14: -1.968786931 | I14: -23.97134171 | J14: -13.55299711 | K14: 0.7334716335 | L14: 0.7519317876 | M14: 0.975688101 | N14: 0.6842162643 | O14: 0.5106118705 | P14: 0.4540210798 | Q14: 0.7764658233 | R14: 1.445009284 | S14: 1.212356727 | T14: 1.772029088 | U14: 1.487814755 | V14: 2.439166075 | W14: 1.5842137 | X14: 1.787444576 | Y14: 4.902090806 | Z14: 3.064896934 | AA14: 0.3546105388 | AB14: 3.451233509 | AC14: 1.572967011 | AD14: 2.025631849 | AE14: -0.06426362064 | AF14: -2.209665628 | AG14: =Inputs!G67 -> 31.26448849
D15: Option 4 | E15: June $2022 m | F15: -59.51179692 | G15: 0 | H15: -18.77177005 | I15: -98.48510147 | J15: -58.32065238 | K15: 6.765738703 | L15: 6.0199848 | M15: 6.168058622 | N15: 6.140009091 | O15: 7.588231423 | P15: 7.124884735 | Q15: 7.540397863 | R15: 9.459300121 | S15: 8.287549247 | T15: 9.315296953 | U15: 9.560578187 | V15: 9.106234145 | W15: 8.435571452 | X15: 8.999217832 | Y15: 9.863255504 | Z15: 9.954611666 | AA15: 8.276220253 | AB15: 7.756678286 | AC15: 9.114453325 | AD15: 8.664478685 | AE15: 9.06860647 | AF15: 9.700003225 | AG15: =Inputs!G68 -> 43.25692885
C17: Cost calculations
C19: Capital costs | F19: NPV | G19: =Inputs!G$8 -> 2023 | H19: =G19+1 -> 2024 | I19: =H19+1 -> 2025 | J19: 2026 | K19: 2027 | L19: 2028 | M19: 2029 | N19: 2030 | O19: 2031 | P19: 2032 | Q19: 2033 | R19: 2034 | S19: 2035 | T19: 2036 | U19: 2037 | V19: 2038 | W19: 2039 | X19: 2040 | Y19: 2041 | Z19: 2042 | AA19: 2043 | AB19: 2044 | AC19: 2045 | AD19: 2046 | AE19: 2047 | AF19: =AE19+1 -> 2048 | AG19: 2049
D21: Option 1 | E21: June $2022 m | F21: =G21+NPV(Discount_Progressive,H21:AG21) -> 1.275970432 | G21: =Inputs!G74*Inputs!$H$22 -> 0 | H21: =Inputs!H74*Inputs!$H$22 -> 0.2438411262 | I21: =Inputs!I74*Inputs!$H$22 -> 1.162934602 | J21: =Inputs!J74*Inputs!$H$22 -> 0 | K21: =Inputs!K74*Inputs!$H$22 -> 0 | L21: =Inputs!L74*Inputs!$H$22 -> 0 | M21: =Inputs!M74*Inputs!$H$22 -> 0 | N21: =Inputs!N74*Inputs!$H$22 -> 0 | O21: =Inputs!O74*Inputs!$H$22 -> 0 | P21: =Inputs!P74*Inputs!$H$22 -> 0 | Q21: =Inputs!Q74*Inputs!$H$22 -> 0 | R21: =Inputs!R74*Inputs!$H$22 -> 0 | S21: =Inputs!S74*Inputs!$H$22 -> 0 | T21: =Inputs!T74*Inputs!$H$22 -> 0 | U21: =Inputs!U74*Inputs!$H$22 -> 0 | V21: =Inputs!V74*Inputs!$H$22 -> 0 | W21: =Inputs!W74*Inputs!$H$22 -> 0 | X21: =Inputs!X74*Inputs!$H$22 -> 0 | Y21: =Inputs!Y74*Inputs!$H$22 -> 0 | Z21: =Inputs!Z74*Inputs!$H$22 -> 0 | AA21: =Inputs!AA74*Inputs!$H$22 -> 0 | AB21: =Inputs!AB74*Inputs!$H$22 -> 0 | AC21: =Inputs!AC74*Inputs!$H$22 -> 0 | AD21: =Inputs!AD74*Inputs!$H$22 -> 0 | AE21: =Inputs!AE74*Inputs!$H$22 -> 0 | AF21: =Inputs!AF74*Inputs!$H$22 -> 0 | AG21: =Inputs!AG74*Inputs!$H$22 -> 0
D22: Option 2 | E22: June $2022 m | F22: 6.655534306 | G22: =Inputs!G75*Inputs!$H$22 -> 0 | H22: =Inputs!H75*Inputs!$H$22 -> 0.450168233 | I22: =Inputs!I75*Inputs!$H$22 -> 4.754901961 | J22: =Inputs!J75*Inputs!$H$22 -> 2.297733689 | K22: =Inputs!K75*Inputs!$H$22 -> 0 | L22: =Inputs!L75*Inputs!$H$22 -> 0 | M22: =Inputs!M75*Inputs!$H$22 -> 0 | N22: =Inputs!N75*Inputs!$H$22 -> 0 | O22: =Inputs!O75*Inputs!$H$22 -> 0 | P22: =Inputs!P75*Inputs!$H$22 -> 0 | Q22: =Inputs!Q75*Inputs!$H$22 -> 0 | R22: =Inputs!R75*Inputs!$H$22 -> 0 | S22: =Inputs!S75*Inputs!$H$22 -> 0 | T22: =Inputs!T75*Inputs!$H$22 -> 0 | U22: =Inputs!U75*Inputs!$H$22 -> 0 | V22: =Inputs!V75*Inputs!$H$22 -> 0 | W22: =Inputs!W75*Inputs!$H$22 -> 0 | X22: =Inputs!X75*Inputs!$H$22 -> 0 | Y22: =Inputs!Y75*Inputs!$H$22 -> 0 | Z22: =Inputs!Z75*Inputs!$H$22 -> 0 | AA22: =Inputs!AA75*Inputs!$H$22 -> 0 | AB22: =Inputs!AB75*Inputs!$H$22 -> 0 | AC22: =Inputs!AC75*Inputs!$H$22 -> 0 | AD22: =Inputs!AD75*Inputs!$H$22 -> 0 | AE22: =Inputs!AE75*Inputs!$H$22 -> 0 | AF22: =Inputs!AF75*Inputs!$H$22 -> 0 | AG22: =Inputs!AG75*Inputs!$H$22 -> 0
D23: Option 2A | E23: June $2022 m | F23: 7.238456492 | G23: =Inputs!G76*Inputs!$H$22 -> 0 | H23: =Inputs!H76*Inputs!$H$22 -> 0.4970607572 | I23: =Inputs!I76*Inputs!$H$22 -> 5.167556174 | J23: =Inputs!J76*Inputs!$H$22 -> 2.494682291 | K23: =Inputs!K76*Inputs!$H$22 -> 0 | L23: =Inputs!L76*Inputs!$H$22 -> 0 | M23: =Inputs!M76*Inputs!$H$22 -> 0 | N23: =Inputs!N76*Inputs!$H$22 -> 0 | O23: =Inputs!O76*Inputs!$H$22 -> 0 | P23: =Inputs!P76*Inputs!$H$22 -> 0 | Q23: =Inputs!Q76*Inputs!$H$22 -> 0 | R23: =Inputs!R76*Inputs!$H$22 -> 0 | S23: =Inputs!S76*Inputs!$H$22 -> 0 | T23: =Inputs!T76*Inputs!$H$22 -> 0 | U23: =Inputs!U76*Inputs!$H$22 -> 0 | V23: =Inputs!V76*Inputs!$H$22 -> 0 | W23: =Inputs!W76*Inputs!$H$22 -> 0 | X23: =Inputs!X76*Inputs!$H$22 -> 0 | Y23: =Inputs!Y76*Inputs!$H$22 -> 0 | Z23: =Inputs!Z76*Inputs!$H$22 -> 0 | AA23: =Inputs!AA76*Inputs!$H$22 -> 0 | AB23: =Inputs!AB76*Inputs!$H$22 -> 0 | AC23: =Inputs!AC76*Inputs!$H$22 -> 0 | AD23: =Inputs!AD76*Inputs!$H$22 -> 0 | AE23: =Inputs!AE76*Inputs!$H$22 -> 0 | AF23: =Inputs!AF76*Inputs!$H$22 -> 0 | AG23: =Inputs!AG76*Inputs!$H$22 -> 0
D24: Option 2B | E24: June $2022 m | F24: 23.03777214 | G24: =Inputs!G77*Inputs!$H$22 -> 0 | H24: =Inputs!H77*Inputs!$H$22 -> 1.575588815 | I24: =Inputs!I77*Inputs!$H$22 -> 16.44989751 | J24: =Inputs!J77*Inputs!$H$22 -> 7.943593611 | K24: =Inputs!K77*Inputs!$H$22 -> 0 | L24: =Inputs!L77*Inputs!$H$22 -> 0 | M24: =Inputs!M77*Inputs!$H$22 -> 0 | N24: =Inputs!N77*Inputs!$H$22 -> 0 | O24: =Inputs!O77*Inputs!$H$22 -> 0 | P24: =Inputs!P77*Inputs!$H$22 -> 0 | Q24: =Inputs!Q77*Inputs!$H$22 -> 0 | R24: =Inputs!R77*Inputs!$H$22 -> 0 | S24: =Inputs!S77*Inputs!$H$22 -> 0 | T24: =Inputs!T77*Inputs!$H$22 -> 0 | U24: =Inputs!U77*Inputs!$H$22 -> 0 | V24: =Inputs!V77*Inputs!$H$22 -> 0 | W24: =Inputs!W77*Inputs!$H$22 -> 0 | X24: =Inputs!X77*Inputs!$H$22 -> 0 | Y24: =Inputs!Y77*Inputs!$H$22 -> 0 | Z24: =Inputs!Z77*Inputs!$H$22 -> 0 | AA24: =Inputs!AA77*Inputs!$H$22 -> 0 | AB24: =Inputs!AB77*Inputs!$H$22 -> 0 | AC24: =Inputs!AC77*Inputs!$H$22 -> 0 | AD24: =Inputs!AD77*Inputs!$H$22 -> 0 | AE24: =Inputs!AE77*Inputs!$H$22 -> 0 | AF24: =Inputs!AF77*Inputs!$H$22 -> 0 | AG24: =Inputs!AG77*Inputs!$H$22 -> 0
D25: Option 3 | E25: June $2022 m | F25: 34.13172495 | G25: =Inputs!G78*Inputs!$H$22 -> 0 | H25: =Inputs!H78*Inputs!$H$22 -> 1.978864524 | I25: =Inputs!I78*Inputs!$H$22 -> 23.98083691 | J25: =Inputs!J78*Inputs!$H$22 -> 12.57657501 | K25: =Inputs!K78*Inputs!$H$22 -> 0 | L25: =Inputs!L78*Inputs!$H$22 -> 0 | M25: =Inputs!M78*Inputs!$H$22 -> 0 | N25: =Inputs!N78*Inputs!$H$22 -> 0 | O25: =Inputs!O78*Inputs!$H$22 -> 0 | P25: =Inputs!P78*Inputs!$H$22 -> 0 | Q25: =Inputs!Q78*Inputs!$H$22 -> 0 | R25: =Inputs!R78*Inputs!$H$22 -> 0 | S25: =Inputs!S78*Inputs!$H$22 -> 0 | T25: =Inputs!T78*Inputs!$H$22 -> 0 | U25: =Inputs!U78*Inputs!$H$22 -> 0 | V25: =Inputs!V78*Inputs!$H$22 -> 0 | W25: =Inputs!W78*Inputs!$H$22 -> 0 | X25: =Inputs!X78*Inputs!$H$22 -> 0 | Y25: =Inputs!Y78*Inputs!$H$22 -> 0 | Z25: =Inputs!Z78*Inputs!$H$22 -> 0 | AA25: =Inputs!AA78*Inputs!$H$22 -> 0 | AB25: =Inputs!AB78*Inputs!$H$22 -> 0 | AC25: =Inputs!AC78*Inputs!$H$22 -> 0 | AD25: =Inputs!AD78*Inputs!$H$22 -> 0 | AE25: =Inputs!AE78*Inputs!$H$22 -> 0 | AF25: =Inputs!AF78*Inputs!$H$22 -> 0 | AG25: =Inputs!AG78*Inputs!$H$22 -> 0
D26: Option 4 | E26: June $2022 m | F26: 164.5577288 | G26: =Inputs!G79*Inputs!$H$22 -> 0 | H26: =Inputs!H79*Inputs!$H$22 -> 18.75700971 | I26: =Inputs!I79*Inputs!$H$22 -> 98.47430096 | J26: =Inputs!J79*Inputs!$H$22 -> 68.46308543 | K26: =Inputs!K79*Inputs!$H$22 -> 0 | L26: =Inputs!L79*Inputs!$H$22 -> 0 | M26: =Inputs!M79*Inputs!$H$22 -> 0 | N26: =Inputs!N79*Inputs!$H$22 -> 0 | O26: =Inputs!O79*Inputs!$H$22 -> 0 | P26: =Inputs!P79*Inputs!$H$22 -> 0 | Q26: =Inputs!Q79*Inputs!$H$22 -> 0 | R26: =Inputs!R79*Inputs!$H$22 -> 0 | S26: =Inputs!S79*Inputs!$H$22 -> 0 | T26: =Inputs!T79*Inputs!$H$22 -> 0 | U26: =Inputs!U79*Inputs!$H$22 -> 0 | V26: =Inputs!V79*Inputs!$H$22 -> 0 | W26: =Inputs!W79*Inputs!$H$22 -> 0 | X26: =Inputs!X79*Inputs!$H$22 -> 0 | Y26: =Inputs!Y79*Inputs!$H$22 -> 0 | Z26: =Inputs!Z79*Inputs!$H$22 -> 0 | AA26: =Inputs!AA79*Inputs!$H$22 -> 0 | AB26: =Inputs!AB79*Inputs!$H$22 -> 0 | AC26: =Inputs!AC79*Inputs!$H$22 -> 0 | AD26: =Inputs!AD79*Inputs!$H$22 -> 0 | AE26: =Inputs!AE79*Inputs!$H$22 -> 0 | AF26: =Inputs!AF79*Inputs!$H$22 -> 0 | AG26: =Inputs!AG79*Inputs!$H$22 -> 0
C28: Operating costs
D30: Option 1 | E30: June $2022 m | F30: =G30+NPV(Discount_Progressive,H30:AG30) -> 0.1627303712 | G30: =Inputs!G83*Inputs!$H$24 -> 0 | H30: =Inputs!H83*Inputs!$H$24 -> 0 | I30: =Inputs!I83*Inputs!$H$24 -> 0 | J30: =Inputs!J83*Inputs!$H$24 -> 0.01406775728 | K30: =Inputs!K83*Inputs!$H$24 -> 0.01406775728 | L30: =Inputs!L83*Inputs!$H$24 -> 0.01406775728 | M30: =Inputs!M83*Inputs!$H$24 -> 0.01406775728 | N30: =Inputs!N83*Inputs!$H$24 -> 0.01406775728 | O30: =Inputs!O83*Inputs!$H$24 -> 0.01406775728 | P30: =Inputs!P83*Inputs!$H$24 -> 0.01406775728 | Q30: =Inputs!Q83*Inputs!$H$24 -> 0.01406775728 | R30: =Inputs!R83*Inputs!$H$24 -> 0.01406775728 | S30: =Inputs!S83*Inputs!$H$24 -> 0.01406775728 | T30: =Inputs!T83*Inputs!$H$24 -> 0.01406775728 | U30: =Inputs!U83*Inputs!$H$24 -> 0.01406775728 | V30: =Inputs!V83*Inputs!$H$24 -> 0.01406775728 | W30: =Inputs!W83*Inputs!$H$24 -> 0.01406775728 | X30: =Inputs!X83*Inputs!$H$24 -> 0.01406775728 | Y30: =Inputs!Y83*Inputs!$H$24 -> 0.01406775728 | Z30: =Inputs!Z83*Inputs!$H$24 -> 0.01406775728 | AA30: =Inputs!AA83*Inputs!$H$24 -> 0.01406775728 | AB30: =Inputs!AB83*Inputs!$H$24 -> 0.01406775728 | AC30: =Inputs!AC83*Inputs!$H$24 -> 0.01406775728 | AD30: =Inputs!AD83*Inputs!$H$24 -> 0.01406775728 | AE30: =Inputs!AE83*Inputs!$H$24 -> 0.01406775728 | AF30: =Inputs!AF83*Inputs!$H$24 -> 0.01406775728
D31: Option 2 | E31: June $2022 m | F31: 0.8040004099 | G31: =Inputs!G84*Inputs!$H$24 -> 0 | H31: =Inputs!H84*Inputs!$H$24 -> 0 | I31: =Inputs!I84*Inputs!$H$24 -> 0 | J31: =Inputs!J84*Inputs!$H$24 -> 0 | K31: =Inputs!K84*Inputs!$H$24 -> 0.07502803883 | L31: =Inputs!L84*Inputs!$H$24 -> 0.07502803883 | M31: =Inputs!M84*Inputs!$H$24 -> 0.07502803883 | N31: =Inputs!N84*Inputs!$H$24 -> 0.07502803883 | O31: =Inputs!O84*Inputs!$H$24 -> 0.07502803883 | P31: =Inputs!P84*Inputs!$H$24 -> 0.07502803883 | Q31: =Inputs!Q84*Inputs!$H$24 -> 0.07502803883 | R31: =Inputs!R84*Inputs!$H$24 -> 0.07502803883 | S31: =Inputs!S84*Inputs!$H$24 -> 0.07502803883 | T31: =Inputs!T84*Inputs!$H$24 -> 0.07502803883 | U31: =Inputs!U84*Inputs!$H$24 -> 0.07502803883 | V31: =Inputs!V84*Inputs!$H$24 -> 0.07502803883 | W31: =Inputs!W84*Inputs!$H$24 -> 0.07502803883 | X31: =Inputs!X84*Inputs!$H$24 -> 0.07502803883 | Y31: =Inputs!Y84*Inputs!$H$24 -> 0.07502803883 | Z31: =Inputs!Z84*Inputs!$H$24 -> 0.07502803883 | AA31: =Inputs!AA84*Inputs!$H$24 -> 0.07502803883 | AB31: =Inputs!AB84*Inputs!$H$24 -> 0.07502803883 | AC31: =Inputs!AC84*Inputs!$H$24 -> 0.07502803883 | AD31: =Inputs!AD84*Inputs!$H$24 -> 0.07502803883 | AE31: =Inputs!AE84*Inputs!$H$24 -> 0.07502803883 | AF31: =Inputs!AF84*Inputs!$H$24 -> 0.07502803883
D32: Option 2A | E32: June $2022 m | F32: 0.8743504458 | G32: =Inputs!G85*Inputs!$H$24 -> 0 | H32: =Inputs!H85*Inputs!$H$24 -> 0 | I32: =Inputs!I85*Inputs!$H$24 -> 0 | J32: =Inputs!J85*Inputs!$H$24 -> 0 | K32: =Inputs!K85*Inputs!$H$24 -> 0.08159299223 | L32: =Inputs!L85*Inputs!$H$24 -> 0.08159299223 | M32: =Inputs!M85*Inputs!$H$24 -> 0.08159299223 | N32: =Inputs!N85*Inputs!$H$24 -> 0.08159299223 | O32: =Inputs!O85*Inputs!$H$24 -> 0.08159299223 | P32: =Inputs!P85*Inputs!$H$24 -> 0.08159299223 | Q32: =Inputs!Q85*Inputs!$H$24 -> 0.08159299223 | R32: =Inputs!R85*Inputs!$H$24 -> 0.08159299223 | S32: =Inputs!S85*Inputs!$H$24 -> 0.08159299223 | T32: =Inputs!T85*Inputs!$H$24 -> 0.08159299223 | U32: =Inputs!U85*Inputs!$H$24 -> 0.08159299223 | V32: =Inputs!V85*Inputs!$H$24 -> 0.08159299223 | W32: =Inputs!W85*Inputs!$H$24 -> 0.08159299223 | X32: =Inputs!X85*Inputs!$H$24 -> 0.08159299223 | Y32: =Inputs!Y85*Inputs!$H$24 -> 0.08159299223 | Z32: =Inputs!Z85*Inputs!$H$24 -> 0.08159299223 | AA32: =Inputs!AA85*Inputs!$H$24 -> 0.08159299223 | AB32: =Inputs!AB85*Inputs!$H$24 -> 0.08159299223 | AC32: =Inputs!AC85*Inputs!$H$24 -> 0.08159299223 | AD32: =Inputs!AD85*Inputs!$H$24 -> 0.08159299223 | AE32: =Inputs!AE85*Inputs!$H$24 -> 0.08159299223 | AF32: =Inputs!AF85*Inputs!$H$24 -> 0.08159299223
D33: Option 2B | E33: June $2022 m | F33: 2.782846419 | G33: =Inputs!G86*Inputs!$H$24 -> 0 | H33: =Inputs!H86*Inputs!$H$24 -> 0 | I33: =Inputs!I86*Inputs!$H$24 -> 0 | J33: =Inputs!J86*Inputs!$H$24 -> 0 | K33: =Inputs!K86*Inputs!$H$24 -> 0.2596907994 | L33: =Inputs!L86*Inputs!$H$24 -> 0.2596907994 | M33: =Inputs!M86*Inputs!$H$24 -> 0.2596907994 | N33: =Inputs!N86*Inputs!$H$24 -> 0.2596907994 | O33: =Inputs!O86*Inputs!$H$24 -> 0.2596907994 | P33: =Inputs!P86*Inputs!$H$24 -> 0.2596907994 | Q33: =Inputs!Q86*Inputs!$H$24 -> 0.2596907994 | R33: =Inputs!R86*Inputs!$H$24 -> 0.2596907994 | S33: =Inputs!S86*Inputs!$H$24 -> 0.2596907994 | T33: =Inputs!T86*Inputs!$H$24 -> 0.2596907994 | U33: =Inputs!U86*Inputs!$H$24 -> 0.2596907994 | V33: =Inputs!V86*Inputs!$H$24 -> 0.2596907994 | W33: =Inputs!W86*Inputs!$H$24 -> 0.2596907994 | X33: =Inputs!X86*Inputs!$H$24 -> 0.2596907994 | Y33: =Inputs!Y86*Inputs!$H$24 -> 0.2596907994 | Z33: =Inputs!Z86*Inputs!$H$24 -> 0.2596907994 | AA33: =Inputs!AA86*Inputs!$H$24 -> 0.2596907994 | AB33: =Inputs!AB86*Inputs!$H$24 -> 0.2596907994 | AC33: =Inputs!AC86*Inputs!$H$24 -> 0.2596907994 | AD33: =Inputs!AD86*Inputs!$H$24 -> 0.2596907994 | AE33: =Inputs!AE86*Inputs!$H$24 -> 0.2596907994 | AF33: =Inputs!AF86*Inputs!$H$24 -> 0.2596907994
D34: Option 3 | E34: June $2022 m | F34: 4.129547105 | G34: =Inputs!G87*Inputs!$H$24 -> 0 | H34: =Inputs!H87*Inputs!$H$24 -> 0 | I34: =Inputs!I87*Inputs!$H$24 -> 0 | J34: =Inputs!J87*Inputs!$H$24 -> 0 | K34: =Inputs!K87*Inputs!$H$24 -> 0.3853627644 | L34: =Inputs!L87*Inputs!$H$24 -> 0.3853627644 | M34: =Inputs!M87*Inputs!$H$24 -> 0.3853627644 | N34: =Inputs!N87*Inputs!$H$24 -> 0.3853627644 | O34: =Inputs!O87*Inputs!$H$24 -> 0.3853627644 | P34: =Inputs!P87*Inputs!$H$24 -> 0.3853627644 | Q34: =Inputs!Q87*Inputs!$H$24 -> 0.3853627644 | R34: =Inputs!R87*Inputs!$H$24 -> 0.3853627644 | S34: =Inputs!S87*Inputs!$H$24 -> 0.3853627644 | T34: =Inputs!T87*Inputs!$H$24 -> 0.3853627644 | U34: =Inputs!U87*Inputs!$H$24 -> 0.3853627644 | V34: =Inputs!V87*Inputs!$H$24 -> 0.3853627644 | W34: =Inputs!W87*Inputs!$H$24 -> 0.3853627644 | X34: =Inputs!X87*Inputs!$H$24 -> 0.3853627644 | Y34: =Inputs!Y87*Inputs!$H$24 -> 0.3853627644 | Z34: =Inputs!Z87*Inputs!$H$24 -> 0.3853627644 | AA34: =Inputs!AA87*Inputs!$H$24 -> 0.3853627644 | AB34: =Inputs!AB87*Inputs!$H$24 -> 0.3853627644 | AC34: =Inputs!AC87*Inputs!$H$24 -> 0.3853627644 | AD34: =Inputs!AD87*Inputs!$H$24 -> 0.3853627644 | AE34: =Inputs!AE87*Inputs!$H$24 -> 0.3853627644 | AF34: =Inputs!AF87*Inputs!$H$24 -> 0.3853627644
D35: Option 4 | E35: June $2022 m | F35: 19.89901015 | G35: =Inputs!G88*Inputs!$H$24 -> 0 | H35: =Inputs!H88*Inputs!$H$24 -> 0 | I35: =Inputs!I88*Inputs!$H$24 -> 0 | J35: =Inputs!J88*Inputs!$H$24 -> 0 | K35: =Inputs!K88*Inputs!$H$24 -> 1.856943961 | L35: =Inputs!L88*Inputs!$H$24 -> 1.856943961 | M35: =Inputs!M88*Inputs!$H$24 -> 1.856943961 | N35: =Inputs!N88*Inputs!$H$24 -> 1.856943961 | O35: =Inputs!O88*Inputs!$H$24 -> 1.856943961 | P35: =Inputs!P88*Inputs!$H$24 -> 1.856943961 | Q35: =Inputs!Q88*Inputs!$H$24 -> 1.856943961 | R35: =Inputs!R88*Inputs!$H$24 -> 1.856943961 | S35: =Inputs!S88*Inputs!$H$24 -> 1.856943961 | T35: =Inputs!T88*Inputs!$H$24 -> 1.856943961 | U35: =Inputs!U88*Inputs!$H$24 -> 1.856943961 | V35: =Inputs!V88*Inputs!$H$24 -> 1.856943961 | W35: =Inputs!W88*Inputs!$H$24 -> 1.856943961 | X35: =Inputs!X88*Inputs!$H$24 -> 1.856943961 | Y35: =Inputs!Y88*Inputs!$H$24 -> 1.856943961 | Z35: =Inputs!Z88*Inputs!$H$24 -> 1.856943961 | AA35: =Inputs!AA88*Inputs!$H$24 -> 1.856943961 | AB35: =Inputs!AB88*Inputs!$H$24 -> 1.856943961 | AC35: =Inputs!AC88*Inputs!$H$24 -> 1.856943961 | AD35: =Inputs!AD88*Inputs!$H$24 -> 1.856943961 | AE35: =Inputs!AE88*Inputs!$H$24 -> 1.856943961 | AF35: =Inputs!AF88*Inputs!$H$24 -> 1.856943961
C37: Total costs
D39: Option 1 | E39: June $2022 m | F39: =G39+NPV(Discount_Progressive,H39:AG39) -> 1.438700803 | G39: =SUM(G21,G30) -> 0 | H39: 0.2438411262 | I39: 1.162934602 | J39: 0.01406775728 | K39: 0.01406775728 | L39: 0.01406775728 | M39: 0.01406775728 | N39: 0.01406775728 | O39: 0.01406775728 | P39: 0.01406775728 | Q39: 0.01406775728 | R39: 0.01406775728 | S39: 0.01406775728 | T39: 0.01406775728 | U39: 0.01406775728 | V39: 0.01406775728 | W39: 0.01406775728 | X39: 0.01406775728 | Y39: 0.01406775728 | Z39: 0.01406775728 | AA39: 0.01406775728 | AB39: 0.01406775728 | AC39: 0.01406775728 | AD39: 0.01406775728 | AE39: =SUM(AE21,AE30) -> 0.01406775728 | AF39: 0.01406775728 | AG39: 0
D40: Option 2 | E40: June $2022 m | F40: 7.459534716 | G40: 0 | H40: 0.450168233 | I40: 4.754901961 | J40: 2.297733689 | K40: 0.07502803883 | L40: 0.07502803883 | M40: 0.07502803883 | N40: 0.07502803883 | O40: 0.07502803883 | P40: 0.07502803883 | Q40: 0.07502803883 | R40: 0.07502803883 | S40: 0.07502803883 | T40: 0.07502803883 | U40: 0.07502803883 | V40: 0.07502803883 | W40: 0.07502803883 | X40: 0.07502803883 | Y40: 0.07502803883 | Z40: 0.07502803883 | AA40: 0.07502803883 | AB40: 0.07502803883 | AC40: 0.07502803883 | AD40: 0.07502803883 | AE40: 0.07502803883 | AF40: 0.07502803883 | AG40: 0
D41: Option 2A | E41: June $2022 m | F41: 8.112806938 | G41: 0 | H41: 0.4970607572 | I41: 5.167556174 | J41: 2.494682291 | K41: 0.08159299223 | L41: 0.08159299223 | M41: 0.08159299223 | N41: 0.08159299223 | O41: 0.08159299223 | P41: 0.08159299223 | Q41: 0.08159299223 | R41: 0.08159299223 | S41: 0.08159299223 | T41: 0.08159299223 | U41: 0.08159299223 | V41: 0.08159299223 | W41: 0.08159299223 | X41: 0.08159299223 | Y41: 0.08159299223 | Z41: 0.08159299223 | AA41: 0.08159299223 | AB41: 0.08159299223 | AC41: 0.08159299223 | AD41: 0.08159299223 | AE41: 0.08159299223 | AF41: 0.08159299223 | AG41: 0
D42: Option 2B | E42: June $2022 m | F42: 25.82061855 | G42: 0 | H42: 1.575588815 | I42: 16.44989751 | J42: 7.943593611 | K42: 0.2596907994 | L42: 0.2596907994 | M42: 0.2596907994 | N42: 0.2596907994 | O42: 0.2596907994 | P42: 0.2596907994 | Q42: 0.2596907994 | R42: 0.2596907994 | S42: 0.2596907994 | T42: 0.2596907994 | U42: 0.2596907994 | V42: 0.2596907994 | W42: 0.2596907994 | X42: 0.2596907994 | Y42: 0.2596907994 | Z42: 0.2596907994 | AA42: 0.2596907994 | AB42: 0.2596907994 | AC42: 0.2596907994 | AD42: 0.2596907994 | AE42: 0.2596907994 | AF42: 0.2596907994 | AG42: 0
D43: Option 3 | E43: June $2022 m | F43: 38.26127206 | G43: 0 | H43: 1.978864524 | I43: 23.98083691 | J43: 12.57657501 | K43: 0.3853627644 | L43: 0.3853627644 | M43: 0.3853627644 | N43: 0.3853627644 | O43: 0.3853627644 | P43: 0.3853627644 | Q43: 0.3853627644 | R43: 0.3853627644 | S43: 0.3853627644 | T43: 0.3853627644 | U43: 0.3853627644 | V43: 0.3853627644 | W43: 0.3853627644 | X43: 0.3853627644 | Y43: 0.3853627644 | Z43: 0.3853627644 | AA43: 0.3853627644 | AB43: 0.3853627644 | AC43: 0.3853627644 | AD43: 0.3853627644 | AE43: 0.3853627644 | AF43: 0.3853627644 | AG43: 0
D44: Option 4 | E44: June $2022 m | F44: 184.4567389 | G44: 0 | H44: 18.75700971 | I44: 98.47430096 | J44: 68.46308543 | K44: 1.856943961 | L44: 1.856943961 | M44: 1.856943961 | N44: 1.856943961 | O44: 1.856943961 | P44: 1.856943961 | Q44: 1.856943961 | R44: 1.856943961 | S44: 1.856943961 | T44: 1.856943961 | U44: 1.856943961 | V44: 1.856943961 | W44: 1.856943961 | X44: 1.856943961 | Y44: 1.856943961 | Z44: 1.856943961 | AA44: 1.856943961 | AB44: 1.856943961 | AC44: 1.856943961 | AD44: 1.856943961 | AE44: 1.856943961 | AF44: 1.856943961 | AG44: 0
C46: Market benefit calculations
C48: Fuel consumption | F48: NPV | G48: =Inputs!G$8 -> 2023 | H48: =G48+1 -> 2024 | I48: =H48+1 -> 2025 | J48: 2026 | K48: 2027 | L48: 2028 | M48: 2029 | N48: 2030 | O48: 2031 | P48: 2032 | Q48: 2033 | R48: 2034 | S48: 2035 | T48: 2036 | U48: 2037 | V48: 2038 | W48: 2039 | X48: 2040 | Y48: 2041 | Z48: 2042 | AA48: 2043 | AB48: 2044 | AC48: 2045 | AD48: 2046 | AE48: 2047 | AF48: =AE48+1 -> 2048 | AG48: 2049
D50: Option 1 | E50: June $2022 m | F50: =G50+NPV(Discount_Progressive,H50:AG50) -> 2.983505565 | G50: =(-(Inputs!G171-Inputs!G$170)*Inputs!$H$28) -> 0 | H50: =(-(Inputs!H171-Inputs!H$170)*Inputs!$H$28) -> 0.01664593933 | I50: =(-(Inputs!I171-Inputs!I$170)*Inputs!$H$28) -> 0.1226232644 | J50: =(-(Inputs!J171-Inputs!J$170)*Inputs!$H$28) -> 0.5366483491 | K50: =(-(Inputs!K171-Inputs!K$170)*Inputs!$H$28) -> 0.6623430878 | L50: =(-(Inputs!L171-Inputs!L$170)*Inputs!$H$28) -> 0.694434389 | M50: =(-(Inputs!M171-Inputs!M$170)*Inputs!$H$28) -> 0.8475016803 | N50: =(-(Inputs!N171-Inputs!N$170)*Inputs!$H$28) -> 0.8116876548 | O50: =(-(Inputs!O171-Inputs!O$170)*Inputs!$H$28) -> 0.9624051276 | P50: =(-(Inputs!P171-Inputs!P$170)*Inputs!$H$28) -> 0.8934537846 | Q50: =(-(Inputs!Q171-Inputs!Q$170)*Inputs!$H$28) -> 0.9782067045 | R50: =(-(Inputs!R171-Inputs!R$170)*Inputs!$H$28) -> -0.4042418453 | S50: =(-(Inputs!S171-Inputs!S$170)*Inputs!$H$28) -> -0.6480826 | T50: =(-(Inputs!T171-Inputs!T$170)*Inputs!$H$28) -> -0.5340744526 | U50: =(-(Inputs!U171-Inputs!U$170)*Inputs!$H$28) -> -0.4878117352 | V50: =(-(Inputs!V171-Inputs!V$170)*Inputs!$H$28) -> -0.6192547089 | W50: =(-(Inputs!W171-Inputs!W$170)*Inputs!$H$28) -> -0.4887971901 | X50: =(-(Inputs!X171-Inputs!X$170)*Inputs!$H$28) -> -0.5010702146 | Y50: =(-(Inputs!Y171-Inputs!Y$170)*Inputs!$H$28) -> 0.2914496839 | Z50: =(-(Inputs!Z171-Inputs!Z$170)*Inputs!$H$28) -> 0.6439010737 | AA50: =(-(Inputs!AA171-Inputs!AA$170)*Inputs!$H$28) -> -1.059764009 | AB50: =(-(Inputs!AB171-Inputs!AB$170)*Inputs!$H$28) -> -0.401938173 | AC50: =(-(Inputs!AC171-Inputs!AC$170)*Inputs!$H$28) -> 0.07954583785 | AD50: =(-(Inputs!AD171-Inputs!AD$170)*Inputs!$H$28) -> -0.662329563 | AE50: =(-(Inputs!AE171-Inputs!AE$170)*Inputs!$H$28) -> 1.585596784 | AF50: =(-(Inputs!AF171-Inputs!AF$170)*Inputs!$H$28) -> 0.1480628077 | AG50: =(-(Inputs!AG171-Inputs!AG$170)*Inputs!$H$28) -> 0
D51: Option 2 | E51: June $2022 m | F51: 3.019423726 | G51: =(-(Inputs!G172-Inputs!G$170)*Inputs!$H$28) -> 0 | H51: =(-(Inputs!H172-Inputs!H$170)*Inputs!$H$28) -> 0.01462207663 | I51: =(-(Inputs!I172-Inputs!I$170)*Inputs!$H$28) -> 0.01210200394 | J51: =(-(Inputs!J172-Inputs!J$170)*Inputs!$H$28) -> 0.7659026133 | K51: =(-(Inputs!K172-Inputs!K$170)*Inputs!$H$28) -> 0.9782888185 | L51: =(-(Inputs!L172-Inputs!L$170)*Inputs!$H$28) -> 1.042509414 | M51: =(-(Inputs!M172-Inputs!M$170)*Inputs!$H$28) -> 1.243037391 | N51: =(-(Inputs!N172-Inputs!N$170)*Inputs!$H$28) -> 1.259545232 | O51: =(-(Inputs!O172-Inputs!O$170)*Inputs!$H$28) -> 1.432736013 | P51: =(-(Inputs!P172-Inputs!P$170)*Inputs!$H$28) -> 1.467108562 | Q51: =(-(Inputs!Q172-Inputs!Q$170)*Inputs!$H$28) -> 1.512386923 | R51: =(-(Inputs!R172-Inputs!R$170)*Inputs!$H$28) -> -0.5577228199 | S51: =(-(Inputs!S172-Inputs!S$170)*Inputs!$H$28) -> -1.274265602 | T51: =(-(Inputs!T172-Inputs!T$170)*Inputs!$H$28) -> -0.8783452174 | U51: =(-(Inputs!U172-Inputs!U$170)*Inputs!$H$28) -> -0.7798850616 | V51: =(-(Inputs!V172-Inputs!V$170)*Inputs!$H$28) -> -1.45980014 | W51: =(-(Inputs!W172-Inputs!W$170)*Inputs!$H$28) -> -1.155069759 | X51: =(-(Inputs!X172-Inputs!X$170)*Inputs!$H$28) -> -1.049279786 | Y51: =(-(Inputs!Y172-Inputs!Y$170)*Inputs!$H$28) -> 0.1736372659 | Z51: =(-(Inputs!Z172-Inputs!Z$170)*Inputs!$H$28) -> 0.6762484114 | AA51: =(-(Inputs!AA172-Inputs!AA$170)*Inputs!$H$28) -> -1.929687088 | AB51: =(-(Inputs!AB172-Inputs!AB$170)*Inputs!$H$28) -> -0.8594068076 | AC51: =(-(Inputs!AC172-Inputs!AC$170)*Inputs!$H$28) -> 0.006880403809 | AD51: =(-(Inputs!AD172-Inputs!AD$170)*Inputs!$H$28) -> -1.384852632 | AE51: =(-(Inputs!AE172-Inputs!AE$170)*Inputs!$H$28) -> 2.19870083 | AF51: =(-(Inputs!AF172-Inputs!AF$170)*Inputs!$H$28) -> 0.148697623 | AG51: =(-(Inputs!AG172-Inputs!AG$170)*Inputs!$H$28) -> 0
D52: Option 2A | E52: June $2022 m | F52: 3.135312996 | G52: =(-(Inputs!G173-Inputs!G$170)*Inputs!$H$28) -> 0 | H52: =(-(Inputs!H173-Inputs!H$170)*Inputs!$H$28) -> 0.01440349651 | I52: =(-(Inputs!I173-Inputs!I$170)*Inputs!$H$28) -> 0.01223305933 | J52: =(-(Inputs!J173-Inputs!J$170)*Inputs!$H$28) -> 0.7610861529 | K52: =(-(Inputs!K173-Inputs!K$170)*Inputs!$H$28) -> 0.9737727448 | L52: =(-(Inputs!L173-Inputs!L$170)*Inputs!$H$28) -> 1.038414323 | M52: =(-(Inputs!M173-Inputs!M$170)*Inputs!$H$28) -> 1.234666297 | N52: =(-(Inputs!N173-Inputs!N$170)*Inputs!$H$28) -> 1.254595153 | O52: =(-(Inputs!O173-Inputs!O$170)*Inputs!$H$28) -> 1.42481094 | P52: =(-(Inputs!P173-Inputs!P$170)*Inputs!$H$28) -> 1.4610201 | Q52: =(-(Inputs!Q173-Inputs!Q$170)*Inputs!$H$28) -> 1.505450259 | R52: =(-(Inputs!R173-Inputs!R$170)*Inputs!$H$28) -> -0.563693199 | S52: =(-(Inputs!S173-Inputs!S$170)*Inputs!$H$28) -> -1.273389601 | T52: =(-(Inputs!T173-Inputs!T$170)*Inputs!$H$28) -> -0.8999372355 | U52: =(-(Inputs!U173-Inputs!U$170)*Inputs!$H$28) -> -0.8183896495 | V52: =(-(Inputs!V173-Inputs!V$170)*Inputs!$H$28) -> -1.550906939 | W52: =(-(Inputs!W173-Inputs!W$170)*Inputs!$H$28) -> -1.121779287 | X52: =(-(Inputs!X173-Inputs!X$170)*Inputs!$H$28) -> -1.011931437 | Y52: =(-(Inputs!Y173-Inputs!Y$170)*Inputs!$H$28) -> 0.1379702338 | Z52: =(-(Inputs!Z173-Inputs!Z$170)*Inputs!$H$28) -> 1.02067117 | AA52: =(-(Inputs!AA173-Inputs!AA$170)*Inputs!$H$28) -> -1.863050451 | AB52: =(-(Inputs!AB173-Inputs!AB$170)*Inputs!$H$28) -> -0.8607178041 | AC52: =(-(Inputs!AC173-Inputs!AC$170)*Inputs!$H$28) -> -0.08121685079 | AD52: =(-(Inputs!AD173-Inputs!AD$170)*Inputs!$H$28) -> -2.048799674 | AE52: =(-(Inputs!AE173-Inputs!AE$170)*Inputs!$H$28) -> 2.548919158 | AF52: =(-(Inputs!AF173-Inputs!AF$170)*Inputs!$H$28) -> 0.8482980248 | AG52: =(-(Inputs!AG173-Inputs!AG$170)*Inputs!$H$28) -> 0
D53: Option 2B | E53: June $2022 m | F53: 2.786605339 | G53: =(-(Inputs!G174-Inputs!G$170)*Inputs!$H$28) -> 0 | H53: =(-(Inputs!H174-Inputs!H$170)*Inputs!$H$28) -> 0.01228391228 | I53: =(-(Inputs!I174-Inputs!I$170)*Inputs!$H$28) -> 0.01182303619 | J53: =(-(Inputs!J174-Inputs!J$170)*Inputs!$H$28) -> 0.7100232089 | K53: =(-(Inputs!K174-Inputs!K$170)*Inputs!$H$28) -> 0.9218385518 | L53: =(-(Inputs!L174-Inputs!L$170)*Inputs!$H$28) -> 0.961147339 | M53: =(-(Inputs!M174-Inputs!M$170)*Inputs!$H$28) -> 1.13882568 | N53: =(-(Inputs!N174-Inputs!N$170)*Inputs!$H$28) -> 1.126822734 | O53: =(-(Inputs!O174-Inputs!O$170)*Inputs!$H$28) -> 1.283090655 | P53: =(-(Inputs!P174-Inputs!P$170)*Inputs!$H$28) -> 1.337598131 | Q53: =(-(Inputs!Q174-Inputs!Q$170)*Inputs!$H$28) -> 1.359704391 | R53: =(-(Inputs!R174-Inputs!R$170)*Inputs!$H$28) -> -0.7401849665 | S53: =(-(Inputs!S174-Inputs!S$170)*Inputs!$H$28) -> -1.175831212 | T53: =(-(Inputs!T174-Inputs!T$170)*Inputs!$H$28) -> -0.9055473435 | U53: =(-(Inputs!U174-Inputs!U$170)*Inputs!$H$28) -> -0.6537876442 | V53: =(-(Inputs!V174-Inputs!V$170)*Inputs!$H$28) -> -1.648831092 | W53: =(-(Inputs!W174-Inputs!W$170)*Inputs!$H$28) -> -1.272730274 | X53: =(-(Inputs!X174-Inputs!X$170)*Inputs!$H$28) -> -1.10271597 | Y53: =(-(Inputs!Y174-Inputs!Y$170)*Inputs!$H$28) -> 0.01329723859 | Z53: =(-(Inputs!Z174-Inputs!Z$170)*Inputs!$H$28) -> 1.063479191 | AA53: =(-(Inputs!AA174-Inputs!AA$170)*Inputs!$H$28) -> -1.597608614 | AB53: =(-(Inputs!AB174-Inputs!AB$170)*Inputs!$H$28) -> -0.593961755 | AC53: =(-(Inputs!AC174-Inputs!AC$170)*Inputs!$H$28) -> -0.5702032283 | AD53: =(-(Inputs!AD174-Inputs!AD$170)*Inputs!$H$28) -> -3.433458112 | AE53: =(-(Inputs!AE174-Inputs!AE$170)*Inputs!$H$28) -> 4.776092563 | AF53: =(-(Inputs!AF174-Inputs!AF$170)*Inputs!$H$28) -> 1.300426797 | AG53: =(-(Inputs!AG174-Inputs!AG$170)*Inputs!$H$28) -> 0
D54: Option 3 | E54: June $2022 m | F54: 0.5486248312 | G54: =(-(Inputs!G175-Inputs!G$170)*Inputs!$H$28) -> 0 | H54: =(-(Inputs!H175-Inputs!H$170)*Inputs!$H$28) -> 0.0170086349 | I54: =(-(Inputs!I175-Inputs!I$170)*Inputs!$H$28) -> 0.01591846241 | J54: =(-(Inputs!J175-Inputs!J$170)*Inputs!$H$28) -> 0.0524386927 | K54: =(-(Inputs!K175-Inputs!K$170)*Inputs!$H$28) -> 0.9167033154 | L54: =(-(Inputs!L175-Inputs!L$170)*Inputs!$H$28) -> 1.104896453 | M54: =(-(Inputs!M175-Inputs!M$170)*Inputs!$H$28) -> 1.343997966 | N54: =(-(Inputs!N175-Inputs!N$170)*Inputs!$H$28) -> 1.375961902 | O54: =(-(Inputs!O175-Inputs!O$170)*Inputs!$H$28) -> 1.559762162 | P54: =(-(Inputs!P175-Inputs!P$170)*Inputs!$H$28) -> 1.595241219 | Q54: =(-(Inputs!Q175-Inputs!Q$170)*Inputs!$H$28) -> 1.645057461 | R54: =(-(Inputs!R175-Inputs!R$170)*Inputs!$H$28) -> -0.6030271474 | S54: =(-(Inputs!S175-Inputs!S$170)*Inputs!$H$28) -> -1.193052264 | T54: =(-(Inputs!T175-Inputs!T$170)*Inputs!$H$28) -> -0.8078078456 | U54: =(-(Inputs!U175-Inputs!U$170)*Inputs!$H$28) -> -0.8824050921 | V54: =(-(Inputs!V175-Inputs!V$170)*Inputs!$H$28) -> -1.224006315 | W54: =(-(Inputs!W175-Inputs!W$170)*Inputs!$H$28) -> -0.9226981581 | X54: =(-(Inputs!X175-Inputs!X$170)*Inputs!$H$28) -> -1.217640114 | Y54: =(-(Inputs!Y175-Inputs!Y$170)*Inputs!$H$28) -> 0.1413948206 | Z54: =(-(Inputs!Z175-Inputs!Z$170)*Inputs!$H$28) -> -2.168411983 | AA54: =(-(Inputs!AA175-Inputs!AA$170)*Inputs!$H$28) -> -3.504980772 | AB54: =(-(Inputs!AB175-Inputs!AB$170)*Inputs!$H$28) -> 0.1982844979 | AC54: =(-(Inputs!AC175-Inputs!AC$170)*Inputs!$H$28) -> 2.941144039 | AD54: =(-(Inputs!AD175-Inputs!AD$170)*Inputs!$H$28) -> 1.938909622 | AE54: =(-(Inputs!AE175-Inputs!AE$170)*Inputs!$H$28) -> -0.8959377442 | AF54: =(-(Inputs!AF175-Inputs!AF$170)*Inputs!$H$28) -> -8.167924829 | AG54: =(-(Inputs!AG175-Inputs!AG$170)*Inputs!$H$28) -> 0
D55: Option 4 | E55: June $2022 m | F55: 20.57344444 | G55: =(-(Inputs!G176-Inputs!G$170)*Inputs!$H$28) -> 0 | H55: =(-(Inputs!H176-Inputs!H$170)*Inputs!$H$28) -> -0.02821411881 | I55: =(-(Inputs!I176-Inputs!I$170)*Inputs!$H$28) -> -0.0195361018 | J55: =(-(Inputs!J176-Inputs!J$170)*Inputs!$H$28) -> 2.895584696 | K55: =(-(Inputs!K176-Inputs!K$170)*Inputs!$H$28) -> 3.210028031 | L55: =(-(Inputs!L176-Inputs!L$170)*Inputs!$H$28) -> 2.804939651 | M55: =(-(Inputs!M176-Inputs!M$170)*Inputs!$H$28) -> 2.197501026 | N55: =(-(Inputs!N176-Inputs!N$170)*Inputs!$H$28) -> 1.951449198 | O55: =(-(Inputs!O176-Inputs!O$170)*Inputs!$H$28) -> 3.005944221 | P55: =(-(Inputs!P176-Inputs!P$170)*Inputs!$H$28) -> 2.277848498 | Q55: =(-(Inputs!Q176-Inputs!Q$170)*Inputs!$H$28) -> 2.975767514 | R55: =(-(Inputs!R176-Inputs!R$170)*Inputs!$H$28) -> 3.002052481 | S55: =(-(Inputs!S176-Inputs!S$170)*Inputs!$H$28) -> 3.279285142 | T55: =(-(Inputs!T176-Inputs!T$170)*Inputs!$H$28) -> 0.3215821913 | U55: =(-(Inputs!U176-Inputs!U$170)*Inputs!$H$28) -> 0.1191203166 | V55: =(-(Inputs!V176-Inputs!V$170)*Inputs!$H$28) -> 1.604244978 | W55: =(-(Inputs!W176-Inputs!W$170)*Inputs!$H$28) -> 0.5608308946 | X55: =(-(Inputs!X176-Inputs!X$170)*Inputs!$H$28) -> 0.8044992416 | Y55: =(-(Inputs!Y176-Inputs!Y$170)*Inputs!$H$28) -> 0.275692964 | Z55: =(-(Inputs!Z176-Inputs!Z$170)*Inputs!$H$28) -> -0.158834184 | AA55: =(-(Inputs!AA176-Inputs!AA$170)*Inputs!$H$28) -> -0.4395013964 | AB55: =(-(Inputs!AB176-Inputs!AB$170)*Inputs!$H$28) -> 0.276617103 | AC55: =(-(Inputs!AC176-Inputs!AC$170)*Inputs!$H$28) -> -0.02013111693 | AD55: =(-(Inputs!AD176-Inputs!AD$170)*Inputs!$H$28) -> -3.220731862 | AE55: =(-(Inputs!AE176-Inputs!AE$170)*Inputs!$H$28) -> 3.392656673 | AF55: =(-(Inputs!AF176-Inputs!AF$170)*Inputs!$H$28) -> 1.923729619 | AG55: =(-(Inputs!AG176-Inputs!AG$170)*Inputs!$H$28) -> 0
C57: Costs for parties other than the RIT-T proponent | F57: NPV | G57: =Inputs!G$8 -> 2023 | H57: =G57+1 -> 2024 | I57: =H57+1 -> 2025 | J57: 2026 | K57: 2027 | L57: 2028 | M57: 2029 | N57: 2030 | O57: 2031 | P57: 2032 | Q57: 2033 | R57: 2034 | S57: 2035 | T57: 2036 | U57: 2037 | V57: 2038 | W57: 2039 | X57: 2040 | Y57: 2041 | Z57: 2042 | AA57: 2043 | AB57: 2044 | AC57: 2045 | AD57: 2046 | AE57: 2047 | AF57: =AE57+1 -> 2048 | AG57: 2049
D58: Capital costs
D59: Option 1 | E59: June $2022 m | F59: =G59+NPV(Discount_Progressive,H59:AG59) -> 10.01191651 | G59: =(-(Inputs!G181-Inputs!G$180)*Inputs!$H$29) -> 0 | H59: =(-(Inputs!H181-Inputs!H$180)*Inputs!$H$29) -> 0 | I59: =(-(Inputs!I181-Inputs!I$180)*Inputs!$H$29) -> 0.002047170319 | J59: =(-(Inputs!J181-Inputs!J$180)*Inputs!$H$29) -> 0.2689859929 | K59: =(-(Inputs!K181-Inputs!K$180)*Inputs!$H$29) -> 0.1460405576 | L59: =(-(Inputs!L181-Inputs!L$180)*Inputs!$H$29) -> 0.1464053189 | M59: =(-(Inputs!M181-Inputs!M$180)*Inputs!$H$29) -> 0.1738517661 | N59: =(-(Inputs!N181-Inputs!N$180)*Inputs!$H$29) -> -0.09519528085 | O59: =(-(Inputs!O181-Inputs!O$180)*Inputs!$H$29) -> -0.4380106199 | P59: =(-(Inputs!P181-Inputs!P$180)*Inputs!$H$29) -> -0.4391785196 | Q59: =(-(Inputs!Q181-Inputs!Q$180)*Inputs!$H$29) -> -0.4723560896 | R59: =(-(Inputs!R181-Inputs!R$180)*Inputs!$H$29) -> 1.43797497 | S59: =(-(Inputs!S181-Inputs!S$180)*Inputs!$H$29) -> 1.353854061 | T59: =(-(Inputs!T181-Inputs!T$180)*Inputs!$H$29) -> 1.4228121 | U59: =(-(Inputs!U181-Inputs!U$180)*Inputs!$H$29) -> 1.41812799 | V59: =(-(Inputs!V181-Inputs!V$180)*Inputs!$H$29) -> 1.815835549 | W59: =(-(Inputs!W181-Inputs!W$180)*Inputs!$H$29) -> 1.419067247 | X59: =(-(Inputs!X181-Inputs!X$180)*Inputs!$H$29) -> 1.617776958 | Y59: =(-(Inputs!Y181-Inputs!Y$180)*Inputs!$H$29) -> 2.065641729 | Z59: =(-(Inputs!Z181-Inputs!Z$180)*Inputs!$H$29) -> 2.04053235 | AA59: =(-(Inputs!AA181-Inputs!AA$180)*Inputs!$H$29) -> 2.608006943 | AB59: =(-(Inputs!AB181-Inputs!AB$180)*Inputs!$H$29) -> 2.110470642 | AC59: =(-(Inputs!AC181-Inputs!AC$180)*Inputs!$H$29) -> 2.28173752 | AD59: =(-(Inputs!AD181-Inputs!AD$180)*Inputs!$H$29) -> 2.453689437 | AE59: =(-(Inputs!AE181-Inputs!AE$180)*Inputs!$H$29) -> 1.245659067 | AF59: =(-(Inputs!AF181-Inputs!AF$180)*Inputs!$H$29) -> 1.900954974 | AG59: =(-(Inputs!AG181-Inputs!AG$180)*Inputs!$H$29) -> 0
D60: Option 2 | E60: June $2022 m | F60: 15.66858498 | G60: =(-(Inputs!G182-Inputs!G$180)*Inputs!$H$29) -> 0 | H60: =(-(Inputs!H182-Inputs!H$180)*Inputs!$H$29) -> 0 | I60: =(-(Inputs!I182-Inputs!I$180)*Inputs!$H$29) -> 0.002975024375 | J60: =(-(Inputs!J182-Inputs!J$180)*Inputs!$H$29) -> 0.3258597534 | K60: =(-(Inputs!K182-Inputs!K$180)*Inputs!$H$29) -> 0.1750986725 | L60: =(-(Inputs!L182-Inputs!L$180)*Inputs!$H$29) -> 0.1755995823 | M60: =(-(Inputs!M182-Inputs!M$180)*Inputs!$H$29) -> 0.2060171103 | N60: =(-(Inputs!N182-Inputs!N$180)*Inputs!$H$29) -> -0.3169227737 | O60: =(-(Inputs!O182-Inputs!O$180)*Inputs!$H$29) -> -0.7103734236 | P60: =(-(Inputs!P182-Inputs!P$180)*Inputs!$H$29) -> -0.7122768936 | Q60: =(-(Inputs!Q182-Inputs!Q$180)*Inputs!$H$29) -> -0.7673076036 | R60: =(-(Inputs!R182-Inputs!R$180)*Inputs!$H$29) -> 2.124073784 | S60: =(-(Inputs!S182-Inputs!S$180)*Inputs!$H$29) -> 2.212224025 | T60: =(-(Inputs!T182-Inputs!T$180)*Inputs!$H$29) -> 2.299838675 | U60: =(-(Inputs!U182-Inputs!U$180)*Inputs!$H$29) -> 2.055364866 | V60: =(-(Inputs!V182-Inputs!V$180)*Inputs!$H$29) -> 3.233105134 | W60: =(-(Inputs!W182-Inputs!W$180)*Inputs!$H$29) -> 2.44067857 | X60: =(-(Inputs!X182-Inputs!X$180)*Inputs!$H$29) -> 2.52173747 | Y60: =(-(Inputs!Y182-Inputs!Y$180)*Inputs!$H$29) -> 3.90083003 | Z60: =(-(Inputs!Z182-Inputs!Z$180)*Inputs!$H$29) -> 3.62308074 | AA60: =(-(Inputs!AA182-Inputs!AA$180)*Inputs!$H$29) -> 4.142638071 | AB60: =(-(Inputs!AB182-Inputs!AB$180)*Inputs!$H$29) -> 3.3628668 | AC60: =(-(Inputs!AC182-Inputs!AC$180)*Inputs!$H$29) -> 3.027699085 | AD60: =(-(Inputs!AD182-Inputs!AD$180)*Inputs!$H$29) -> 4.03794234 | AE60: =(-(Inputs!AE182-Inputs!AE$180)*Inputs!$H$29) -> 2.078360727 | AF60: =(-(Inputs!AF182-Inputs!AF$180)*Inputs!$H$29) -> 2.202050677 | AG60: =(-(Inputs!AG182-Inputs!AG$180)*Inputs!$H$29) -> 0
D61: Option 2A | E61: June $2022 m | F61: 15.98184396 | G61: =(-(Inputs!G183-Inputs!G$180)*Inputs!$H$29) -> 0 | H61: =(-(Inputs!H183-Inputs!H$180)*Inputs!$H$29) -> 0 | I61: =(-(Inputs!I183-Inputs!I$180)*Inputs!$H$29) -> 0.003168401427 | J61: =(-(Inputs!J183-Inputs!J$180)*Inputs!$H$29) -> 0.3261160317 | K61: =(-(Inputs!K183-Inputs!K$180)*Inputs!$H$29) -> 0.1754450205 | L61: =(-(Inputs!L183-Inputs!L$180)*Inputs!$H$29) -> 0.1759152565 | M61: =(-(Inputs!M183-Inputs!M$180)*Inputs!$H$29) -> 0.2061289104 | N61: =(-(Inputs!N183-Inputs!N$180)*Inputs!$H$29) -> -0.314017867 | O61: =(-(Inputs!O183-Inputs!O$180)*Inputs!$H$29) -> -0.7087820431 | P61: =(-(Inputs!P183-Inputs!P$180)*Inputs!$H$29) -> -0.7106706214 | Q61: =(-(Inputs!Q183-Inputs!Q$180)*Inputs!$H$29) -> -0.7644106451 | R61: =(-(Inputs!R183-Inputs!R$180)*Inputs!$H$29) -> 2.116293471 | S61: =(-(Inputs!S183-Inputs!S$180)*Inputs!$H$29) -> 2.203991541 | T61: =(-(Inputs!T183-Inputs!T$180)*Inputs!$H$29) -> 2.308545691 | U61: =(-(Inputs!U183-Inputs!U$180)*Inputs!$H$29) -> 2.052528235 | V61: =(-(Inputs!V183-Inputs!V$180)*Inputs!$H$29) -> 3.266463806 | W61: =(-(Inputs!W183-Inputs!W$180)*Inputs!$H$29) -> 2.388078058 | X61: =(-(Inputs!X183-Inputs!X$180)*Inputs!$H$29) -> 2.452567391 | Y61: =(-(Inputs!Y183-Inputs!Y$180)*Inputs!$H$29) -> 3.897883447 | Z61: =(-(Inputs!Z183-Inputs!Z$180)*Inputs!$H$29) -> 3.362072875 | AA61: =(-(Inputs!AA183-Inputs!AA$180)*Inputs!$H$29) -> 4.112369621 | AB61: =(-(Inputs!AB183-Inputs!AB$180)*Inputs!$H$29) -> 3.304052797 | AC61: =(-(Inputs!AC183-Inputs!AC$180)*Inputs!$H$29) -> 3.122246279 | AD61: =(-(Inputs!AD183-Inputs!AD$180)*Inputs!$H$29) -> 4.669492763 | AE61: =(-(Inputs!AE183-Inputs!AE$180)*Inputs!$H$29) -> 1.671982766 | AF61: =(-(Inputs!AF183-Inputs!AF$180)*Inputs!$H$29) -> 3.618262605 | AG61: =(-(Inputs!AG183-Inputs!AG$180)*Inputs!$H$29) -> 0
D62: Option 2B | E62: June $2022 m | F62: 15.42551266 | G62: =(-(Inputs!G184-Inputs!G$180)*Inputs!$H$29) -> 0 | H62: =(-(Inputs!H184-Inputs!H$180)*Inputs!$H$29) -> 0 | I62: =(-(Inputs!I184-Inputs!I$180)*Inputs!$H$29) -> 0.002849987208 | J62: =(-(Inputs!J184-Inputs!J$180)*Inputs!$H$29) -> 0.3256694926 | K62: =(-(Inputs!K184-Inputs!K$180)*Inputs!$H$29) -> 0.1749192926 | L62: =(-(Inputs!L184-Inputs!L$180)*Inputs!$H$29) -> 0.17542524 | M62: =(-(Inputs!M184-Inputs!M$180)*Inputs!$H$29) -> 0.2058355994 | N62: =(-(Inputs!N184-Inputs!N$180)*Inputs!$H$29) -> -0.208026508 | O62: =(-(Inputs!O184-Inputs!O$180)*Inputs!$H$29) -> -0.6046678706 | P62: =(-(Inputs!P184-Inputs!P$180)*Inputs!$H$29) -> -0.6062921732 | Q62: =(-(Inputs!Q184-Inputs!Q$180)*Inputs!$H$29) -> -0.6583662945 | R62: =(-(Inputs!R184-Inputs!R$180)*Inputs!$H$29) -> 2.093933581 | S62: =(-(Inputs!S184-Inputs!S$180)*Inputs!$H$29) -> 1.863814547 | T62: =(-(Inputs!T184-Inputs!T$180)*Inputs!$H$29) -> 2.143610498 | U62: =(-(Inputs!U184-Inputs!U$180)*Inputs!$H$29) -> 1.683812936 | V62: =(-(Inputs!V184-Inputs!V$180)*Inputs!$H$29) -> 3.00437649 | W62: =(-(Inputs!W184-Inputs!W$180)*Inputs!$H$29) -> 2.305690412 | X62: =(-(Inputs!X184-Inputs!X$180)*Inputs!$H$29) -> 2.266902584 | Y62: =(-(Inputs!Y184-Inputs!Y$180)*Inputs!$H$29) -> 3.745411232 | Z62: =(-(Inputs!Z184-Inputs!Z$180)*Inputs!$H$29) -> 3.271914086 | AA62: =(-(Inputs!AA184-Inputs!AA$180)*Inputs!$H$29) -> 3.773004069 | AB62: =(-(Inputs!AB184-Inputs!AB$180)*Inputs!$H$29) -> 2.76760915 | AC62: =(-(Inputs!AC184-Inputs!AC$180)*Inputs!$H$29) -> 3.562700341 | AD62: =(-(Inputs!AD184-Inputs!AD$180)*Inputs!$H$29) -> 5.982548395 | AE62: =(-(Inputs!AE184-Inputs!AE$180)*Inputs!$H$29) -> 0.1851926198 | AF62: =(-(Inputs!AF184-Inputs!AF$180)*Inputs!$H$29) -> 4.101809984 | AG62: =(-(Inputs!AG184-Inputs!AG$180)*Inputs!$H$29) -> 0
D63: Option 3 | E63: June $2022 m | F63: 14.9745804 | G63: =(-(Inputs!G185-Inputs!G$180)*Inputs!$H$29) -> 0 | H63: =(-(Inputs!H185-Inputs!H$180)*Inputs!$H$29) -> 0 | I63: =(-(Inputs!I185-Inputs!I$180)*Inputs!$H$29) -> 0.00221254744 | J63: =(-(Inputs!J185-Inputs!J$180)*Inputs!$H$29) -> 0.2988318772 | K63: =(-(Inputs!K185-Inputs!K$180)*Inputs!$H$29) -> 0.1761067203 | L63: =(-(Inputs!L185-Inputs!L$180)*Inputs!$H$29) -> 0.176540972 | M63: =(-(Inputs!M185-Inputs!M$180)*Inputs!$H$29) -> 0.210218052 | N63: =(-(Inputs!N185-Inputs!N$180)*Inputs!$H$29) -> -0.4093073193 | O63: =(-(Inputs!O185-Inputs!O$180)*Inputs!$H$29) -> -0.7962192146 | P63: =(-(Inputs!P185-Inputs!P$180)*Inputs!$H$29) -> -0.7983281081 | Q63: =(-(Inputs!Q185-Inputs!Q$180)*Inputs!$H$29) -> -0.8596124829 | R63: =(-(Inputs!R185-Inputs!R$180)*Inputs!$H$29) -> 2.282722546 | S63: =(-(Inputs!S185-Inputs!S$180)*Inputs!$H$29) -> 2.279036414 | T63: =(-(Inputs!T185-Inputs!T$180)*Inputs!$H$29) -> 2.453548105 | U63: =(-(Inputs!U185-Inputs!U$180)*Inputs!$H$29) -> 2.371216534 | V63: =(-(Inputs!V185-Inputs!V$180)*Inputs!$H$29) -> 3.310546186 | W63: =(-(Inputs!W185-Inputs!W$180)*Inputs!$H$29) -> 2.353789124 | X63: =(-(Inputs!X185-Inputs!X$180)*Inputs!$H$29) -> 2.838018338 | Y63: =(-(Inputs!Y185-Inputs!Y$180)*Inputs!$H$29) -> 4.222503624 | Z63: =(-(Inputs!Z185-Inputs!Z$180)*Inputs!$H$29) -> 4.648904312 | AA63: =(-(Inputs!AA185-Inputs!AA$180)*Inputs!$H$29) -> 4.642789537 | AB63: =(-(Inputs!AB185-Inputs!AB$180)*Inputs!$H$29) -> 2.903200616 | AC63: =(-(Inputs!AC185-Inputs!AC$180)*Inputs!$H$29) -> -0.6451008658 | AD63: =(-(Inputs!AD185-Inputs!AD$180)*Inputs!$H$29) -> 0.1955199317 | AE63: =(-(Inputs!AE185-Inputs!AE$180)*Inputs!$H$29) -> 3.172406073 | AF63: =(-(Inputs!AF185-Inputs!AF$180)*Inputs!$H$29) -> 4.153182742 | AG63: =(-(Inputs!AG185-Inputs!AG$180)*Inputs!$H$29) -> 0
D64: Option 4 | E64: June $2022 m | F64: 74.62062569 | G64: =(-(Inputs!G186-Inputs!G$180)*Inputs!$H$29) -> 0 | H64: =(-(Inputs!H186-Inputs!H$180)*Inputs!$H$29) -> 0 | I64: =(-(Inputs!I186-Inputs!I$180)*Inputs!$H$29) -> 0.0032704028 | J64: =(-(Inputs!J186-Inputs!J$180)*Inputs!$H$29) -> 3.905482906 | K64: =(-(Inputs!K186-Inputs!K$180)*Inputs!$H$29) -> 4.216842361 | L64: =(-(Inputs!L186-Inputs!L$180)*Inputs!$H$29) -> 4.077459439 | M64: =(-(Inputs!M186-Inputs!M$180)*Inputs!$H$29) -> 4.193726823 | N64: =(-(Inputs!N186-Inputs!N$180)*Inputs!$H$29) -> 5.049426286 | O64: =(-(Inputs!O186-Inputs!O$180)*Inputs!$H$29) -> 5.567292479 | P64: =(-(Inputs!P186-Inputs!P$180)*Inputs!$H$29) -> 5.582146573 | Q64: =(-(Inputs!Q186-Inputs!Q$180)*Inputs!$H$29) -> 5.643016889 | R64: =(-(Inputs!R186-Inputs!R$180)*Inputs!$H$29) -> 7.537703269 | S64: =(-(Inputs!S186-Inputs!S$180)*Inputs!$H$29) -> 5.631695296 | T64: =(-(Inputs!T186-Inputs!T$180)*Inputs!$H$29) -> 8.597097659 | U64: =(-(Inputs!U186-Inputs!U$180)*Inputs!$H$29) -> 9.083319936 | V64: =(-(Inputs!V186-Inputs!V$180)*Inputs!$H$29) -> 7.02693672 | W64: =(-(Inputs!W186-Inputs!W$180)*Inputs!$H$29) -> 7.666193174 | X64: =(-(Inputs!X186-Inputs!X$180)*Inputs!$H$29) -> 7.874996952 | Y64: =(-(Inputs!Y186-Inputs!Y$180)*Inputs!$H$29) -> 9.107606485 | Z64: =(-(Inputs!Z186-Inputs!Z$180)*Inputs!$H$29) -> 9.332350628 | AA64: =(-(Inputs!AA186-Inputs!AA$180)*Inputs!$H$29) -> 8.511882185 | AB64: =(-(Inputs!AB186-Inputs!AB$180)*Inputs!$H$29) -> 7.54090497 | AC64: =(-(Inputs!AC186-Inputs!AC$180)*Inputs!$H$29) -> 9.057182587 | AD64: =(-(Inputs!AD186-Inputs!AD$180)*Inputs!$H$29) -> 11.14977904 | AE64: =(-(Inputs!AE186-Inputs!AE$180)*Inputs!$H$29) -> 5.853389068 | AF64: =(-(Inputs!AF186-Inputs!AF$180)*Inputs!$H$29) -> 10.30678443 | AG64: =(-(Inputs!AG186-Inputs!AG$180)*Inputs!$H$29) -> 0
D65: Fixed Operating & Maintenance
D66: Option 1 | E66: June $2022 m | F66: =G66+NPV(Discount_Progressive,H66:AG66) -> 2.263496841 | G66: =(-(Inputs!G189-Inputs!G$188)*Inputs!$H$29) -> 0 | H66: =(-(Inputs!H189-Inputs!H$188)*Inputs!$H$29) -> 0 | I66: =(-(Inputs!I189-Inputs!I$188)*Inputs!$H$29) -> 0.0003535909608 | J66: =(-(Inputs!J189-Inputs!J$188)*Inputs!$H$29) -> 0.03550470658 | K66: =(-(Inputs!K189-Inputs!K$188)*Inputs!$H$29) -> 0.01221250404 | L66: =(-(Inputs!L189-Inputs!L$188)*Inputs!$H$29) -> 0.01224195291 | M66: =(-(Inputs!M189-Inputs!M$188)*Inputs!$H$29) -> 0.01621353766 | N66: =(-(Inputs!N189-Inputs!N$188)*Inputs!$H$29) -> 0.02019830281 | O66: =(-(Inputs!O189-Inputs!O$188)*Inputs!$H$29) -> -0.0272850198 | P66: =(-(Inputs!P189-Inputs!P$188)*Inputs!$H$29) -> -0.02735772765 | Q66: =(-(Inputs!Q189-Inputs!Q$188)*Inputs!$H$29) -> -0.03206618673 | R66: =(-(Inputs!R189-Inputs!R$188)*Inputs!$H$29) -> 0.2953730873 | S66: =(-(Inputs!S189-Inputs!S$188)*Inputs!$H$29) -> 0.3279806869 | T66: =(-(Inputs!T189-Inputs!T$188)*Inputs!$H$29) -> 0.3392516037 | U66: =(-(Inputs!U189-Inputs!U$188)*Inputs!$H$29) -> 0.2629824804 | V66: =(-(Inputs!V189-Inputs!V$188)*Inputs!$H$29) -> 0.3869393352 | W66: =(-(Inputs!W189-Inputs!W$188)*Inputs!$H$29) -> 0.3201775001 | X66: =(-(Inputs!X189-Inputs!X$188)*Inputs!$H$29) -> 0.358578183 | Y66: =(-(Inputs!Y189-Inputs!Y$188)*Inputs!$H$29) -> 0.4525480499 | Z66: =(-(Inputs!Z189-Inputs!Z$188)*Inputs!$H$29) -> 0.4558938091 | AA66: =(-(Inputs!AA189-Inputs!AA$188)*Inputs!$H$29) -> 0.6089529934 | AB66: =(-(Inputs!AB189-Inputs!AB$188)*Inputs!$H$29) -> 0.4258172393 | AC66: =(-(Inputs!AC189-Inputs!AC$188)*Inputs!$H$29) -> 0.558746221 | AD66: =(-(Inputs!AD189-Inputs!AD$188)*Inputs!$H$29) -> 0.6297488113 | AE66: =(-(Inputs!AE189-Inputs!AE$188)*Inputs!$H$29) -> 0.1397569674 | AF66: =(-(Inputs!AF189-Inputs!AF$188)*Inputs!$H$29) -> 0.3015748158 | AG66: =(-(Inputs!AG189-Inputs!AG$188)*Inputs!$H$29) -> 0
D67: Option 2 | E67: June $2022 m | F67: 3.637934597 | G67: =(-(Inputs!G190-Inputs!G$188)*Inputs!$H$29) -> 0 | H67: =(-(Inputs!H190-Inputs!H$188)*Inputs!$H$29) -> 0 | I67: =(-(Inputs!I190-Inputs!I$188)*Inputs!$H$29) -> 0.0005241031636 | J67: =(-(Inputs!J190-Inputs!J$188)*Inputs!$H$29) -> 0.04316912903 | K67: =(-(Inputs!K190-Inputs!K$188)*Inputs!$H$29) -> 0.014607391 | L67: =(-(Inputs!L190-Inputs!L$188)*Inputs!$H$29) -> 0.01464721296 | M67: =(-(Inputs!M190-Inputs!M$188)*Inputs!$H$29) -> 0.01945001765 | N67: =(-(Inputs!N190-Inputs!N$188)*Inputs!$H$29) -> 0.0104742403 | O67: =(-(Inputs!O190-Inputs!O$188)*Inputs!$H$29) -> -0.04402283645 | P67: =(-(Inputs!P190-Inputs!P$188)*Inputs!$H$29) -> -0.04414177653 | Q67: =(-(Inputs!Q190-Inputs!Q$188)*Inputs!$H$29) -> -0.05196992363 | R67: =(-(Inputs!R190-Inputs!R$188)*Inputs!$H$29) -> 0.396209615 | S67: =(-(Inputs!S190-Inputs!S$188)*Inputs!$H$29) -> 0.5375271696 | T67: =(-(Inputs!T190-Inputs!T$188)*Inputs!$H$29) -> 0.4785983885 | U67: =(-(Inputs!U190-Inputs!U$188)*Inputs!$H$29) -> 0.347900881 | V67: =(-(Inputs!V190-Inputs!V$188)*Inputs!$H$29) -> 0.6481455934 | W67: =(-(Inputs!W190-Inputs!W$188)*Inputs!$H$29) -> 0.5152027083 | X67: =(-(Inputs!X190-Inputs!X$188)*Inputs!$H$29) -> 0.5362385925 | Y67: =(-(Inputs!Y190-Inputs!Y$188)*Inputs!$H$29) -> 0.8237030756 | Z67: =(-(Inputs!Z190-Inputs!Z$188)*Inputs!$H$29) -> 0.8066203262 | AA67: =(-(Inputs!AA190-Inputs!AA$188)*Inputs!$H$29) -> 0.9313278256 | AB67: =(-(Inputs!AB190-Inputs!AB$188)*Inputs!$H$29) -> 0.7622835456 | AC67: =(-(Inputs!AC190-Inputs!AC$188)*Inputs!$H$29) -> 0.8270304394 | AD67: =(-(Inputs!AD190-Inputs!AD$188)*Inputs!$H$29) -> 1.136794292 | AE67: =(-(Inputs!AE190-Inputs!AE$188)*Inputs!$H$29) -> 0.4577298073 | AF67: =(-(Inputs!AF190-Inputs!AF$188)*Inputs!$H$29) -> 0.48233308 | AG67: =(-(Inputs!AG190-Inputs!AG$188)*Inputs!$H$29) -> 0
D68: Option 2A | E68: June $2022 m | F68: 3.525127602 | G68: =(-(Inputs!G191-Inputs!G$188)*Inputs!$H$29) -> 0 | H68: =(-(Inputs!H191-Inputs!H$188)*Inputs!$H$29) -> 0 | I68: =(-(Inputs!I191-Inputs!I$188)*Inputs!$H$29) -> 0.000551160479 | J68: =(-(Inputs!J191-Inputs!J$188)*Inputs!$H$29) -> 0.0432059338 | K68: =(-(Inputs!K191-Inputs!K$188)*Inputs!$H$29) -> 0.01465187377 | L68: =(-(Inputs!L191-Inputs!L$188)*Inputs!$H$29) -> 0.01469017564 | M68: =(-(Inputs!M191-Inputs!M$188)*Inputs!$H$29) -> 0.01948626354 | N68: =(-(Inputs!N191-Inputs!N$188)*Inputs!$H$29) -> 0.01042372756 | O68: =(-(Inputs!O191-Inputs!O$188)*Inputs!$H$29) -> -0.04425495005 | P68: =(-(Inputs!P191-Inputs!P$188)*Inputs!$H$29) -> -0.04437279991 | Q68: =(-(Inputs!Q191-Inputs!Q$188)*Inputs!$H$29) -> -0.05201263858 | R68: =(-(Inputs!R191-Inputs!R$188)*Inputs!$H$29) -> 0.3955067889 | S68: =(-(Inputs!S191-Inputs!S$188)*Inputs!$H$29) -> 0.5349475225 | T68: =(-(Inputs!T191-Inputs!T$188)*Inputs!$H$29) -> 0.479406321 | U68: =(-(Inputs!U191-Inputs!U$188)*Inputs!$H$29) -> 0.3539014544 | V68: =(-(Inputs!V191-Inputs!V$188)*Inputs!$H$29) -> 0.6536563909 | W68: =(-(Inputs!W191-Inputs!W$188)*Inputs!$H$29) -> 0.5062088021 | X68: =(-(Inputs!X191-Inputs!X$188)*Inputs!$H$29) -> 0.5242540941 | Y68: =(-(Inputs!Y191-Inputs!Y$188)*Inputs!$H$29) -> 0.8273505935 | Z68: =(-(Inputs!Z191-Inputs!Z$188)*Inputs!$H$29) -> 0.7521623896 | AA68: =(-(Inputs!AA191-Inputs!AA$188)*Inputs!$H$29) -> 0.9278572815 | AB68: =(-(Inputs!AB191-Inputs!AB$188)*Inputs!$H$29) -> 0.7488411846 | AC68: =(-(Inputs!AC191-Inputs!AC$188)*Inputs!$H$29) -> 0.8749996133 | AD68: =(-(Inputs!AD191-Inputs!AD$188)*Inputs!$H$29) -> 1.24528851 | AE68: =(-(Inputs!AE191-Inputs!AE$188)*Inputs!$H$29) -> 0.1604781088 | AF68: =(-(Inputs!AF191-Inputs!AF$188)*Inputs!$H$29) -> 0.2982705695 | AG68: =(-(Inputs!AG191-Inputs!AG$188)*Inputs!$H$29) -> 0
